Workbook

Sheet INDEX M
A1: X:\ERATE\CKY\RATECASE\1994\SCHC\INDEX.WK1
A3: SCHEDULE M
A5: REVENUE SUMMARY FOR BASE PERIOD AND FORECASTED PERIOD
A7: COLUMBIA GAS OF KENTUCKY, INC.
A9: CASE NO. 2021-XXXXX
A13: BASE PERIOD : | C13: FOR THE TWELVE MONTHS ENDED AUGUST 31, 2021
A15: FORECASTED PERIOD: | C15: FOR THE TWELVE MONTHS ENDED DECEMBER 31, 2022
A18: SCHEDULE | C18: DESCRIPTION
A21: M | C21: BASE AND FORECASTED PERIOD AT PRESENT RATES
A22: M-2.1 | C22: PRESENT AND PROPOSED REVENUE AT FORECASTED PERIOD
A23: M-2.2 | C23: BILLING ANALYSIS FOR THE FORECASTED PERIOD AT PRESENT RATES
A24: M-2.2B | C24: BILLING ANALYSIS FOR THE BASE PERIOD AT CURRENT RATES
A25: M-2.3 | C25: BILLING ANALYSIS FOR THE FORECASTED PERIOD AT PROPOSED RATES

Sheet Sch D-2.1 Output
A1: Copy from cell A-2 and past in Cost of Service Schedule M Input Tab cell A-2.
A3: SCHEDULE D-2.1
A4: SHEET 1 OF 5
A7: Annualized Residential Revenue | B7: M-2.2 | C7: ='Sch M 2.2'!Q19 -> 86457143.65
A9: Annualized Commercial Revenue | B9: M-2.2 | C9: ='Sch M 2.2'!Q20 -> 35527761.53
A11: Annualized Industrial Revenue | B11: M-2.2 | C11: ='Sch M 2.2'!Q21 -> 1704101.48
A13: Annualized Public Utility Revenue | B13: M-2.2 | C13: ='Sch M 2.2'!Q22 -> 80099.34
A15: SCHEDULE D-2.1
A16: SHEET 2 OF 5
A18: Annualized Transportation Revenue | B18: M-2.2 | C18: ='Sch M 2.2'!Q26+'Sch M 2.2'!Q27+'Sch M 2.2'!Q28 -> 22525102.95
A20: Forfeited Discount Adjustment | C20: 0
A22: SCHEDULE D-2.1
A23: SHEET 3 OF 5
A25: Annualized Gas Cost Revenue | B25: M-2.2 | C25: ='Sch M'!O28 -> 49521727.37
A27: SCHEDULE D-2.1
A28: SHEET 4 OF 5
A30: Annualized Residential Revenue - Sales | B30: M-2.2 | C30: ='Sch M 2.2'!Q19 -> 86457143.65
A31: Annualized Residential Revenue - Transportation | B31: M-2.2 | C31: ='Sch M 2.2'!Q232 -> 7250553.29
A34: OTHER GAS DEPARTMENT REVENUE
A36: ='Sch M 2.2'!C369 -> Acct. 487 Forfeited Discounts | B36: M-2.2 | C36: ='Sch M 2.2'!Q369 -> 390077.64
A37: ='Sch M 2.2'!C370 -> Acct. 488 Miscellaneous Service Revenue | C37: ='Sch M 2.2'!Q370 -> 117501.3467
A38: Acct. 493 Rental from Gas Property | C38: ='Sch M 2.2'!Q371 -> 41592
A39: ='Sch M 2.2'!C372 -> Acct. 495 Non-Traditional Sales | C39: ='Sch M 2.2'!Q372 -> 0
A40: ='Sch M 2.2'!#REF! ->  | C40: ='Sch M 2.2'!#REF! -> 
A41: ='Sch M 2.2'!C373 -> Acct. 495 Other Gas Revenues - Other | C41: ='Sch M 2.2'!Q373 -> 678382.4333
A45: Annualized Tracker Revenue at 03/01/2013 with new Uncollectible Gas Cost Rider of $.0243/Mcf
C46: Jan-14 | D46: Feb-14 | E46: Mar-14 | F46: Apr-14 | G46: May-14 | H46: Jun-14 | I46: Jul-14 | J46: Aug-14 | K46: Sep-14 | L46: Oct-14 | M46: Nov-14 | N46: 2014-12-01 | O46: Total
A47: EAP Revenue | B47: M-2.2 | C47: ='Sch M 2.2'!E417+'Sch M 2.2'!E846 -> 37378.5 | D47: ='Sch M 2.2'!F417+'Sch M 2.2'!F846 -> 37428 | E47: ='Sch M 2.2'!G417+'Sch M 2.2'!G846 -> 37495.8 | F47: ='Sch M 2.2'!H417+'Sch M 2.2'!H846 -> 37217.1 | G47: ='Sch M 2.2'!I417+'Sch M 2.2'!I846 -> 37024.8 | H47: ='Sch M 2.2'!J417+'Sch M 2.2'!J846 -> 36805.2 | I47: ='Sch M 2.2'!K417+'Sch M 2.2'!K846 -> 36735 | J47: ='Sch M 2.2'!L417+'Sch M 2.2'!L846 -> 36688.2 | K47: ='Sch M 2.2'!M417+'Sch M 2.2'!M846 -> 36520.2 | L47: ='Sch M 2.2'!N417+'Sch M 2.2'!N846 -> 36527.1 | M47: ='Sch M 2.2'!O417+'Sch M 2.2'!O846 -> 36921 | N47: ='Sch M 2.2'!P417+'Sch M 2.2'!P846 -> 37335.3 | O47: =SUM(C47:N47) -> 444076.2
A48: EECP Revenue | B48: M-2.2 | C48: ='Sch M 2.2'!E414+'Sch M 2.2'!E844 -> 36132.55 | D48: ='Sch M 2.2'!F414+'Sch M 2.2'!F844 -> 36180.4 | E48: ='Sch M 2.2'!G414+'Sch M 2.2'!G844 -> 36245.94 | F48: ='Sch M 2.2'!H414+'Sch M 2.2'!H844 -> 35976.53 | G48: ='Sch M 2.2'!I414+'Sch M 2.2'!I844 -> 35790.64 | H48: ='Sch M 2.2'!J414+'Sch M 2.2'!J844 -> 35578.36 | I48: ='Sch M 2.2'!K414+'Sch M 2.2'!K844 -> 35510.5 | J48: ='Sch M 2.2'!L414+'Sch M 2.2'!L844 -> 35465.26 | K48: ='Sch M 2.2'!M414+'Sch M 2.2'!M844 -> 35302.86 | L48: ='Sch M 2.2'!N414+'Sch M 2.2'!N844 -> 35309.53 | M48: ='Sch M 2.2'!O414+'Sch M 2.2'!O844 -> 35690.3 | N48: ='Sch M 2.2'!P414+'Sch M 2.2'!P844 -> 36090.79 | O48: =SUM(C48:N48) -> 429273.66
A49: Gas Cost Uncollectible | B49: M-2.3 | C49: ='Sch M 2.2'!E415+'Sch M 2.2'!E676+'Sch M 2.2'!E728+'Sch M 2.2'!E777+'Sch M 2.2'!E802 -> 58501.5 | D49: ='Sch M 2.2'!F415+'Sch M 2.2'!F676+'Sch M 2.2'!F728+'Sch M 2.2'!F777+'Sch M 2.2'!F802 -> 58080.79 | E49: ='Sch M 2.2'!G415+'Sch M 2.2'!G676+'Sch M 2.2'!G728+'Sch M 2.2'!G777+'Sch M 2.2'!G802 -> 45955.96 | F49: ='Sch M 2.2'!H415+'Sch M 2.2'!H676+'Sch M 2.2'!H728+'Sch M 2.2'!H777+'Sch M 2.2'!H802 -> 25017.97 | G49: ='Sch M 2.2'!I415+'Sch M 2.2'!I676+'Sch M 2.2'!I728+'Sch M 2.2'!I777+'Sch M 2.2'!I802 -> 12115.78 | H49: ='Sch M 2.2'!J415+'Sch M 2.2'!J676+'Sch M 2.2'!J728+'Sch M 2.2'!J777+'Sch M 2.2'!J802 -> 7155.06 | I49: ='Sch M 2.2'!K415+'Sch M 2.2'!K676+'Sch M 2.2'!K728+'Sch M 2.2'!K777+'Sch M 2.2'!K802 -> 4896.12 | J49: ='Sch M 2.2'!L415+'Sch M 2.2'!L676+'Sch M 2.2'!L728+'Sch M 2.2'!L777+'Sch M 2.2'!L802 -> 4805.3 | K49: ='Sch M 2.2'!M415+'Sch M 2.2'!M676+'Sch M 2.2'!M728+'Sch M 2.2'!M777+'Sch M 2.2'!M802 -> 5335.29 | L49: ='Sch M 2.2'!N415+'Sch M 2.2'!N676+'Sch M 2.2'!N728+'Sch M 2.2'!N777+'Sch M 2.2'!N802 -> 7984.71 | M49: ='Sch M 2.2'!O415+'Sch M 2.2'!O676+'Sch M 2.2'!O728+'Sch M 2.2'!O777+'Sch M 2.2'!O802 -> 18743.08 | N49: ='Sch M 2.2'!P415+'Sch M 2.2'!P676+'Sch M 2.2'!P728+'Sch M 2.2'!P777+'Sch M 2.2'!P802 -> 42634.66 | O49: =SUM(C49:N49) -> 291226.22
A50: AMRP (not tracked) | B50: M-2.4 | C50: ='Sch M 2.2'!E402+'Sch M 2.2'!E654+'Sch M 2.2'!E706+'Sch M 2.2'!E759+'Sch M 2.2'!E790+'Sch M 2.2'!E832+'Sch M 2.2'!E858+'Sch M 2.2'!E904+'Sch M 2.2'!E951+'Sch M 2.2'!E979+'Sch M 2.2'!E1023+'Sch M 2.2'!E1052+'Sch M 2.2'!E1227 -> 1268514.21 | D50: ='Sch M 2.2'!F402+'Sch M 2.2'!F654+'Sch M 2.2'!F706+'Sch M 2.2'!F759+'Sch M 2.2'!F790+'Sch M 2.2'!F832+'Sch M 2.2'!F858+'Sch M 2.2'!F904+'Sch M 2.2'!F951+'Sch M 2.2'!F979+'Sch M 2.2'!F1023+'Sch M 2.2'!F1052+'Sch M 2.2'!F1227 -> 1270094.36 | E50: ='Sch M 2.2'!G402+'Sch M 2.2'!G654+'Sch M 2.2'!G706+'Sch M 2.2'!G759+'Sch M 2.2'!G790+'Sch M 2.2'!G832+'Sch M 2.2'!G858+'Sch M 2.2'!G904+'Sch M 2.2'!G951+'Sch M 2.2'!G979+'Sch M 2.2'!G1023+'Sch M 2.2'!G1052+'Sch M 2.2'!G1227 -> 1278764.19 | F50: ='Sch M 2.2'!H402+'Sch M 2.2'!H654+'Sch M 2.2'!H706+'Sch M 2.2'!H759+'Sch M 2.2'!H790+'Sch M 2.2'!H832+'Sch M 2.2'!H858+'Sch M 2.2'!H904+'Sch M 2.2'!H951+'Sch M 2.2'!H979+'Sch M 2.2'!H1023+'Sch M 2.2'!H1052+'Sch M 2.2'!H1227 -> 1271194.94 | G50: ='Sch M 2.2'!I402+'Sch M 2.2'!I654+'Sch M 2.2'!I706+'Sch M 2.2'!I759+'Sch M 2.2'!I790+'Sch M 2.2'!I832+'Sch M 2.2'!I858+'Sch M 2.2'!I904+'Sch M 2.2'!I951+'Sch M 2.2'!I979+'Sch M 2.2'!I1023+'Sch M 2.2'!I1052+'Sch M 2.2'!I1227 -> 1265073.24 | H50: ='Sch M 2.2'!J402+'Sch M 2.2'!J654+'Sch M 2.2'!J706+'Sch M 2.2'!J759+'Sch M 2.2'!J790+'Sch M 2.2'!J832+'Sch M 2.2'!J858+'Sch M 2.2'!J904+'Sch M 2.2'!J951+'Sch M 2.2'!J979+'Sch M 2.2'!J1023+'Sch M 2.2'!J1052+'Sch M 2.2'!J1227 -> 1258664.24 | I50: ='Sch M 2.2'!K402+'Sch M 2.2'!K654+'Sch M 2.2'!K706+'Sch M 2.2'!K759+'Sch M 2.2'!K790+'Sch M 2.2'!K832+'Sch M 2.2'!K858+'Sch M 2.2'!K904+'Sch M 2.2'!K951+'Sch M 2.2'!K979+'Sch M 2.2'!K1023+'Sch M 2.2'!K1052+'Sch M 2.2'!K1227 -> 1257215.77 | J50: ='Sch M 2.2'!L402+'Sch M 2.2'!L654+'Sch M 2.2'!L706+'Sch M 2.2'!L759+'Sch M 2.2'!L790+'Sch M 2.2'!L832+'Sch M 2.2'!L858+'Sch M 2.2'!L904+'Sch M 2.2'!L951+'Sch M 2.2'!L979+'Sch M 2.2'!L1023+'Sch M 2.2'!L1052+'Sch M 2.2'!L1227 -> 1253696.16 | K50: ='Sch M 2.2'!M402+'Sch M 2.2'!M654+'Sch M 2.2'!M706+'Sch M 2.2'!M759+'Sch M 2.2'!M790+'Sch M 2.2'!M832+'Sch M 2.2'!M858+'Sch M 2.2'!M904+'Sch M 2.2'!M951+'Sch M 2.2'!M979+'Sch M 2.2'!M1023+'Sch M 2.2'!M1052+'Sch M 2.2'!M1227 -> 1250888.54 | L50: ='Sch M 2.2'!N402+'Sch M 2.2'!N654+'Sch M 2.2'!N706+'Sch M 2.2'!N759+'Sch M 2.2'!N790+'Sch M 2.2'!N832+'Sch M 2.2'!N858+'Sch M 2.2'!N904+'Sch M 2.2'!N951+'Sch M 2.2'!N979+'Sch M 2.2'!N1023+'Sch M 2.2'!N1052+'Sch M 2.2'!N1227 -> 1250500.5 | M50: ='Sch M 2.2'!O402+'Sch M 2.2'!O654+'Sch M 2.2'!O706+'Sch M 2.2'!O759+'Sch M 2.2'!O790+'Sch M 2.2'!O832+'Sch M 2.2'!O858+'Sch M 2.2'!O904+'Sch M 2.2'!O951+'Sch M 2.2'!O979+'Sch M 2.2'!O1023+'Sch M 2.2'!O1052+'Sch M 2.2'!O1227 -> 1263800.28 | N50: ='Sch M 2.2'!P402+'Sch M 2.2'!P654+'Sch M 2.2'!P706+'Sch M 2.2'!P759+'Sch M 2.2'!P790+'Sch M 2.2'!P832+'Sch M 2.2'!P858+'Sch M 2.2'!P904+'Sch M 2.2'!P951+'Sch M 2.2'!P979+'Sch M 2.2'!P1023+'Sch M 2.2'!P1052+'Sch M 2.2'!P1227 -> 1276700.05 | O50: =SUM(C50:N50) -> 15165106.48
A54: Annualized Tracker Revenue at 03/01/2013 | C54: Jan-14 | D54: Feb-14 | E54: Mar-14 | F54: Apr-14 | G54: May-14 | H54: Jun-14 | I54: Jul-14 | J54: Aug-14 | K54: Sep-14 | L54: Oct-14 | M54: Nov-14 | N54: 2014-12-01 | O54: Total
A55: EAP Revenue | B55: M-2.2 | C55: 106334.47 | D55: 100809.07 | E55: 76468.42 | F55: 46890.93 | G55: 19975.85 | H55: 10203.19 | I55: 6945.31 | J55: 6761.65 | K55: 7068.51 | L55: 11305.8 | M55: 29805.29 | N55: 69148.1 | O55: 491716.59
A56: EECP Revenue | B56: M-2.2 | C56: -29154.24 | D56: -29230.8 | E56: -29253.6 | F56: -29126.88 | G56: -28895.76 | H56: -28711.2 | I56: -28521.36 | J56: -28428.72 | K56: -28281.36 | L56: -28320.96 | M56: -28639.68 | N56: -28868.88 | O56: -345433.44
A57: Gas Cost Uncollectible | B57: M-2.3 | C57: 118839.11 | D57: 111953.45 | E57: 82863.26 | F57: 51149.89 | G57: 23606.95 | H57: 13563.81 | I57: 9842.85 | J57: 8671.17 | K57: 9504.11 | L57: 12988.47 | M57: 31621.58 | N57: 75948.01 | O57: 550552.66
A58: AMRP (not tracked) | B58: M-2.4 | C58: 200588.12 | D58: 200942.18 | E58: 201007.06 | F58: 200081.22 | G58: 198658.46 | H58: 197469.2 | I58: 196228.76 | J58: 195763.88 | K58: 194822.5 | L58: 195172.52 | M58: 197157.3 | N58: 198575.56 | O58: 2376466.76

Sheet Input
A1: Data entry areas are shown in the color blue. Calculations
A2: and text are shown in black. Instructions are highlighted in yellow.
A4: Columbia Gas of Kentucky, Inc.
A6: Case No. | B6: Case No. 2021-00183
A8: Witness: | B8: Witness: Judith L. Siegler
A9: Rate Design Witness:
A10: Expected Gas Cost Firm Commodity Rate: | C10: 4.4128
A11: Gas Cost Adjustment Rate: | C11: 4.387
A12: Gas Cost Adjustment Firm Commodity Rate: | C12: =2.7919 -> 2.7919
A13: Gas Cost Adjustment Firm Demand Rate: | C13: 2.1525
A14: Gas Cost Adjustment Date: | C14: March 1, 2021
A16: Input area:
C17: Current Rates | Q17: Proposed Rates
A18: Rate Code | B18: Rate Schedule Name | C18: First Block | D18: Second Block | E18: Third Block | F18: Fourth Block | G18: Fifth Block | H18: Cust Chg. | I18: Admin chg | J18: Tax Act Adj 11/27/19 | K18: AMRP | L18: EECP | M18: EAP | N18: R&D | O18: Uncoll | Q18: First Block | R18: Second Block | S18: Third Block | T18: Fourth Block | U18: Fifth Block | V18: Cust Chg. | W18: Admin chg. | X18: AMRP | Y18: EECP | Z18: EAP | AA18: R&D | AB18: Uncoll
A19: GSR | B19: General Service - Residential | C19: 3.5665 | H19: 16 | J19: -0.2825 | K19: 6.63 | L19: 0.29 | M19: 0.3 | N19: 0.0144 | O19: 0.0258 | Q19: ='Rate Design KLJ-RDES-1'!F230 -> 5.274 | V19: ='Rate Design KLJ-RDES-1'!F225 -> 19.75 | X19: 0 | Y19: =L19 -> 0.29 | Z19: =M19 -> 0.3 | AA19: =N19 -> 0.0144 | AB19: 0.0119
A20: G1C | B20: LG&E Commercial | C20: 3.2636 | H20: 70.34 | Q20: =C20 -> 3.2636 | V20: =H20 -> 70.34
A21: G1R | B21: LG&E Residential | C21: 3.901 | H21: 22.32 | Q21: 3.901 | V21: 22.32
A22: IN3 | B22: Inland Gas General Service - Residential | C22: 0.4 | H22: 0 | N22: 0.0144 | Q22: 0.4 | V22: 0 | AA22: =N22 -> 0.0144
A23: IN3 | B23: Inland Gas General Service - Commercial | C23: 0.4 | H23: 0 | N23: 0.0144 | Q23: 0.4 | V23: 0 | AA23: =N23 -> 0.0144
A24: IN4 | B24: Inland Gas General Service - Residential | C24: 0 | H24: 0 | N24: 0.0144 | Q24: 0 | V24: 0 | AA24: =N24 -> 0.0144
A25: IN5 | B25: Inland Gas General Service - Residential | C25: 0.6 | H25: 0 | N25: 0.0144 | Q25: 0.6 | V25: 0 | AA25: =N25 -> 0.0144
A26: LG2 | B26: LG&E Residential | C26: 0.35 | H26: 0 | Q26: 0.35 | V26: 0
A27: LG2 | B27: LG&E Commercial | C27: 0.35 | H27: 0 | Q27: 0.35 | V27: 0
A28: LG3 | B28: LG&E Residential | C28: 0 | D28: 0.35 | H28: 1.2 | Q28: 0 | R28: =D28 -> 0.35 | V28: 1.2
A29: LG4 | B29: LG&E Residential | C29: 0.4 | H29: 0 | Q29: 0.4 | V29: 0
A30: GSO | B30: General Service - Commercial | C30: 3.0181 | D30: 2.3295 | E30: 2.2143 | F30: 2.0143 | H30: 44.69 | J30: -0.168 | K30: 24.31 | N30: 0.0144 | O30: 0.0258 | Q30: ='Rate Design KLJ-RDES-1'!F256 -> 3.2649 | R30: ='Rate Design KLJ-RDES-1'!F257 -> 2.5201 | S30: ='Rate Design KLJ-RDES-1'!F258 -> 2.3954 | T30: ='Rate Design KLJ-RDES-1'!F259 -> 2.179 | V30: ='Rate Design KLJ-RDES-1'!F250 -> 83.71 | X30: 0 | AA30: =N30 -> 0.0144 | AB30: =AB19 -> 0.0119
A31: GSO | B31: General Service - Industrial | C31: 3.0181 | D31: 2.3295 | E31: 2.2143 | F31: 2.0143 | H31: 44.69 | J31: -0.168 | K31: 24.31 | N31: 0.0144 | O31: 0.0258 | Q31: ='Rate Design KLJ-RDES-1'!F256 -> 3.2649 | R31: ='Rate Design KLJ-RDES-1'!F257 -> 2.5201 | S31: ='Rate Design KLJ-RDES-1'!F258 -> 2.3954 | T31: ='Rate Design KLJ-RDES-1'!F259 -> 2.179 | V31: ='Rate Design KLJ-RDES-1'!F250 -> 83.71 | X31: 0 | AA31: =N31 -> 0.0144 | AB31: =AB19 -> 0.0119
A32: GST | B32: General Service - Trans Fallback - Comm | C32: 0 | H32: 0 | Q32: 0 | V32: 0
A33: GST | B33: General Service - Trans Fallback - Ind | C33: 0 | H33: 0 | Q33: 0 | V33: 0
A34: IST | B34: Interruptible Service - Fallback - Commercial | C34: 0 | H34: 0 | Q34: 0 | V34: 0
A35: IST | B35: Interruptible Service - Fallback - Industrial | C35: 0 | H35: 0 | Q35: 0 | V35: 0
A36: IS | B36: Interruptible Service - Industrial | C36: 0.6285 | D36: 0.3737 | E36: 0.3247 | H36: 2007 | J36: -0.026 | K36: 1221.21 | N36: 0.0144 | O36: 0.0258 | Q36: ='Rate Design KLJ-RDES-1'!F287 -> 0.712 | R36: ='Rate Design KLJ-RDES-1'!F288 -> 0.4394 | V36: ='Rate Design KLJ-RDES-1'!F281 -> 3982.3 | X36: 0 | AB36: =AB19 -> 0.0119
A37: IUS | B37: Intrastate Utility Service - Wholesale | C37: 1.1544 | H37: 567.4 | J37: -0.116 | K37: 207.8 | N37: 0.0144 | O37: 0.0258 | Q37: ='Rate Design KLJ-RDES-1'!F316 -> 1.1986 | V37: ='Rate Design KLJ-RDES-1'!F311 -> 945.24 | X37: 0 | AA37: =N37 -> 0.0144 | AB37: =AB19 -> 0.0119
B39: Transportation Service
A41: GTR | B41: GTS Choice - Residential | C41: 3.5665 | H41: 16 | J41: -0.2825 | K41: 6.63 | L41: 0.29 | M41: 0.3 | N41: 0.0144 | Q41: ='Rate Design KLJ-RDES-1'!F230 -> 5.274 | V41: ='Rate Design KLJ-RDES-1'!F225 -> 19.75 | X41: 0 | Y41: =L41 -> 0.29 | Z41: =M41 -> 0.3 | AA41: =N41 -> 0.0144
A42: GTO | B42: GTS Choice - Commercial | C42: 3.0181 | D42: 2.3295 | E42: 2.2143 | F42: 2.0143 | H42: 44.69 | J42: -0.168 | K42: 24.31 | N42: 0.0144 | Q42: ='Rate Design KLJ-RDES-1'!F256 -> 3.2649 | R42: ='Rate Design KLJ-RDES-1'!F257 -> 2.5201 | S42: ='Rate Design KLJ-RDES-1'!F258 -> 2.3954 | T42: ='Rate Design KLJ-RDES-1'!F259 -> 2.179 | V42: ='Rate Design KLJ-RDES-1'!F250 -> 83.71 | X42: 0 | AA42: =N42 -> 0.0144
A43: GTO | B43: GTS Choice - Industrial | C43: 3.0181 | D43: 2.3295 | E43: 2.2143 | F43: 2.0143 | H43: 44.69 | J43: -0.168 | K43: 24.31 | N43: 0.0144 | Q43: ='Rate Design KLJ-RDES-1'!F256 -> 3.2649 | R43: ='Rate Design KLJ-RDES-1'!F257 -> 2.5201 | S43: ='Rate Design KLJ-RDES-1'!F258 -> 2.3954 | T43: ='Rate Design KLJ-RDES-1'!F259 -> 2.179 | V43: ='Rate Design KLJ-RDES-1'!F250 -> 83.71 | X43: 0 | AA43: 0.0144
A44: DS | B44: GTS Delivery Service - Commercial | C44: 0.6285 | D44: 0.3737 | E44: 0.3247 | H44: 2007 | I44: 0 | J44: -0.026 | K44: 1221.21 | N44: 0.0144 | Q44: ='Rate Design KLJ-RDES-1'!F287 -> 0.712 | R44: ='Rate Design KLJ-RDES-1'!F288 -> 0.4394 | S44: ='Rate Design KLJ-RDES-1'!F289 -> 0.2432 | V44: ='Rate Design KLJ-RDES-1'!F281 -> 3982.3 | W44: ='Rate Design KLJ-RDES-1'!F282 -> 0 | X44: 0 | AA44: 0.0144
A45: DS | B45: GTS Delivery Service - Industrial | C45: 0.6285 | D45: 0.3737 | E45: 0.3247 | H45: 2007 | I45: 0 | J45: -0.026 | K45: 1221.21 | N45: 0.0144 | Q45: ='Rate Design KLJ-RDES-1'!F287 -> 0.712 | R45: ='Rate Design KLJ-RDES-1'!F288 -> 0.4394 | S45: =S44 -> 0.2432 | V45: ='Rate Design KLJ-RDES-1'!F281 -> 3982.3 | W45: ='Rate Design KLJ-RDES-1'!F282 -> 0 | X45: 0 | AA45: 0.0144
A46: GDS | B46: GTS Grandfathered Delivery Service - Commercial | C46: 3.0181 | D46: 2.3295 | E46: 2.2143 | F46: 2.0143 | H46: 44.69 | I46: 0 | J46: -0.168 | K46: 24.31 | N46: 0.0144 | Q46: ='Rate Design KLJ-RDES-1'!F256 -> 3.2649 | R46: ='Rate Design KLJ-RDES-1'!F257 -> 2.5201 | S46: ='Rate Design KLJ-RDES-1'!F258 -> 2.3954 | T46: ='Rate Design KLJ-RDES-1'!F259 -> 2.179 | V46: ='Rate Design KLJ-RDES-1'!F250 -> 83.71 | W46: ='Rate Design KLJ-RDES-1'!F251 -> 0 | X46: 0 | AA46: 0.0144
A47: GDS | B47: GTS Grandfathered Delivery Service - Industrial | C47: 3.0181 | D47: 2.3295 | E47: 2.2143 | F47: 2.0143 | H47: 44.69 | I47: 0 | J47: -0.168 | K47: 24.31 | N47: 0.0144 | Q47: ='Rate Design KLJ-RDES-1'!F256 -> 3.2649 | R47: ='Rate Design KLJ-RDES-1'!F257 -> 2.5201 | S47: ='Rate Design KLJ-RDES-1'!F258 -> 2.3954 | T47: ='Rate Design KLJ-RDES-1'!F259 -> 2.179 | V47: ='Rate Design KLJ-RDES-1'!F250 -> 83.71 | W47: ='Rate Design KLJ-RDES-1'!F251 -> 0 | X47: 0 | AA47: 0.0144
A48: DS3 | B48: GTS Main Line Service - Industrial | C48: 0.0858 | H48: 255.9 | I48: 0 | N48: 0.0144 | Q48: ='Rate Design KLJ-RDES-1'!F331 -> 0.0863 | V48: ='Rate Design KLJ-RDES-1'!F327 -> 260.11 | W48: ='Rate Design KLJ-RDES-1'!F328 -> 0 | AA48: 0.0144
A49: FX1 | B49: GTS Flex Rate - Commercial | C49: 0 | H49: 0 | I49: 0 | Q49: =C49 -> 0 | V49: =H49+I49 -> 0 | W49: 0
A50: FX2 | B50: GTS Flex Rate - Commercial | C50: 0 | H50: 0 | I50: 0 | Q50: 0 | V50: =H50+I49 -> 0 | W50: 0
A51: FX5 | B51: GTS Flex Rate - Industrial | C51: 0.0858 | H51: 255.9 | I51: 0 | Q51: ='Rate Design KLJ-RDES-1'!F331 -> 0.0863 | V51: ='Rate Design KLJ-RDES-1'!F327 -> 260.11 | W51: 0
A52: FX7 | B52: GTS Flex Rate - Industrial | C52: 0 | D52: 0 | H52: 0 | I52: 0 | Q52: 0 | R52: =D52 -> 0 | V52: =H52+I52 -> 0 | W52: 0
A53: SAS | B53: GTS Special Agency Service | C53: 0.6285 | D53: 0.3737 | E53: 0.3247 | H53: 2007 | I53: 0 | J53: -0.026 | K53: 1221.21 | N53: 0.0144 | Q53: ='Rate Design KLJ-RDES-1'!F287 -> 0.712 | R53: ='Rate Design KLJ-RDES-1'!F288 -> 0.4394 | V53: ='Rate Design KLJ-RDES-1'!F281 -> 3982.3 | W53: ='Rate Design KLJ-RDES-1'!F282 -> 0 | X53: 0 | AA53: =N53 -> 0.0144
A54: SC3 | B54: GTS Special Rate - Industrial | C54: 0 | D54: 0 | H54: 0 | I54: 0 | Q54: 0 | R54: =D54 -> 0 | V54: =H54+I54 -> 0 | W54: 0
AE86: =SUM(AE81:AE84) -> 0

Sheet A
A1: Columbia Gas of Kentucky, Inc.
A2: Determination of Test Year Gas Cost Revenue
A3: For the 12 Months Ended December 31, 2022
A5: Data: __ Base Period_X_Forecasted Period
A6: Type of Filing: X Original _ Update _ Revised
A7: Work Paper Reference No(s): | P7: Workpaper WPM-A.2
A8: 12 Months Forecasted | P8: Sheet 1 of 1
A9: Forecasted Period
A10: Line
A11: No. | B11: Description | D11: Jan-22 | E11: Feb-22 | F11: Mar-22 | G11: Apr-22 | H11: May-22 | I11: Jun-22 | J11: Jul-22 | K11: Aug-22 | L11: Sep-22 | M11: Oct-22 | N11: Nov-22 | O11: Dec-22 | P11: Total
B12: (A) | D12: (B) | E12: (C) | F12: (D) | G12: (E) | H12: (F) | I12: (G) | J12: (H) | K12: (I) | L12: (J) | M12: (K) | N12: (L) | O12: (M) | P12: (N)
A14: 1 | B14: Rate Schedule GSR - Residential
A16: =A14+1 -> 2 | B16: Gas Cost Rate [1] | C16: $/Mcf | D16: =EGC -> 4.387 | E16: =$D$16 -> 4.387 | F16: =$D$16 -> 4.387 | G16: 4.387 | H16: 4.387 | I16: 4.387 | J16: 4.387 | K16: 4.387 | L16: 4.387 | M16: 4.387 | N16: 4.387 | O16: 4.387
A17: =A16+1 -> 3 | B17: Volumes | C17: Mcf | D17: ='C'!D17 -> 1484059.2 | E17: ='C'!E17 -> 1502349.6 | F17: ='C'!F17 -> 1166162.7 | G17: ='C'!G17 -> 664959.6 | H17: ='C'!H17 -> 284958.4 | I17: ='C'!I17 -> 148158.1 | J17: ='C'!J17 -> 83378.5 | K17: ='C'!K17 -> 87613.7 | L17: ='C'!L17 -> 102204 | M17: ='C'!M17 -> 177653.4 | N17: ='C'!N17 -> 461545.8 | O17: ='C'!O17 -> 1093564.7 | P17: =SUM(D17:O17) -> 7256607.7
A18: =A17+1 -> 4 | B18: Total Gas Revenue | C18: $ | D18: =ROUND(D16*D17,2) -> 6510567.71 | E18: =ROUND(E16*E17,2) -> 6590807.7 | F18: 5115955.76 | G18: 2917177.77 | H18: 1250112.5 | I18: 649969.58 | J18: 365781.48 | K18: 384361.3 | L18: 448368.95 | M18: 779365.47 | N18: 2024801.42 | O18: 4797468.34 | P18: =SUM(D18:O18) -> 31834737.98
A20: =A18+1 -> 5 | B20: Rate Schedule GSO - Commercial
A22: =A20+1 -> 6 | B22: Gas Cost Rate [1] | C22: $/Mcf | D22: =D16 -> 4.387 | E22: =E16 -> 4.387 | F22: 4.387 | G22: 4.387 | H22: 4.387 | I22: 4.387 | J22: 4.387 | K22: 4.387 | L22: 4.387 | M22: 4.387 | N22: 4.387 | O22: 4.387
A23: =A22+1 -> 7 | B23: Volumes | C23: Mcf | D23: ='C'!D96 -> 733043 | E23: ='C'!E96 -> 700984 | F23: ='C'!F96 -> 582736.8 | G23: ='C'!G96 -> 294143 | H23: ='C'!H96 -> 174296.9 | I23: ='C'!I96 -> 121730.5 | J23: ='C'!J96 -> 100026.3 | K23: ='C'!K96 -> 90381.5 | L23: ='C'!L96 -> 95393.8 | M23: ='C'!M96 -> 118125.7 | N23: ='C'!N96 -> 236468.7 | O23: ='C'!O96 -> 516678.9 | P23: =SUM(D23:O23) -> 3764009.1
A24: =A23+1 -> 8 | B24: Total Gas Revenue | C24: $ | D24: =ROUND(D22*D23,2) -> 3215859.64 | E24: =ROUND(E22*E23,2) -> 3075216.81 | F24: 2556466.34 | G24: 1290405.34 | H24: 764640.5 | I24: 534031.7 | J24: 438815.38 | K24: 396503.64 | L24: 418492.6 | M24: 518217.45 | N24: 1037388.19 | O24: 2266670.33 | P24: =SUM(D24:O24) -> 16512707.92
A26: =A24+1 -> 9 | B26: Rate Schedule GSO - Industrial
A28: =A26+1 -> 10 | B28: Gas Cost Rate [1] | C28: $/Mcf | D28: =D22 -> 4.387 | E28: =E22 -> 4.387 | F28: 4.387 | G28: 4.387 | H28: 4.387 | I28: 4.387 | J28: 4.387 | K28: 4.387 | L28: 4.387 | M28: 4.387 | N28: 4.387 | O28: 4.387
A29: =A28+1 -> 11 | B29: Volumes | C29: Mcf | D29: ='C'!D129 -> 48458.8 | E29: ='C'!E129 -> 46186.4 | F29: ='C'!F129 -> 30488.2 | G29: ='C'!G129 -> 9871.6 | H29: ='C'!H129 -> 9771.9 | I29: ='C'!I129 -> 6949.4 | J29: ='C'!J129 -> 6025.1 | K29: ='C'!K129 -> 7880.1 | L29: ='C'!L129 -> 8890.3 | M29: ='C'!M129 -> 13143.4 | N29: ='C'!N129 -> 27525.7 | O29: ='C'!O129 -> 40778.5 | P29: =SUM(D29:O29) -> 255969.4
A30: =A29+1 -> 12 | B30: Total Gas Revenue | C30: $ | D30: =ROUND(D28*D29,2) -> 212588.76 | E30: =ROUND(E28*E29,2) -> 202619.74 | F30: 133751.73 | G30: 43306.71 | H30: 42869.33 | I30: 30487.02 | J30: 26432.11 | K30: 34570 | L30: 39001.75 | M30: 57660.1 | N30: 120755.25 | O30: 178895.28 | P30: =SUM(D30:O30) -> 1122937.78
A32: =A30+1 -> 13 | B32: Rate Schedule IS - Industrial
A34: =A32+1 -> 14 | B34: Gas Cost Rate [1] | C34: $/Mcf | D34: =D28 -> 4.387 | E34: =E28 -> 4.387 | F34: 4.387 | G34: 4.387 | H34: 4.387 | I34: 4.387 | J34: 4.387 | K34: 4.387 | L34: 4.387 | M34: 4.387 | N34: 4.387 | O34: 4.387
A35: =A34+1 -> 15 | B35: Volumes | C35: Mcf | D35: ='C'!D136 -> 0 | E35: ='C'!E136 -> 0 | F35: ='C'!F136 -> 0 | G35: ='C'!G136 -> 0 | H35: ='C'!H136 -> 0 | I35: ='C'!I136 -> 0 | J35: ='C'!J136 -> 0 | K35: ='C'!K136 -> 0 | L35: ='C'!L136 -> 0 | M35: ='C'!M136 -> 0 | N35: ='C'!N136 -> 0 | O35: ='C'!O136 -> 0 | P35: =SUM(D35:O35) -> 0
A36: =A35+1 -> 16 | B36: Total Gas Revenue | C36: $ | D36: =ROUND(D34*D35,2) -> 0 | E36: =ROUND(E34*E35,2) -> 0 | F36: 0 | G36: 0 | H36: 0 | I36: 0 | J36: 0 | K36: 0 | L36: 0 | M36: 0 | N36: 0 | O36: 0 | P36: =SUM(D36:O36) -> 0
A38: =A36+1 -> 17 | B38: Rate Schedule IUS - Wholesale
A40: =A38+1 -> 18 | B40: Gas Cost Rate [1] | C40: $/Mcf | D40: =D34 -> 4.387 | E40: =E34 -> 4.387 | F40: 4.387 | G40: 4.387 | H40: 4.387 | I40: 4.387 | J40: 4.387 | K40: 4.387 | L40: 4.387 | M40: 4.387 | N40: 4.387 | O40: 4.387
A41: =A40+1 -> 19 | B41: Volumes | C41: Mcf | D41: ='C'!D141 -> 1938.9 | E41: ='C'!E141 -> 1673.4 | F41: ='C'!F141 -> 1850.8 | G41: ='C'!G141 -> 714.5 | H41: ='C'!H141 -> 576.5 | I41: ='C'!I141 -> 489.9 | J41: ='C'!J141 -> 341.7 | K41: ='C'!K141 -> 376.6 | L41: ='C'!L141 -> 306.3 | M41: ='C'!M141 -> 562.5 | N41: ='C'!N141 -> 936.2 | O41: ='C'!O141 -> 1483.9 | P41: =SUM(D41:O41) -> 11251.2
A42: =A41+1 -> 20 | B42: Total Gas Revenue | C42: $ | D42: =ROUND(D40*D41,2) -> 8505.95 | E42: =ROUND(E40*E41,2) -> 7341.21 | F42: 8119.46 | G42: 3134.51 | H42: 2529.11 | I42: 2149.19 | J42: 1499.04 | K42: 1652.14 | L42: 1343.74 | M42: 2467.69 | N42: 4107.11 | O42: 6509.87 | P42: =SUM(D42:O42) -> 49359.02
A44: =A42+1 -> 21 | B44: Rate Schedule G1R - Residential
A46: =A44+1 -> 22 | B46: Gas Cost Rate [1] | C46: $/Mcf | D46: =D40 -> 4.387 | E46: =E40 -> 4.387 | F46: 4.387 | G46: 4.387 | H46: 4.387 | I46: 4.387 | J46: 4.387 | K46: 4.387 | L46: 4.387 | M46: 4.387 | N46: 4.387 | O46: 4.387
A47: =A46+1 -> 23 | B47: Volumes | C47: Mcf | D47: ='C'!D27 -> 90.7 | E47: ='C'!E27 -> 99.9 | F47: ='C'!F27 -> 67.7 | G47: ='C'!G27 -> 41.7 | H47: ='C'!H27 -> 15.5 | I47: ='C'!I27 -> 6.8 | J47: ='C'!J27 -> 2 | K47: ='C'!K27 -> 2.2 | L47: ='C'!L27 -> 3.5 | M47: ='C'!M27 -> 14.4 | N47: ='C'!N27 -> 39.3 | O47: ='C'!O27 -> 68.7 | P47: =SUM(D47:O47) -> 452.4
A48: =A47+1 -> 24 | B48: Total Gas Revenue | C48: $ | D48: =ROUND(D46*D47,2) -> 397.9 | E48: =ROUND(E46*E47,2) -> 438.26 | F48: 297 | G48: 182.94 | H48: 68 | I48: 29.83 | J48: 8.77 | K48: 9.65 | L48: 15.35 | M48: 63.17 | N48: 172.41 | O48: 301.39 | P48: =SUM(D48:O48) -> 1984.67
A50: =A48+1 -> 25 | B50: Rate Schedule G1C - Commercial
A52: =A50+1 -> 26 | B52: Gas Cost Rate [1] | C52: $/Mcf | D52: =D46 -> 4.387 | E52: =E46 -> 4.387 | F52: 4.387 | G52: 4.387 | H52: 4.387 | I52: 4.387 | J52: 4.387 | K52: 4.387 | L52: 4.387 | M52: 4.387 | N52: 4.387 | O52: 4.387
A53: =A52+1 -> 27 | B53: Volumes | C53: Mcf | D53: ='C'!D22 -> 0 | E53: ='C'!E22 -> 0 | F53: ='C'!F22 -> 0 | G53: ='C'!G22 -> 0 | H53: ='C'!H22 -> 0 | I53: ='C'!I22 -> 0 | J53: ='C'!J22 -> 0 | K53: ='C'!K22 -> 0 | L53: ='C'!L22 -> 0 | M53: ='C'!M22 -> 0 | N53: ='C'!N22 -> 0 | O53: ='C'!O22 -> 0 | P53: =SUM(D53:O53) -> 0
A54: =A53+1 -> 28 | B54: Total Gas Revenue | C54: $ | D54: =ROUND(D52*D53,2) -> 0 | E54: =ROUND(E52*E53,2) -> 0 | F54: 0 | G54: 0 | H54: 0 | I54: 0 | J54: 0 | K54: 0 | L54: 0 | M54: 0 | N54: 0 | O54: 0 | P54: =SUM(D54:O54) -> 0
A56: =A54+1 -> 29 | D56: =D18+D24+D30+D36+D42+D48+D54 -> 9947919.96 | E56: 9876423.72 | F56: 7814590.29 | G56: 4254207.27 | H56: 2060219.44 | I56: 1216667.32 | J56: 832536.78 | K56: 817096.73 | L56: 907222.39 | M56: 1357773.88 | N56: 3187224.38 | O56: 7249845.21 | P56: 49521727.37
A58: [1] Gas Cost Rate as of March 1, 2021, excluding Gas Cost Uncollectible Rider.

Sheet B
A1: Columbia Gas of Kentucky, Inc.
A2: Number of Bills
A3: For the 12 Months Ended December 31, 2022
A5: Data: __ Base Period_X_Forecasted Period
A6: Type of Filing: X Original _ Update _ Revised
A7: Work Paper Reference No(s): | P7: Workpaper WPM-B.2
A8: 12 Months Forecasted | P8: Sheet 1 of 6
A10: Line
A11: No. | B11: Description | C11: Reference | D11: Jan-22 | E11: Feb-22 | F11: Mar-22 | G11: Apr-22 | H11: May-22 | I11: Jun-22 | J11: Jul-22 | K11: Aug-22 | L11: Sep-22 | M11: Oct-22 | N11: Nov-22 | O11: Dec-22 | P11: Total
B12: (A) | C12: (B) | D12: (C) | E12: (D) | F12: (E) | G12: (F) | H12: (G) | I12: (H) | J12: (I) | K12: (J) | L12: (K) | M12: (L) | N12: (M) | O12: (N) | P12: (O)
A14: 1 | B14: Rate Schedule GSR - Residential
A15: =A14+1 -> 2 | B15: Bills | D15: 108780 | E15: 109084 | F15: 109073 | G15: 108587 | H15: 107921 | I15: 107071 | J15: 106636 | K15: 106430 | L15: 106301 | M15: 106665 | N15: 108067 | O15: 109500 | P15: =SUM(D15:O15) -> 1294115
A16: =A15+1 -> 3 | B16: Finaled Bills | D16: 1403 | E16: 1368 | F16: 1676 | G16: 1354 | H16: 1454 | I16: 1649 | J16: 1939 | K16: 2055 | L16: 1734 | M16: 1495 | N16: 1492 | O16: 1527 | P16: =SUM(D16:O16) -> 19146
A17: 4 | B17: Adjusted Bills | D17: =SUM(D15:D16) -> 110183 | E17: 110452 | F17: 110749 | G17: 109941 | H17: 109375 | I17: 108720 | J17: 108575 | K17: 108485 | L17: 108035 | M17: 108160 | N17: 109559 | O17: 111027 | P17: =SUM(D17:O17) -> 1313261
A19: =A17+1 -> 5 | B19: Rate Schedule G1C - Commercial
A20: =A19+1 -> 6 | B20: Bills | D20: 0 | E20: 0 | F20: 0 | G20: 0 | H20: 0 | I20: 0 | J20: 0 | K20: 0 | L20: 0 | M20: 0 | N20: 0 | O20: 0 | P20: =SUM(D20:O20) -> 0
A21: =A20+1 -> 7 | B21: Finaled Bills | D21: 0 | E21: 0 | F21: 0 | G21: 0 | H21: 0 | I21: 0 | J21: 0 | K21: 0 | L21: 0 | M21: 0 | N21: 0 | O21: 0 | P21: =SUM(D21:O21) -> 0
A22: =A21+1 -> 8 | B22: Adjusted Bills | D22: =SUM(D20:D21) -> 0 | E22: 0 | F22: 0 | G22: 0 | H22: 0 | I22: 0 | J22: 0 | K22: 0 | L22: 0 | M22: 0 | N22: 0 | O22: 0 | P22: =SUM(D22:O22) -> 0
A24: =A22+1 -> 9 | B24: Rate Schedule G1R - Residential
A25: =A24+1 -> 10 | B25: Bills | D25: 4 | E25: 4 | F25: 4 | G25: 4 | H25: 4 | I25: 4 | J25: 4 | K25: 4 | L25: 4 | M25: 4 | N25: 4 | O25: 4 | P25: =SUM(D25:O25) -> 48
A26: =A25+1 -> 11 | B26: Finaled Bills | D26: 0 | E26: 0 | F26: 0 | G26: 0 | H26: 0 | I26: 0 | J26: 0 | K26: 0 | L26: 0 | M26: 0 | N26: 0 | O26: 0 | P26: =SUM(D26:O26) -> 0
A27: 12 | B27: Adjusted Bills | D27: =SUM(D25:D26) -> 4 | E27: 4 | F27: 4 | G27: 4 | H27: 4 | I27: 4 | J27: 4 | K27: 4 | L27: 4 | M27: 4 | N27: 4 | O27: 4 | P27: =SUM(D27:O27) -> 48
A29: =A27+1 -> 13 | B29: Rate Schedule IN3 - Residential
A30: =A29+1 -> 14 | B30: Bills | D30: 10 | E30: 10 | F30: 10 | G30: 10 | H30: 10 | I30: 10 | J30: 10 | K30: 10 | L30: 10 | M30: 10 | N30: 10 | O30: 10 | P30: =SUM(D30:O30) -> 120
A31: =A30+1 -> 15 | B31: Finaled Bills | D31: 0 | E31: 0 | F31: 0 | G31: 0 | H31: 0 | I31: 0 | J31: 0 | K31: 0 | L31: 0 | M31: 0 | N31: 0 | O31: 0 | P31: =SUM(D31:O31) -> 0
A32: 16 | B32: Adjusted Bills | D32: =SUM(D30:D31) -> 10 | E32: 10 | F32: 10 | G32: 10 | H32: 10 | I32: 10 | J32: 10 | K32: 10 | L32: 10 | M32: 10 | N32: 10 | O32: 10 | P32: =SUM(D32:O32) -> 120
A34: =A32+1 -> 17 | B34: Rate Schedule IN4 - Residential
A35: =A34+1 -> 18 | B35: Bills | D35: 0 | E35: 0 | F35: 0 | G35: 0 | H35: 0 | I35: 0 | J35: 0 | K35: 0 | L35: 0 | M35: 0 | N35: 0 | O35: 0 | P35: =SUM(D35:O35) -> 0
A36: =A35+1 -> 19 | B36: Finaled Bills | D36: 0 | E36: 0 | F36: 0 | G36: 0 | H36: 0 | I36: 0 | J36: 0 | K36: 0 | L36: 0 | M36: 0 | N36: 0 | O36: 0 | P36: =SUM(D36:O36) -> 0
A37: 20 | B37: Adjusted Bills | D37: =SUM(D35:D36) -> 0 | E37: 0 | F37: 0 | G37: 0 | H37: 0 | I37: 0 | J37: 0 | K37: 0 | L37: 0 | M37: 0 | N37: 0 | O37: 0 | P37: =SUM(D37:O37) -> 0
A39: =A37+1 -> 21 | B39: Rate Schedule IN5 - Residential
A40: =A39+1 -> 22 | B40: Bills | D40: 3 | E40: 3 | F40: 3 | G40: 3 | H40: 3 | I40: 3 | J40: 3 | K40: 3 | L40: 3 | M40: 3 | N40: 3 | O40: 3 | P40: =SUM(D40:O40) -> 36
A41: =A40+1 -> 23 | B41: Finaled Bills | D41: 0 | E41: 0 | F41: 0 | G41: 0 | H41: 0 | I41: 0 | J41: 0 | K41: 0 | L41: 0 | M41: 0 | N41: 0 | O41: 0 | P41: =SUM(D41:O41) -> 0
A42: 24 | B42: Adjusted Bills | D42: =SUM(D40:D41) -> 3 | E42: 3 | F42: 3 | G42: 3 | H42: 3 | I42: 3 | J42: 3 | K42: 3 | L42: 3 | M42: 3 | N42: 3 | O42: 3 | P42: =SUM(D42:O42) -> 36
A44: =A42+1 -> 25 | B44: Rate Schedule LG2 - Residential
A45: =A44+1 -> 26 | B45: Bills | D45: 1 | E45: 1 | F45: 1 | G45: 1 | H45: 1 | I45: 1 | J45: 1 | K45: 1 | L45: 1 | M45: 1 | N45: 1 | O45: 1 | P45: =SUM(D45:O45) -> 12
A46: =A45+1 -> 27 | B46: Finaled Bills | D46: 0 | E46: 0 | F46: 0 | G46: 0 | H46: 0 | I46: 0 | J46: 0 | K46: 0 | L46: 0 | M46: 0 | N46: 0 | O46: 0 | P46: =SUM(D46:O46) -> 0
A47: 28 | B47: Adjusted Bills | D47: =SUM(D45:D46) -> 1 | E47: 1 | F47: 1 | G47: 1 | H47: 1 | I47: 1 | J47: 1 | K47: 1 | L47: 1 | M47: 1 | N47: 1 | O47: 1 | P47: =SUM(D47:O47) -> 12
A49: =A47+1 -> 29 | B49: Rate Schedule LG2 - Commercial
A50: =A49+1 -> 30 | B50: Bills | D50: 0 | E50: 0 | F50: 0 | G50: 0 | H50: 0 | I50: 0 | J50: 0 | K50: 0 | L50: 0 | M50: 0 | N50: 0 | O50: 0 | P50: =SUM(D50:O50) -> 0
A51: =A50+1 -> 31 | B51: Finaled Bills | D51: 0 | E51: 0 | F51: 0 | G51: 0 | H51: 0 | I51: 0 | J51: 0 | K51: 0 | L51: 0 | M51: 0 | N51: 0 | O51: 0 | P51: =SUM(D51:O51) -> 0
A52: 32 | B52: Adjusted Bills | D52: =SUM(D50:D51) -> 0 | E52: 0 | F52: 0 | G52: 0 | H52: 0 | I52: 0 | J52: 0 | K52: 0 | L52: 0 | M52: 0 | N52: 0 | O52: 0 | P52: =SUM(D52:O52) -> 0
A54: Columbia Gas of Kentucky, Inc.
A55: Number of Bills
A56: =A3 -> For the 12 Months Ended December 31, 2022
A58: =$A$5 -> Data: __ Base Period_X_Forecasted Period
A59: =$A$6 -> Type of Filing: X Original _ Update _ Revised
A60: =$A$7 -> Work Paper Reference No(s): | P60: =$P$7 -> Workpaper WPM-B.2
A61: =$A$8 -> 12 Months Forecasted | P61: Sheet 2 of 6
A63: Line
A64: No. | B64: Description | C64: Reference | D64: =$D$11 -> Jan-22 | E64: =$E$11 -> Feb-22 | F64: =$F$11 -> Mar-22 | G64: =$G$11 -> Apr-22 | H64: =$H$11 -> May-22 | I64: =$I$11 -> Jun-22 | J64: =$J$11 -> Jul-22 | K64: =$K$11 -> Aug-22 | L64: =$L$11 -> Sep-22 | M64: =$M$11 -> Oct-22 | N64: =$N$11 -> Nov-22 | O64: =$O$11 -> Dec-22 | P64: Total
B65: (A) | C65: (B) | D65: (C) | E65: (D) | F65: (E) | G65: (F) | H65: (G) | I65: (H) | J65: (I) | K65: (J) | L65: (K) | M65: (L) | N65: (M) | O65: (N) | P65: (O)
A67: 1 | B67: Rate Schedule LG3 - Residential
A68: =A67+1 -> 2 | B68: Bills | D68: 1 | E68: 1 | F68: 1 | G68: 1 | H68: 1 | I68: 1 | J68: 1 | K68: 1 | L68: 1 | M68: 1 | N68: 1 | O68: 1 | P68: =SUM(D68:O68) -> 12
A69: =A68+1 -> 3 | B69: Finaled Bills | D69: 0 | E69: 0 | F69: 0 | G69: 0 | H69: 0 | I69: 0 | J69: 0 | K69: 0 | L69: 0 | M69: 0 | N69: 0 | O69: 0 | P69: =SUM(D69:O69) -> 0
A70: 4 | B70: Adjusted Bills | D70: =SUM(D68:D69) -> 1 | E70: 1 | F70: 1 | G70: 1 | H70: 1 | I70: 1 | J70: 1 | K70: 1 | L70: 1 | M70: 1 | N70: 1 | O70: 1 | P70: =SUM(D70:O70) -> 12
A72: =A70+1 -> 5 | B72: Rate Schedule LG4 - Residential
A73: =A72+1 -> 6 | B73: Bills | D73: 1 | E73: 1 | F73: 1 | G73: 1 | H73: 1 | I73: 1 | J73: 1 | K73: 1 | L73: 1 | M73: 1 | N73: 1 | O73: 1 | P73: =SUM(D73:O73) -> 12
A74: =A73+1 -> 7 | B74: Finaled Bills | D74: 0 | E74: 0 | F74: 0 | G74: 0 | H74: 0 | I74: 0 | J74: 0 | K74: 0 | L74: 0 | M74: 0 | N74: 0 | O74: 0 | P74: =SUM(D74:O74) -> 0
A75: 8 | B75: Adjusted Bills | D75: =SUM(D73:D74) -> 1 | E75: 1 | F75: 1 | G75: 1 | H75: 1 | I75: 1 | J75: 1 | K75: 1 | L75: 1 | M75: 1 | N75: 1 | O75: 1 | P75: =SUM(D75:O75) -> 12
A77: =A75+1 -> 9 | B77: Rate Schedule GSO - Commercial
A78: =A77+1 -> 10 | B78: Bills | D78: 11555 | E78: 11603 | F78: 11601 | G78: 11552 | H78: 11479 | I78: 11406 | J78: 11360 | K78: 11330 | L78: 11330 | M78: 11370 | N78: 11551 | O78: 11712 | P78: =SUM(D78:O78) -> 137849
A79: =A78+1 -> 11 | B79: Industrial Adjustment | C79: (WPM-D) | D79: ='D pg 1'!D16 -> 0 | E79: ='D pg 1'!E16 -> 0 | F79: ='D pg 1'!F16 -> 0 | G79: ='D pg 1'!G16 -> 0 | H79: ='D pg 1'!H16 -> 0 | I79: ='D pg 1'!I16 -> 0 | J79: ='D pg 1'!J16 -> 0 | K79: ='D pg 1'!K16 -> 0 | L79: ='D pg 1'!L16 -> 0 | M79: ='D pg 1'!M16 -> 0 | N79: ='D pg 1'!N16 -> 0 | O79: ='D pg 1'!O16 -> 0 | P79: =SUM(D79:O79) -> 0
A80: 12 | B80: Finaled Bills | D80: 87 | E80: 60 | F80: 127 | G80: 115 | H80: 105 | I80: 110 | J80: 107 | K80: 84 | L80: 82 | M80: 63 | N80: 71 | O80: 66 | P80: =SUM(D80:O80) -> 1077
A81: =A80+1 -> 13 | B81: Adjusted Bills | D81: =SUM(D78:D80) -> 11642 | E81: 11663 | F81: 11728 | G81: 11667 | H81: 11584 | I81: 11516 | J81: 11467 | K81: 11414 | L81: 11412 | M81: 11433 | N81: 11622 | O81: 11778 | P81: =SUM(D81:O81) -> 138926
A83: =A81+1 -> 14 | B83: Rate Schedule GSO - Industrial
A84: =A83+1 -> 15 | B84: Bills | D84: 52 | E84: 52 | F84: 51 | G84: 50 | H84: 50 | I84: 50 | J84: 51 | K84: 51 | L84: 51 | M84: 51 | N84: 52 | O84: 52 | P84: =SUM(D84:O84) -> 613
A85: =A84+1 -> 16 | B85: Industrial Adjustment | C85: (WPM-D) | D85: ='D pg 1'!D17 -> 0 | E85: ='D pg 1'!E17 -> 0 | F85: ='D pg 1'!F17 -> 0 | G85: ='D pg 1'!G17 -> 0 | H85: ='D pg 1'!H17 -> 0 | I85: ='D pg 1'!I17 -> 0 | J85: ='D pg 1'!J17 -> 0 | K85: ='D pg 1'!K17 -> 0 | L85: ='D pg 1'!L17 -> 0 | M85: ='D pg 1'!M17 -> 0 | N85: ='D pg 1'!N17 -> 0 | O85: ='D pg 1'!O17 -> 0 | P85: =SUM(D85:O85) -> 0
A86: =A85+1 -> 17 | B86: Finaled Bills | D86: 0 | E86: 0 | F86: 0 | G86: 1 | H86: 0 | I86: 1 | J86: 0 | K86: 0 | L86: 0 | M86: 1 | N86: 1 | O86: 1 | P86: =SUM(D86:O86) -> 5
A87: =A86+1 -> 18 | B87: Adjusted Bills | D87: =SUM(D84:D86) -> 52 | E87: 52 | F87: 51 | G87: 51 | H87: 50 | I87: 51 | J87: 51 | K87: 51 | L87: 51 | M87: 52 | N87: 53 | O87: 53 | P87: =SUM(D87:O87) -> 618
A89: =A87+1 -> 19 | B89: Rate Schedule IS - Industrial
A90: =A89+1 -> 20 | B90: Bills | D90: 0 | E90: 0 | F90: 0 | G90: 0 | H90: 0 | I90: 0 | J90: 0 | K90: 0 | L90: 0 | M90: 0 | N90: 0 | O90: 0 | P90: =SUM(D90:O90) -> 0
A91: =A90+1 -> 21 | B91: Industrial Adjustment | C91: (WPM-D) | D91: 0 | E91: 0 | F91: 0 | G91: 0 | H91: 0 | I91: 0 | J91: 0 | K91: 0 | L91: 0 | M91: 0 | N91: 0 | O91: 0 | P91: =SUM(D91:O91) -> 0
A92: =A91+1 -> 22 | B92: Finaled Bills | D92: 0 | E92: 0 | F92: 0 | G92: 0 | H92: 0 | I92: 0 | J92: 0 | K92: 0 | L92: 0 | M92: 0 | N92: 0 | O92: 0 | P92: =SUM(D92:O92) -> 0
A93: =A92+1 -> 23 | B93: Adjusted Bills | D93: =SUM(D90:D92) -> 0 | E93: 0 | F93: 0 | G93: 0 | H93: 0 | I93: 0 | J93: 0 | K93: 0 | L93: 0 | M93: 0 | N93: 0 | O93: 0 | P93: =SUM(D93:O93) -> 0
A95: =A93+1 -> 24 | B95: Rate Schedule IUS - Wholesale
A96: =A95+1 -> 25 | B96: Bills | D96: 2 | E96: 2 | F96: 2 | G96: 2 | H96: 2 | I96: 2 | J96: 2 | K96: 2 | L96: 2 | M96: 2 | N96: 2 | O96: 2 | P96: =SUM(D96:O96) -> 24
A97: =A96+1 -> 26 | B97: Industrial Adjustment | C97: (WPM-D) | D97: 0 | E97: 0 | F97: 0 | G97: 0 | H97: 0 | I97: 0 | J97: 0 | K97: 0 | L97: 0 | M97: 0 | N97: 0 | O97: 0 | P97: =SUM(D97:O97) -> 0
A98: =A97+1 -> 27 | B98: Finaled Bills | D98: 0 | E98: 0 | F98: 0 | G98: 0 | H98: 0 | I98: 0 | J98: 0 | K98: 0 | L98: 0 | M98: 0 | N98: 0 | O98: 0 | P98: =SUM(D98:O98) -> 0
A99: =A98+1 -> 28 | B99: Adjusted Bills | D99: =SUM(D96:D98) -> 2 | E99: 2 | F99: 2 | G99: 2 | H99: 2 | I99: 2 | J99: 2 | K99: 2 | L99: 2 | M99: 2 | N99: 2 | O99: 2 | P99: =SUM(D99:O99) -> 24
A104: Columbia Gas of Kentucky, Inc.
A105: Number of Bills
A106: =A3 -> For the 12 Months Ended December 31, 2022
A108: =$A$5 -> Data: __ Base Period_X_Forecasted Period
A109: =$A$6 -> Type of Filing: X Original _ Update _ Revised
A110: =$A$7 -> Work Paper Reference No(s): | P110: =$P$7 -> Workpaper WPM-B.2
A111: =$A$8 -> 12 Months Forecasted | P111: Sheet 3 of 6
A113: Line
A114: No. | B114: Description | C114: Reference | D114: =$D$11 -> Jan-22 | E114: =$E$11 -> Feb-22 | F114: =$F$11 -> Mar-22 | G114: =$G$11 -> Apr-22 | H114: =$H$11 -> May-22 | I114: =$I$11 -> Jun-22 | J114: =$J$11 -> Jul-22 | K114: =$K$11 -> Aug-22 | L114: =$L$11 -> Sep-22 | M114: =$M$11 -> Oct-22 | N114: =$N$11 -> Nov-22 | O114: =$O$11 -> Dec-22 | P114: Total
B115: (A) | C115: (B) | D115: (C) | E115: (D) | F115: (E) | G115: (F) | H115: (G) | I115: (H) | J115: (I) | K115: (J) | L115: (K) | M115: (L) | N115: (M) | O115: (N) | P115: (O)
A117: 1 | B117: Tariff Sales Summary by Customer Class
A119: =A117+1 -> 2 | B119: Total Residential Sales
A120: =A119+1 -> 3 | B120: Bills | D120: =D15+D25+D30+D35+D40+D45+D68+D73 -> 108800 | E120: 109104 | F120: 109093 | G120: 108607 | H120: 107941 | I120: 107091 | J120: 106656 | K120: 106450 | L120: 106321 | M120: 106685 | N120: 108087 | O120: 109520 | P120: =SUM(D120:O120) -> 1294355
A121: =A120+1 -> 4 | B121: Finaled Bills | D121: =D16+D26+D31+D36+D41+D46+D69+D74 -> 1403 | E121: 1368 | F121: 1676 | G121: 1354 | H121: 1454 | I121: 1649 | J121: 1939 | K121: 2055 | L121: 1734 | M121: 1495 | N121: 1492 | O121: 1527 | P121: =SUM(D121:O121) -> 19146
A122: =A121+1 -> 5 | B122: Adjusted Bills | D122: =SUM(D120:D121) -> 110203 | E122: 110472 | F122: 110769 | G122: 109961 | H122: 109395 | I122: 108740 | J122: 108595 | K122: 108505 | L122: 108055 | M122: 108180 | N122: 109579 | O122: 111047 | P122: =SUM(D122:O122) -> 1313501
A124: =A122+1 -> 6 | B124: Total Commercial Sales
A125: =A124+1 -> 7 | B125: Bills | D125: =D20+D50+D78 -> 11555 | E125: 11603 | F125: 11601 | G125: 11552 | H125: 11479 | I125: 11406 | J125: 11360 | K125: 11330 | L125: 11330 | M125: 11370 | N125: 11551 | O125: 11712 | P125: 137849
A126: =A125+1 -> 8 | B126: Industrial Adjustment | D126: =D79 -> 0 | E126: =E79 -> 0 | F126: 0 | G126: 0 | H126: 0 | I126: 0 | J126: 0 | K126: 0 | L126: 0 | M126: 0 | N126: 0 | O126: 0 | P126: 0
A127: =A126+1 -> 9 | B127: Finaled Bills | D127: =D21+D51+D80 -> 87 | E127: 60 | F127: 127 | G127: 115 | H127: 105 | I127: 110 | J127: 107 | K127: 84 | L127: 82 | M127: 63 | N127: 71 | O127: 66 | P127: 1077
A128: =A127+1 -> 10 | B128: Adjusted Bills | D128: =SUM(D125:D127) -> 11642 | E128: 11663 | F128: 11728 | G128: 11667 | H128: 11584 | I128: 11516 | J128: 11467 | K128: 11414 | L128: 11412 | M128: 11433 | N128: 11622 | O128: 11778 | P128: =SUM(D128:O128) -> 138926
A130: =A128+1 -> 11 | B130: Total Industrial Sales
A131: =A130+1 -> 12 | B131: Bills | D131: =D84+D90 -> 52 | E131: 52 | F131: 51 | G131: 50 | H131: 50 | I131: 50 | J131: 51 | K131: 51 | L131: 51 | M131: 51 | N131: 52 | O131: 52 | P131: =SUM(D131:O131) -> 613
A132: =A131+1 -> 13 | B132: Industrial Adjustment | D132: =D85+D91 -> 0 | E132: 0 | F132: 0 | G132: 0 | H132: 0 | I132: 0 | J132: 0 | K132: 0 | L132: 0 | M132: 0 | N132: 0 | O132: 0 | P132: =SUM(D132:O132) -> 0
A133: =A132+1 -> 14 | B133: Finaled Bills | D133: =D86+D92 -> 0 | E133: 0 | F133: 0 | G133: 1 | H133: 0 | I133: 1 | J133: 0 | K133: 0 | L133: 0 | M133: 1 | N133: 1 | O133: 1 | P133: =SUM(D133:O133) -> 5
A134: =A133+1 -> 15 | B134: Adjusted Bills | D134: =SUM(D131:D133) -> 52 | E134: 52 | F134: 51 | G134: 51 | H134: 50 | I134: 51 | J134: 51 | K134: 51 | L134: 51 | M134: 52 | N134: 53 | O134: 53 | P134: =SUM(D134:O134) -> 618
A136: =A134+1 -> 16 | B136: Total Wholesale Sales
A137: =A136+1 -> 17 | B137: Bills | D137: =D96 -> 2 | E137: 2 | F137: 2 | G137: 2 | H137: 2 | I137: 2 | J137: 2 | K137: 2 | L137: 2 | M137: 2 | N137: 2 | O137: 2 | P137: =SUM(D137:O137) -> 24
A138: =A137+1 -> 18 | B138: Industrial Adjustment | D138: =D97 -> 0 | E138: 0 | F138: 0 | G138: 0 | H138: 0 | I138: 0 | J138: 0 | K138: 0 | L138: 0 | M138: 0 | N138: 0 | O138: 0 | P138: =SUM(D138:O138) -> 0
A139: =A138+1 -> 19 | B139: Finaled Bills | D139: =D98 -> 0 | E139: 0 | F139: 0 | G139: 0 | H139: 0 | I139: 0 | J139: 0 | K139: 0 | L139: 0 | M139: 0 | N139: 0 | O139: 0 | P139: =SUM(D139:O139) -> 0
A140: =A139+1 -> 20 | B140: Adjusted Bills | D140: =SUM(D137:D139) -> 2 | E140: 2 | F140: 2 | G140: 2 | H140: 2 | I140: 2 | J140: 2 | K140: 2 | L140: 2 | M140: 2 | N140: 2 | O140: 2 | P140: =SUM(D140:O140) -> 24
A142: =A140+1 -> 21 | B142: Total Tariff Sales
A143: =A142+1 -> 22 | B143: Bills | D143: =D120+D125+D131+D137 -> 120409 | E143: 120761 | F143: 120747 | G143: 120211 | H143: 119472 | I143: 118549 | J143: 118069 | K143: 117833 | L143: 117704 | M143: 118108 | N143: 119692 | O143: 121286 | P143: =SUM(D143:O143) -> 1432841
A144: =A143+1 -> 23 | B144: Industrial Adjustment | D144: =D126+D132+D138 -> 0 | E144: =E126+E132+E138 -> 0 | F144: 0 | G144: 0 | H144: 0 | I144: 0 | J144: 0 | K144: 0 | L144: 0 | M144: 0 | N144: 0 | O144: 0 | P144: 0
A145: =A144+1 -> 24 | B145: Finaled Bills | D145: =D121+D127+D133+D139 -> 1490 | E145: 1428 | F145: 1803 | G145: 1470 | H145: 1559 | I145: 1760 | J145: 2046 | K145: 2139 | L145: 1816 | M145: 1559 | N145: 1564 | O145: 1594 | P145: =SUM(D145:O145) -> 20228
A146: =A145+1 -> 25 | B146: Adjusted Bills | D146: =SUM(D143:D145) -> 121899 | E146: 122189 | F146: 122550 | G146: 121681 | H146: 121031 | I146: 120309 | J146: 120115 | K146: 119972 | L146: 119520 | M146: 119667 | N146: 121256 | O146: 122880 | P146: =SUM(D146:O146) -> 1453069
A148: Columbia Gas of Kentucky, Inc.
A149: Number of Bills
A150: =A3 -> For the 12 Months Ended December 31, 2022
A152: =$A$5 -> Data: __ Base Period_X_Forecasted Period
A153: =$A$6 -> Type of Filing: X Original _ Update _ Revised
A154: =$A$7 -> Work Paper Reference No(s): | P154: =$P$7 -> Workpaper WPM-B.2
A155: =$A$8 -> 12 Months Forecasted | P155: Sheet 4 of 6
A157: Line
A158: No. | B158: Description | C158: Reference | D158: =$D$11 -> Jan-22 | E158: =$E$11 -> Feb-22 | F158: =$F$11 -> Mar-22 | G158: =$G$11 -> Apr-22 | H158: =$H$11 -> May-22 | I158: =$I$11 -> Jun-22 | J158: =$J$11 -> Jul-22 | K158: =$K$11 -> Aug-22 | L158: =$L$11 -> Sep-22 | M158: =$M$11 -> Oct-22 | N158: =$N$11 -> Nov-22 | O158: =$O$11 -> Dec-22 | P158: Total
B159: (A) | C159: (B) | D159: (C) | E159: (D) | F159: (E) | G159: (F) | H159: (G) | I159: (H) | J159: (I) | K159: (J) | L159: (K) | M159: (L) | N159: (M) | O159: (N) | P159: (O)
A161: 1 | B161: Rate Schedule GTR - Residential
A162: =A161+1 -> 2 | B162: Bills | D162: 14333 | E162: 14241 | F162: 14150 | G162: 14058 | H162: 13966 | I162: 13875 | J162: 13783 | K162: 13691 | L162: 13600 | M162: 13508 | N162: 13416 | O162: 13325 | P162: =SUM(D162:O162) -> 165946
A163: =A162+1 -> 3 | B163: Finaled Bills | D163: 79 | E163: 67 | F163: 87 | G163: 58 | H163: 75 | I163: 89 | J163: 92 | K163: 118 | L163: 99 | M163: 89 | N163: 95 | O163: 99 | P163: =SUM(D163:O163) -> 1047
A164: =A163+1 -> 4 | B164: Adjusted Bills | D164: =SUM(D162:D163) -> 14412 | E164: 14308 | F164: 14237 | G164: 14116 | H164: 14041 | I164: 13964 | J164: 13875 | K164: 13809 | L164: 13699 | M164: 13597 | N164: 13511 | O164: 13424 | P164: =SUM(D164:O164) -> 166993
A166: =A164+1 -> 5 | B166: Rate Schedule GTO - Commercial
A167: =A166+1 -> 6 | B167: Bills | D167: 2985 | E167: 2982 | F167: 3215 | G167: 3216 | H167: 3226 | I167: 3229 | J167: 3234 | K167: 3229 | L167: 3218 | M167: 3223 | N167: 3223 | O167: 3224 | P167: =SUM(D167:O167) -> 38204
A168: =A167+1 -> 7 | B168: Industrial Adjustment | C168: (WPM-D) | D168: 0 | E168: 0 | F168: 0 | G168: 0 | H168: 0 | I168: 0 | J168: 0 | K168: 0 | L168: 0 | M168: 0 | N168: 0 | O168: 0 | P168: =SUM(D168:O168) -> 0
A169: =A168+1 -> 8 | B169: Finaled Bills | D169: 5 | E169: 7 | F169: 6 | G169: 8 | H169: 5 | I169: 5 | J169: 3 | K169: 9 | L169: 9 | M169: 10 | N169: 9 | O169: 6 | P169: =SUM(D169:O169) -> 82
A170: =A169+1 -> 9 | B170: Adjusted Bills | D170: =SUM(D167:D169) -> 2990 | E170: 2989 | F170: 3221 | G170: 3224 | H170: 3231 | I170: 3234 | J170: 3237 | K170: 3238 | L170: 3227 | M170: 3233 | N170: 3232 | O170: 3230 | P170: =SUM(D170:O170) -> 38286
A172: =A170+1 -> 10 | B172: Rate Schedule GTO - Industrial
A173: =A172+1 -> 11 | B173: Bills | D173: 12 | E173: 12 | F173: 12 | G173: 12 | H173: 12 | I173: 12 | J173: 12 | K173: 12 | L173: 12 | M173: 12 | N173: 12 | O173: 12 | P173: =SUM(D173:O173) -> 144
A174: =A173+1 -> 12 | B174: Industrial Adjustment | C174: (WPM-D) | D174: 0 | E174: 0 | F174: 0 | G174: 0 | H174: 0 | I174: 0 | J174: 0 | K174: 0 | L174: 0 | M174: 0 | N174: 0 | O174: 0 | P174: =SUM(D174:O174) -> 0
A175: =A174+1 -> 13 | B175: Finaled Bills | D175: 0 | E175: 0 | F175: 0 | G175: 0 | H175: 0 | I175: 0 | J175: 0 | K175: 0 | L175: 0 | M175: 0 | N175: 0 | O175: 0 | P175: =SUM(D175:O175) -> 0
A176: =A175+1 -> 14 | B176: Adjusted Bills | D176: =SUM(D173:D175) -> 12 | E176: 12 | F176: 12 | G176: 12 | H176: 12 | I176: 12 | J176: 12 | K176: 12 | L176: 12 | M176: 12 | N176: 12 | O176: 12 | P176: =SUM(D176:O176) -> 144
A178: =A176+1 -> 15 | B178: Rate Schedule DS - Commercial
A179: =A178+1 -> 16 | B179: Bills | D179: 28 | E179: 28 | F179: 28 | G179: 28 | H179: 28 | I179: 28 | J179: 28 | K179: 28 | L179: 28 | M179: 28 | N179: 28 | O179: 28 | P179: =SUM(D179:O179) -> 336
A180: =A179+1 -> 17 | B180: Industrial Adjustment | C180: (WPM-D) | D180: ='D pg 1'!D17 -> 0 | E180: ='D pg 1'!E17 -> 0 | F180: ='D pg 1'!F17 -> 0 | G180: ='D pg 1'!G17 -> 0 | H180: ='D pg 1'!H17 -> 0 | I180: ='D pg 1'!I17 -> 0 | J180: ='D pg 1'!J17 -> 0 | K180: ='D pg 1'!K17 -> 0 | L180: ='D pg 1'!L17 -> 0 | M180: ='D pg 1'!M17 -> 0 | N180: ='D pg 1'!N17 -> 0 | O180: ='D pg 1'!P17 -> 0 | P180: =SUM(D180:O180) -> 0
A181: =A180+1 -> 18 | B181: Finaled Bills | D181: 0 | E181: 0 | F181: 0 | G181: 0 | H181: 0 | I181: 0 | J181: 0 | K181: 0 | L181: 0 | M181: 0 | N181: 0 | O181: 0 | P181: =SUM(D181:O181) -> 0
A182: =A181+1 -> 19 | B182: Adjusted Bills | D182: =SUM(D179:D181) -> 28 | E182: 28 | F182: 28 | G182: 28 | H182: 28 | I182: 28 | J182: 28 | K182: 28 | L182: 28 | M182: 28 | N182: 28 | O182: 28 | P182: =SUM(D182:O182) -> 336
A184: =A182+1 -> 20 | B184: Rate Schedule DS - Industrial
A185: =A184+1 -> 21 | B185: Bills | D185: 41 | E185: 41 | F185: 41 | G185: 41 | H185: 41 | I185: 41 | J185: 41 | K185: 41 | L185: 41 | M185: 41 | N185: 41 | O185: 41 | P185: =SUM(D185:O185) -> 492
A186: =A185+1 -> 22 | B186: Industrial Adjustment | C186: (WPM-D) | D186: ='D pg 1'!D20 -> 0 | E186: ='D pg 1'!E20 -> 0 | F186: ='D pg 1'!F20 -> 0 | G186: ='D pg 1'!G20 -> 0 | H186: ='D pg 1'!H20 -> 0 | I186: ='D pg 1'!I20 -> 0 | J186: ='D pg 1'!J20 -> 0 | K186: ='D pg 1'!K20 -> 0 | L186: ='D pg 1'!L20 -> 0 | M186: ='D pg 1'!M20 -> 0 | N186: ='D pg 1'!N20 -> 0 | O186: ='D pg 1'!O20 -> 0 | P186: =SUM(D186:O186) -> 0
A187: =A186+1 -> 23 | B187: Finaled Bills | D187: 0 | E187: 0 | F187: 0 | G187: 0 | H187: 0 | I187: 0 | J187: 1 | K187: 0 | L187: 1 | M187: 0 | N187: 0 | O187: 0 | P187: =SUM(D187:O187) -> 2
A188: =A187+1 -> 24 | B188: Adjusted Bills | D188: =SUM(D185:D187) -> 41 | E188: 41 | F188: 41 | G188: 41 | H188: 41 | I188: 41 | J188: 42 | K188: 41 | L188: 42 | M188: 41 | N188: 41 | O188: 41 | P188: =SUM(D188:O188) -> 494
A190: =A188+1 -> 25 | B190: Rate Schedule GDS - Commercial
A191: =A190+1 -> 26 | B191: Bills | D191: 13 | E191: 13 | F191: 13 | G191: 13 | H191: 13 | I191: 13 | J191: 13 | K191: 13 | L191: 13 | M191: 13 | N191: 13 | O191: 13 | P191: =SUM(D191:O191) -> 156
A192: =A191+1 -> 27 | B192: Industrial Adjustment | C192: (WPM-D) | D192: ='D pg 1'!D18 -> 0 | E192: ='D pg 1'!E18 -> 0 | F192: ='D pg 1'!F18 -> 0 | G192: ='D pg 1'!G18 -> 0 | H192: ='D pg 1'!H18 -> 0 | I192: ='D pg 1'!I18 -> 0 | J192: ='D pg 1'!J18 -> 0 | K192: ='D pg 1'!K18 -> 0 | L192: ='D pg 1'!L18 -> 0 | M192: ='D pg 1'!M18 -> 0 | N192: ='D pg 1'!N18 -> 0 | O192: ='D pg 1'!O18 -> 0 | P192: =SUM(D192:O192) -> 0
A193: =A192+1 -> 28 | B193: Finaled Bills | D193: 1 | E193: 1 | F193: 0 | G193: 0 | H193: 0 | I193: 0 | J193: 0 | K193: 0 | L193: 0 | M193: 0 | N193: 0 | O193: 0 | P193: =SUM(D193:O193) -> 2
A194: =A193+1 -> 29 | B194: Adjusted Bills | D194: =SUM(D191:D193) -> 14 | E194: 14 | F194: 13 | G194: 13 | H194: 13 | I194: 13 | J194: 13 | K194: 13 | L194: 13 | M194: 13 | N194: 13 | O194: 13 | P194: =SUM(D194:O194) -> 158
A196: =A194+1 -> 30 | B196: Rate Schedule GDS - Industrial
A197: =A196+1 -> 31 | B197: Bills | D197: 7 | E197: 7 | F197: 7 | G197: 7 | H197: 7 | I197: 7 | J197: 7 | K197: 7 | L197: 7 | M197: 7 | N197: 7 | O197: 7 | P197: =SUM(D197:O197) -> 84
A198: =A197+1 -> 32 | B198: Industrial Adjustment | C198: (WPM-D) | D198: ='D pg 1'!D19 -> 0 | E198: ='D pg 1'!E19 -> 0 | F198: ='D pg 1'!F19 -> 0 | G198: ='D pg 1'!G19 -> 0 | H198: ='D pg 1'!H19 -> 0 | I198: ='D pg 1'!I19 -> 0 | J198: ='D pg 1'!J19 -> 0 | K198: ='D pg 1'!K19 -> 0 | L198: ='D pg 1'!L19 -> 0 | M198: ='D pg 1'!M19 -> 0 | N198: ='D pg 1'!N19 -> 0 | O198: ='D pg 1'!O19 -> 0 | P198: =SUM(D198:O198) -> 0
A199: =A198+1 -> 33 | B199: Finaled Bills | D199: 0 | E199: 0 | F199: 0 | G199: 0 | H199: 0 | I199: 0 | J199: 0 | K199: 0 | L199: 0 | M199: 0 | N199: 0 | O199: 0 | P199: =SUM(D199:O199) -> 0
A200: =A199+1 -> 34 | B200: Adjusted Bills | D200: =SUM(D197:D199) -> 7 | E200: 7 | F200: 7 | G200: 7 | H200: 7 | I200: 7 | J200: 7 | K200: 7 | L200: 7 | M200: 7 | N200: 7 | O200: 7 | P200: =SUM(D200:O200) -> 84
A205: Columbia Gas of Kentucky, Inc.
A206: Number of Bills
A207: =A3 -> For the 12 Months Ended December 31, 2022
A209: =$A$5 -> Data: __ Base Period_X_Forecasted Period
A210: =$A$6 -> Type of Filing: X Original _ Update _ Revised
A211: =$A$7 -> Work Paper Reference No(s): | P211: =$P$7 -> Workpaper WPM-B.2
A212: =$A$8 -> 12 Months Forecasted | P212: Sheet 5 of 6
A214: Line
A215: No. | B215: Description | C215: Reference | D215: =$D$11 -> Jan-22 | E215: =$E$11 -> Feb-22 | F215: =$F$11 -> Mar-22 | G215: =$G$11 -> Apr-22 | H215: =$H$11 -> May-22 | I215: =$I$11 -> Jun-22 | J215: =$J$11 -> Jul-22 | K215: =$K$11 -> Aug-22 | L215: =$L$11 -> Sep-22 | M215: =$M$11 -> Oct-22 | N215: =$N$11 -> Nov-22 | O215: =$O$11 -> Dec-22 | P215: Total
B216: (A) | C216: (B) | D216: (C) | E216: (D) | F216: (E) | G216: (F) | H216: (G) | I216: (H) | J216: (I) | K216: (J) | L216: (K) | M216: (L) | N216: (M) | O216: (N) | P216: (O)
A218: 1 | B218: Rate Schedule DS3 - Industrial
A219: =A218+1 -> 2 | B219: Bills | D219: 3 | E219: 3 | F219: 3 | G219: 3 | H219: 3 | I219: 3 | J219: 3 | K219: 3 | L219: 3 | M219: 3 | N219: 3 | O219: 3 | P219: =SUM(D219:O219) -> 36
A220: =A219+1 -> 3 | B220: Industrial Adjustment | C220: (WPM-D) | D220: 0 | E220: 0 | F220: 0 | G220: 0 | H220: 0 | I220: 0 | J220: 0 | K220: 0 | L220: 0 | M220: 0 | N220: 0 | O220: 0 | P220: =SUM(D220:O220) -> 0
A221: =A220+1 -> 4 | B221: Finaled Bills | D221: 0 | E221: 0 | F221: 0 | G221: 0 | H221: 0 | I221: 0 | J221: 0 | K221: 0 | L221: 0 | M221: 0 | N221: 0 | O221: 0 | P221: =SUM(D221:O221) -> 0
A222: =A221+1 -> 5 | B222: Adjusted Bills | D222: =SUM(D219:D221) -> 3 | E222: 3 | F222: 3 | G222: 3 | H222: 3 | I222: 3 | J222: 3 | K222: 3 | L222: 3 | M222: 3 | N222: 3 | O222: 3 | P222: =SUM(D222:O222) -> 36
A224: =A222+1 -> 6 | B224: Rate Schedule FX1 - Commercial
A225: =A224+1 -> 7 | B225: Bills | D225: 0 | E225: 0 | F225: 0 | G225: 0 | H225: 0 | I225: 0 | J225: 0 | K225: 0 | L225: 0 | M225: 0 | N225: 0 | O225: 0 | P225: =SUM(D225:O225) -> 0
A226: =A225+1 -> 8 | B226: Industrial Adjustment | C226: (WPM-D) | D226: 0 | E226: 0 | F226: 0 | G226: 0 | H226: 0 | I226: 0 | J226: 0 | K226: 0 | L226: 0 | M226: 0 | N226: 0 | O226: 0 | P226: =SUM(D226:O226) -> 0
A227: =A226+1 -> 9 | B227: Finaled Bills | D227: 0 | E227: 0 | F227: 0 | G227: 0 | H227: 0 | I227: 0 | J227: 0 | K227: 0 | L227: 0 | M227: 0 | N227: 0 | O227: 0 | P227: =SUM(D227:O227) -> 0
A228: =A227+1 -> 10 | B228: Adjusted Bills | D228: =SUM(D225:D227) -> 0 | E228: 0 | F228: 0 | G228: 0 | H228: 0 | I228: 0 | J228: 0 | K228: 0 | L228: 0 | M228: 0 | N228: 0 | O228: 0 | P228: =SUM(D228:O228) -> 0
A230: =A228+1 -> 11 | B230: Rate Schedule FX2 - Commercial
A231: =A230+1 -> 12 | B231: Bills | D231: 0 | E231: 0 | F231: 0 | G231: 0 | H231: 0 | I231: 0 | J231: 0 | K231: 0 | L231: 0 | M231: 0 | N231: 0 | O231: 0 | P231: =SUM(D231:O231) -> 0
A232: =A231+1 -> 13 | B232: Industrial Adjustment | C232: (WPM-D) | D232: 0 | E232: 0 | F232: 0 | G232: 0 | H232: 0 | I232: 0 | J232: 0 | K232: 0 | L232: 0 | M232: 0 | N232: 0 | O232: 0 | P232: =SUM(D232:O232) -> 0
A233: =A232+1 -> 14 | B233: Finaled Bills | D233: 0 | E233: 0 | F233: 0 | G233: 0 | H233: 0 | I233: 0 | J233: 0 | K233: 0 | L233: 0 | M233: 0 | N233: 0 | O233: 0 | P233: =SUM(D233:O233) -> 0
A234: =A233+1 -> 15 | B234: Adjusted Bills | D234: =SUM(D231:D233) -> 0 | E234: 0 | F234: 0 | G234: 0 | H234: 0 | I234: 0 | J234: 0 | K234: 0 | L234: 0 | M234: 0 | N234: 0 | O234: 0 | P234: =SUM(D234:O234) -> 0
A236: =A234+1 -> 16 | B236: Rate Schedule FX5 - Industrial
A237: =A236+1 -> 17 | B237: Bills | D237: 3 | E237: 3 | F237: 3 | G237: 3 | H237: 3 | I237: 3 | J237: 3 | K237: 3 | L237: 3 | M237: 3 | N237: 3 | O237: 3 | P237: =SUM(D237:O237) -> 36
A238: =A237+1 -> 18 | B238: Industrial Adjustment | C238: (WPM-D) | D238: 0 | E238: 0 | F238: 0 | G238: 0 | H238: 0 | I238: 0 | J238: 0 | K238: 0 | L238: 0 | M238: 0 | N238: 0 | O238: 0 | P238: =SUM(D238:O238) -> 0
A239: =A238+1 -> 19 | B239: Finaled Bills | D239: 0 | E239: 0 | F239: 0 | G239: 0 | H239: 0 | I239: 0 | J239: 0 | K239: 0 | L239: 0 | M239: 0 | N239: 0 | O239: 0 | P239: =SUM(D239:O239) -> 0
A240: =A239+1 -> 20 | B240: Adjusted Bills | D240: =SUM(D237:D239) -> 3 | E240: 3 | F240: 3 | G240: 3 | H240: 3 | I240: 3 | J240: 3 | K240: 3 | L240: 3 | M240: 3 | N240: 3 | O240: 3 | P240: =SUM(D240:O240) -> 36
A242: =A240+1 -> 21 | B242: Rate Schedule FX7 - Industrial
A243: =A242+1 -> 22 | B243: Bills | D243: 0 | E243: 0 | F243: 0 | G243: 0 | H243: 0 | I243: 0 | J243: 0 | K243: 0 | L243: 0 | M243: 0 | N243: 0 | O243: 0 | P243: =SUM(D243:O243) -> 0
A244: =A243+1 -> 23 | B244: Industrial Adjustment | C244: (WPM-D) | D244: 0 | E244: 0 | F244: 0 | G244: 0 | H244: 0 | I244: 0 | J244: 0 | K244: 0 | L244: 0 | M244: 0 | N244: 0 | O244: 0 | P244: =SUM(D244:O244) -> 0
A245: =A244+1 -> 24 | B245: Finaled Bills | D245: 0 | E245: 0 | F245: 0 | G245: 0 | H245: 0 | I245: 0 | J245: 0 | K245: 0 | L245: 0 | M245: 0 | N245: 0 | O245: 0 | P245: =SUM(D245:O245) -> 0
A246: =A245+1 -> 25 | B246: Adjusted Bills | D246: =SUM(D243:D245) -> 0 | E246: 0 | F246: 0 | G246: 0 | H246: 0 | I246: 0 | J246: 0 | K246: 0 | L246: 0 | M246: 0 | N246: 0 | O246: 0 | P246: =SUM(D246:O246) -> 0
A248: =A246+1 -> 26 | B248: Rate Schedule SAS - Commercial
A249: =A248+1 -> 27 | B249: Bills | D249: 0 | E249: 0 | F249: 0 | G249: 0 | H249: 0 | I249: 0 | J249: 0 | K249: 0 | L249: 0 | M249: 0 | N249: 0 | O249: 0 | P249: =SUM(D249:O249) -> 0
A250: =A249+1 -> 28 | B250: Industrial Adjustment | C250: (WPM-D) | D250: ='D pg 1'!D21 -> 0 | E250: ='D pg 1'!E21 -> 0 | F250: ='D pg 1'!F21 -> 0 | G250: ='D pg 1'!G21 -> 0 | H250: ='D pg 1'!H21 -> 0 | I250: ='D pg 1'!I21 -> 0 | J250: ='D pg 1'!J21 -> 0 | K250: ='D pg 1'!K21 -> 0 | L250: ='D pg 1'!L21 -> 0 | M250: ='D pg 1'!M21 -> 0 | N250: ='D pg 1'!N21 -> 0 | O250: ='D pg 1'!O21 -> 0 | P250: =SUM(D250:O250) -> 0
A251: =A250+1 -> 29 | B251: Finaled Bills | D251: 0 | E251: 0 | F251: 0 | G251: 0 | H251: 0 | I251: 0 | J251: 0 | K251: 0 | L251: 0 | M251: 0 | N251: 0 | O251: 0 | P251: =SUM(D251:O251) -> 0
A252: =A251+1 -> 30 | B252: Adjusted Bills | D252: =SUM(D249:D251) -> 0 | E252: 0 | F252: 0 | G252: 0 | H252: 0 | I252: 0 | J252: 0 | K252: 0 | L252: 0 | M252: 0 | N252: 0 | O252: 0 | P252: =SUM(D252:O252) -> 0
A254: Columbia Gas of Kentucky, Inc.
... 47 more rows

Sheet C
A1: =CONAME -> Columbia Gas of Kentucky, Inc.
A2: Volumes (Mcf)
A3: =TYDESC -> For the 12 Months Ended December 31, 2022
A5: Data: __ Base Period_X_Forecasted Period | P5: Workpaper WPM-C.2
A6: Type of Filing: X Original _ Update _ Revised | P6: Sheet 1 of 8
A7: Work Paper Reference No(s):
A8: 12 Months Forecasted
A10: Line
A11: No. | B11: Description | C11: Reference | D11: =B!$D$11 -> Jan-22 | E11: =B!$E$11 -> Feb-22 | F11: =B!$F$11 -> Mar-22 | G11: =B!$G$11 -> Apr-22 | H11: =B!$H$11 -> May-22 | I11: =B!$I$11 -> Jun-22 | J11: =B!$J$11 -> Jul-22 | K11: =B!$K$11 -> Aug-22 | L11: =B!$L$11 -> Sep-22 | M11: =B!$M$11 -> Oct-22 | N11: =B!$N$11 -> Nov-22 | O11: =B!$O$11 -> Dec-22 | P11: Total
B12: (A) | C12: (B) | D12: (C) | E12: (D) | F12: (E) | G12: (F) | H12: (G) | I12: (H) | J12: (I) | K12: (J) | L12: (K) | M12: (L) | N12: (M) | O12: (N) | P12: (O)
A14: 1 | B14: Rate Schedule GSR - Residential
A15: =A14+1 -> 2 | B15: Volumes | D15: 1484059.2 | E15: 1502349.6 | F15: 1166162.7 | G15: 664959.6 | H15: 284958.4 | I15: 148158.1 | J15: 83378.5 | K15: 87613.7 | L15: 102204 | M15: 177653.4 | N15: 461545.8 | O15: 1093564.7 | P15: =SUM(D15:O15) -> 7256607.7
A16: =A15+1 -> 3 | B16: Industrial Adjustment | C16: (WPM-D) | D16: 0 | E16: 0 | F16: 0 | G16: 0 | H16: 0 | I16: 0 | J16: 0 | K16: 0 | L16: 0 | M16: 0 | N16: 0 | O16: 0 | P16: =SUM(D16:O16) -> 0
A17: =A16+1 -> 4 | B17: Adjusted Volumes | D17: =SUM(D15:D16) -> 1484059.2 | E17: 1502349.6 | F17: 1166162.7 | G17: 664959.6 | H17: 284958.4 | I17: 148158.1 | J17: 83378.5 | K17: 87613.7 | L17: 102204 | M17: 177653.4 | N17: 461545.8 | O17: 1093564.7 | P17: =SUM(D17:O17) -> 7256607.7
A19: =A17+1 -> 5 | B19: Rate Schedule G1C - Commercial
A20: =A19+1 -> 6 | B20: Volumes | D20: 0 | E20: 0 | F20: 0 | G20: 0 | H20: 0 | I20: 0 | J20: 0 | K20: 0 | L20: 0 | M20: 0 | N20: 0 | O20: 0 | P20: =SUM(D20:O20) -> 0
A21: =A20+1 -> 7 | B21: Industrial Adjustment | C21: (WPM-D) | D21: 0 | E21: 0 | F21: 0 | G21: 0 | H21: 0 | I21: 0 | J21: 0 | K21: 0 | L21: 0 | M21: 0 | N21: 0 | O21: 0 | P21: =SUM(D21:O21) -> 0
A22: =A21+1 -> 8 | B22: Adjusted Volumes | D22: =SUM(D20:D21) -> 0 | E22: 0 | F22: 0 | G22: 0 | H22: 0 | I22: 0 | J22: 0 | K22: 0 | L22: 0 | M22: 0 | N22: 0 | O22: 0 | P22: =SUM(D22:O22) -> 0
A24: =A22+1 -> 9 | B24: Rate Schedule G1R - Residential
A25: =A24+1 -> 10 | B25: Volumes | D25: 90.7 | E25: 99.9 | F25: 67.7 | G25: 41.7 | H25: 15.5 | I25: 6.8 | J25: 2 | K25: 2.2 | L25: 3.5 | M25: 14.4 | N25: 39.3 | O25: 68.7 | P25: =SUM(D25:O25) -> 452.4
A26: =A25+1 -> 11 | B26: Industrial Adjustment | C26: (WPM-D) | D26: 0 | E26: 0 | F26: 0 | G26: 0 | H26: 0 | I26: 0 | J26: 0 | K26: 0 | L26: 0 | M26: 0 | N26: 0 | O26: 0 | P26: =SUM(D26:O26) -> 0
A27: =A26+1 -> 12 | B27: Adjusted Volumes | D27: =SUM(D25:D26) -> 90.7 | E27: 99.9 | F27: 67.7 | G27: 41.7 | H27: 15.5 | I27: 6.8 | J27: 2 | K27: 2.2 | L27: 3.5 | M27: 14.4 | N27: 39.3 | O27: 68.7 | P27: =SUM(D27:O27) -> 452.4
A29: =A27+1 -> 13 | B29: Rate Schedule IN3 - Residential
A30: =A29+1 -> 14 | B30: Volumes | D30: 277.9 | E30: 245 | F30: 198.6 | G30: 145.4 | H30: 58.8 | I30: 19.4 | J30: 11.6 | K30: 12.1 | L30: 15.1 | M30: 45.2 | N30: 118.1 | O30: 235.4 | P30: =SUM(D30:O30) -> 1382.6
A31: =A30+1 -> 15 | B31: Industrial Adjustment | C31: (WPM-D) | D31: 0 | E31: 0 | F31: 0 | G31: 0 | H31: 0 | I31: 0 | J31: 0 | K31: 0 | L31: 0 | M31: 0 | N31: 0 | O31: 0 | P31: =SUM(D31:O31) -> 0
A32: =A31+1 -> 16 | B32: Adjusted Volumes | D32: =SUM(D30:D31) -> 277.9 | E32: 245 | F32: 198.6 | G32: 145.4 | H32: 58.8 | I32: 19.4 | J32: 11.6 | K32: 12.1 | L32: 15.1 | M32: 45.2 | N32: 118.1 | O32: 235.4 | P32: =SUM(D32:O32) -> 1382.6
A34: =A32+1 -> 17 | B34: Rate Schedule IN4 - Residential
A35: =A34+1 -> 18 | B35: Volumes | D35: 0 | E35: 0 | F35: 0 | G35: 0 | H35: 0 | I35: 0 | J35: 0 | K35: 0 | L35: 0 | M35: 0 | N35: 0 | O35: 0 | P35: =SUM(D35:O35) -> 0
A36: =A35+1 -> 19 | B36: Industrial Adjustment | C36: (WPM-D) | D36: 0 | E36: 0 | F36: 0 | G36: 0 | H36: 0 | I36: 0 | J36: 0 | K36: 0 | L36: 0 | M36: 0 | N36: 0 | O36: 0 | P36: =SUM(D36:O36) -> 0
A37: =A36+1 -> 20 | B37: Adjusted Volumes | D37: =SUM(D35:D36) -> 0 | E37: 0 | F37: 0 | G37: 0 | H37: 0 | I37: 0 | J37: 0 | K37: 0 | L37: 0 | M37: 0 | N37: 0 | O37: 0 | P37: =SUM(D37:O37) -> 0
A39: =A37+1 -> 21 | B39: Rate Schedule IN5 - Residential
A40: =A39+1 -> 22 | B40: Volumes | D40: 52.6 | E40: 46.7 | F40: 43.2 | G40: 28 | H40: 11.2 | I40: 2.9 | J40: 2.4 | K40: 2.7 | L40: 2.9 | M40: 4.7 | N40: 21.8 | O40: 44.7 | P40: =SUM(D40:O40) -> 263.8
A41: =A40+1 -> 23 | B41: Industrial Adjustment | C41: (WPM-D) | D41: 0 | E41: 0 | F41: 0 | G41: 0 | H41: 0 | I41: 0 | J41: 0 | K41: 0 | L41: 0 | M41: 0 | N41: 0 | O41: 0 | P41: =SUM(D41:O41) -> 0
A42: =A41+1 -> 24 | B42: Adjusted Volumes | D42: =SUM(D40:D41) -> 52.6 | E42: 46.7 | F42: 43.2 | G42: 28 | H42: 11.2 | I42: 2.9 | J42: 2.4 | K42: 2.7 | L42: 2.9 | M42: 4.7 | N42: 21.8 | O42: 44.7 | P42: =SUM(D42:O42) -> 263.8
A44: =A42+1 -> 25 | B44: Rate Schedule LG2 - Residential
A45: =A44+1 -> 26 | B45: Volumes | D45: 138.2 | E45: 141.5 | F45: 113 | G45: 73.1 | H45: 18.1 | I45: 3.1 | J45: 2.9 | K45: 2.9 | L45: 3.9 | M45: 22.1 | N45: 57.2 | O45: 96.3 | P45: =SUM(D45:O45) -> 672.3
A46: =A45+1 -> 27 | B46: Industrial Adjustment | C46: (WPM-D) | D46: 0 | E46: 0 | F46: 0 | G46: 0 | H46: 0 | I46: 0 | J46: 0 | K46: 0 | L46: 0 | M46: 0 | N46: 0 | O46: 0 | P46: =SUM(D46:O46) -> 0
A47: =A46+1 -> 28 | B47: Adjusted Volumes | D47: =SUM(D45:D46) -> 138.2 | E47: 141.5 | F47: 113 | G47: 73.1 | H47: 18.1 | I47: 3.1 | J47: 2.9 | K47: 2.9 | L47: 3.9 | M47: 22.1 | N47: 57.2 | O47: 96.3 | P47: =SUM(D47:O47) -> 672.3
A49: =A47+1 -> 29 | B49: Rate Schedule LG2 - Commercial
A50: =A49+1 -> 30 | B50: Volumes | D50: 0 | E50: 0 | F50: 0 | G50: 0 | H50: 0 | I50: 0 | J50: 0 | K50: 0 | L50: 0 | M50: 0 | N50: 0 | O50: 0 | P50: =SUM(D50:O50) -> 0
A51: =A50+1 -> 31 | B51: Industrial Adjustment | C51: (WPM-D) | D51: 0 | E51: 0 | F51: 0 | G51: 0 | H51: 0 | I51: 0 | J51: 0 | K51: 0 | L51: 0 | M51: 0 | N51: 0 | O51: 0 | P51: =SUM(D51:O51) -> 0
A52: =A51+1 -> 32 | B52: Adjusted Volumes | D52: =SUM(D50:D51) -> 0 | E52: 0 | F52: 0 | G52: 0 | H52: 0 | I52: 0 | J52: 0 | K52: 0 | L52: 0 | M52: 0 | N52: 0 | O52: 0 | P52: =SUM(D52:O52) -> 0
A54: =CONAME -> Columbia Gas of Kentucky, Inc.
A55: Volumes (Mcf)
A56: =TYDESC -> For the 12 Months Ended December 31, 2022
A58: =$A$5 -> Data: __ Base Period_X_Forecasted Period | P58: =$P$5 -> Workpaper WPM-C.2
A59: =$A$6 -> Type of Filing: X Original _ Update _ Revised | P59: Sheet 2 of 8
A60: =$A$7 -> Work Paper Reference No(s):
A61: =$A$8 -> 12 Months Forecasted
A63: Line
A64: No. | B64: Description | C64: Reference | D64: =B!$D$11 -> Jan-22 | E64: =B!$E$11 -> Feb-22 | F64: =B!$F$11 -> Mar-22 | G64: =B!$G$11 -> Apr-22 | H64: =B!$H$11 -> May-22 | I64: =B!$I$11 -> Jun-22 | J64: =B!$J$11 -> Jul-22 | K64: =B!$K$11 -> Aug-22 | L64: =B!$L$11 -> Sep-22 | M64: =B!$M$11 -> Oct-22 | N64: =B!$N$11 -> Nov-22 | O64: =B!$O$11 -> Dec-22 | P64: Total
B65: (A) | C65: (B) | D65: (C) | E65: (D) | F65: (E) | G65: (F) | H65: (G) | I65: (H) | J65: (I) | K65: (J) | L65: (K) | M65: (L) | N65: (M) | O65: (N) | P65: (O)
A67: 1 | B67: Rate Schedule LG3 - Residential
A68: =A67+1 -> 2 | B68: Volumes
A69: =A68+1 -> 3 | B69: First 2 Mcf | D69: 2 | E69: 2 | F69: 2 | G69: 2 | H69: 2 | I69: =2+0.4 -> 2.4 | J69: 2 | K69: 2 | L69: 2 | M69: 2 | N69: 2 | O69: 2 | P69: =SUM(D69:O69) -> 24.4
A70: =A69+1 -> 4 | B70: Over 2 Mcf | D70: =D71-D69 -> 80.4 | E70: =E71-E69 -> 86.1 | F70: 73.6 | G70: 48 | H70: 18.1 | I70: 9.1 | J70: 8 | K70: 15.7 | L70: 36.8 | M70: 42.7 | N70: 50.1 | O70: 95.9 | P70: =SUM(D70:O70) -> 564.5
A71: =A70+1 -> 5 | B71: Volumes | D71: 82.4 | E71: 88.1 | F71: 75.6 | G71: 50 | H71: 20.1 | I71: 11.5 | J71: 10 | K71: 17.7 | L71: 38.8 | M71: 44.7 | N71: 52.1 | O71: 97.9 | P71: =SUM(D71:O71) -> 588.9
A73: =A71+1 -> 6 | B73: Rate Schedule LG4 - Residential
A74: =A73+1 -> 7 | B74: Volumes | D74: 33 | E74: 31.8 | F74: 30.3 | G74: 15.7 | H74: 8.8 | I74: 2.5 | J74: 2.4 | K74: 2.4 | L74: 2.8 | M74: 3.9 | N74: 10.3 | O74: 22.9 | P74: =SUM(D74:O74) -> 166.8
A75: =A74+1 -> 8 | B75: Industrial Adjustment | C75: (WPM-D) | D75: 0 | E75: 0 | F75: 0 | G75: 0 | H75: 0 | I75: 0 | J75: 0 | K75: 0 | L75: 0 | M75: 0 | N75: 0 | O75: 0 | P75: =SUM(D75:O75) -> 0
A76: =A75+1 -> 9 | B76: Adjusted Volumes | D76: =SUM(D74:D75) -> 33 | E76: 31.8 | F76: 30.3 | G76: 15.7 | H76: 8.8 | I76: 2.5 | J76: 2.4 | K76: 2.4 | L76: 2.8 | M76: 3.9 | N76: 10.3 | O76: 22.9 | P76: =SUM(D76:O76) -> 166.8
A78: =A76+1 -> 10 | B78: Rate Schedule GSO - Commercial
A79: =A78+1 -> 11 | B79: Volumes
A80: =A79+1 -> 12 | B80: First 50 Mcf | D80: 301663.9 | E80: 302959.2 | F80: 260556.9 | G80: 158803.8 | H80: 111004.7 | I80: 72519 | J80: 57495.5 | K80: 53813.4 | L80: 55491.2 | M80: 68357.6 | N80: 127148.7 | O80: 237716.7 | P80: =SUM(D80:O80) -> 1807530.6
A81: =A80+1 -> 13 | B81: Next 350 Mcf | D81: 297277.8 | E81: 286181.4 | F81: 236024.2 | G81: 103688.7 | H81: 51445.7 | I81: 35643.3 | J81: 30872.6 | K81: 25999.1 | L81: 28865.6 | M81: 37399 | N81: 82862.9 | O81: 199877 | P81: =SUM(D81:O81) -> 1416137.3
A82: =A81+1 -> 14 | B82: Next 600 Mcf | D82: 79248.9 | E82: 75073 | F82: 56078.4 | G82: 19218.2 | H82: 7741.4 | I82: 7465.1 | J82: 7224.6 | K82: 7114.7 | L82: 6893.4 | M82: 8447.2 | N82: 16011.3 | O82: 47437.5 | P82: =SUM(D82:O82) -> 337953.7
A83: =A82+1 -> 15 | B83: Over 1,000 Mcf | D83: 54852.4 | E83: 36770.4 | F83: 30077.3 | G83: 12432.3 | H83: 4105.1 | I83: 6103.1 | J83: 4433.6 | K83: 3454.3 | L83: 4143.6 | M83: 3921.9 | N83: 10445.8 | O83: 31647.7 | P83: =SUM(D83:O83) -> 202387.5
D84: =SUM(D80:D83) -> 733043 | E84: 700984 | F84: 582736.8 | G84: 294143 | H84: 174296.9 | I84: 121730.5 | J84: 100026.3 | K84: 90381.5 | L84: 95393.8 | M84: 118125.7 | N84: 236468.7 | O84: =SUM(O80:O83) -> 516678.9 | P84: =SUM(D84:O84) -> 3764009.1
A85: =A83+1 -> 16 | B85: Industrial Adjustment | C85: (WPM-D)
A86: =A85+1 -> 17 | B86: =B80 -> First 50 Mcf | D86: ='D pg 1'!D29 -> 0 | E86: ='D pg 1'!E29 -> 0 | F86: ='D pg 1'!F29 -> 0 | G86: ='D pg 1'!G29 -> 0 | H86: ='D pg 1'!H29 -> 0 | I86: ='D pg 1'!I29 -> 0 | J86: ='D pg 1'!J29 -> 0 | K86: ='D pg 1'!K29 -> 0 | L86: ='D pg 1'!L29 -> 0 | M86: ='D pg 1'!M29 -> 0 | N86: ='D pg 1'!N29 -> 0 | O86: ='D pg 1'!O29 -> 0 | P86: =SUM(D86:O86) -> 0
A87: =A86+1 -> 18 | B87: =B81 -> Next 350 Mcf | D87: ='D pg 1'!D30 -> 0 | E87: ='D pg 1'!E30 -> 0 | F87: ='D pg 1'!F30 -> 0 | G87: ='D pg 1'!G30 -> 0 | H87: ='D pg 1'!H30 -> 0 | I87: ='D pg 1'!I30 -> 0 | J87: ='D pg 1'!J30 -> 0 | K87: ='D pg 1'!K30 -> 0 | L87: ='D pg 1'!L30 -> 0 | M87: ='D pg 1'!M30 -> 0 | N87: ='D pg 1'!N30 -> 0 | O87: ='D pg 1'!O30 -> 0 | P87: =SUM(D87:O87) -> 0
A88: =A87+1 -> 19 | B88: =B82 -> Next 600 Mcf | D88: ='D pg 1'!D31 -> 0 | E88: ='D pg 1'!E31 -> 0 | F88: ='D pg 1'!F31 -> 0 | G88: ='D pg 1'!G31 -> 0 | H88: ='D pg 1'!H31 -> 0 | I88: ='D pg 1'!I31 -> 0 | J88: ='D pg 1'!J31 -> 0 | K88: ='D pg 1'!K31 -> 0 | L88: ='D pg 1'!L31 -> 0 | M88: ='D pg 1'!M31 -> 0 | N88: ='D pg 1'!N31 -> 0 | O88: ='D pg 1'!O31 -> 0 | P88: =SUM(D88:O88) -> 0
A89: =A88+1 -> 20 | B89: =B83 -> Over 1,000 Mcf | D89: ='D pg 1'!D32 -> 0 | E89: ='D pg 1'!E32 -> 0 | F89: ='D pg 1'!F32 -> 0 | G89: ='D pg 1'!G32 -> 0 | H89: ='D pg 1'!H32 -> 0 | I89: ='D pg 1'!I32 -> 0 | J89: ='D pg 1'!J32 -> 0 | K89: ='D pg 1'!K32 -> 0 | L89: ='D pg 1'!L32 -> 0 | M89: ='D pg 1'!M32 -> 0 | N89: ='D pg 1'!N32 -> 0 | O89: ='D pg 1'!O32 -> 0 | P89: =SUM(D89:O89) -> 0
D90: =SUM(D86:D89) -> 0 | E90: 0 | F90: 0 | G90: 0 | H90: 0 | I90: 0 | J90: 0 | K90: 0 | L90: 0 | M90: 0 | N90: 0 | O90: =SUM(O86:O89) -> 0 | P90: =SUM(D90:O90) -> 0
A91: =A89+1 -> 21 | B91: Adjusted Volumes
A92: =A91+1 -> 22 | B92: =B80 -> First 50 Mcf | D92: =D80+D86 -> 301663.9 | E92: =E80+E86 -> 302959.2 | F92: 260556.9 | G92: 158803.8 | H92: 111004.7 | I92: 72519 | J92: 57495.5 | K92: 53813.4 | L92: 55491.2 | M92: 68357.6 | N92: 127148.7 | O92: 237716.7 | P92: =SUM(D92:O92) -> 1807530.6
A93: =A92+1 -> 23 | B93: =B81 -> Next 350 Mcf | D93: =D81+D87 -> 297277.8 | E93: 286181.4 | F93: 236024.2 | G93: 103688.7 | H93: 51445.7 | I93: 35643.3 | J93: 30872.6 | K93: 25999.1 | L93: 28865.6 | M93: 37399 | N93: 82862.9 | O93: 199877 | P93: =SUM(D93:O93) -> 1416137.3
A94: =A93+1 -> 24 | B94: =B82 -> Next 600 Mcf | D94: 79248.9 | E94: 75073 | F94: 56078.4 | G94: 19218.2 | H94: 7741.4 | I94: 7465.1 | J94: 7224.6 | K94: 7114.7 | L94: 6893.4 | M94: 8447.2 | N94: 16011.3 | O94: 47437.5 | P94: =SUM(D94:O94) -> 337953.7
A95: =A94+1 -> 25 | B95: =B83 -> Over 1,000 Mcf | D95: 54852.4 | E95: 36770.4 | F95: 30077.3 | G95: 12432.3 | H95: 4105.1 | I95: 6103.1 | J95: 4433.6 | K95: 3454.3 | L95: 4143.6 | M95: 3921.9 | N95: 10445.8 | O95: 31647.7 | P95: =SUM(D95:O95) -> 202387.5
A96: =A95+1 -> 26 | B96: Adjusted Volumes | D96: =D84+D90 -> 733043 | E96: =E84+E90 -> 700984 | F96: 582736.8 | G96: 294143 | H96: 174296.9 | I96: 121730.5 | J96: 100026.3 | K96: 90381.5 | L96: 95393.8 | M96: 118125.7 | N96: 236468.7 | O96: 516678.9 | P96: =SUM(D96:O96) -> 3764009.1
A98: =CONAME -> Columbia Gas of Kentucky, Inc.
A99: Volumes (Mcf)
A100: =TYDESC -> For the 12 Months Ended December 31, 2022
A102: =$A$5 -> Data: __ Base Period_X_Forecasted Period | P102: =$P$5 -> Workpaper WPM-C.2
A103: =$A$6 -> Type of Filing: X Original _ Update _ Revised | P103: Sheet 3 of 8
A104: =$A$7 -> Work Paper Reference No(s):
A105: =$A$8 -> 12 Months Forecasted
A107: Line
A108: No. | B108: Description | C108: Reference | D108: =B!$D$11 -> Jan-22 | E108: =B!$E$11 -> Feb-22 | F108: =B!$F$11 -> Mar-22 | G108: =B!$G$11 -> Apr-22 | H108: =B!$H$11 -> May-22 | I108: =B!$I$11 -> Jun-22 | J108: =B!$J$11 -> Jul-22 | K108: =B!$K$11 -> Aug-22 | L108: =B!$L$11 -> Sep-22 | M108: =B!$M$11 -> Oct-22 | N108: =B!$N$11 -> Nov-22 | O108: =B!$O$11 -> Dec-22 | P108: Total
B109: (A) | C109: (B) | D109: (C) | E109: (D) | F109: (E) | G109: (F) | H109: (G) | I109: (H) | J109: (I) | K109: (J) | L109: (K) | M109: (L) | N109: (M) | O109: (N) | P109: (O)
A111: =A109+1 -> 1 | B111: Rate Schedule GSO - Industrial
A112: =A111+1 -> 2 | B112: Volumes
A113: =A112+1 -> 3 | B113: First 50 Mcf | D113: 2145.3 | E113: 2115.6 | F113: 2045.5 | G113: 1652.2 | H113: =50+1532.2 -> 1582.2 | I113: 1148.7 | J113: 747.9 | K113: 837.7 | L113: 1025.9 | M113: 1208.8 | N113: 1668.8 | O113: =50+1980.3 -> 2030.3 | P113: =SUM(D113:O113) -> 18208.9
A114: =A113+1 -> 4 | B114: Next 350 Mcf | D114: 9954.7 | E114: 9961.7 | F114: 9287 | G114: 5626 | H114: =196+5129.6 -> 5325.6 | I114: 3671.8 | J114: 3224.1 | K114: 3915.9 | L114: 4195.5 | M114: 5273.7 | N114: 7257.1 | O114: =219+9240.3 -> 9459.3 | P114: =SUM(D114:O114) -> 77152.4
A115: =A114+1 -> 5 | B115: Next 600 Mcf | D115: 11094.6 | E115: 11265.1 | F115: 10457.6 | G115: 1893.4 | H115: 2289.1 | I115: 1178.9 | J115: 1053.1 | K115: 2126.5 | L115: 2718.9 | M115: 4845.1 | N115: 8264.9 | O115: 9666.8 | P115: =SUM(D115:O115) -> 66854
A116: =A115+1 -> 6 | B116: Over 1,000 Mcf | D116: 21264.2 | E116: 18844 | F116: 8198.1 | G116: 1200 | H116: 1275 | I116: 1000 | J116: 1000 | K116: 1000 | L116: 1000 | M116: 1815.8 | N116: 8034.9 | O116: 15622.1 | P116: =SUM(D116:O116) -> 80254.1
D117: =SUM(D113:D116) -> 44458.8 | E117: 42186.4 | F117: 29988.2 | G117: 10371.6 | H117: 10471.9 | I117: 6999.4 | J117: 6025.1 | K117: 7880.1 | L117: 8940.3 | M117: 13143.4 | N117: 25225.7 | O117: 36778.5 | P117: =SUM(D117:O117) -> 242469.4
A118: =A116+1 -> 7 | B118: Industrial Adjustment | C118: (WPM-D)
A119: =A118+1 -> 8 | B119: =B113 -> First 50 Mcf | D119: ='D pg 1'!D36 -> 0 | E119: ='D pg 1'!E36 -> 0 | F119: ='D pg 1'!F36 -> 0 | G119: ='D pg 1'!G36 -> 0 | H119: ='D pg 1'!H36 -> 0 | I119: ='D pg 1'!I36 -> -50 | J119: ='D pg 1'!J36 -> 0 | K119: ='D pg 1'!K36 -> 0 | L119: ='D pg 1'!L36 -> -50 | M119: ='D pg 1'!M36 -> 0 | N119: ='D pg 1'!N36 -> 0 | O119: ='D pg 1'!O36 -> 0 | P119: =SUM(D119:O119) -> -100
A120: =A119+1 -> 9 | B120: =B114 -> Next 350 Mcf | D120: ='D pg 1'!D37 -> 0 | E120: ='D pg 1'!E37 -> 0 | F120: ='D pg 1'!F37 -> 0 | G120: ='D pg 1'!G37 -> 0 | H120: ='D pg 1'!H37 -> -100 | I120: ='D pg 1'!I37 -> 0 | J120: ='D pg 1'!J37 -> 0 | K120: ='D pg 1'!K37 -> 0 | L120: ='D pg 1'!L37 -> 0 | M120: ='D pg 1'!M37 -> 0 | N120: ='D pg 1'!N37 -> 0 | O120: ='D pg 1'!O37 -> 0 | P120: =SUM(D120:O120) -> -100
A121: =A120+1 -> 10 | B121: =B115 -> Next 600 Mcf | D121: ='D pg 1'!D38 -> 0 | E121: ='D pg 1'!E38 -> 0 | F121: ='D pg 1'!F38 -> 0 | G121: ='D pg 1'!G38 -> -500 | H121: ='D pg 1'!H38 -> -600 | I121: ='D pg 1'!I38 -> 0 | J121: ='D pg 1'!J38 -> 0 | K121: ='D pg 1'!K38 -> 0 | L121: ='D pg 1'!L38 -> 0 | M121: ='D pg 1'!M38 -> 0 | N121: ='D pg 1'!N38 -> 100 | O121: ='D pg 1'!O38 -> 0 | P121: =SUM(D121:O121) -> -1000
A122: =A121+1 -> 11 | B122: =B116 -> Over 1,000 Mcf | D122: ='D pg 1'!D39 -> 4000 | E122: ='D pg 1'!E39 -> 4000 | F122: ='D pg 1'!F39 -> 500 | G122: ='D pg 1'!G39 -> 0 | H122: ='D pg 1'!H39 -> 0 | I122: ='D pg 1'!I39 -> 0 | J122: ='D pg 1'!J39 -> 0 | K122: ='D pg 1'!K39 -> 0 | L122: ='D pg 1'!L39 -> 0 | M122: ='D pg 1'!M39 -> 0 | N122: ='D pg 1'!N39 -> 2200 | O122: ='D pg 1'!O39 -> 4000 | P122: =SUM(D122:O122) -> 14700
D123: =SUM(D119:D122) -> 4000 | E123: 4000 | F123: 500 | G123: -500 | H123: -700 | I123: -50 | J123: 0 | K123: 0 | L123: -50 | M123: 0 | N123: 2300 | O123: 4000 | P123: =SUM(D123:O123) -> 13500
A124: =A122+1 -> 12 | B124: Adjusted Volumes
A125: =A124+1 -> 13 | B125: =B113 -> First 50 Mcf | D125: =D113+D119 -> 2145.3 | E125: 2115.6 | F125: 2045.5 | G125: 1652.2 | H125: 1582.2 | I125: 1098.7 | J125: 747.9 | K125: 837.7 | L125: 975.9 | M125: 1208.8 | N125: 1668.8 | O125: 2030.3 | P125: =SUM(D125:O125) -> 18108.9
A126: =A125+1 -> 14 | B126: =B114 -> Next 350 Mcf | D126: =D114+D120 -> 9954.7 | E126: 9961.7 | F126: 9287 | G126: 5626 | H126: 5225.6 | I126: 3671.8 | J126: 3224.1 | K126: 3915.9 | L126: 4195.5 | M126: 5273.7 | N126: 7257.1 | O126: 9459.3 | P126: =SUM(D126:O126) -> 77052.4
A127: =A126+1 -> 15 | B127: =B115 -> Next 600 Mcf | D127: =D115+D121 -> 11094.6 | E127: 11265.1 | F127: 10457.6 | G127: 1393.4 | H127: 1689.1 | I127: 1178.9 | J127: 1053.1 | K127: 2126.5 | L127: 2718.9 | M127: 4845.1 | N127: 8364.9 | O127: 9666.8 | P127: =SUM(D127:O127) -> 65854
A128: =A127+1 -> 16 | B128: =B116 -> Over 1,000 Mcf | D128: =D116+D122 -> 25264.2 | E128: 22844 | F128: 8698.1 | G128: 1200 | H128: 1275 | I128: 1000 | J128: 1000 | K128: 1000 | L128: 1000 | M128: 1815.8 | N128: 10234.9 | O128: 19622.1 | P128: =SUM(D128:O128) -> 94954.1
A129: =A128+1 -> 17 | B129: Adjusted Volumes | D129: =D117+D123 -> 48458.8 | E129: 46186.4 | F129: 30488.2 | G129: 9871.6 | H129: 9771.9 | I129: 6949.4 | J129: 6025.1 | K129: 7880.1 | L129: 8890.3 | M129: 13143.4 | N129: 27525.7 | O129: 40778.5 | P129: =SUM(D129:O129) -> 255969.4
A131: =A129+1 -> 18 | B131: Rate Schedule IS - Industrial
A132: =A131+1 -> 19 | B132: Volumes
A133: =A132+1 -> 20 | B133: First 30,000 Mcf | D133: 0 | E133: 0 | F133: 0 | G133: 0 | H133: 0 | I133: 0 | J133: 0 | K133: 0 | L133: 0 | M133: 0 | N133: 0 | O133: 0 | P133: =SUM(D133:O133) -> 0
A134: =A133+1 -> 21 | B134: Next 70,000 Mcf | D134: 0 | E134: 0 | F134: 0 | G134: 0 | H134: 0 | I134: 0 | J134: 0 | K134: 0 | L134: 0 | M134: 0 | N134: 0 | O134: 0 | P134: =SUM(D134:O134) -> 0
A135: 22 | B135: Over 100,000 Mcf | D135: 0 | E135: 0 | F135: 0 | G135: 0 | H135: 0 | I135: 0 | J135: 0 | K135: 0 | L135: 0 | M135: 0 | N135: 0 | O135: 0 | P135: =SUM(D135:O135) -> 0
A136: =A135+1 -> 23 | B136: Volumes | D136: =SUM(D133:D135) -> 0 | E136: =SUM(E133:E135) -> 0 | F136: 0 | G136: 0 | H136: 0 | I136: 0 | J136: 0 | K136: 0 | L136: 0 | M136: 0 | N136: 0 | O136: =SUM(O133:O135) -> 0 | P136: =SUM(D136:O136) -> 0
A138: =A136+1 -> 24 | B138: Rate Schedule IUS - Wholesale
A139: =A138+1 -> 25 | B139: Volumes | D139: 1938.9 | E139: 1673.4 | F139: 1850.8 | G139: 714.5 | H139: 576.5 | I139: 489.9 | J139: 341.7 | K139: 376.6 | L139: 306.3 | M139: 562.5 | N139: 936.2 | O139: 1483.9 | P139: =SUM(D139:O139) -> 11251.2
A140: =A139+1 -> 26 | B140: Industrial Adjustment | C140: (WPM-D) | D140: 0 | E140: 0 | F140: 0 | G140: 0 | H140: 0 | I140: 0 | J140: 0 | K140: 0 | L140: 0 | M140: 0 | N140: 0 | O140: 0 | P140: =SUM(D140:O140) -> 0
A141: =A140+1 -> 27 | B141: Adjusted Volumes | D141: =SUM(D139:D140) -> 1938.9 | E141: 1673.4 | F141: 1850.8 | G141: 714.5 | H141: 576.5 | I141: 489.9 | J141: 341.7 | K141: 376.6 | L141: 306.3 | M141: 562.5 | N141: 936.2 | O141: 1483.9 | P141: =SUM(D141:O141) -> 11251.2
A143: =CONAME -> Columbia Gas of Kentucky, Inc.
A144: Volumes (Mcf)
A145: =TYDESC -> For the 12 Months Ended December 31, 2022
A147: =$A$5 -> Data: __ Base Period_X_Forecasted Period | P147: =$P$5 -> Workpaper WPM-C.2
A148: =$A$6 -> Type of Filing: X Original _ Update _ Revised | P148: Sheet 4 of 8
A149: =$A$7 -> Work Paper Reference No(s):
A150: =$A$8 -> 12 Months Forecasted
A152: Line
A153: No. | B153: Description | C153: Reference | D153: =B!$D$11 -> Jan-22 | E153: =B!$E$11 -> Feb-22 | F153: =B!$F$11 -> Mar-22 | G153: =B!$G$11 -> Apr-22 | H153: =B!$H$11 -> May-22 | I153: =B!$I$11 -> Jun-22 | J153: =B!$J$11 -> Jul-22 | K153: =B!$K$11 -> Aug-22 | L153: =B!$L$11 -> Sep-22 | M153: =B!$M$11 -> Oct-22 | N153: =B!$N$11 -> Nov-22 | O153: =B!$O$11 -> Dec-22 | P153: Total
B154: (A) | C154: (B) | D154: (C) | E154: (D) | F154: (E) | G154: (F) | H154: (G) | I154: (H) | J154: (I) | K154: (J) | L154: (K) | M154: (L) | N154: (M) | O154: (N) | P154: (O)
A156: 1 | B156: Tariff Sales Summary by Customer Class
A158: =A156+1 -> 2 | B158: Total Residential Sales
A159: =A158+1 -> 3 | B159: Volumes | D159: =D15+D25+D30+D35+D40+D45+D71+D74 -> 1484734 | E159: 1503002.6 | F159: 1166691.1 | G159: 665313.5 | H159: 285090.9 | I159: 148204.3 | J159: 83409.8 | K159: 87653.7 | L159: 102271 | M159: 177788.4 | N159: 461844.6 | O159: 1094130.6 | P159: =SUM(D159:O159) -> 7260134.5
A160: =A159+1 -> 4 | B160: Industrial Adjustment | D160: =D16+D26+D31+D36+D41+D46+D75 -> 0 | E160: 0 | F160: 0 | G160: 0 | H160: 0 | I160: 0 | J160: 0 | K160: 0 | L160: 0 | M160: 0 | N160: 0 | O160: 0 | P160: 0
A161: =A160+1 -> 5 | B161: Adjusted Volumes | D161: =SUM(D159:D160) -> 1484734 | E161: 1503002.6 | F161: 1166691.1 | G161: 665313.5 | H161: 285090.9 | I161: 148204.3 | J161: 83409.8 | K161: 87653.7 | L161: 102271 | M161: 177788.4 | N161: 461844.6 | O161: 1094130.6 | P161: =SUM(D161:O161) -> 7260134.5
A163: =A161+1 -> 6 | B163: Total Commercial Sales
A164: =A163+1 -> 7 | B164: Volumes | D164: =D20+D50+D84 -> 733043 | E164: =E20+E50+E84 -> 700984 | F164: 582736.8 | G164: 294143 | H164: 174296.9 | I164: 121730.5 | J164: 100026.3 | K164: 90381.5 | L164: 95393.8 | M164: 118125.7 | N164: 236468.7 | O164: 516678.9 | P164: =P20+P50+P84 -> 3764009.1
A165: =A164+1 -> 8 | B165: Industrial Adjustment | D165: =D21+D51+D90 -> 0 | E165: =E21+E51+E90 -> 0 | F165: 0 | G165: 0 | H165: 0 | I165: 0 | J165: 0 | K165: 0 | L165: 0 | M165: 0 | N165: 0 | O165: 0 | P165: =P21+P51+P90 -> 0
A166: =A165+1 -> 9 | B166: Adjusted Volumes | D166: =SUM(D164:D165) -> 733043 | E166: 700984 | F166: 582736.8 | G166: 294143 | H166: 174296.9 | I166: 121730.5 | J166: 100026.3 | K166: 90381.5 | L166: 95393.8 | M166: 118125.7 | N166: 236468.7 | O166: 516678.9 | P166: =SUM(D166:O166) -> 3764009.1
A168: =A166+1 -> 10 | B168: Total Industrial Sales
A169: =A168+1 -> 11 | B169: Volumes | D169: =D117+D136 -> 44458.8 | E169: =E117+E136 -> 42186.4 | F169: 29988.2 | G169: 10371.6 | H169: 10471.9 | I169: 6999.4 | J169: 6025.1 | K169: 7880.1 | L169: 8940.3 | M169: 13143.4 | N169: 25225.7 | O169: 36778.5 | P169: 242469.4
A170: =A169+1 -> 12 | B170: Industrial Adjustment | D170: =D123 -> 4000 | E170: =E123 -> 4000 | F170: 500 | G170: -500 | H170: -700 | I170: -50 | J170: 0 | K170: 0 | L170: -50 | M170: 0 | N170: 2300 | O170: 4000 | P170: 13500
A171: =A170+1 -> 13 | B171: Adjusted Volumes | D171: =SUM(D169:D170) -> 48458.8 | E171: 46186.4 | F171: 30488.2 | G171: 9871.6 | H171: 9771.9 | I171: 6949.4 | J171: 6025.1 | K171: 7880.1 | L171: 8890.3 | M171: 13143.4 | N171: 27525.7 | O171: 40778.5 | P171: =SUM(D171:O171) -> 255969.4
A173: =A171+1 -> 14 | B173: Total Wholesale Sales
A174: =A173+1 -> 15 | B174: Volumes | D174: =D139 -> 1938.9 | E174: 1673.4 | F174: 1850.8 | G174: 714.5 | H174: 576.5 | I174: 489.9 | J174: 341.7 | K174: 376.6 | L174: 306.3 | M174: 562.5 | N174: 936.2 | O174: 1483.9 | P174: =SUM(D174:O174) -> 11251.2
A175: =A174+1 -> 16 | B175: Industrial Adjustment | D175: =D140 -> 0 | E175: 0 | F175: 0 | G175: 0 | H175: 0 | I175: 0 | J175: 0 | K175: 0 | L175: 0 | M175: 0 | N175: 0 | O175: 0 | P175: =SUM(D175:O175) -> 0
A176: =A175+1 -> 17 | B176: Adjusted Volumes | D176: =SUM(D174:D175) -> 1938.9 | E176: 1673.4 | F176: 1850.8 | G176: 714.5 | H176: 576.5 | I176: 489.9 | J176: 341.7 | K176: 376.6 | L176: 306.3 | M176: 562.5 | N176: 936.2 | O176: 1483.9 | P176: =SUM(D176:O176) -> 11251.2
A178: =A176+1 -> 18 | B178: Total Tariff Sales
A179: =A178+1 -> 19 | B179: Volumes | D179: =D159+D164+D169+D174 -> 2264174.7 | E179: 2247846.4 | F179: 1781266.9 | G179: 970542.6 | H179: 470436.2 | I179: 277424.1 | J179: 189802.9 | K179: 186291.9 | L179: 206911.4 | M179: 309620 | N179: 724475.2 | O179: 1649071.9 | P179: =SUM(D179:O179) -> 11277864.2
A180: =A179+1 -> 20 | B180: Industrial Adjustment | D180: =D160+D165+D170+D175 -> 4000 | E180: 4000 | F180: 500 | G180: -500 | H180: -700 | I180: -50 | J180: 0 | K180: 0 | L180: -50 | M180: 0 | N180: 2300 | O180: 4000 | P180: =SUM(D180:O180) -> 13500
A181: =A180+1 -> 21 | B181: Adjusted Volumes | D181: =SUM(D179:D180) -> 2268174.7 | E181: 2251846.4 | F181: 1781766.9 | G181: 970042.6 | H181: 469736.2 | I181: 277374.1 | J181: 189802.9 | K181: 186291.9 | L181: 206861.4 | M181: 309620 | N181: 726775.2 | O181: 1653071.9 | P181: =SUM(D181:O181) -> 11291364.2
A184: =A181+1 -> 22 | B184: Rate Schedule GTR - Residential
A185: =A184+1 -> 23 | B185: Volumes | D185: 212675.3 | E185: 214378.7 | F185: 164319.6 | G185: 95714.2 | H185: 41538.6 | I185: 20296.2 | J185: 10992.1 | K185: 11810.7 | L185: 13181.9 | M185: 24764.3 | N185: 64840.6 | O185: 148097.5 | P185: =SUM(D185:O185) -> 1022609.7
A186: =A185+1 -> 24 | B186: Industrial Adjustment | C186: (WPM-D) | D186: 0 | E186: 0 | F186: 0 | G186: 0 | H186: 0 | I186: 0 | J186: 0 | K186: 0 | L186: 0 | M186: 0 | N186: 0 | O186: 0 | P186: =SUM(D186:O186) -> 0
A187: =A186+1 -> 25 | B187: Adjusted Volumes | D187: =SUM(D185:D186) -> 212675.3 | E187: 214378.7 | F187: 164319.6 | G187: 95714.2 | H187: 41538.6 | I187: 20296.2 | J187: 10992.1 | K187: 11810.7 | L187: 13181.9 | M187: 24764.3 | N187: 64840.6 | O187: 148097.5 | P187: =SUM(D187:O187) -> 1022609.7
A189: =A187+1 -> 26 | B189: Rate Schedule GTO - Commercial
A190: =A189+1 -> 27 | B190: Volumes
A191: =A190+1 -> 28 | B191: First 50 Mcf | D191: 89918.2 | E191: 90045.7 | F191: 81475 | G191: 55183.9 | H191: 42704.6 | I191: 27100.2 | J191: 20573 | K191: 19647.1 | L191: 20361.4 | M191: 25159 | N191: 45291.2 | O191: 73567 | P191: =SUM(D191:O191) -> 591026.3
A192: =A191+1 -> 29 | B192: Next 350 Mcf | D192: 132725.3 | E192: 126451.3 | F192: 104252.8 | G192: 50775.8 | H192: 32530.3 | I192: 23049.4 | J192: 16342.5 | K192: 15042.4 | L192: 16572 | M192: 21101.2 | N192: 42393.8 | O192: 87220.1 | P192: =SUM(D192:O192) -> 668456.9
A193: =A192+1 -> 30 | B193: Next 600 Mcf | D193: 38854.6 | E193: 35384.4 | F193: 28835.4 | G193: 9699.6 | H193: 3903.4 | I193: 3727.8 | J193: 3354 | K193: 3243.8 | L193: 4678.6 | M193: 5004.7 | N193: 9489.5 | O193: 19791.4 | P193: =SUM(D193:O193) -> 165967.2
A194: =A193+1 -> 31 | B194: Over 1,000 Mcf | D194: 14396.1 | E194: 12237.7 | F194: 8399.3 | G194: 2143.3 | H194: 494.6 | I194: 316.5 | J194: 331.7 | K194: 630 | L194: 1176.4 | M194: 1193.1 | N194: 2542.8 | O194: 6955.7 | P194: =SUM(D194:O194) -> 50817.2
D195: =SUM(D191:D194) -> 275894.2 | E195: 264119.1 | F195: 222962.5 | G195: 117802.6 | H195: 79632.9 | I195: 54193.9 | J195: 40601.2 | K195: 38563.3 | L195: 42788.4 | M195: 52458 | N195: 99717.3 | O195: =SUM(O191:O194) -> 187534.2 | P195: =SUM(D195:O195) -> 1476267.6
A196: =A194+1 -> 32 | B196: Industrial Adjustment | C196: (WPM-D)
A197: =A196+1 -> 33 | B197: =B191 -> First 50 Mcf | D197: 0 | E197: 0 | F197: 0 | G197: 0 | H197: 0 | I197: 0 | J197: 0 | K197: 0 | L197: 0 | M197: 0 | N197: 0 | O197: 0 | P197: =SUM(D197:O197) -> 0
A198: =A197+1 -> 34 | B198: =B192 -> Next 350 Mcf | D198: 0 | E198: 0 | F198: 0 | G198: 0 | H198: 0 | I198: 0 | J198: 0 | K198: 0 | L198: 0 | M198: 0 | N198: 0 | O198: 0 | P198: =SUM(D198:O198) -> 0
A199: =A198+1 -> 35 | B199: =B193 -> Next 600 Mcf | D199: 0 | E199: 0 | F199: 0 | G199: 0 | H199: 0 | I199: 0 | J199: 0 | K199: 0 | L199: 0 | M199: 0 | N199: 0 | O199: 0 | P199: =SUM(D199:O199) -> 0
A200: =A199+1 -> 36 | B200: =B194 -> Over 1,000 Mcf | D200: 0 | E200: 0 | F200: 0 | G200: 0 | H200: 0 | I200: 0 | J200: 0 | K200: 0 | L200: 0 | M200: 0 | N200: 0 | O200: 0 | P200: =SUM(D200:O200) -> 0
D201: =SUM(D197:D200) -> 0 | E201: 0 | F201: 0 | G201: 0 | H201: 0 | I201: 0 | J201: 0 | K201: 0 | L201: 0 | M201: 0 | N201: 0 | O201: =SUM(O197:O200) -> 0 | P201: =SUM(D201:O201) -> 0
A202: =A200+1 -> 37 | B202: Adjusted Volumes
A203: =A202+1 -> 38 | B203: =B191 -> First 50 Mcf | D203: =D191+D197 -> 89918.2 | E203: =E191+E197 -> 90045.7 | F203: 81475 | G203: 55183.9 | H203: 42704.6 | I203: 27100.2 | J203: 20573 | K203: 19647.1 | L203: 20361.4 | M203: 25159 | N203: 45291.2 | O203: 73567 | P203: =SUM(D203:O203) -> 591026.3
A204: =A203+1 -> 39 | B204: =B192 -> Next 350 Mcf | D204: =D192+D198 -> 132725.3 | E204: 126451.3 | F204: 104252.8 | G204: 50775.8 | H204: 32530.3 | I204: 23049.4 | J204: 16342.5 | K204: 15042.4 | L204: 16572 | M204: 21101.2 | N204: 42393.8 | O204: 87220.1 | P204: =SUM(D204:O204) -> 668456.9
A205: =A204+1 -> 40 | B205: =B193 -> Next 600 Mcf | D205: 38854.6 | E205: 35384.4 | F205: 28835.4 | G205: 9699.6 | H205: 3903.4 | I205: 3727.8 | J205: 3354 | K205: 3243.8 | L205: 4678.6 | M205: 5004.7 | N205: 9489.5 | O205: 19791.4 | P205: =SUM(D205:O205) -> 165967.2
A206: =A205+1 -> 41 | B206: =B194 -> Over 1,000 Mcf | D206: 14396.1 | E206: 12237.7 | F206: 8399.3 | G206: 2143.3 | H206: 494.6 | I206: 316.5 | J206: 331.7 | K206: 630 | L206: 1176.4 | M206: 1193.1 | N206: 2542.8 | O206: 6955.7 | P206: =SUM(D206:O206) -> 50817.2
A207: =A206+1 -> 42 | B207: Adjusted Volumes | D207: =D195+D201 -> 275894.2 | E207: =E195+E201 -> 264119.1 | F207: 222962.5 | G207: 117802.6 | H207: 79632.9 | I207: 54193.9 | J207: 40601.2 | K207: 38563.3 | L207: 42788.4 | M207: 52458 | N207: 99717.3 | O207: 187534.2 | P207: =SUM(D207:O207) -> 1476267.6
A209: =CONAME -> Columbia Gas of Kentucky, Inc.
A210: Volumes (Mcf)
A211: =TYDESC -> For the 12 Months Ended December 31, 2022
A213: =$A$5 -> Data: __ Base Period_X_Forecasted Period | P213: =$P$5 -> Workpaper WPM-C.2
A214: =$A$6 -> Type of Filing: X Original _ Update _ Revised | P214: Sheet 5 of 8
A215: =$A$7 -> Work Paper Reference No(s):
A216: =$A$8 -> 12 Months Forecasted
A218: Line
A219: No. | B219: Description | C219: Reference | D219: =B!$D$11 -> Jan-22 | E219: =B!$E$11 -> Feb-22 | F219: =B!$F$11 -> Mar-22 | G219: =B!$G$11 -> Apr-22 | H219: =B!$H$11 -> May-22 | I219: =B!$I$11 -> Jun-22 | J219: =B!$J$11 -> Jul-22 | K219: =B!$K$11 -> Aug-22 | L219: =B!$L$11 -> Sep-22 | M219: =B!$M$11 -> Oct-22 | N219: =B!$N$11 -> Nov-22 | O219: =B!$O$11 -> Dec-22 | P219: Total
B220: (A) | C220: (B) | D220: (C) | E220: (D) | F220: (E) | G220: (F) | H220: (G) | I220: (H) | J220: (I) | K220: (J) | L220: (K) | M220: (L) | N220: (M) | O220: (N) | P220: (O)
A222: 1 | B222: Rate Schedule GTO - Industrial
A223: =A222+1 -> 2 | B223: Volumes
A224: =A223+1 -> 3 | B224: First 50 Mcf | D224: 489.2 | E224: 480.4 | F224: 500.9 | G224: 404.6 | H224: 401.7 | I224: 357 | J224: 329 | K224: 300.5 | L224: 286.9 | M224: 353.4 | N224: 434.5 | O224: 474 | P224: =SUM(D224:O224) -> 4812.1
A225: =A224+1 -> 4 | B225: Next 350 Mcf | D225: 2267 | E225: 2251.7 | F225: 2233.2 | G225: 1371.5 | H225: 1147.4 | I225: 938.6 | J225: 877.8 | K225: 1342.2 | L225: 1279.5 | M225: 1297.6 | N225: 1561.5 | O225: 2271.3 | P225: =SUM(D225:O225) -> 18839.3
A226: =A225+1 -> 5 | B226: Next 600 Mcf | D226: 1915.4 | E226: 1905.2 | F226: 2141.3 | G226: 644 | H226: 758.5 | I226: 600 | J226: 600 | K226: 648.9 | L226: 1247.9 | M226: 787.6 | N226: 1253.4 | O226: 1790.6 | P226: =SUM(D226:O226) -> 14292.8
A227: =A226+1 -> 6 | B227: Over 1,000 Mcf | D227: 468.4 | E227: 404.5 | F227: 814.6 | G227: 0 | H227: 180.8 | I227: 460.2 | J227: 573 | K227: 624.7 | L227: 35.2 | M227: 856.1 | N227: 724.1 | O227: 2001 | P227: =SUM(D227:O227) -> 7142.6
D228: =SUM(D224:D227) -> 5140 | E228: 5041.8 | F228: 5690 | G228: 2420.1 | H228: 2488.4 | I228: 2355.8 | J228: 2379.8 | K228: 2916.3 | L228: 2849.5 | M228: 3294.7 | N228: 3973.5 | O228: =SUM(O224:O227) -> 6536.9 | P228: =SUM(D228:O228) -> 45086.8
A229: =A227+1 -> 7 | B229: Industrial Adjustment | C229: (WPM-D)
A230: =A229+1 -> 8 | B230: =B224 -> First 50 Mcf | D230: 0 | E230: 0 | F230: 0 | G230: 0 | H230: 0 | I230: 0 | J230: 0 | K230: 0 | L230: 0 | M230: 0 | N230: 0 | O230: 0 | P230: =SUM(D230:O230) -> 0
A231: =A230+1 -> 9 | B231: =B225 -> Next 350 Mcf | D231: 0 | E231: 0 | F231: 0 | G231: 0 | H231: 0 | I231: 0 | J231: 0 | K231: 0 | L231: 0 | M231: 0 | N231: 0 | O231: 0 | P231: =SUM(D231:O231) -> 0
A232: =A231+1 -> 10 | B232: =B226 -> Next 600 Mcf | D232: 0 | E232: 0 | F232: 0 | G232: 0 | H232: 0 | I232: 0 | J232: 0 | K232: 0 | L232: 0 | M232: 0 | N232: 0 | O232: 0 | P232: =SUM(D232:O232) -> 0
A233: =A232+1 -> 11 | B233: =B227 -> Over 1,000 Mcf | D233: 0 | E233: 0 | F233: 0 | G233: 0 | H233: 0 | I233: 0 | J233: 0 | K233: 0 | L233: 0 | M233: 0 | N233: 0 | O233: 0 | P233: =SUM(D233:O233) -> 0
D234: =SUM(D230:D233) -> 0 | E234: 0 | F234: 0 | G234: 0 | H234: 0 | I234: 0 | J234: 0 | K234: 0 | L234: 0 | M234: 0 | N234: 0 | O234: =SUM(O230:O233) -> 0 | P234: =SUM(D234:O234) -> 0
A235: =A233+1 -> 12 | B235: Adjusted Volumes
A236: =A235+1 -> 13 | B236: =B224 -> First 50 Mcf | D236: =D224+D230 -> 489.2 | E236: =E224+E230 -> 480.4 | F236: 500.9 | G236: 404.6 | H236: 401.7 | I236: 357 | J236: 329 | K236: 300.5 | L236: 286.9 | M236: 353.4 | N236: 434.5 | O236: =O224+O230 -> 474 | P236: =SUM(D236:O236) -> 4812.1
A237: =A236+1 -> 14 | B237: =B225 -> Next 350 Mcf | D237: =D225+D231 -> 2267 | E237: 2251.7 | F237: 2233.2 | G237: 1371.5 | H237: 1147.4 | I237: 938.6 | J237: 877.8 | K237: 1342.2 | L237: 1279.5 | M237: 1297.6 | N237: 1561.5 | O237: =O225+O231 -> 2271.3 | P237: =SUM(D237:O237) -> 18839.3
A238: =A237+1 -> 15 | B238: =B226 -> Next 600 Mcf | D238: 1915.4 | E238: 1905.2 | F238: 2141.3 | G238: 644 | H238: 758.5 | I238: 600 | J238: 600 | K238: 648.9 | L238: 1247.9 | M238: 787.6 | N238: 1253.4 | O238: =O226+O232 -> 1790.6 | P238: =SUM(D238:O238) -> 14292.8
... 186 more rows

Sheet D pg 1
A1: =CONAME -> Columbia Gas of Kentucky, Inc.
A2: Adjustment to Test Year Bills and Mcf
A3: =TYDESC -> For the 12 Months Ended December 31, 2022
A5: Data: __ Base Period_X_Forecasted Period
A6: Type of Filing: X Original _ Update _ Revised
A7: Work Paper Reference No(s): | P7: Workpaper WPM-D.2
A8: 12 Months Forecasted | P8: Sheet 1 of 2
A10: Line
A11: No. | B11: Description | C11: Reference | D11: =B!$D$11 -> Jan-22 | E11: =B!$E$11 -> Feb-22 | F11: =B!$F$11 -> Mar-22 | G11: =B!$G$11 -> Apr-22 | H11: =B!$H$11 -> May-22 | I11: =B!$I$11 -> Jun-22 | J11: =B!$J$11 -> Jul-22 | K11: =B!$K$11 -> Aug-22 | L11: =B!$L$11 -> Sep-22 | M11: =B!$M$11 -> Oct-22 | N11: =B!$N$11 -> Nov-22 | O11: =B!$O$11 -> Dec-22 | P11: Total
B12: (A) | C12: (B) | D12: (C) | E12: (D) | F12: (E) | G12: (F) | H12: (G) | I12: (H) | J12: (I) | K12: (J) | L12: (K) | M12: (L) | N12: (M) | O12: (N) | P12: (O)
A14: 1 | B14: Large Com/Ind Customers
A16: =A14+1 -> 2 | B16: Rate Schedule GSO - Commercial | D16: 0 | E16: 0 | F16: 0 | G16: 0 | H16: 0 | I16: 0 | J16: 0 | K16: 0 | L16: 0 | M16: 0 | N16: 0 | O16: 0 | P16: =SUM(D16:O16) -> 0
A17: =A16+1 -> 3 | B17: Rate Schedule GSO - Industrial | D17: 0 | E17: 0 | F17: 0 | G17: 0 | H17: 0 | I17: 0 | J17: 0 | K17: 0 | L17: 0 | M17: 0 | N17: 0 | O17: 0 | P17: 0
A18: 4 | B18: Rate Schedule GDS - Commercial | D18: 0 | E18: 0 | F18: 0 | G18: 0 | H18: 0 | I18: 0 | J18: 0 | K18: 0 | L18: 0 | M18: 0 | N18: 0 | O18: 0 | P18: 0
A19: 5 | B19: Rate Schedule GDS - Industrial | D19: 0 | E19: 0 | F19: 0 | G19: 0 | H19: 0 | I19: 0 | J19: 0 | K19: 0 | L19: 0 | M19: 0 | N19: 0 | O19: 0 | P19: 0
A20: 6 | B20: Rate Schedule DS - Industrial | D20: 0 | E20: 0 | F20: 0 | G20: 0 | H20: 0 | I20: 0 | J20: 0 | K20: 0 | L20: 0 | M20: 0 | N20: 0 | O20: 0 | P20: 0
A21: 7 | B21: Rate Schedule SAS - Commercial | D21: 0 | E21: 0 | F21: 0 | G21: 0 | H21: 0 | I21: 0 | J21: 0 | K21: 0 | L21: 0 | M21: 0 | N21: 0 | O21: 0 | P21: 0
A22: 8 | B22: Adjusted Bills | D22: =SUM(D16:D21) -> 0 | E22: 0 | F22: 0 | G22: 0 | H22: 0 | I22: 0 | J22: 0 | K22: 0 | L22: 0 | M22: 0 | N22: 0 | O22: 0 | P22: 0
A24: =A22+1 -> 9 | B24: Total Adjusted Bills | D24: =D22 -> 0 | E24: 0 | F24: 0 | G24: 0 | H24: 0 | I24: 0 | J24: 0 | K24: 0 | L24: 0 | M24: 0 | N24: 0 | O24: 0 | P24: 0
A26: =A24+1 -> 10 | B26: Large Com/Ind Volumes
A28: =A26+1 -> 11 | B28: Rate Schedule GSO - Commercial
A29: =A28+1 -> 12 | B29: ='C'!B80 -> First 50 Mcf | D29: ='D pg 2'!F43 -> 0 | E29: ='D pg 2'!G43 -> 0 | F29: ='D pg 2'!H43 -> 0 | G29: ='D pg 2'!I43 -> 0 | H29: ='D pg 2'!J43 -> 0 | I29: ='D pg 2'!K43 -> 0 | J29: ='D pg 2'!L43 -> 0 | K29: ='D pg 2'!M43 -> 0 | L29: ='D pg 2'!N43 -> 0 | M29: ='D pg 2'!O43 -> 0 | N29: ='D pg 2'!P43 -> 0 | O29: ='D pg 2'!Q43 -> 0 | P29: =SUM(D29:O29) -> 0
A30: =A29+1 -> 13 | B30: ='C'!B81 -> Next 350 Mcf | D30: ='D pg 2'!F44 -> 0 | E30: ='D pg 2'!G44 -> 0 | F30: ='D pg 2'!H44 -> 0 | G30: ='D pg 2'!I44 -> 0 | H30: ='D pg 2'!J44 -> 0 | I30: ='D pg 2'!K44 -> 0 | J30: ='D pg 2'!L44 -> 0 | K30: ='D pg 2'!M44 -> 0 | L30: ='D pg 2'!N44 -> 0 | M30: ='D pg 2'!O44 -> 0 | N30: ='D pg 2'!P44 -> 0 | O30: ='D pg 2'!Q44 -> 0 | P30: =SUM(D30:O30) -> 0
A31: =A30+1 -> 14 | B31: ='C'!B82 -> Next 600 Mcf | D31: ='D pg 2'!F45 -> 0 | E31: ='D pg 2'!G45 -> 0 | F31: ='D pg 2'!H45 -> 0 | G31: ='D pg 2'!I45 -> 0 | H31: ='D pg 2'!J45 -> 0 | I31: ='D pg 2'!K45 -> 0 | J31: ='D pg 2'!L45 -> 0 | K31: ='D pg 2'!M45 -> 0 | L31: ='D pg 2'!N45 -> 0 | M31: ='D pg 2'!O45 -> 0 | N31: ='D pg 2'!P45 -> 0 | O31: ='D pg 2'!Q45 -> 0 | P31: =SUM(D31:O31) -> 0
A32: =A31+1 -> 15 | B32: ='C'!B83 -> Over 1,000 Mcf | D32: ='D pg 2'!F46 -> 0 | E32: ='D pg 2'!G46 -> 0 | F32: ='D pg 2'!H46 -> 0 | G32: ='D pg 2'!I46 -> 0 | H32: ='D pg 2'!J46 -> 0 | I32: ='D pg 2'!K46 -> 0 | J32: ='D pg 2'!L46 -> 0 | K32: ='D pg 2'!M46 -> 0 | L32: ='D pg 2'!N46 -> 0 | M32: ='D pg 2'!O46 -> 0 | N32: ='D pg 2'!P46 -> 0 | O32: ='D pg 2'!Q46 -> 0 | P32: =SUM(D32:O32) -> 0
A33: =A32+1 -> 16 | B33: Adjusted Volumes | D33: =SUM(D29:D32) -> 0 | E33: 0 | F33: 0 | G33: 0 | H33: 0 | I33: 0 | J33: 0 | K33: 0 | L33: 0 | M33: 0 | N33: 0 | O33: =SUM(O29:O32) -> 0 | P33: =SUM(D33:O33) -> 0
A35: =A33+1 -> 17 | B35: Rate Schedule GSO - Industrial
A36: =A35+1 -> 18 | B36: ='C'!B113 -> First 50 Mcf | D36: ='D pg 2'!F17+'D pg 2'!F25+'D pg 2'!F33 -> 0 | E36: ='D pg 2'!G17+'D pg 2'!G25+'D pg 2'!G33 -> 0 | F36: ='D pg 2'!H17+'D pg 2'!H25+'D pg 2'!H33 -> 0 | G36: ='D pg 2'!I17+'D pg 2'!I25+'D pg 2'!I33 -> 0 | H36: ='D pg 2'!J17+'D pg 2'!J25+'D pg 2'!J33 -> 0 | I36: ='D pg 2'!K17+'D pg 2'!K25+'D pg 2'!K33 -> -50 | J36: ='D pg 2'!L17+'D pg 2'!L25+'D pg 2'!L33 -> 0 | K36: ='D pg 2'!M17+'D pg 2'!M25+'D pg 2'!M33 -> 0 | L36: ='D pg 2'!N17+'D pg 2'!N25+'D pg 2'!N33 -> -50 | M36: ='D pg 2'!O17+'D pg 2'!O25+'D pg 2'!O33 -> 0 | N36: ='D pg 2'!P17+'D pg 2'!P25+'D pg 2'!P33 -> 0 | O36: ='D pg 2'!Q17+'D pg 2'!Q25+'D pg 2'!Q33 -> 0 | P36: =SUM(D36:O36) -> -100
A37: =A36+1 -> 19 | B37: ='C'!B114 -> Next 350 Mcf | D37: ='D pg 2'!F18+'D pg 2'!F26+'D pg 2'!F34 -> 0 | E37: ='D pg 2'!G18+'D pg 2'!G26+'D pg 2'!G34 -> 0 | F37: ='D pg 2'!H18+'D pg 2'!H26+'D pg 2'!H34 -> 0 | G37: ='D pg 2'!I18+'D pg 2'!I26+'D pg 2'!I34 -> 0 | H37: ='D pg 2'!J18+'D pg 2'!J26+'D pg 2'!J34 -> -100 | I37: ='D pg 2'!K18+'D pg 2'!K26+'D pg 2'!K34 -> 0 | J37: ='D pg 2'!L18+'D pg 2'!L26+'D pg 2'!L34 -> 0 | K37: ='D pg 2'!M18+'D pg 2'!M26+'D pg 2'!M34 -> 0 | L37: ='D pg 2'!N18+'D pg 2'!N26+'D pg 2'!N34 -> 0 | M37: ='D pg 2'!O18+'D pg 2'!O26+'D pg 2'!O34 -> 0 | N37: ='D pg 2'!P18+'D pg 2'!P26+'D pg 2'!P34 -> 0 | O37: ='D pg 2'!Q18+'D pg 2'!Q26+'D pg 2'!Q34 -> 0 | P37: =SUM(D37:O37) -> -100
A38: =A37+1 -> 20 | B38: ='C'!B115 -> Next 600 Mcf | D38: ='D pg 2'!F19+'D pg 2'!F27+'D pg 2'!F35 -> 0 | E38: ='D pg 2'!G19+'D pg 2'!G27+'D pg 2'!G35 -> 0 | F38: ='D pg 2'!H19+'D pg 2'!H27+'D pg 2'!H35 -> 0 | G38: ='D pg 2'!I19+'D pg 2'!I27+'D pg 2'!I35 -> -500 | H38: ='D pg 2'!J19+'D pg 2'!J27+'D pg 2'!J35 -> -600 | I38: ='D pg 2'!K19+'D pg 2'!K27+'D pg 2'!K35 -> 0 | J38: ='D pg 2'!L19+'D pg 2'!L27+'D pg 2'!L35 -> 0 | K38: ='D pg 2'!M19+'D pg 2'!M27+'D pg 2'!M35 -> 0 | L38: ='D pg 2'!N19+'D pg 2'!N27+'D pg 2'!N35 -> 0 | M38: ='D pg 2'!O19+'D pg 2'!O27+'D pg 2'!O35 -> 0 | N38: ='D pg 2'!P19+'D pg 2'!P27+'D pg 2'!P35 -> 100 | O38: ='D pg 2'!Q19+'D pg 2'!Q27+'D pg 2'!Q35 -> 0 | P38: =SUM(D38:O38) -> -1000
A39: =A38+1 -> 21 | B39: ='C'!B116 -> Over 1,000 Mcf | D39: ='D pg 2'!F20+'D pg 2'!F28+'D pg 2'!F36 -> 4000 | E39: ='D pg 2'!G20+'D pg 2'!G28+'D pg 2'!G36 -> 4000 | F39: ='D pg 2'!H20+'D pg 2'!H28+'D pg 2'!H36 -> 500 | G39: ='D pg 2'!I20+'D pg 2'!I28+'D pg 2'!I36 -> 0 | H39: ='D pg 2'!J20+'D pg 2'!J28+'D pg 2'!J36 -> 0 | I39: ='D pg 2'!K20+'D pg 2'!K28+'D pg 2'!K36 -> 0 | J39: ='D pg 2'!L20+'D pg 2'!L28+'D pg 2'!L36 -> 0 | K39: ='D pg 2'!M20+'D pg 2'!M28+'D pg 2'!M36 -> 0 | L39: ='D pg 2'!N20+'D pg 2'!N28+'D pg 2'!N36 -> 0 | M39: ='D pg 2'!O20+'D pg 2'!O28+'D pg 2'!O36 -> 0 | N39: ='D pg 2'!P20+'D pg 2'!P28+'D pg 2'!P36 -> 2200 | O39: ='D pg 2'!Q20+'D pg 2'!Q28+'D pg 2'!Q36 -> 4000 | P39: =SUM(D39:O39) -> 14700
A40: =A39+1 -> 22 | B40: Adjusted Volumes | D40: =SUM(D36:D39) -> 4000 | E40: 4000 | F40: 500 | G40: -500 | H40: -700 | I40: -50 | J40: 0 | K40: 0 | L40: -50 | M40: 0 | N40: 2300 | O40: =SUM(O36:O39) -> 4000 | P40: =SUM(D40:O40) -> 13500
A42: =A40+1 -> 23 | B42: Rate Schedule GDS - Commercial
A43: =A42+1 -> 24 | B43: ='C'!B291 -> First 50 Mcf | D43: 0 | E43: 0 | F43: 0 | G43: 0 | H43: 0 | I43: 0 | J43: 0 | K43: 0 | L43: 0 | M43: 0 | N43: 0 | O43: 0 | P43: =SUM(D43:O43) -> 0
A44: =A43+1 -> 25 | B44: ='C'!B292 -> Next 350 Mcf | D44: 0 | E44: 0 | F44: 0 | G44: 0 | H44: 0 | I44: 0 | J44: 0 | K44: 0 | L44: 0 | M44: 0 | N44: 0 | O44: 0 | P44: =SUM(D44:O44) -> 0
A45: =A44+1 -> 26 | B45: ='C'!B293 -> Next 600 Mcf | D45: 0 | E45: 0 | F45: 0 | G45: 0 | H45: 0 | I45: 0 | J45: 0 | K45: 0 | L45: 0 | M45: 0 | N45: 0 | O45: 0 | P45: =SUM(D45:O45) -> 0
A46: =A45+1 -> 27 | B46: ='C'!B294 -> Over 1,000 Mcf | D46: 0 | E46: 0 | F46: 0 | G46: 0 | H46: 0 | I46: 0 | J46: 0 | K46: 0 | L46: 0 | M46: 0 | N46: 0 | O46: 0 | P46: =SUM(D46:O46) -> 0
A47: =A46+1 -> 28 | B47: Adjusted Volumes | D47: =SUM(D43:D46) -> 0 | E47: 0 | F47: 0 | G47: 0 | H47: 0 | I47: 0 | J47: 0 | K47: 0 | L47: 0 | M47: 0 | N47: 0 | O47: =SUM(O43:O46) -> 0 | P47: =SUM(D47:O47) -> 0
A49: =A47+1 -> 29 | B49: Rate Schedule GDS - Industrial
A50: =A49+1 -> 30 | B50: ='C'!B311 -> First 50 Mcf | D50: 0 | E50: 0 | F50: 0 | G50: 0 | H50: 0 | I50: 0 | J50: 0 | K50: 0 | L50: 0 | M50: 0 | N50: 0 | O50: 0 | P50: =SUM(D50:O50) -> 0
A51: =A50+1 -> 31 | B51: ='C'!B312 -> Next 350 Mcf | D51: 0 | E51: 0 | F51: 0 | G51: 0 | H51: 0 | I51: 0 | J51: 0 | K51: 0 | L51: 0 | M51: 0 | N51: 0 | O51: 0 | P51: =SUM(D51:O51) -> 0
A52: =A51+1 -> 32 | B52: ='C'!B313 -> Next 600 Mcf | D52: 0 | E52: 0 | F52: 0 | G52: 0 | H52: 0 | I52: 0 | J52: 0 | K52: 0 | L52: 0 | M52: 0 | N52: 0 | O52: 0 | P52: =SUM(D52:O52) -> 0
A53: =A52+1 -> 33 | B53: ='C'!B314 -> Over 1,000 Mcf | D53: 0 | E53: 0 | F53: 0 | G53: 0 | H53: 0 | I53: 0 | J53: 0 | K53: 0 | L53: 0 | M53: 0 | N53: 0 | O53: 0 | P53: =SUM(D53:O53) -> 0
A54: =A53+1 -> 34 | B54: Adjusted Volumes | D54: =SUM(D50:D53) -> 0 | E54: 0 | F54: 0 | G54: 0 | H54: 0 | I54: 0 | J54: 0 | K54: 0 | L54: 0 | M54: 0 | N54: 0 | O54: =SUM(O50:O53) -> 0 | P54: =SUM(D54:O54) -> 0
A56: =A54+1 -> 35 | B56: Rate Schedule DS - Industrial
A57: =A56+1 -> 36 | B57: ='C'!B261 -> First 30,000 Mcf | D57: ='D pg 2'!F59 -> 0 | E57: ='D pg 2'!G59 -> 0 | F57: ='D pg 2'!H59 -> 0 | G57: ='D pg 2'!I59 -> 0 | H57: ='D pg 2'!J59 -> 0 | I57: ='D pg 2'!K59 -> 0 | J57: ='D pg 2'!L59 -> 0 | K57: ='D pg 2'!M59 -> 0 | L57: ='D pg 2'!N59 -> 0 | M57: ='D pg 2'!O59 -> 0 | N57: ='D pg 2'!P59 -> 0 | O57: ='D pg 2'!Q59 -> 0 | P57: =SUM(D57:O57) -> 0
A58: =A57+1 -> 37 | B58: ='C'!B262 -> Next 70,000 Mcf | D58: ='D pg 2'!F60 -> 0 | E58: ='D pg 2'!G60 -> 0 | F58: ='D pg 2'!H60 -> 0 | G58: ='D pg 2'!I60 -> 0 | H58: ='D pg 2'!J60 -> 0 | I58: ='D pg 2'!K60 -> 0 | J58: ='D pg 2'!L60 -> 0 | K58: ='D pg 2'!M60 -> 0 | L58: ='D pg 2'!N60 -> 0 | M58: ='D pg 2'!O60 -> 0 | N58: ='D pg 2'!P60 -> 0 | O58: ='D pg 2'!Q60 -> 0 | P58: =SUM(D58:O58) -> 0
A59: =A58+1 -> 38 | B59: ='C'!B263 -> Over 100,000 Mcf | D59: ='D pg 2'!F61 -> 0 | E59: ='D pg 2'!G61 -> 0 | F59: ='D pg 2'!H61 -> 0 | G59: ='D pg 2'!I61 -> 0 | H59: ='D pg 2'!J61 -> 0 | I59: ='D pg 2'!K61 -> 0 | J59: ='D pg 2'!L61 -> 0 | K59: ='D pg 2'!M61 -> 0 | L59: ='D pg 2'!N61 -> 0 | M59: ='D pg 2'!O61 -> 0 | N59: ='D pg 2'!P61 -> 0 | O59: ='D pg 2'!Q61 -> 0 | P59: =SUM(D59:O59) -> 0
A60: 39 | B60: Adjusted Volumes | D60: =SUM(D57:D59) -> 0 | E60: =SUM(E57:E59) -> 0 | F60: 0 | G60: 0 | H60: 0 | I60: 0 | J60: 0 | K60: 0 | L60: 0 | M60: 0 | N60: 0 | O60: 0 | P60: =SUM(D60:O60) -> 0
A62: =A60+1 -> 40 | B62: Rate Schedule SC3 - Industrial
A63: =A62+1 -> 41 | B63: Next 150,000 Mcf | D63: ='D pg 2'!F53 -> 0 | E63: ='D pg 2'!G53 -> 0 | F63: ='D pg 2'!H53 -> 0 | G63: ='D pg 2'!I53 -> 0 | H63: ='D pg 2'!J53 -> 0 | I63: ='D pg 2'!K53 -> 0 | J63: ='D pg 2'!L53 -> 0 | K63: ='D pg 2'!M53 -> 0 | L63: ='D pg 2'!N53 -> 0 | M63: ='D pg 2'!O53 -> 0 | N63: ='D pg 2'!P53 -> 0 | O63: ='D pg 2'!Q53 -> 0 | P63: =SUM(D63:O63) -> 0
A64: =A63+1 -> 42 | B64: Over 150,000 Mcf | D64: ='D pg 2'!F54 -> 0 | E64: ='D pg 2'!G54 -> 0 | F64: ='D pg 2'!H54 -> 0 | G64: ='D pg 2'!I54 -> 0 | H64: ='D pg 2'!J54 -> 0 | I64: ='D pg 2'!K54 -> 0 | J64: ='D pg 2'!L54 -> 0 | K64: ='D pg 2'!M54 -> 0 | L64: ='D pg 2'!N54 -> 0 | M64: ='D pg 2'!O54 -> 0 | N64: ='D pg 2'!P54 -> 0 | O64: ='D pg 2'!Q54 -> 0 | P64: =SUM(D64:O64) -> 0
A65: =A64+1 -> 43 | B65: Adjusted Volumes | D65: =SUM(D63:D64) -> 0 | E65: 0 | F65: 0 | G65: 0 | H65: 0 | I65: 0 | J65: 0 | K65: 0 | L65: 0 | M65: 0 | N65: 0 | O65: =SUM(O63:O64) -> 0 | P65: =SUM(D65:O65) -> 0
A67: =A65+1 -> 44 | B67: Total Adjusted Volumes | D67: =D33+D40+D60+D47+D65+D54 -> 4000 | E67: =E33+E40+E60+E47+E65+E54 -> 4000 | F67: 500 | G67: -500 | H67: -700 | I67: -50 | J67: 0 | K67: 0 | L67: -50 | M67: 0 | N67: 2300 | O67: 4000 | P67: =SUM(D67:O67) -> 13500

Sheet D pg 2
A1: =CONAME -> Columbia Gas of Kentucky, Inc.
A2: Adjustment to Bills and Mcf Generated By Industrial Customers
A3: =TYDESC -> For the 12 Months Ended December 31, 2022
R5: ='D pg 1'!$P$7 -> Workpaper WPM-D.2
D6: Mo | R6: Sheet 2 of 2
D7: Service
A8: Line | C8: Rate | D8: Began/ | E8: Incremental
A9: No. | B9: Acct No. | C9: Schedule | D9: Terminated | E9: Bills | F9: =B!$D$11 -> Jan-22 | G9: =B!$E$11 -> Feb-22 | H9: =B!$F$11 -> Mar-22 | I9: =B!$G$11 -> Apr-22 | J9: =B!$H$11 -> May-22 | K9: =B!$I$11 -> Jun-22 | L9: =B!$J$11 -> Jul-22 | M9: =B!$K$11 -> Aug-22 | N9: =B!$L$11 -> Sep-22 | O9: =B!$M$11 -> Oct-22 | P9: =B!$N$11 -> Nov-22 | Q9: =B!$O$11 -> Dec-22 | R9: Total
F10: (Mcf) | G10: (Mcf) | H10: (Mcf) | I10: (Mcf) | J10: (Mcf) | K10: (Mcf) | L10: (Mcf) | M10: (Mcf) | N10: (Mcf) | O10: (Mcf) | P10: (Mcf) | Q10: (Mcf) | R10: (Mcf)
A12: 1 | B12: Customers who have significant usage change between January 1, 2022 and December 31, 2022
A14: =A12+1 -> 2 | B14: 20813023-001 | C14: GSO-ind
A15: =A14+1 -> 3 | B15: Test Year Volumes | F15: 2000 | G15: 2000 | H15: 1500 | I15: 1200 | J15: 800 | K15: 50 | L15: 0 | M15: 0 | N15: 50 | O15: 800 | P15: 900 | Q15: 1500 | R15: =SUM(F15:Q15) -> 10800
A17: =A15+1 -> 4 | B17: Additional Volumes (First 50 Mcf) | E17: 0 | F17: 0 | G17: 0 | H17: 0 | I17: 0 | J17: 0 | K17: =-K15 -> -50 | L17: 0 | M17: 0 | N17: =-N15 -> -50 | O17: 0 | P17: 0 | Q17: 0 | R17: =SUM(F17:Q17) -> -100
A18: =A17+1 -> 5 | B18: Additional Volumes (Next 350 Mcf) | F18: 0 | G18: 0 | H18: 0 | I18: 0 | J18: -100 | K18: 0 | L18: 0 | M18: 0 | N18: 0 | O18: 0 | P18: 0 | Q18: 0 | R18: =SUM(F18:Q18) -> -100
A19: =A18+1 -> 6 | B19: Additional Volumes (Next 600 Mcf) | F19: 0 | G19: 0 | H19: 0 | I19: -500 | J19: -600 | K19: 0 | L19: 0 | M19: 0 | N19: 0 | O19: 0 | P19: 100 | Q19: 0 | R19: =SUM(F19:Q19) -> -1000
A20: =A19+1 -> 7 | B20: Additional Volumes (Over 1,000 Mcf) | F20: 4000 | G20: 4000 | H20: 500 | I20: 0 | J20: 0 | K20: 0 | L20: 0 | M20: 0 | N20: 0 | O20: 0 | P20: 2200 | Q20: 4000 | R20: =SUM(F20:Q20) -> 14700
A22: =A20+1 -> 8 | C22: GSO-ind
A23: =A22+1 -> 9 | B23: Test Year Volumes | F23: 0 | G23: 0 | H23: 0 | I23: 0 | J23: 0 | K23: 0 | L23: 0 | M23: 0 | N23: 0 | O23: 0 | P23: 0 | Q23: 0 | R23: =SUM(F23:Q23) -> 0
A25: =A23+1 -> 10 | B25: Additional Volumes (First 50 Mcf) | F25: 0 | G25: 0 | H25: 0 | I25: 0 | J25: 0 | K25: 0 | L25: 0 | M25: 0 | N25: 0 | O25: 0 | P25: 0 | Q25: 0 | R25: =SUM(F25:Q25) -> 0
A26: =A25+1 -> 11 | B26: Additional Volumes (Next 350 Mcf) | F26: 0 | G26: 0 | H26: 0 | I26: 0 | J26: 0 | K26: 0 | L26: 0 | M26: 0 | N26: 0 | O26: 0 | P26: 0 | Q26: 0 | R26: =SUM(F26:Q26) -> 0
A27: =A26+1 -> 12 | B27: Additional Volumes (Next 600 Mcf) | F27: 0 | G27: 0 | H27: 0 | I27: 0 | J27: 0 | K27: 0 | L27: 0 | M27: 0 | N27: 0 | O27: 0 | P27: 0 | Q27: 0 | R27: =SUM(F27:Q27) -> 0
A28: =A27+1 -> 13 | B28: Additional Volumes (Over 1,000 Mcf) | F28: 0 | G28: 0 | H28: 0 | I28: 0 | J28: 0 | K28: 0 | L28: 0 | M28: 0 | N28: 0 | O28: 0 | P28: 0 | Q28: 0 | R28: =SUM(F28:Q28) -> 0
A30: =A28+1 -> 14 | C30: GSO-ind
A31: =A30+1 -> 15 | B31: Test Year Volumes | F31: 0 | G31: 0 | H31: 0 | I31: 0 | J31: 0 | K31: 0 | L31: 0 | M31: 0 | N31: 0 | O31: 0 | P31: 0 | Q31: 0 | R31: =SUM(F31:Q31) -> 0
A33: =A31+1 -> 16 | B33: Additional Volumes (First 50 Mcf) | E33: 0 | F33: 0 | G33: 0 | H33: 0 | I33: 0 | J33: 0 | K33: 0 | L33: 0 | M33: 0 | N33: 0 | O33: 0 | P33: 0 | Q33: 0 | R33: =SUM(F33:Q33) -> 0
A34: =A33+1 -> 17 | B34: Additional Volumes (Next 350 Mcf) | F34: 0 | G34: 0 | H34: 0 | I34: 0 | J34: 0 | K34: 0 | L34: 0 | M34: 0 | N34: 0 | O34: 0 | P34: 0 | Q34: 0 | R34: =SUM(F34:Q34) -> 0
A35: =A34+1 -> 18 | B35: Additional Volumes (Next 600 Mcf) | F35: 0 | G35: 0 | H35: 0 | I35: 0 | J35: 0 | K35: 0 | L35: 0 | M35: 0 | N35: 0 | O35: 0 | P35: 0 | Q35: 0 | R35: =SUM(F35:Q35) -> 0
A36: =A35+1 -> 19 | B36: Additional Volumes (Over 1,000 Mcf) | F36: 0 | G36: 0 | H36: 0 | I36: 0 | J36: 0 | K36: 0 | L36: 0 | M36: 0 | N36: 0 | O36: 0 | P36: 0 | Q36: 0 | R36: =SUM(F36:Q36) -> 0
A38: =A28+1 -> 14 | B38: Customers who have become inactive between January 1, 2022 and and December 31, 2022
A40: =A38+1 -> 15 | C40: GSO-Com
A41: =A40+1 -> 16 | B41: Test Year Volumes | F41: 0 | G41: 0 | H41: 0 | I41: 0 | J41: 0 | K41: 0 | L41: 0 | M41: 0 | N41: 0 | O41: 0 | P41: 0 | Q41: 0 | R41: =SUM(F41:Q41) -> 0
A43: =A41+1 -> 17 | B43: Additional Volumes (First 50 Mcf) | E43: 0 | F43: 0 | G43: 0 | H43: 0 | I43: 0 | J43: 0 | K43: 0 | L43: 0 | M43: 0 | N43: 0 | O43: 0 | P43: 0 | Q43: 0 | R43: =SUM(F43:Q43) -> 0
A44: =A43+1 -> 18 | B44: Additional Volumes (Next 350 Mcf) | F44: 0 | G44: 0 | H44: 0 | I44: 0 | J44: 0 | K44: 0 | L44: 0 | M44: 0 | N44: 0 | O44: 0 | P44: 0 | Q44: 0 | R44: =SUM(F44:Q44) -> 0
A45: =A44+1 -> 19 | B45: Additional Volumes (Next 600 Mcf) | F45: 0 | G45: 0 | H45: 0 | I45: 0 | J45: 0 | K45: 0 | L45: 0 | M45: 0 | N45: 0 | O45: 0 | P45: 0 | Q45: 0 | R45: =SUM(F45:Q45) -> 0
A46: =A45+1 -> 20 | B46: Additional Volumes (Over 1,000 Mcf) | F46: 0 | G46: 0 | H46: 0 | I46: 0 | J46: 0 | K46: 0 | L46: 0 | M46: 0 | N46: 0 | O46: 0 | P46: 0 | Q46: 0 | R46: =SUM(F46:Q46) -> 0
A48: =A46+1 -> 21 | B48: Customers who have significant usage change between January 1, 2022 and December 31, 2022
A50: =A48+1 -> 22 | C50: SC3-Ind
A51: =A50+1 -> 23 | B51: Test Year Volumes | F51: 0 | G51: 0 | H51: 0 | I51: 0 | J51: 0 | K51: 0 | L51: 0 | M51: 0 | N51: 0 | O51: 0 | P51: 0 | Q51: 0 | R51: =SUM(F51:Q51) -> 0
A53: =A51+1 -> 24 | B53: First 150,000 Mcf | F53: 0 | G53: 0 | H53: 0 | I53: 0 | J53: 0 | K53: 0 | L53: 0 | M53: 0 | N53: 0 | O53: 0 | P53: 0 | Q53: 0
A54: =A53+1 -> 25 | B54: Over 150,000 Mcf | F54: 0 | G54: 0 | H54: 0 | I54: 0 | J54: 0 | K54: 0 | L54: 0 | M54: 0 | N54: 0 | O54: 0 | P54: 0 | Q54: 0
A56: =A54+1 -> 26 | C56: DS-Ind
A57: =A56+1 -> 27 | B57: Test Year Volumes | F57: 0 | G57: 0 | H57: 0 | I57: 0 | J57: 0 | K57: 0 | L57: 0 | M57: 0 | N57: 0 | O57: 0 | P57: 0 | Q57: 0 | R57: =SUM(F57:Q57) -> 0
A59: =A57+1 -> 28 | B59: First 30,000 Mcf | F59: 0 | G59: 0 | H59: 0 | I59: 0 | J59: 0 | K59: 0 | L59: 0 | M59: 0 | N59: 0 | O59: 0 | P59: 0 | Q59: 0 | R59: =SUM(F59:Q59) -> 0
A60: =A59+1 -> 29 | B60: Next 70,000 Mcf | F60: 0 | G60: 0 | H60: 0 | I60: 0 | J60: 0 | K60: 0 | L60: 0 | M60: 0 | N60: 0 | O60: 0 | P60: 0 | Q60: 0 | R60: =SUM(F60:Q60) -> 0
A61: =A60+1 -> 30 | B61: Over 100,000 Mcf | F61: 0 | G61: 0 | H61: 0 | I61: 0 | J61: 0 | K61: 0 | L61: 0 | M61: 0 | N61: 0 | O61: 0 | P61: 0 | Q61: 0 | R61: =SUM(F61:Q61) -> 0

Sheet Sch M
A1: Columbia Gas of Kentucky, Inc.
A2: ='Sch M 2.1'!A2:J2 -> Case No. 2021-00183
A3: Revenues At Present and Proposed Rates
A4: For the 12 Months Ended December 31, 2022
A5: (Gas Service)
A6: Data: __ Base Period _X_Forecasted Period
A7: Type of Filing: _ Original _ Update X Revised | O7: Schedule M
A8: Work Paper Reference No(s): | O8: Page 1 of 2
A9: 12 Months Forecasted | O9: =Witness -> Witness: Judith L. Siegler
A11: Current Annualized
A13: Line
A14: No. | B14: Description | C14: =B!$D$11 -> Jan-22 | D14: =B!$E$11 -> Feb-22 | E14: =B!$F$11 -> Mar-22 | F14: =B!$G$11 -> Apr-22 | G14: =B!$H$11 -> May-22 | H14: =B!$I$11 -> Jun-22 | I14: =B!$J$11 -> Jul-22 | J14: =B!$K$11 -> Aug-22 | K14: =B!$L$11 -> Sep-22 | L14: =B!$M$11 -> Oct-22 | M14: =B!$N$11 -> Nov-22 | N14: =B!$O$11 -> Dec-22 | O14: Total
A16: 1 | B16: Revenue by Customer Class
A18: =A16+1 -> 2 | B18: Residential Sales | C18: ='Sch M 2.2'!E70+'Sch M 2.2'!E84+'Sch M 2.2'!E91+'Sch M 2.2'!E98+'Sch M 2.2'!E105+'Sch M 2.2'!E134+'Sch M 2.2'!E148+'Sch M 2.2'!E155 -> 14003405.96 | D18: ='Sch M 2.2'!F70+'Sch M 2.2'!F84+'Sch M 2.2'!F91+'Sch M 2.2'!F98+'Sch M 2.2'!F105+'Sch M 2.2'!F134+'Sch M 2.2'!F148+'Sch M 2.2'!F155 -> 14150754.74 | E18: ='Sch M 2.2'!G70+'Sch M 2.2'!G84+'Sch M 2.2'!G91+'Sch M 2.2'!G98+'Sch M 2.2'!G105+'Sch M 2.2'!G134+'Sch M 2.2'!G148+'Sch M 2.2'!G155 -> 11564943.44 | F18: ='Sch M 2.2'!H70+'Sch M 2.2'!H84+'Sch M 2.2'!H91+'Sch M 2.2'!H98+'Sch M 2.2'!H105+'Sch M 2.2'!H134+'Sch M 2.2'!H148+'Sch M 2.2'!H155 -> 7681028.7 | G18: ='Sch M 2.2'!I70+'Sch M 2.2'!I84+'Sch M 2.2'!I91+'Sch M 2.2'!I98+'Sch M 2.2'!I105+'Sch M 2.2'!I134+'Sch M 2.2'!I148+'Sch M 2.2'!I155 -> 4737325.11 | H18: ='Sch M 2.2'!J70+'Sch M 2.2'!J84+'Sch M 2.2'!J91+'Sch M 2.2'!J98+'Sch M 2.2'!J105+'Sch M 2.2'!J134+'Sch M 2.2'!J148+'Sch M 2.2'!J155 -> 3667117.08 | I18: ='Sch M 2.2'!K70+'Sch M 2.2'!K84+'Sch M 2.2'!K91+'Sch M 2.2'!K98+'Sch M 2.2'!K105+'Sch M 2.2'!K134+'Sch M 2.2'!K148+'Sch M 2.2'!K155 -> 3164177.9 | J18: ='Sch M 2.2'!L70+'Sch M 2.2'!L84+'Sch M 2.2'!L91+'Sch M 2.2'!L98+'Sch M 2.2'!L105+'Sch M 2.2'!L134+'Sch M 2.2'!L148+'Sch M 2.2'!L155 -> 3194751.32 | K18: ='Sch M 2.2'!M70+'Sch M 2.2'!M84+'Sch M 2.2'!M91+'Sch M 2.2'!M98+'Sch M 2.2'!M105+'Sch M 2.2'!M134+'Sch M 2.2'!M148+'Sch M 2.2'!M155 -> 3296831.08 | L18: ='Sch M 2.2'!N70+'Sch M 2.2'!N84+'Sch M 2.2'!N91+'Sch M 2.2'!N98+'Sch M 2.2'!N105+'Sch M 2.2'!N134+'Sch M 2.2'!N148+'Sch M 2.2'!N155 -> 3881651.79 | M18: ='Sch M 2.2'!O70+'Sch M 2.2'!O84+'Sch M 2.2'!O91+'Sch M 2.2'!O98+'Sch M 2.2'!O105+'Sch M 2.2'!O134+'Sch M 2.2'!O148+'Sch M 2.2'!O155 -> 6103552.16 | N18: ='Sch M 2.2'!P70+'Sch M 2.2'!P84+'Sch M 2.2'!P91+'Sch M 2.2'!P98+'Sch M 2.2'!P105+'Sch M 2.2'!P134+'Sch M 2.2'!P148+'Sch M 2.2'!P155 -> 11011604.37 | O18: =SUM(C18:N18) -> 86457143.65
A19: =A18+1 -> 3 | B19: Commercial Sales | C19: ='Sch M 2.2'!E77+'Sch M 2.2'!E141+'Sch M 2.2'!E162 -> 5814405.24 | D19: ='Sch M 2.2'!F77+'Sch M 2.2'!F141+'Sch M 2.2'!F162 -> 5611699.55 | E19: ='Sch M 2.2'!G77+'Sch M 2.2'!G141+'Sch M 2.2'!G162 -> 4812188.84 | F19: ='Sch M 2.2'!H77+'Sch M 2.2'!H141+'Sch M 2.2'!H162 -> 2846262.69 | G19: ='Sch M 2.2'!I77+'Sch M 2.2'!I141+'Sch M 2.2'!I162 -> 2021938.09 | H19: ='Sch M 2.2'!J77+'Sch M 2.2'!J141+'Sch M 2.2'!J162 -> 1643802.65 | I19: ='Sch M 2.2'!K77+'Sch M 2.2'!K141+'Sch M 2.2'!K162 -> 1487627.94 | J19: ='Sch M 2.2'!L77+'Sch M 2.2'!L141+'Sch M 2.2'!L162 -> 1418210.08 | K19: ='Sch M 2.2'!M77+'Sch M 2.2'!M141+'Sch M 2.2'!M162 -> 1452060.19 | L19: ='Sch M 2.2'!N77+'Sch M 2.2'!N141+'Sch M 2.2'!N162 -> 1612033.53 | M19: ='Sch M 2.2'!O77+'Sch M 2.2'!O141+'Sch M 2.2'!O162 -> 2442356.9 | N19: ='Sch M 2.2'!P77+'Sch M 2.2'!P141+'Sch M 2.2'!P162 -> 4365175.83 | O19: =SUM(C19:N19) -> 35527761.53
A20: =A19+1 -> 4 | B20: Industrial Sales | C20: ='Sch M 2.2'!E190+'Sch M 2.2'!E197 -> 315104.38 | D20: ='Sch M 2.2'!F190+'Sch M 2.2'!F197 -> 300854.96 | E20: ='Sch M 2.2'!G190+'Sch M 2.2'!G197 -> 201858.77 | F20: ='Sch M 2.2'!H190+'Sch M 2.2'!H197 -> 69158.96 | G20: ='Sch M 2.2'!I190+'Sch M 2.2'!I197 -> 68327.17 | H20: ='Sch M 2.2'!J190+'Sch M 2.2'!J197 -> 49612.07 | I20: ='Sch M 2.2'!K190+'Sch M 2.2'!K197 -> 43295.06 | J20: ='Sch M 2.2'!L190+'Sch M 2.2'!L197 -> 55455.28 | K20: ='Sch M 2.2'!M190+'Sch M 2.2'!M197 -> 62138.11 | L20: ='Sch M 2.2'!N190+'Sch M 2.2'!N197 -> 89887.8 | M20: ='Sch M 2.2'!O190+'Sch M 2.2'!O197 -> 181975.04 | N20: ='Sch M 2.2'!P190+'Sch M 2.2'!P197 -> 266433.88 | O20: =SUM(C20:N20) -> 1704101.48
A21: =A20+1 -> 5 | B21: Public Utilities | C21: ='Sch M 2.2'!E204 -> 12147.65 | D21: ='Sch M 2.2'!F204 -> 10696.54 | E21: ='Sch M 2.2'!G204 -> 11666.13 | F21: ='Sch M 2.2'!H204 -> 5455.57 | G21: ='Sch M 2.2'!I204 -> 4701.32 | H21: ='Sch M 2.2'!J204 -> 4227.99 | I21: ='Sch M 2.2'!K204 -> 3418 | J21: ='Sch M 2.2'!L204 -> 3608.74 | K21: ='Sch M 2.2'!M204 -> 3224.51 | L21: ='Sch M 2.2'!N204 -> 4624.8 | M21: ='Sch M 2.2'!O204 -> 6667.29 | N21: ='Sch M 2.2'!P204 -> 9660.8 | O21: =SUM(C21:N21) -> 80099.34
A22: =A21+1 -> 6 | B22: Total Sales | C22: =SUM(C18:C21) -> 20145063.23 | D22: 20074005.79 | E22: 16590657.18 | F22: 10601905.92 | G22: 6832291.69 | H22: 5364759.79 | I22: 4698518.9 | J22: 4672025.42 | K22: 4814253.89 | L22: 5588197.92 | M22: 8734551.39 | N22: =SUM(N18:N21) -> 15652874.88 | O22: 123769106
A24: =A22+1 -> 7 | B24: Transportation | C24: ='Sch M 2.2'!E232+'Sch M 2.2'!E239+'Sch M 2.2'!E246+'Sch M 2.2'!E253+'Sch M 2.2'!E260+'Sch M 2.2'!E267+'Sch M 2.2'!E294+'Sch M 2.2'!E301+'Sch M 2.2'!E308+'Sch M 2.2'!E315+'Sch M 2.2'!E322+'Sch M 2.2'!E329+'Sch M 2.2'!E356+'Sch M 2.2'!E363 -> 2864677.81 | D24: ='Sch M 2.2'!F232+'Sch M 2.2'!F239+'Sch M 2.2'!F246+'Sch M 2.2'!F253+'Sch M 2.2'!F260+'Sch M 2.2'!F267+'Sch M 2.2'!F294+'Sch M 2.2'!F301+'Sch M 2.2'!F308+'Sch M 2.2'!F315+'Sch M 2.2'!F322+'Sch M 2.2'!F329+'Sch M 2.2'!F356+'Sch M 2.2'!F363 -> 2784903.45 | E24: ='Sch M 2.2'!G232+'Sch M 2.2'!G239+'Sch M 2.2'!G246+'Sch M 2.2'!G253+'Sch M 2.2'!G260+'Sch M 2.2'!G267+'Sch M 2.2'!G294+'Sch M 2.2'!G301+'Sch M 2.2'!G308+'Sch M 2.2'!G315+'Sch M 2.2'!G322+'Sch M 2.2'!G329+'Sch M 2.2'!G356+'Sch M 2.2'!G363 -> 2474547.86 | F24: ='Sch M 2.2'!H232+'Sch M 2.2'!H239+'Sch M 2.2'!H246+'Sch M 2.2'!H253+'Sch M 2.2'!H260+'Sch M 2.2'!H267+'Sch M 2.2'!H294+'Sch M 2.2'!H301+'Sch M 2.2'!H308+'Sch M 2.2'!H315+'Sch M 2.2'!H322+'Sch M 2.2'!H329+'Sch M 2.2'!H356+'Sch M 2.2'!H363 -> 1929795.82 | G24: ='Sch M 2.2'!I232+'Sch M 2.2'!I239+'Sch M 2.2'!I246+'Sch M 2.2'!I253+'Sch M 2.2'!I260+'Sch M 2.2'!I267+'Sch M 2.2'!I294+'Sch M 2.2'!I301+'Sch M 2.2'!I308+'Sch M 2.2'!I315+'Sch M 2.2'!I322+'Sch M 2.2'!I329+'Sch M 2.2'!I356+'Sch M 2.2'!I363 -> 1543168.87 | H24: ='Sch M 2.2'!J232+'Sch M 2.2'!J239+'Sch M 2.2'!J246+'Sch M 2.2'!J253+'Sch M 2.2'!J260+'Sch M 2.2'!J267+'Sch M 2.2'!J294+'Sch M 2.2'!J301+'Sch M 2.2'!J308+'Sch M 2.2'!J315+'Sch M 2.2'!J322+'Sch M 2.2'!J329+'Sch M 2.2'!J356+'Sch M 2.2'!J363 -> 1354927.72 | I24: ='Sch M 2.2'!K232+'Sch M 2.2'!K239+'Sch M 2.2'!K246+'Sch M 2.2'!K253+'Sch M 2.2'!K260+'Sch M 2.2'!K267+'Sch M 2.2'!K294+'Sch M 2.2'!K301+'Sch M 2.2'!K308+'Sch M 2.2'!K315+'Sch M 2.2'!K322+'Sch M 2.2'!K329+'Sch M 2.2'!K356+'Sch M 2.2'!K363 -> 1259133.99 | J24: ='Sch M 2.2'!L232+'Sch M 2.2'!L239+'Sch M 2.2'!L246+'Sch M 2.2'!L253+'Sch M 2.2'!L260+'Sch M 2.2'!L267+'Sch M 2.2'!L294+'Sch M 2.2'!L301+'Sch M 2.2'!L308+'Sch M 2.2'!L315+'Sch M 2.2'!L322+'Sch M 2.2'!L329+'Sch M 2.2'!L356+'Sch M 2.2'!L363 -> 1312608.45 | K24: ='Sch M 2.2'!M232+'Sch M 2.2'!M239+'Sch M 2.2'!M246+'Sch M 2.2'!M253+'Sch M 2.2'!M260+'Sch M 2.2'!M267+'Sch M 2.2'!M294+'Sch M 2.2'!M301+'Sch M 2.2'!M308+'Sch M 2.2'!M315+'Sch M 2.2'!M322+'Sch M 2.2'!M329+'Sch M 2.2'!M356+'Sch M 2.2'!M363 -> 1330636.7 | L24: ='Sch M 2.2'!N232+'Sch M 2.2'!N239+'Sch M 2.2'!N246+'Sch M 2.2'!N253+'Sch M 2.2'!N260+'Sch M 2.2'!N267+'Sch M 2.2'!N294+'Sch M 2.2'!N301+'Sch M 2.2'!N308+'Sch M 2.2'!N315+'Sch M 2.2'!N322+'Sch M 2.2'!N329+'Sch M 2.2'!N356+'Sch M 2.2'!N363 -> 1455934.6 | M24: ='Sch M 2.2'!O232+'Sch M 2.2'!O239+'Sch M 2.2'!O246+'Sch M 2.2'!O253+'Sch M 2.2'!O260+'Sch M 2.2'!O267+'Sch M 2.2'!O294+'Sch M 2.2'!O301+'Sch M 2.2'!O308+'Sch M 2.2'!O315+'Sch M 2.2'!O322+'Sch M 2.2'!O329+'Sch M 2.2'!O356+'Sch M 2.2'!O363 -> 1813185.74 | N24: ='Sch M 2.2'!P232+'Sch M 2.2'!P239+'Sch M 2.2'!P246+'Sch M 2.2'!P253+'Sch M 2.2'!P260+'Sch M 2.2'!P267+'Sch M 2.2'!P294+'Sch M 2.2'!P301+'Sch M 2.2'!P308+'Sch M 2.2'!P315+'Sch M 2.2'!P322+'Sch M 2.2'!P329+'Sch M 2.2'!P356+'Sch M 2.2'!P363 -> 2401581.94 | O24: =SUM(C24:N24) -> 22525102.95
A25: =A24+1 -> 8 | B25: Other Revenue | C25: ='Sch M 2.2'!E375 -> 110318.21 | D25: ='Sch M 2.2'!F375 -> 194201.9433 | E25: ='Sch M 2.2'!G375 -> 124741.9 | F25: ='Sch M 2.2'!H375 -> 80553.95667 | G25: ='Sch M 2.2'!I375 -> 62435.4 | H25: ='Sch M 2.2'!J375 -> 49465.01 | I25: ='Sch M 2.2'!K375 -> 57765.13333 | J25: ='Sch M 2.2'!L375 -> 48124.90333 | K25: ='Sch M 2.2'!M375 -> 104327.2767 | L25: ='Sch M 2.2'!N375 -> 184659.93 | M25: ='Sch M 2.2'!O375 -> 66738.14333 | N25: ='Sch M 2.2'!P375 -> 144221.6133 | O25: =SUM(C25:N25) -> 1227553.42
Q26: Check to 2.1
A27: =A25+1 -> 9 | B27: Total Operating Revenues | C27: =C22+C24+C25 -> 23120059.25 | D27: 23053111.18 | E27: 19189946.94 | F27: 12612255.7 | G27: 8437895.96 | H27: 6769152.52 | I27: 6015418.023 | J27: 6032758.773 | K27: 6249217.867 | L27: 7228792.45 | M27: 10614475.27 | N27: =N22+N24+N25 -> 18198678.43 | O27: =SUM(C27:N27) -> 147521762.4 | Q27: ='Sch M 2.1'!E63 -> 147521762.4 | R27: =O27-Q27 -> 0
A28: =A27+1 -> 10 | B28: Gas Cost Revenue | C28: ='Sch M 2.2'!E69+'Sch M 2.2'!E76+'Sch M 2.2'!E83+'Sch M 2.2'!E90+'Sch M 2.2'!E97+'Sch M 2.2'!E104+'Sch M 2.2'!E133+'Sch M 2.2'!E140+'Sch M 2.2'!E147+'Sch M 2.2'!E154+'Sch M 2.2'!E161+'Sch M 2.2'!E189+'Sch M 2.2'!E196+'Sch M 2.2'!E203 -> 9947919.96 | D28: ='Sch M 2.2'!F69+'Sch M 2.2'!F76+'Sch M 2.2'!F83+'Sch M 2.2'!F90+'Sch M 2.2'!F97+'Sch M 2.2'!F104+'Sch M 2.2'!F133+'Sch M 2.2'!F140+'Sch M 2.2'!F147+'Sch M 2.2'!F154+'Sch M 2.2'!F161+'Sch M 2.2'!F189+'Sch M 2.2'!F196+'Sch M 2.2'!F203 -> 9876423.72 | E28: ='Sch M 2.2'!G69+'Sch M 2.2'!G76+'Sch M 2.2'!G83+'Sch M 2.2'!G90+'Sch M 2.2'!G97+'Sch M 2.2'!G104+'Sch M 2.2'!G133+'Sch M 2.2'!G140+'Sch M 2.2'!G147+'Sch M 2.2'!G154+'Sch M 2.2'!G161+'Sch M 2.2'!G189+'Sch M 2.2'!G196+'Sch M 2.2'!G203 -> 7814590.29 | F28: ='Sch M 2.2'!H69+'Sch M 2.2'!H76+'Sch M 2.2'!H83+'Sch M 2.2'!H90+'Sch M 2.2'!H97+'Sch M 2.2'!H104+'Sch M 2.2'!H133+'Sch M 2.2'!H140+'Sch M 2.2'!H147+'Sch M 2.2'!H154+'Sch M 2.2'!H161+'Sch M 2.2'!H189+'Sch M 2.2'!H196+'Sch M 2.2'!H203 -> 4254207.27 | G28: ='Sch M 2.2'!I69+'Sch M 2.2'!I76+'Sch M 2.2'!I83+'Sch M 2.2'!I90+'Sch M 2.2'!I97+'Sch M 2.2'!I104+'Sch M 2.2'!I133+'Sch M 2.2'!I140+'Sch M 2.2'!I147+'Sch M 2.2'!I154+'Sch M 2.2'!I161+'Sch M 2.2'!I189+'Sch M 2.2'!I196+'Sch M 2.2'!I203 -> 2060219.44 | H28: ='Sch M 2.2'!J69+'Sch M 2.2'!J76+'Sch M 2.2'!J83+'Sch M 2.2'!J90+'Sch M 2.2'!J97+'Sch M 2.2'!J104+'Sch M 2.2'!J133+'Sch M 2.2'!J140+'Sch M 2.2'!J147+'Sch M 2.2'!J154+'Sch M 2.2'!J161+'Sch M 2.2'!J189+'Sch M 2.2'!J196+'Sch M 2.2'!J203 -> 1216667.32 | I28: ='Sch M 2.2'!K69+'Sch M 2.2'!K76+'Sch M 2.2'!K83+'Sch M 2.2'!K90+'Sch M 2.2'!K97+'Sch M 2.2'!K104+'Sch M 2.2'!K133+'Sch M 2.2'!K140+'Sch M 2.2'!K147+'Sch M 2.2'!K154+'Sch M 2.2'!K161+'Sch M 2.2'!K189+'Sch M 2.2'!K196+'Sch M 2.2'!K203 -> 832536.78 | J28: ='Sch M 2.2'!L69+'Sch M 2.2'!L76+'Sch M 2.2'!L83+'Sch M 2.2'!L90+'Sch M 2.2'!L97+'Sch M 2.2'!L104+'Sch M 2.2'!L133+'Sch M 2.2'!L140+'Sch M 2.2'!L147+'Sch M 2.2'!L154+'Sch M 2.2'!L161+'Sch M 2.2'!L189+'Sch M 2.2'!L196+'Sch M 2.2'!L203 -> 817096.73 | K28: ='Sch M 2.2'!M69+'Sch M 2.2'!M76+'Sch M 2.2'!M83+'Sch M 2.2'!M90+'Sch M 2.2'!M97+'Sch M 2.2'!M104+'Sch M 2.2'!M133+'Sch M 2.2'!M140+'Sch M 2.2'!M147+'Sch M 2.2'!M154+'Sch M 2.2'!M161+'Sch M 2.2'!M189+'Sch M 2.2'!M196+'Sch M 2.2'!M203 -> 907222.39 | L28: ='Sch M 2.2'!N69+'Sch M 2.2'!N76+'Sch M 2.2'!N83+'Sch M 2.2'!N90+'Sch M 2.2'!N97+'Sch M 2.2'!N104+'Sch M 2.2'!N133+'Sch M 2.2'!N140+'Sch M 2.2'!N147+'Sch M 2.2'!N154+'Sch M 2.2'!N161+'Sch M 2.2'!N189+'Sch M 2.2'!N196+'Sch M 2.2'!N203 -> 1357773.88 | M28: ='Sch M 2.2'!O69+'Sch M 2.2'!O76+'Sch M 2.2'!O83+'Sch M 2.2'!O90+'Sch M 2.2'!O97+'Sch M 2.2'!O104+'Sch M 2.2'!O133+'Sch M 2.2'!O140+'Sch M 2.2'!O147+'Sch M 2.2'!O154+'Sch M 2.2'!O161+'Sch M 2.2'!O189+'Sch M 2.2'!O196+'Sch M 2.2'!O203 -> 3187224.38 | N28: ='Sch M 2.2'!P69+'Sch M 2.2'!P76+'Sch M 2.2'!P83+'Sch M 2.2'!P90+'Sch M 2.2'!P97+'Sch M 2.2'!P104+'Sch M 2.2'!P133+'Sch M 2.2'!P140+'Sch M 2.2'!P147+'Sch M 2.2'!P154+'Sch M 2.2'!P161+'Sch M 2.2'!P189+'Sch M 2.2'!P196+'Sch M 2.2'!P203 -> 7249845.21 | O28: =SUM(C28:N28) -> 49521727.37
A30: =A28+1 -> 11 | B30: Total Revenue (Excluding Gas Cost) | C30: =C27-C28 -> 13172139.29 | D30: 13176687.46 | E30: 11375356.65 | F30: 8358048.427 | G30: 6377676.52 | H30: 5552485.2 | I30: 5182881.243 | J30: 5215662.043 | K30: 5341995.477 | L30: 5871018.57 | M30: 7427250.893 | N30: 10948833.22 | O30: 98000035
A33: =A30+1 -> 12 | B33: Mcf by Customer Class
A35: =A33+1 -> 13 | B35: Residential Sales | C35: ='Sch M 2.2'!E67+'Sch M 2.2'!E81+'Sch M 2.2'!E88+'Sch M 2.2'!E95+'Sch M 2.2'!E102+'Sch M 2.2'!E131+'Sch M 2.2'!E145+'Sch M 2.2'!E152 -> 1484734 | D35: ='Sch M 2.2'!F67+'Sch M 2.2'!F81+'Sch M 2.2'!F88+'Sch M 2.2'!F95+'Sch M 2.2'!F102+'Sch M 2.2'!F131+'Sch M 2.2'!F145+'Sch M 2.2'!F152 -> 1503002.6 | E35: ='Sch M 2.2'!G67+'Sch M 2.2'!G81+'Sch M 2.2'!G88+'Sch M 2.2'!G95+'Sch M 2.2'!G102+'Sch M 2.2'!G131+'Sch M 2.2'!G145+'Sch M 2.2'!G152 -> 1166691.1 | F35: ='Sch M 2.2'!H67+'Sch M 2.2'!H81+'Sch M 2.2'!H88+'Sch M 2.2'!H95+'Sch M 2.2'!H102+'Sch M 2.2'!H131+'Sch M 2.2'!H145+'Sch M 2.2'!H152 -> 665313.5 | G35: ='Sch M 2.2'!I67+'Sch M 2.2'!I81+'Sch M 2.2'!I88+'Sch M 2.2'!I95+'Sch M 2.2'!I102+'Sch M 2.2'!I131+'Sch M 2.2'!I145+'Sch M 2.2'!I152 -> 285090.9 | H35: ='Sch M 2.2'!J67+'Sch M 2.2'!J81+'Sch M 2.2'!J88+'Sch M 2.2'!J95+'Sch M 2.2'!J102+'Sch M 2.2'!J131+'Sch M 2.2'!J145+'Sch M 2.2'!J152 -> 148204.3 | I35: ='Sch M 2.2'!K67+'Sch M 2.2'!K81+'Sch M 2.2'!K88+'Sch M 2.2'!K95+'Sch M 2.2'!K102+'Sch M 2.2'!K131+'Sch M 2.2'!K145+'Sch M 2.2'!K152 -> 83409.8 | J35: ='Sch M 2.2'!L67+'Sch M 2.2'!L81+'Sch M 2.2'!L88+'Sch M 2.2'!L95+'Sch M 2.2'!L102+'Sch M 2.2'!L131+'Sch M 2.2'!L145+'Sch M 2.2'!L152 -> 87653.7 | K35: ='Sch M 2.2'!M67+'Sch M 2.2'!M81+'Sch M 2.2'!M88+'Sch M 2.2'!M95+'Sch M 2.2'!M102+'Sch M 2.2'!M131+'Sch M 2.2'!M145+'Sch M 2.2'!M152 -> 102271 | L35: ='Sch M 2.2'!N67+'Sch M 2.2'!N81+'Sch M 2.2'!N88+'Sch M 2.2'!N95+'Sch M 2.2'!N102+'Sch M 2.2'!N131+'Sch M 2.2'!N145+'Sch M 2.2'!N152 -> 177788.4 | M35: ='Sch M 2.2'!O67+'Sch M 2.2'!O81+'Sch M 2.2'!O88+'Sch M 2.2'!O95+'Sch M 2.2'!O102+'Sch M 2.2'!O131+'Sch M 2.2'!O145+'Sch M 2.2'!O152 -> 461844.6 | N35: ='Sch M 2.2'!P67+'Sch M 2.2'!P81+'Sch M 2.2'!P88+'Sch M 2.2'!P95+'Sch M 2.2'!P102+'Sch M 2.2'!P131+'Sch M 2.2'!P145+'Sch M 2.2'!P152 -> 1094130.6 | O35: =SUM(C35:N35) -> 7260134.5
A36: =A35+1 -> 14 | B36: Commercial Sales | C36: ='Sch M 2.2'!E74+'Sch M 2.2'!E138+'Sch M 2.2'!E159 -> 733043 | D36: ='Sch M 2.2'!F74+'Sch M 2.2'!F138+'Sch M 2.2'!F159 -> 700984 | E36: ='Sch M 2.2'!G74+'Sch M 2.2'!G138+'Sch M 2.2'!G159 -> 582736.8 | F36: ='Sch M 2.2'!H74+'Sch M 2.2'!H138+'Sch M 2.2'!H159 -> 294143 | G36: ='Sch M 2.2'!I74+'Sch M 2.2'!I138+'Sch M 2.2'!I159 -> 174296.9 | H36: ='Sch M 2.2'!J74+'Sch M 2.2'!J138+'Sch M 2.2'!J159 -> 121730.5 | I36: ='Sch M 2.2'!K74+'Sch M 2.2'!K138+'Sch M 2.2'!K159 -> 100026.3 | J36: ='Sch M 2.2'!L74+'Sch M 2.2'!L138+'Sch M 2.2'!L159 -> 90381.5 | K36: ='Sch M 2.2'!M74+'Sch M 2.2'!M138+'Sch M 2.2'!M159 -> 95393.8 | L36: ='Sch M 2.2'!N74+'Sch M 2.2'!N138+'Sch M 2.2'!N159 -> 118125.7 | M36: ='Sch M 2.2'!O74+'Sch M 2.2'!O138+'Sch M 2.2'!O159 -> 236468.7 | N36: ='Sch M 2.2'!P74+'Sch M 2.2'!P138+'Sch M 2.2'!P159 -> 516678.9 | O36: =SUM(C36:N36) -> 3764009.1
A37: =A36+1 -> 15 | B37: Industrial Sales | C37: ='Sch M 2.2'!E187+'Sch M 2.2'!E194 -> 48458.8 | D37: ='Sch M 2.2'!F187+'Sch M 2.2'!F194 -> 46186.4 | E37: ='Sch M 2.2'!G187+'Sch M 2.2'!G194 -> 30488.2 | F37: ='Sch M 2.2'!H187+'Sch M 2.2'!H194 -> 9871.6 | G37: ='Sch M 2.2'!I187+'Sch M 2.2'!I194 -> 9771.9 | H37: ='Sch M 2.2'!J187+'Sch M 2.2'!J194 -> 6949.4 | I37: ='Sch M 2.2'!K187+'Sch M 2.2'!K194 -> 6025.1 | J37: ='Sch M 2.2'!L187+'Sch M 2.2'!L194 -> 7880.1 | K37: ='Sch M 2.2'!M187+'Sch M 2.2'!M194 -> 8890.3 | L37: ='Sch M 2.2'!N187+'Sch M 2.2'!N194 -> 13143.4 | M37: ='Sch M 2.2'!O187+'Sch M 2.2'!O194 -> 27525.7 | N37: ='Sch M 2.2'!P187+'Sch M 2.2'!P194 -> 40778.5 | O37: =SUM(C37:N37) -> 255969.4
A38: =A37+1 -> 16 | B38: Public Utilities | C38: ='Sch M 2.2'!E201 -> 1938.9 | D38: ='Sch M 2.2'!F201 -> 1673.4 | E38: ='Sch M 2.2'!G201 -> 1850.8 | F38: ='Sch M 2.2'!H201 -> 714.5 | G38: ='Sch M 2.2'!I201 -> 576.5 | H38: ='Sch M 2.2'!J201 -> 489.9 | I38: ='Sch M 2.2'!K201 -> 341.7 | J38: ='Sch M 2.2'!L201 -> 376.6 | K38: ='Sch M 2.2'!M201 -> 306.3 | L38: ='Sch M 2.2'!N201 -> 562.5 | M38: ='Sch M 2.2'!O201 -> 936.2 | N38: ='Sch M 2.2'!P201 -> 1483.9 | O38: =SUM(C38:N38) -> 11251.2
A39: =A38+1 -> 17 | B39: Total Sales | C39: =SUM(C35:C38) -> 2268174.7 | D39: 2251846.4 | E39: 1781766.9 | F39: 970042.6 | G39: 469736.2 | H39: 277374.1 | I39: 189802.9 | J39: 186291.9 | K39: 206861.4 | L39: 309620 | M39: 726775.2 | N39: =SUM(N35:N38) -> 1653071.9 | O39: =SUM(O35:O38) -> 11291364.2
A41: =A39+1 -> 18 | B41: Transportation | C41: ='Sch M 2.2'!E229+'Sch M 2.2'!E236+'Sch M 2.2'!E243+'Sch M 2.2'!E250+'Sch M 2.2'!E257+'Sch M 2.2'!E264+'Sch M 2.2'!E291+'Sch M 2.2'!E298+'Sch M 2.2'!E305+'Sch M 2.2'!E312+'Sch M 2.2'!E319+'Sch M 2.2'!E326+'Sch M 2.2'!E353+'Sch M 2.2'!E360 -> 2339232.8 | D41: ='Sch M 2.2'!F229+'Sch M 2.2'!F236+'Sch M 2.2'!F243+'Sch M 2.2'!F250+'Sch M 2.2'!F257+'Sch M 2.2'!F264+'Sch M 2.2'!F291+'Sch M 2.2'!F298+'Sch M 2.2'!F305+'Sch M 2.2'!F312+'Sch M 2.2'!F319+'Sch M 2.2'!F326+'Sch M 2.2'!F353+'Sch M 2.2'!F360 -> 2091281.1 | E41: ='Sch M 2.2'!G229+'Sch M 2.2'!G236+'Sch M 2.2'!G243+'Sch M 2.2'!G250+'Sch M 2.2'!G257+'Sch M 2.2'!G264+'Sch M 2.2'!G291+'Sch M 2.2'!G298+'Sch M 2.2'!G305+'Sch M 2.2'!G312+'Sch M 2.2'!G319+'Sch M 2.2'!G326+'Sch M 2.2'!G353+'Sch M 2.2'!G360 -> 1996731.3 | F41: ='Sch M 2.2'!H229+'Sch M 2.2'!H236+'Sch M 2.2'!H243+'Sch M 2.2'!H250+'Sch M 2.2'!H257+'Sch M 2.2'!H264+'Sch M 2.2'!H291+'Sch M 2.2'!H298+'Sch M 2.2'!H305+'Sch M 2.2'!H312+'Sch M 2.2'!H319+'Sch M 2.2'!H326+'Sch M 2.2'!H353+'Sch M 2.2'!H360 -> 1573935.3 | G41: ='Sch M 2.2'!I229+'Sch M 2.2'!I236+'Sch M 2.2'!I243+'Sch M 2.2'!I250+'Sch M 2.2'!I257+'Sch M 2.2'!I264+'Sch M 2.2'!I291+'Sch M 2.2'!I298+'Sch M 2.2'!I305+'Sch M 2.2'!I312+'Sch M 2.2'!I319+'Sch M 2.2'!I326+'Sch M 2.2'!I353+'Sch M 2.2'!I360 -> 1226545.8 | H41: ='Sch M 2.2'!J229+'Sch M 2.2'!J236+'Sch M 2.2'!J243+'Sch M 2.2'!J250+'Sch M 2.2'!J257+'Sch M 2.2'!J264+'Sch M 2.2'!J291+'Sch M 2.2'!J298+'Sch M 2.2'!J305+'Sch M 2.2'!J312+'Sch M 2.2'!J319+'Sch M 2.2'!J326+'Sch M 2.2'!J353+'Sch M 2.2'!J360 -> 1064967.4 | I41: ='Sch M 2.2'!K229+'Sch M 2.2'!K236+'Sch M 2.2'!K243+'Sch M 2.2'!K250+'Sch M 2.2'!K257+'Sch M 2.2'!K264+'Sch M 2.2'!K291+'Sch M 2.2'!K298+'Sch M 2.2'!K305+'Sch M 2.2'!K312+'Sch M 2.2'!K319+'Sch M 2.2'!K326+'Sch M 2.2'!K353+'Sch M 2.2'!K360 -> 1009219.9 | J41: ='Sch M 2.2'!L229+'Sch M 2.2'!L236+'Sch M 2.2'!L243+'Sch M 2.2'!L250+'Sch M 2.2'!L257+'Sch M 2.2'!L264+'Sch M 2.2'!L291+'Sch M 2.2'!L298+'Sch M 2.2'!L305+'Sch M 2.2'!L312+'Sch M 2.2'!L319+'Sch M 2.2'!L326+'Sch M 2.2'!L353+'Sch M 2.2'!L360 -> 1131965.7 | K41: ='Sch M 2.2'!M229+'Sch M 2.2'!M236+'Sch M 2.2'!M243+'Sch M 2.2'!M250+'Sch M 2.2'!M257+'Sch M 2.2'!M264+'Sch M 2.2'!M291+'Sch M 2.2'!M298+'Sch M 2.2'!M305+'Sch M 2.2'!M312+'Sch M 2.2'!M319+'Sch M 2.2'!M326+'Sch M 2.2'!M353+'Sch M 2.2'!M360 -> 1203775.7 | L41: ='Sch M 2.2'!N229+'Sch M 2.2'!N236+'Sch M 2.2'!N243+'Sch M 2.2'!N250+'Sch M 2.2'!N257+'Sch M 2.2'!N264+'Sch M 2.2'!N291+'Sch M 2.2'!N298+'Sch M 2.2'!N305+'Sch M 2.2'!N312+'Sch M 2.2'!N319+'Sch M 2.2'!N326+'Sch M 2.2'!N353+'Sch M 2.2'!N360 -> 1470532.1 | M41: ='Sch M 2.2'!O229+'Sch M 2.2'!O236+'Sch M 2.2'!O243+'Sch M 2.2'!O250+'Sch M 2.2'!O257+'Sch M 2.2'!O264+'Sch M 2.2'!O291+'Sch M 2.2'!O298+'Sch M 2.2'!O305+'Sch M 2.2'!O312+'Sch M 2.2'!O319+'Sch M 2.2'!O326+'Sch M 2.2'!O353+'Sch M 2.2'!O360 -> 1764884.4 | N41: ='Sch M 2.2'!P229+'Sch M 2.2'!P236+'Sch M 2.2'!P243+'Sch M 2.2'!P250+'Sch M 2.2'!P257+'Sch M 2.2'!P264+'Sch M 2.2'!P291+'Sch M 2.2'!P298+'Sch M 2.2'!P305+'Sch M 2.2'!P312+'Sch M 2.2'!P319+'Sch M 2.2'!P326+'Sch M 2.2'!P353+'Sch M 2.2'!P360 -> 2123734.7 | O41: =SUM(C41:N41) -> 18996806.2
Q42: Check to 2.1
A43: =A41+1 -> 19 | B43: Total Volumes | C43: =C39+C41 -> 4607407.5 | D43: 4343127.5 | E43: 3778498.2 | F43: 2543977.9 | G43: 1696282 | H43: 1342341.5 | I43: 1199022.8 | J43: 1318257.6 | K43: 1410637.1 | L43: 1780152.1 | M43: 2491659.6 | N43: =N39+N41 -> 3776806.6 | O43: =SUM(C43:N43) -> 30288170.4 | Q43: ='Sch M 2.1'!D51 -> 30288170.4 | R43: =O43-Q43 -> 0
A49: Columbia Gas of Kentucky, Inc.
A50: =A2 -> Case No. 2021-00183
A51: Revenues At Present and Proposed Rates
A52: =A4 -> For the 12 Months Ended December 31, 2022
A53: (Gas Service)
A54: Data: __ Base Period _X_Forecasted Period
A55: =A7 -> Type of Filing: _ Original _ Update X Revised | O55: Schedule M
A56: Work Paper Reference No(s): | O56: Page 2 of 2
A57: 12 Months Forecasted | O57: =O9 -> Witness: Judith L. Siegler
A59: Proposed Annualized
A61: Line
A62: No. | B62: Description | C62: =B!$D$11 -> Jan-22 | D62: =B!$E$11 -> Feb-22 | E62: =B!$F$11 -> Mar-22 | F62: =B!$G$11 -> Apr-22 | G62: =B!$H$11 -> May-22 | H62: =B!$I$11 -> Jun-22 | I62: =B!$J$11 -> Jul-22 | J62: =B!$K$11 -> Aug-22 | K62: =B!$L$11 -> Sep-22 | L62: =B!$M$11 -> Oct-22 | M62: =B!$N$11 -> Nov-22 | N62: Dec-17 | O62: Total
A64: 1 | B64: Revenue by Customer Class
A66: =A64+1 -> 2 | B66: Residential Sales | C66: ='Sch M 2.3'!E69+'Sch M 2.3'!E83+'Sch M 2.3'!E90+'Sch M 2.3'!E97+'Sch M 2.3'!E104+'Sch M 2.3'!E131+'Sch M 2.3'!E145+'Sch M 2.3'!E152 -> 16618728.29 | D66: ='Sch M 2.3'!F69+'Sch M 2.3'!F83+'Sch M 2.3'!F90+'Sch M 2.3'!F97+'Sch M 2.3'!F104+'Sch M 2.3'!F131+'Sch M 2.3'!F145+'Sch M 2.3'!F152 -> 16801446.02 | E66: ='Sch M 2.3'!G69+'Sch M 2.3'!G83+'Sch M 2.3'!G90+'Sch M 2.3'!G97+'Sch M 2.3'!G104+'Sch M 2.3'!G131+'Sch M 2.3'!G145+'Sch M 2.3'!G152 -> 13550440.43 | F66: ='Sch M 2.3'!H69+'Sch M 2.3'!H83+'Sch M 2.3'!H90+'Sch M 2.3'!H97+'Sch M 2.3'!H104+'Sch M 2.3'!H131+'Sch M 2.3'!H145+'Sch M 2.3'!H152 -> 8678425.29 | G66: ='Sch M 2.3'!I69+'Sch M 2.3'!I83+'Sch M 2.3'!I90+'Sch M 2.3'!I97+'Sch M 2.3'!I104+'Sch M 2.3'!I131+'Sch M 2.3'!I145+'Sch M 2.3'!I152 -> 4985431.4 | H66: ='Sch M 2.3'!J69+'Sch M 2.3'!J83+'Sch M 2.3'!J90+'Sch M 2.3'!J97+'Sch M 2.3'!J104+'Sch M 2.3'!J131+'Sch M 2.3'!J145+'Sch M 2.3'!J152 -> 3646778.7 | I66: ='Sch M 2.3'!K69+'Sch M 2.3'!K83+'Sch M 2.3'!K90+'Sch M 2.3'!K97+'Sch M 2.3'!K104+'Sch M 2.3'!K131+'Sch M 2.3'!K145+'Sch M 2.3'!K152 -> 3016246.15 | J66: ='Sch M 2.3'!L69+'Sch M 2.3'!L83+'Sch M 2.3'!L90+'Sch M 2.3'!L97+'Sch M 2.3'!L104+'Sch M 2.3'!L131+'Sch M 2.3'!L145+'Sch M 2.3'!L152 -> 3055447.95 | K66: ='Sch M 2.3'!M69+'Sch M 2.3'!M83+'Sch M 2.3'!M90+'Sch M 2.3'!M97+'Sch M 2.3'!M104+'Sch M 2.3'!M131+'Sch M 2.3'!M145+'Sch M 2.3'!M152 -> 3187655.61 | L66: ='Sch M 2.3'!N69+'Sch M 2.3'!N83+'Sch M 2.3'!N90+'Sch M 2.3'!N97+'Sch M 2.3'!N104+'Sch M 2.3'!N131+'Sch M 2.3'!N145+'Sch M 2.3'!N152 -> 3921211.88 | M66: ='Sch M 2.3'!O69+'Sch M 2.3'!O83+'Sch M 2.3'!O90+'Sch M 2.3'!O97+'Sch M 2.3'!O104+'Sch M 2.3'!O131+'Sch M 2.3'!O145+'Sch M 2.3'!O152 -> 6700082.9 | N66: ='Sch M 2.3'!P69+'Sch M 2.3'!P83+'Sch M 2.3'!P90+'Sch M 2.3'!P97+'Sch M 2.3'!P104+'Sch M 2.3'!P131+'Sch M 2.3'!P145+'Sch M 2.3'!P152 -> 12852839.82 | O66: =SUM(C66:N66) -> 97014734.44
A67: =A66+1 -> 3 | B67: Commercial Sales | C67: ='Sch M 2.3'!E76+'Sch M 2.3'!E138+'Sch M 2.3'!E159 -> 6253118.94 | D67: ='Sch M 2.3'!F76+'Sch M 2.3'!F138+'Sch M 2.3'!F159 -> 6040252.22 | E67: ='Sch M 2.3'!G76+'Sch M 2.3'!G138+'Sch M 2.3'!G159 -> 5198908.65 | F67: ='Sch M 2.3'!H76+'Sch M 2.3'!H138+'Sch M 2.3'!H159 -> 3127695.55 | G67: ='Sch M 2.3'!I76+'Sch M 2.3'!I138+'Sch M 2.3'!I159 -> 2258477.47 | H67: ='Sch M 2.3'!J76+'Sch M 2.3'!J138+'Sch M 2.3'!J159 -> 1859010.08 | I67: ='Sch M 2.3'!K76+'Sch M 2.3'!K138+'Sch M 2.3'!K159 -> 1693834.36 | J67: ='Sch M 2.3'!L76+'Sch M 2.3'!L138+'Sch M 2.3'!L159 -> 1620131.78 | K67: ='Sch M 2.3'!M76+'Sch M 2.3'!M138+'Sch M 2.3'!M159 -> 1655758.75 | L67: ='Sch M 2.3'!N76+'Sch M 2.3'!N138+'Sch M 2.3'!N159 -> 1824590.78 | M67: ='Sch M 2.3'!O76+'Sch M 2.3'!O138+'Sch M 2.3'!O159 -> 2701550.39 | N67: ='Sch M 2.3'!P76+'Sch M 2.3'!P138+'Sch M 2.3'!P159 -> 4728618.78 | O67: =SUM(C67:N67) -> 38961947.75
A68: =A67+1 -> 4 | B68: Industrial Sales | C68: ='Sch M 2.3'!E186+'Sch M 2.3'!E193 -> 331933.87 | D68: ='Sch M 2.3'!F186+'Sch M 2.3'!F193 -> 316960.56 | E68: ='Sch M 2.3'!G186+'Sch M 2.3'!G193 -> 212908.6 | F68: ='Sch M 2.3'!H186+'Sch M 2.3'!H193 -> 73360.44 | G68: ='Sch M 2.3'!I186+'Sch M 2.3'!I193 -> 72470.89 | H68: ='Sch M 2.3'!J186+'Sch M 2.3'!J193 -> 52782.39 | I68: ='Sch M 2.3'!K186+'Sch M 2.3'!K193 -> 46128.25 | J68: ='Sch M 2.3'!L186+'Sch M 2.3'!L193 -> 58922.74 | K68: ='Sch M 2.3'!M186+'Sch M 2.3'!M193 -> 65955.92 | L68: ='Sch M 2.3'!N186+'Sch M 2.3'!N193 -> 95158.13 | M68: ='Sch M 2.3'!O186+'Sch M 2.3'!O193 -> 191992.03 | N68: ='Sch M 2.3'!P186+'Sch M 2.3'!P193 -> 280783.9 | O68: =SUM(C68:N68) -> 1799357.72
A69: =A68+1 -> 5 | B69: Public Utilities | C69: ='Sch M 2.3'!E200 -> 12771.39 | D69: ='Sch M 2.3'!F200 -> 11281.44 | E69: ='Sch M 2.3'!G200 -> 12276.98 | F69: ='Sch M 2.3'!H200 -> 5900.18 | G69: ='Sch M 2.3'!I200 -> 5125.74 | H69: ='Sch M 2.3'!J200 -> 4639.74 | I69: ='Sch M 2.3'!K200 -> 3808.07 | J69: ='Sch M 2.3'!L200 -> 4003.91 | K69: ='Sch M 2.3'!M200 -> 3609.4 | L69: ='Sch M 2.3'!N200 -> 5047.17 | M69: ='Sch M 2.3'!O200 -> 7144.34 | N69: ='Sch M 2.3'!P200 -> 10217.98 | O69: =SUM(C69:N69) -> 85826.34
A70: =A69+1 -> 6 | B70: Total Sales | C70: =SUM(C66:C69) -> 23216552.49 | D70: 23169940.24 | E70: 18974534.66 | F70: 11885381.46 | G70: 7321505.5 | H70: 5563210.91 | I70: 4760016.83 | J70: 4738506.38 | K70: 4912979.68 | L70: 5846007.96 | M70: 9600769.66 | N70: =SUM(N66:N69) -> 17872460.48 | O70: =SUM(O66:O69) -> 137861866.3
A72: =A70+1 -> 7 | B72: Transportation | C72: ='Sch M 2.3'!E227+'Sch M 2.3'!E234+'Sch M 2.3'!E241+'Sch M 2.3'!E248+'Sch M 2.3'!E255+'Sch M 2.3'!E262+'Sch M 2.3'!E290+'Sch M 2.3'!E297+'Sch M 2.3'!E304+'Sch M 2.3'!E311+'Sch M 2.3'!E318+'Sch M 2.3'!E325+'Sch M 2.3'!E352+'Sch M 2.3'!E359 -> 3555348.124 | D72: ='Sch M 2.3'!F227+'Sch M 2.3'!F234+'Sch M 2.3'!F241+'Sch M 2.3'!F248+'Sch M 2.3'!F255+'Sch M 2.3'!F262+'Sch M 2.3'!F290+'Sch M 2.3'!F297+'Sch M 2.3'!F304+'Sch M 2.3'!F311+'Sch M 2.3'!F318+'Sch M 2.3'!F325+'Sch M 2.3'!F352+'Sch M 2.3'!F359 -> 3472792.843 | E72: ='Sch M 2.3'!G227+'Sch M 2.3'!G234+'Sch M 2.3'!G241+'Sch M 2.3'!G248+'Sch M 2.3'!G255+'Sch M 2.3'!G262+'Sch M 2.3'!G290+'Sch M 2.3'!G297+'Sch M 2.3'!G304+'Sch M 2.3'!G311+'Sch M 2.3'!G318+'Sch M 2.3'!G325+'Sch M 2.3'!G352+'Sch M 2.3'!G359 -> 3036996.822 | F72: ='Sch M 2.3'!H227+'Sch M 2.3'!H234+'Sch M 2.3'!H241+'Sch M 2.3'!H248+'Sch M 2.3'!H255+'Sch M 2.3'!H262+'Sch M 2.3'!H290+'Sch M 2.3'!H297+'Sch M 2.3'!H304+'Sch M 2.3'!H311+'Sch M 2.3'!H318+'Sch M 2.3'!H325+'Sch M 2.3'!H352+'Sch M 2.3'!H359 -> 2312825.034 | G72: ='Sch M 2.3'!I227+'Sch M 2.3'!I234+'Sch M 2.3'!I241+'Sch M 2.3'!I248+'Sch M 2.3'!I255+'Sch M 2.3'!I262+'Sch M 2.3'!I290+'Sch M 2.3'!I297+'Sch M 2.3'!I304+'Sch M 2.3'!I311+'Sch M 2.3'!I318+'Sch M 2.3'!I325+'Sch M 2.3'!I352+'Sch M 2.3'!I359 -> 1788541.866 | H72: ='Sch M 2.3'!J227+'Sch M 2.3'!J234+'Sch M 2.3'!J241+'Sch M 2.3'!J248+'Sch M 2.3'!J255+'Sch M 2.3'!J262+'Sch M 2.3'!J290+'Sch M 2.3'!J297+'Sch M 2.3'!J304+'Sch M 2.3'!J311+'Sch M 2.3'!J318+'Sch M 2.3'!J325+'Sch M 2.3'!J352+'Sch M 2.3'!J359 -> 1537716.435 | I72: ='Sch M 2.3'!K227+'Sch M 2.3'!K234+'Sch M 2.3'!K241+'Sch M 2.3'!K248+'Sch M 2.3'!K255+'Sch M 2.3'!K262+'Sch M 2.3'!K290+'Sch M 2.3'!K297+'Sch M 2.3'!K304+'Sch M 2.3'!K311+'Sch M 2.3'!K318+'Sch M 2.3'!K325+'Sch M 2.3'!K352+'Sch M 2.3'!K359 -> 1412090.846 | J72: ='Sch M 2.3'!L227+'Sch M 2.3'!L234+'Sch M 2.3'!L241+'Sch M 2.3'!L248+'Sch M 2.3'!L255+'Sch M 2.3'!L262+'Sch M 2.3'!L290+'Sch M 2.3'!L297+'Sch M 2.3'!L304+'Sch M 2.3'!L311+'Sch M 2.3'!L318+'Sch M 2.3'!L325+'Sch M 2.3'!L352+'Sch M 2.3'!L359 -> 1478455.684 | K72: ='Sch M 2.3'!M227+'Sch M 2.3'!M234+'Sch M 2.3'!M241+'Sch M 2.3'!M248+'Sch M 2.3'!M255+'Sch M 2.3'!M262+'Sch M 2.3'!M290+'Sch M 2.3'!M297+'Sch M 2.3'!M304+'Sch M 2.3'!M311+'Sch M 2.3'!M318+'Sch M 2.3'!M325+'Sch M 2.3'!M352+'Sch M 2.3'!M359 -> 1501398.219 | L72: ='Sch M 2.3'!N227+'Sch M 2.3'!N234+'Sch M 2.3'!N241+'Sch M 2.3'!N248+'Sch M 2.3'!N255+'Sch M 2.3'!N262+'Sch M 2.3'!N290+'Sch M 2.3'!N297+'Sch M 2.3'!N304+'Sch M 2.3'!N311+'Sch M 2.3'!N318+'Sch M 2.3'!N325+'Sch M 2.3'!N352+'Sch M 2.3'!N359 -> 1663111.946 | M72: ='Sch M 2.3'!O227+'Sch M 2.3'!O234+'Sch M 2.3'!O241+'Sch M 2.3'!O248+'Sch M 2.3'!O255+'Sch M 2.3'!O262+'Sch M 2.3'!O290+'Sch M 2.3'!O297+'Sch M 2.3'!O304+'Sch M 2.3'!O311+'Sch M 2.3'!O318+'Sch M 2.3'!O325+'Sch M 2.3'!O352+'Sch M 2.3'!O359 -> 2131265.065 | N72: ='Sch M 2.3'!P227+'Sch M 2.3'!P234+'Sch M 2.3'!P241+'Sch M 2.3'!P248+'Sch M 2.3'!P255+'Sch M 2.3'!P262+'Sch M 2.3'!P290+'Sch M 2.3'!P297+'Sch M 2.3'!P304+'Sch M 2.3'!P311+'Sch M 2.3'!P318+'Sch M 2.3'!P325+'Sch M 2.3'!P352+'Sch M 2.3'!P359 -> 2935866.634 | O72: =SUM(C72:N72) -> 26826409.52
A73: =A72+1 -> 8 | B73: Other Revenue | C73: ='Sch M 2.3'!E371 -> 114404.21 | D73: ='Sch M 2.3'!F371 -> 198287.9433 | E73: ='Sch M 2.3'!G371 -> 128827.9 | F73: ='Sch M 2.3'!H371 -> 84639.95667 | G73: ='Sch M 2.3'!I371 -> 66521.4 | H73: ='Sch M 2.3'!J371 -> 53551.01 | I73: ='Sch M 2.3'!K371 -> 61851.13333 | J73: ='Sch M 2.3'!L371 -> 52210.90333 | K73: ='Sch M 2.3'!M371 -> 108413.2767 | L73: ='Sch M 2.3'!N371 -> 188745.93 | M73: ='Sch M 2.3'!O371 -> 70824.14333 | N73: ='Sch M 2.3'!P371 -> 148307.6133 | O73: =SUM(C73:N73) -> 1276585.42
Q74: Check to 2.1
A75: =A73+1 -> 9 | B75: Total Operating Revenues | C75: =C70+C72+C73 -> 26886304.82 | D75: 26841021.03 | E75: 22140359.38 | F75: 14282846.45 | G75: 9176568.766 | H75: 7154478.355 | I75: 6233958.81 | J75: 6269172.967 | K75: 6522791.176 | L75: 7697865.836 | M75: 11802858.87 | N75: =N70+N72+N73 -> 20956634.73 | O75: =SUM(C75:N75) -> 165964861.2 | Q75: ='Sch M 2.1'!H63 -> 165964861.2 | R75: =O75-Q75 -> 0
A76: =A75+1 -> 10 | B76: Gas Cost Revenue | C76: ='Sch M 2.3'!E68+'Sch M 2.3'!E75+'Sch M 2.3'!E82+'Sch M 2.3'!E89++'Sch M 2.3'!E96+'Sch M 2.3'!E103+'Sch M 2.3'!E130+'Sch M 2.3'!E137+'Sch M 2.3'!E144+'Sch M 2.3'!E151+'Sch M 2.3'!E158+'Sch M 2.3'!E185+'Sch M 2.3'!E192+'Sch M 2.3'!E199 -> 9947919.96 | D76: ='Sch M 2.3'!F68+'Sch M 2.3'!F75+'Sch M 2.3'!F82+'Sch M 2.3'!F89++'Sch M 2.3'!F96+'Sch M 2.3'!F103+'Sch M 2.3'!F130+'Sch M 2.3'!F137+'Sch M 2.3'!F144+'Sch M 2.3'!F151+'Sch M 2.3'!F158+'Sch M 2.3'!F185+'Sch M 2.3'!F192+'Sch M 2.3'!F199 -> 9876423.72 | E76: ='Sch M 2.3'!G68+'Sch M 2.3'!G75+'Sch M 2.3'!G82+'Sch M 2.3'!G89++'Sch M 2.3'!G96+'Sch M 2.3'!G103+'Sch M 2.3'!G130+'Sch M 2.3'!G137+'Sch M 2.3'!G144+'Sch M 2.3'!G151+'Sch M 2.3'!G158+'Sch M 2.3'!G185+'Sch M 2.3'!G192+'Sch M 2.3'!G199 -> 7814590.29 | F76: ='Sch M 2.3'!H68+'Sch M 2.3'!H75+'Sch M 2.3'!H82+'Sch M 2.3'!H89++'Sch M 2.3'!H96+'Sch M 2.3'!H103+'Sch M 2.3'!H130+'Sch M 2.3'!H137+'Sch M 2.3'!H144+'Sch M 2.3'!H151+'Sch M 2.3'!H158+'Sch M 2.3'!H185+'Sch M 2.3'!H192+'Sch M 2.3'!H199 -> 4254207.27 | G76: ='Sch M 2.3'!I68+'Sch M 2.3'!I75+'Sch M 2.3'!I82+'Sch M 2.3'!I89++'Sch M 2.3'!I96+'Sch M 2.3'!I103+'Sch M 2.3'!I130+'Sch M 2.3'!I137+'Sch M 2.3'!I144+'Sch M 2.3'!I151+'Sch M 2.3'!I158+'Sch M 2.3'!I185+'Sch M 2.3'!I192+'Sch M 2.3'!I199 -> 2060219.44 | H76: ='Sch M 2.3'!J68+'Sch M 2.3'!J75+'Sch M 2.3'!J82+'Sch M 2.3'!J89++'Sch M 2.3'!J96+'Sch M 2.3'!J103+'Sch M 2.3'!J130+'Sch M 2.3'!J137+'Sch M 2.3'!J144+'Sch M 2.3'!J151+'Sch M 2.3'!J158+'Sch M 2.3'!J185+'Sch M 2.3'!J192+'Sch M 2.3'!J199 -> 1216667.32 | I76: ='Sch M 2.3'!K68+'Sch M 2.3'!K75+'Sch M 2.3'!K82+'Sch M 2.3'!K89++'Sch M 2.3'!K96+'Sch M 2.3'!K103+'Sch M 2.3'!K130+'Sch M 2.3'!K137+'Sch M 2.3'!K144+'Sch M 2.3'!K151+'Sch M 2.3'!K158+'Sch M 2.3'!K185+'Sch M 2.3'!K192+'Sch M 2.3'!K199 -> 832536.78 | J76: ='Sch M 2.3'!L68+'Sch M 2.3'!L75+'Sch M 2.3'!L82+'Sch M 2.3'!L89++'Sch M 2.3'!L96+'Sch M 2.3'!L103+'Sch M 2.3'!L130+'Sch M 2.3'!L137+'Sch M 2.3'!L144+'Sch M 2.3'!L151+'Sch M 2.3'!L158+'Sch M 2.3'!L185+'Sch M 2.3'!L192+'Sch M 2.3'!L199 -> 817096.73 | K76: ='Sch M 2.3'!M68+'Sch M 2.3'!M75+'Sch M 2.3'!M82+'Sch M 2.3'!M89++'Sch M 2.3'!M96+'Sch M 2.3'!M103+'Sch M 2.3'!M130+'Sch M 2.3'!M137+'Sch M 2.3'!M144+'Sch M 2.3'!M151+'Sch M 2.3'!M158+'Sch M 2.3'!M185+'Sch M 2.3'!M192+'Sch M 2.3'!M199 -> 907222.39 | L76: ='Sch M 2.3'!N68+'Sch M 2.3'!N75+'Sch M 2.3'!N82+'Sch M 2.3'!N89++'Sch M 2.3'!N96+'Sch M 2.3'!N103+'Sch M 2.3'!N130+'Sch M 2.3'!N137+'Sch M 2.3'!N144+'Sch M 2.3'!N151+'Sch M 2.3'!N158+'Sch M 2.3'!N185+'Sch M 2.3'!N192+'Sch M 2.3'!N199 -> 1357773.88 | M76: ='Sch M 2.3'!O68+'Sch M 2.3'!O75+'Sch M 2.3'!O82+'Sch M 2.3'!O89++'Sch M 2.3'!O96+'Sch M 2.3'!O103+'Sch M 2.3'!O130+'Sch M 2.3'!O137+'Sch M 2.3'!O144+'Sch M 2.3'!O151+'Sch M 2.3'!O158+'Sch M 2.3'!O185+'Sch M 2.3'!O192+'Sch M 2.3'!O199 -> 3187224.38 | N76: ='Sch M 2.3'!P68+'Sch M 2.3'!P75+'Sch M 2.3'!P82+'Sch M 2.3'!P89++'Sch M 2.3'!P96+'Sch M 2.3'!P103+'Sch M 2.3'!P130+'Sch M 2.3'!P137+'Sch M 2.3'!P144+'Sch M 2.3'!P151+'Sch M 2.3'!P158+'Sch M 2.3'!P185+'Sch M 2.3'!P192+'Sch M 2.3'!P199 -> 7249845.21 | O76: =SUM(C76:N76) -> 49521727.37
A78: =A76+1 -> 11 | B78: Total Revenue (Excluding Gas Cost) | C78: =C75-C76 -> 16938384.86 | D78: 16964597.31 | E78: 14325769.09 | F78: 10028639.18 | G78: 7116349.326 | H78: 5937811.035 | I78: 5401422.03 | J78: 5452076.237 | K78: 5615568.786 | L78: 6340091.956 | M78: 8615634.488 | N78: =N75-N76 -> 13706789.52 | O78: =O75-O76 -> 116443133.8
A81: =A78+1 -> 12 | B81: Mcf by Customer Class
A83: =A81+1 -> 13 | B83: Residential Sales | C83: ='Sch M 2.3'!E66+'Sch M 2.3'!E80+'Sch M 2.3'!E87+'Sch M 2.3'!E94+'Sch M 2.3'!E101+'Sch M 2.3'!E128+'Sch M 2.3'!E142+'Sch M 2.3'!E149 -> 1484734 | D83: ='Sch M 2.3'!F66+'Sch M 2.3'!F80+'Sch M 2.3'!F87+'Sch M 2.3'!F94+'Sch M 2.3'!F101+'Sch M 2.3'!F128+'Sch M 2.3'!F142+'Sch M 2.3'!F149 -> 1503002.6 | E83: ='Sch M 2.3'!G66+'Sch M 2.3'!G80+'Sch M 2.3'!G87+'Sch M 2.3'!G94+'Sch M 2.3'!G101+'Sch M 2.3'!G128+'Sch M 2.3'!G142+'Sch M 2.3'!G149 -> 1166691.1 | F83: ='Sch M 2.3'!H66+'Sch M 2.3'!H80+'Sch M 2.3'!H87+'Sch M 2.3'!H94+'Sch M 2.3'!H101+'Sch M 2.3'!H128+'Sch M 2.3'!H142+'Sch M 2.3'!H149 -> 665313.5 | G83: ='Sch M 2.3'!I66+'Sch M 2.3'!I80+'Sch M 2.3'!I87+'Sch M 2.3'!I94+'Sch M 2.3'!I101+'Sch M 2.3'!I128+'Sch M 2.3'!I142+'Sch M 2.3'!I149 -> 285090.9 | H83: ='Sch M 2.3'!J66+'Sch M 2.3'!J80+'Sch M 2.3'!J87+'Sch M 2.3'!J94+'Sch M 2.3'!J101+'Sch M 2.3'!J128+'Sch M 2.3'!J142+'Sch M 2.3'!J149 -> 148204.3 | I83: ='Sch M 2.3'!K66+'Sch M 2.3'!K80+'Sch M 2.3'!K87+'Sch M 2.3'!K94+'Sch M 2.3'!K101+'Sch M 2.3'!K128+'Sch M 2.3'!K142+'Sch M 2.3'!K149 -> 83409.8 | J83: ='Sch M 2.3'!L66+'Sch M 2.3'!L80+'Sch M 2.3'!L87+'Sch M 2.3'!L94+'Sch M 2.3'!L101+'Sch M 2.3'!L128+'Sch M 2.3'!L142+'Sch M 2.3'!L149 -> 87653.7 | K83: ='Sch M 2.3'!M66+'Sch M 2.3'!M80+'Sch M 2.3'!M87+'Sch M 2.3'!M94+'Sch M 2.3'!M101+'Sch M 2.3'!M128+'Sch M 2.3'!M142+'Sch M 2.3'!M149 -> 102271 | L83: ='Sch M 2.3'!N66+'Sch M 2.3'!N80+'Sch M 2.3'!N87+'Sch M 2.3'!N94+'Sch M 2.3'!N101+'Sch M 2.3'!N128+'Sch M 2.3'!N142+'Sch M 2.3'!N149 -> 177788.4 | M83: ='Sch M 2.3'!O66+'Sch M 2.3'!O80+'Sch M 2.3'!O87+'Sch M 2.3'!O94+'Sch M 2.3'!O101+'Sch M 2.3'!O128+'Sch M 2.3'!O142+'Sch M 2.3'!O149 -> 461844.6 | N83: ='Sch M 2.3'!P66+'Sch M 2.3'!P80+'Sch M 2.3'!P87+'Sch M 2.3'!P94+'Sch M 2.3'!P101+'Sch M 2.3'!P128+'Sch M 2.3'!P142+'Sch M 2.3'!P149 -> 1094130.6 | O83: =SUM(C83:N83) -> 7260134.5
A84: =A83+1 -> 14 | B84: Commercial Sales | C84: ='Sch M 2.3'!E73+'Sch M 2.3'!E135+'Sch M 2.3'!E156 -> 733043 | D84: ='Sch M 2.3'!F73+'Sch M 2.3'!F135+'Sch M 2.3'!F156 -> 700984 | E84: ='Sch M 2.3'!G73+'Sch M 2.3'!G135+'Sch M 2.3'!G156 -> 582736.8 | F84: ='Sch M 2.3'!H73+'Sch M 2.3'!H135+'Sch M 2.3'!H156 -> 294143 | G84: ='Sch M 2.3'!I73+'Sch M 2.3'!I135+'Sch M 2.3'!I156 -> 174296.9 | H84: ='Sch M 2.3'!J73+'Sch M 2.3'!J135+'Sch M 2.3'!J156 -> 121730.5 | I84: ='Sch M 2.3'!K73+'Sch M 2.3'!K135+'Sch M 2.3'!K156 -> 100026.3 | J84: ='Sch M 2.3'!L73+'Sch M 2.3'!L135+'Sch M 2.3'!L156 -> 90381.5 | K84: ='Sch M 2.3'!M73+'Sch M 2.3'!M135+'Sch M 2.3'!M156 -> 95393.8 | L84: ='Sch M 2.3'!N73+'Sch M 2.3'!N135+'Sch M 2.3'!N156 -> 118125.7 | M84: ='Sch M 2.3'!O73+'Sch M 2.3'!O135+'Sch M 2.3'!O156 -> 236468.7 | N84: ='Sch M 2.3'!P73+'Sch M 2.3'!P135+'Sch M 2.3'!P156 -> 516678.9 | O84: =SUM(C84:N84) -> 3764009.1
A85: =A84+1 -> 15 | B85: Industrial Sales | C85: ='Sch M 2.3'!E183+'Sch M 2.3'!E190 -> 48458.8 | D85: ='Sch M 2.3'!F183+'Sch M 2.3'!F190 -> 46186.4 | E85: ='Sch M 2.3'!G183+'Sch M 2.3'!G190 -> 30488.2 | F85: ='Sch M 2.3'!H183+'Sch M 2.3'!H190 -> 9871.6 | G85: ='Sch M 2.3'!I183+'Sch M 2.3'!I190 -> 9771.9 | H85: ='Sch M 2.3'!J183+'Sch M 2.3'!J190 -> 6949.4 | I85: ='Sch M 2.3'!K183+'Sch M 2.3'!K190 -> 6025.1 | J85: ='Sch M 2.3'!L183+'Sch M 2.3'!L190 -> 7880.1 | K85: ='Sch M 2.3'!M183+'Sch M 2.3'!M190 -> 8890.3 | L85: ='Sch M 2.3'!N183+'Sch M 2.3'!N190 -> 13143.4 | M85: ='Sch M 2.3'!O183+'Sch M 2.3'!O190 -> 27525.7 | N85: ='Sch M 2.3'!P183+'Sch M 2.3'!P190 -> 40778.5 | O85: =SUM(C85:N85) -> 255969.4
A86: =A85+1 -> 16 | B86: Public Utilities | C86: ='Sch M 2.3'!E197 -> 1938.9 | D86: ='Sch M 2.3'!F197 -> 1673.4 | E86: ='Sch M 2.3'!G197 -> 1850.8 | F86: ='Sch M 2.3'!H197 -> 714.5 | G86: ='Sch M 2.3'!I197 -> 576.5 | H86: ='Sch M 2.3'!J197 -> 489.9 | I86: ='Sch M 2.3'!K197 -> 341.7 | J86: ='Sch M 2.3'!L197 -> 376.6 | K86: ='Sch M 2.3'!M197 -> 306.3 | L86: ='Sch M 2.3'!N197 -> 562.5 | M86: ='Sch M 2.3'!O197 -> 936.2 | N86: ='Sch M 2.3'!P197 -> 1483.9 | O86: =SUM(C86:N86) -> 11251.2
A87: =A86+1 -> 17 | B87: Total Sales | C87: =SUM(C83:C86) -> 2268174.7 | D87: 2251846.4 | E87: 1781766.9 | F87: 970042.6 | G87: 469736.2 | H87: 277374.1 | I87: 189802.9 | J87: 186291.9 | K87: 206861.4 | L87: 309620 | M87: 726775.2 | N87: =SUM(N83:N86) -> 1653071.9 | O87: =SUM(O83:O86) -> 11291364.2
A89: =A87+1 -> 18 | B89: Transportation | C89: ='Sch M 2.3'!E224+'Sch M 2.3'!E231+'Sch M 2.3'!E238+'Sch M 2.3'!E245+'Sch M 2.3'!E252+'Sch M 2.3'!E259+'Sch M 2.3'!E287+'Sch M 2.3'!E294+'Sch M 2.3'!E301+'Sch M 2.3'!E308+'Sch M 2.3'!E315+'Sch M 2.3'!E322+'Sch M 2.3'!E349+'Sch M 2.3'!E356 -> 2339232.8 | D89: ='Sch M 2.3'!F224+'Sch M 2.3'!F231+'Sch M 2.3'!F238+'Sch M 2.3'!F245+'Sch M 2.3'!F252+'Sch M 2.3'!F259+'Sch M 2.3'!F287+'Sch M 2.3'!F294+'Sch M 2.3'!F301+'Sch M 2.3'!F308+'Sch M 2.3'!F315+'Sch M 2.3'!F322+'Sch M 2.3'!F349+'Sch M 2.3'!F356 -> 2091281.1 | E89: ='Sch M 2.3'!G224+'Sch M 2.3'!G231+'Sch M 2.3'!G238+'Sch M 2.3'!G245+'Sch M 2.3'!G252+'Sch M 2.3'!G259+'Sch M 2.3'!G287+'Sch M 2.3'!G294+'Sch M 2.3'!G301+'Sch M 2.3'!G308+'Sch M 2.3'!G315+'Sch M 2.3'!G322+'Sch M 2.3'!G349+'Sch M 2.3'!G356 -> 1996731.3 | F89: ='Sch M 2.3'!H224+'Sch M 2.3'!H231+'Sch M 2.3'!H238+'Sch M 2.3'!H245+'Sch M 2.3'!H252+'Sch M 2.3'!H259+'Sch M 2.3'!H287+'Sch M 2.3'!H294+'Sch M 2.3'!H301+'Sch M 2.3'!H308+'Sch M 2.3'!H315+'Sch M 2.3'!H322+'Sch M 2.3'!H349+'Sch M 2.3'!H356 -> 1573935.3 | G89: ='Sch M 2.3'!I224+'Sch M 2.3'!I231+'Sch M 2.3'!I238+'Sch M 2.3'!I245+'Sch M 2.3'!I252+'Sch M 2.3'!I259+'Sch M 2.3'!I287+'Sch M 2.3'!I294+'Sch M 2.3'!I301+'Sch M 2.3'!I308+'Sch M 2.3'!I315+'Sch M 2.3'!I322+'Sch M 2.3'!I349+'Sch M 2.3'!I356 -> 1226545.8 | H89: ='Sch M 2.3'!J224+'Sch M 2.3'!J231+'Sch M 2.3'!J238+'Sch M 2.3'!J245+'Sch M 2.3'!J252+'Sch M 2.3'!J259+'Sch M 2.3'!J287+'Sch M 2.3'!J294+'Sch M 2.3'!J301+'Sch M 2.3'!J308+'Sch M 2.3'!J315+'Sch M 2.3'!J322+'Sch M 2.3'!J349+'Sch M 2.3'!J356 -> 1064967.4 | I89: ='Sch M 2.3'!K224+'Sch M 2.3'!K231+'Sch M 2.3'!K238+'Sch M 2.3'!K245+'Sch M 2.3'!K252+'Sch M 2.3'!K259+'Sch M 2.3'!K287+'Sch M 2.3'!K294+'Sch M 2.3'!K301+'Sch M 2.3'!K308+'Sch M 2.3'!K315+'Sch M 2.3'!K322+'Sch M 2.3'!K349+'Sch M 2.3'!K356 -> 1009219.9 | J89: ='Sch M 2.3'!L224+'Sch M 2.3'!L231+'Sch M 2.3'!L238+'Sch M 2.3'!L245+'Sch M 2.3'!L252+'Sch M 2.3'!L259+'Sch M 2.3'!L287+'Sch M 2.3'!L294+'Sch M 2.3'!L301+'Sch M 2.3'!L308+'Sch M 2.3'!L315+'Sch M 2.3'!L322+'Sch M 2.3'!L349+'Sch M 2.3'!L356 -> 1131965.7 | K89: ='Sch M 2.3'!M224+'Sch M 2.3'!M231+'Sch M 2.3'!M238+'Sch M 2.3'!M245+'Sch M 2.3'!M252+'Sch M 2.3'!M259+'Sch M 2.3'!M287+'Sch M 2.3'!M294+'Sch M 2.3'!M301+'Sch M 2.3'!M308+'Sch M 2.3'!M315+'Sch M 2.3'!M322+'Sch M 2.3'!M349+'Sch M 2.3'!M356 -> 1203775.7 | L89: ='Sch M 2.3'!N224+'Sch M 2.3'!N231+'Sch M 2.3'!N238+'Sch M 2.3'!N245+'Sch M 2.3'!N252+'Sch M 2.3'!N259+'Sch M 2.3'!N287+'Sch M 2.3'!N294+'Sch M 2.3'!N301+'Sch M 2.3'!N308+'Sch M 2.3'!N315+'Sch M 2.3'!N322+'Sch M 2.3'!N349+'Sch M 2.3'!N356 -> 1470532.1 | M89: ='Sch M 2.3'!O224+'Sch M 2.3'!O231+'Sch M 2.3'!O238+'Sch M 2.3'!O245+'Sch M 2.3'!O252+'Sch M 2.3'!O259+'Sch M 2.3'!O287+'Sch M 2.3'!O294+'Sch M 2.3'!O301+'Sch M 2.3'!O308+'Sch M 2.3'!O315+'Sch M 2.3'!O322+'Sch M 2.3'!O349+'Sch M 2.3'!O356 -> 1764884.4 | N89: ='Sch M 2.3'!P224+'Sch M 2.3'!P231+'Sch M 2.3'!P238+'Sch M 2.3'!P245+'Sch M 2.3'!P252+'Sch M 2.3'!P259+'Sch M 2.3'!P287+'Sch M 2.3'!P294+'Sch M 2.3'!P301+'Sch M 2.3'!P308+'Sch M 2.3'!P315+'Sch M 2.3'!P322+'Sch M 2.3'!P349+'Sch M 2.3'!P356 -> 2123734.7 | O89: =SUM(C89:N89) -> 18996806.2
A91: =A89+1 -> 19 | B91: Total Volumes | C91: =C87+C89 -> 4607407.5 | D91: 4343127.5 | E91: 3778498.2 | F91: 2543977.9 | G91: 1696282 | H91: 1342341.5 | I91: 1199022.8 | J91: 1318257.6 | K91: 1410637.1 | L91: 1780152.1 | M91: 2491659.6 | N91: =N87+N89 -> 3776806.6 | O91: =SUM(C91:N91) -> 30288170.4

Sheet Sch M 2.1
A1: =CONAME -> Columbia Gas of Kentucky, Inc.
A2: =case -> Case No. 2021-00183
A3: Revenues At Present and Proposed Rates
A4: =TYDESC -> For the 12 Months Ended December 31, 2022
A5: (Gas Service)
A7: Data: __ Base Period _X_Forecasted Period
A8: Type of Filing: _ Original _ Update X Revised | J8: Schedule M 2.1
A9: Work Paper Reference No(s): | J9: Page 1 of 1
A10: 12 Months Forecasted | J10: =Witness -> Witness: Judith L. Siegler
E11: Revenue At | F11: D-2.4 | H11: Revenue At | J11: % Of
A12: Line | B12: Rate | C12: Customer | E12: Present | F12: Ratemaking | G12: Revenue | H12: Proposed | I12: Revenue | J12: Revenue
A13: No. | B13: Classification | C13: Bills | D13: Volumes | E13: Rates | F13: Adjustment | G13: Adjusted | H13: Rates | I13: Change | J13: Change
B14: (A) | C14: (B) | D14: (C) | E14: (D) | F14: (E) | G14: (F) | H14: (G) | I14: (H=G-F) | J14: (I=H/D)
E15: ($) | F15: ($) | G15: ($) | H15: ($) | I15: ($) | J15: (%)
A17: 1 | B17: Sales Service
A19: =A17+1 -> 2 | B19: =Input!B19 -> General Service - Residential | C19: ='Sch M 2.2'!Q66 -> 1313261 | D19: ='Sch M 2.2'!Q67 -> 7256607.7 | E19: ='Sch M 2.2'!Q70 -> 86451073.72 | F19: =ROUND('C'!P17*(Input!$AB$19-Input!$O$19),2) -> -100866.85 | G19: =E19+F19 -> 86350206.87 | H19: ='Sch M 2.3'!Q69 -> 97008664.51 | I19: =H19-G19 -> 10658457.64 | J19: =IF(E19=0,0,ROUND(I19/E19,4)*100) -> 12.33
A20: =A19+1 -> 3 | B20: =Input!B20 -> LG&E Commercial | C20: ='Sch M 2.2'!Q73 -> 0 | D20: ='Sch M 2.2'!Q74 -> 0 | E20: ='Sch M 2.2'!Q77 -> 0 | F20: 0 | G20: =E20+F20 -> 0 | H20: ='Sch M 2.3'!Q76 -> 0 | I20: =H20-G20 -> 0 | J20: 0
A21: 4 | B21: =Input!B21 -> LG&E Residential | C21: ='Sch M 2.2'!Q80 -> 48 | D21: ='Sch M 2.2'!Q81 -> 452.4 | E21: ='Sch M 2.2'!Q84 -> 4820.84 | F21: 0 | G21: 4820.84 | H21: ='Sch M 2.3'!Q83 -> 4820.84 | I21: 0 | J21: 0
A22: 5 | B22: =Input!B22 -> Inland Gas General Service - Residential | C22: ='Sch M 2.2'!Q87 -> 120 | D22: ='Sch M 2.2'!Q88 -> 1382.6 | E22: ='Sch M 2.2'!Q91 -> 572.95 | F22: 0 | G22: 572.95 | H22: ='Sch M 2.3'!Q90 -> 572.95 | I22: 0 | J22: 0
A23: 6 | B23: =Input!B24 -> Inland Gas General Service - Residential | C23: ='Sch M 2.2'!Q94 -> 0 | D23: ='Sch M 2.2'!Q95 -> 0 | E23: ='Sch M 2.2'!Q98 -> 0 | F23: 0 | G23: 0 | H23: ='Sch M 2.3'!Q97 -> 0 | I23: 0 | J23: 0
A24: 7 | B24: =Input!B25 -> Inland Gas General Service - Residential | C24: ='Sch M 2.2'!Q101 -> 36 | D24: ='Sch M 2.2'!Q102 -> 263.8 | E24: ='Sch M 2.2'!Q105 -> 162.06 | F24: 0 | G24: 162.06 | H24: ='Sch M 2.3'!Q104 -> 162.06 | I24: 0 | J24: 0
A25: 8 | B25: =Input!B26 -> LG&E Residential | C25: ='Sch M 2.2'!Q130 -> 12 | D25: ='Sch M 2.2'!Q131 -> 672.3 | E25: ='Sch M 2.2'!Q134 -> 235.35 | F25: 0 | G25: 235.35 | H25: ='Sch M 2.3'!Q131 -> 235.35 | I25: 0 | J25: 0
A26: 9 | B26: =Input!B27 -> LG&E Commercial | C26: ='Sch M 2.2'!Q137 -> 0 | D26: ='Sch M 2.2'!Q138 -> 0 | E26: ='Sch M 2.2'!Q141 -> 0 | F26: 0 | G26: 0 | H26: ='Sch M 2.3'!Q138 -> 0 | I26: 0 | J26: 0
A27: 10 | B27: =Input!B28 -> LG&E Residential | C27: ='Sch M 2.2'!Q144 -> 12 | D27: ='Sch M 2.2'!Q145 -> 588.9 | E27: ='Sch M 2.2'!Q148 -> 212.01 | F27: 0 | G27: 212.01 | H27: ='Sch M 2.3'!Q145 -> 212.01 | I27: 0 | J27: 0
A28: 11 | B28: =Input!B29 -> LG&E Residential | C28: ='Sch M 2.2'!Q151 -> 12 | D28: ='Sch M 2.2'!Q152 -> 166.8 | E28: ='Sch M 2.2'!Q155 -> 66.72 | F28: 0 | G28: 66.72 | H28: ='Sch M 2.3'!Q152 -> 66.72 | I28: 0 | J28: 0
A29: 12 | B29: =Input!B30 -> General Service - Commercial | C29: ='Sch M 2.2'!Q158 -> 138926 | D29: ='Sch M 2.2'!Q159 -> 3764009.1 | E29: ='Sch M 2.2'!Q162 -> 35527761.53 | F29: =ROUND(D29*(Input!$AB$19-Input!$O$19),2) -> -52319.73 | G29: =E29+F29 -> 35475441.8 | H29: ='Sch M 2.3'!Q159 -> 38961947.75 | I29: 3486505.95 | J29: 9.81
A30: 13 | B30: =Input!B31 -> General Service - Industrial | C30: ='Sch M 2.2'!Q186 -> 618 | D30: ='Sch M 2.2'!Q187 -> 255969.4 | E30: ='Sch M 2.2'!Q190 -> 1704101.48 | F30: =ROUND(D30*(Input!$AB$19-Input!$O$19),2) -> -3557.97 | G30: 1700543.51 | H30: ='Sch M 2.3'!Q186 -> 1799357.72 | I30: 98814.21 | J30: 5.8
A31: 14 | B31: =Input!B36 -> Interruptible Service - Industrial | C31: ='Sch M 2.2'!Q193 -> 0 | D31: ='Sch M 2.2'!Q194 -> 0 | E31: ='Sch M 2.2'!Q197 -> 0 | F31: =ROUND(D31*(Input!$AB$19-Input!$O$19),2) -> 0 | G31: 0 | H31: ='Sch M 2.3'!Q193 -> 0 | I31: 0 | J31: 0
A32: 15 | B32: =Input!B37 -> Intrastate Utility Service - Wholesale | C32: ='Sch M 2.2'!Q200 -> 24 | D32: ='Sch M 2.2'!Q201 -> 11251.2 | E32: ='Sch M 2.2'!Q204 -> 80099.34 | F32: =ROUND(D32*(Input!$AB$19-Input!$O$19),2) -> -156.39 | G32: 79942.95 | H32: ='Sch M 2.3'!Q200 -> 85826.34 | I32: 5883.39 | J32: 7.35
A34: =A32+1 -> 16 | B34: Transportation Service
A36: =A34+1 -> 17 | B36: =Input!B41 -> GTS Choice - Residential | C36: ='Sch M 2.2'!Q228 -> 166993 | D36: ='Sch M 2.2'!Q229 -> 1022609.7 | E36: ='Sch M 2.2'!Q232 -> 7250553.29 | F36: 0 | G36: =E36+F36 -> 7250553.29 | H36: ='Sch M 2.3'!Q227 -> 8804606.76 | I36: =H36-G36 -> 1554053.47 | J36: =IF(E36=0,0,ROUND(I36/E36,4)*100) -> 21.43
A37: 18 | B37: =Input!B42 -> GTS Choice - Commercial | C37: ='Sch M 2.2'!Q235 -> 38286 | D37: ='Sch M 2.2'!Q236 -> 1476267.6 | E37: ='Sch M 2.2'!Q239 -> 6225788.37 | F37: 0 | G37: 6225788.37 | H37: ='Sch M 2.3'!Q234 -> 7348687.81 | I37: 1122899.44 | J37: 18.04
A38: 19 | B38: =Input!B43 -> GTS Choice - Industrial | C38: ='Sch M 2.2'!Q242 -> 144 | D38: ='Sch M 2.2'!Q243 -> 45086.8 | E38: ='Sch M 2.2'!Q246 -> 107456.06 | F38: 0 | G38: 107456.06 | H38: ='Sch M 2.3'!Q241 -> 125692.14 | I38: 18236.08 | J38: 16.97
A39: 20 | B39: =Input!B44 -> GTS Delivery Service - Commercial | C39: ='Sch M 2.2'!Q249 -> 336 | D39: ='Sch M 2.2'!Q250 -> 2851457 | E39: ='Sch M 2.2'!Q253 -> 2725642.57 | F39: 0 | G39: 2725642.57 | H39: ='Sch M 2.3'!Q248 -> 3283001.05 | I39: 557358.48 | J39: 20.45
A40: 21 | B40: =Input!B45 -> GTS Delivery Service - Industrial | C40: ='Sch M 2.2'!Q256 -> 494 | D40: ='Sch M 2.2'!Q257 -> 5839895.8 | E40: ='Sch M 2.2'!Q260 -> 4657050.92 | F40: 0 | G40: 4657050.92 | H40: ='Sch M 2.3'!Q255 -> 5544854.16 | I40: 887803.24 | J40: 19.06
A41: 22 | B41: =Input!B46 -> GTS Grandfathered Delivery Service - Commercial | C41: ='Sch M 2.2'!Q263 -> 158 | D41: ='Sch M 2.2'!Q264 -> 380827.5 | E41: ='Sch M 2.2'!Q267 -> 759909.13 | F41: 0 | G41: 759909.13 | H41: ='Sch M 2.3'!Q262 -> 892248.76 | I41: 132339.63 | J41: 17.42
A42: 23 | B42: =Input!B47 -> GTS Grandfathered Delivery Service - Industrial | C42: ='Sch M 2.2'!Q290 -> 84 | D42: ='Sch M 2.2'!Q291 -> 67061.8 | E42: ='Sch M 2.2'!Q294 -> 144100.69 | F42: 0 | G42: 144100.69 | H42: ='Sch M 2.3'!Q290 -> 168757 | I42: 24656.31 | J42: 17.11
A43: 24 | B43: =Input!B48 -> GTS Main Line Service - Industrial | C43: ='Sch M 2.2'!Q297 -> 36 | D43: ='Sch M 2.2'!Q298 -> 602100 | E43: ='Sch M 2.2'!Q301 -> 69542.82 | F43: 0 | G43: 69542.82 | H43: ='Sch M 2.3'!Q297 -> 69995.43 | I43: 452.61 | J43: 0.65
A44: 25 | B44: =Input!B49 -> GTS Flex Rate - Commercial | C44: ='Sch M 2.2'!Q304 -> 0 | D44: ='Sch M 2.2'!Q305 -> 0 | E44: ='Sch M 2.2'!Q308 -> 0 | F44: 0 | G44: 0 | H44: ='Sch M 2.3'!Q304 -> 0 | I44: 0 | J44: 0
A45: =A44+1 -> 26 | B45: =Input!B50 -> GTS Flex Rate - Commercial | C45: ='Sch M 2.2'!Q311 -> 0 | D45: ='Sch M 2.2'!Q312 -> 0 | E45: ='Sch M 2.2'!Q315 -> 0 | F45: 0 | G45: 0 | H45: ='Sch M 2.3'!Q311 -> 0 | I45: 0 | J45: 0
A46: =A45+1 -> 27 | B46: =Input!B51 -> GTS Flex Rate - Industrial | C46: ='Sch M 2.2'!Q318 -> 36 | D46: ='Sch M 2.2'!Q319 -> 6711500 | E46: ='Sch M 2.2'!Q322 -> 585059.1 | F46: 0 | G46: 585059.1 | H46: ='Sch M 2.3'!Q318 -> 588566.41 | I46: 3507.31 | J46: 0.6
A47: =A46+1 -> 28 | B47: =Input!B52 -> GTS Flex Rate - Industrial | C47: ='Sch M 2.2'!Q325 -> 0 | D47: ='Sch M 2.2'!Q326 -> 0 | E47: ='Sch M 2.2'!Q329 -> 0 | F47: 0 | G47: 0 | H47: ='Sch M 2.3'!Q325 -> 0 | I47: 0 | J47: 0
A48: =A47+1 -> 29 | B48: =Input!B53 -> GTS Special Agency Service | C48: ='Sch M 2.2'!Q352 -> 0 | D48: ='Sch M 2.2'!Q353 -> 0 | E48: ='Sch M 2.2'!Q356 -> 0 | F48: 0 | G48: 0 | H48: ='Sch M 2.3'!Q352 -> 0 | I48: 0 | J48: 0
A49: =A48+1 -> 30 | B49: =Input!B54 -> GTS Special Rate - Industrial | C49: ='Sch M 2.2'!Q359 -> 0 | D49: ='Sch M 2.2'!Q360 -> 0 | E49: ='Sch M 2.2'!Q363 -> 0 | F49: 0 | G49: 0 | H49: ='Sch M 2.3'!Q359 -> 0 | I49: 0 | J49: 0
A51: =A49+1 -> 31 | B51: Total Sales and Transportation | C51: =SUM(C19:C49) -> 1659636 | D51: =SUM(D19:D49) -> 30288170.4 | E51: 146294208.9 | F51: -156900.94 | G51: 146137308 | H51: 164688275.8 | I51: 18550967.76 | J51: =IF(E51=0,0,ROUND(I51/E51,4)*100) -> 12.68
A53: =A51+1 -> 32 | B53: Other Gas Department Revenue
A55: =A53+1 -> 33 | B55: Acct. 487 Forfeited Discounts | E55: ='Sch M 2.2'!Q369 -> 390077.64 | F55: 0 | G55: =E55+F55 -> 390077.64 | H55: ='Sch M 2.3'!Q29 -> 439109.64 | I55: =H55-G55 -> 49032 | J55: =IF(E55=0,0,ROUND(I55/E55,4)*100) -> 12.57
A56: =A55+1 -> 34 | B56: Acct. 488 Miscellaneous Service Revenue | E56: ='Sch M 2.2'!Q370 -> 117501.3467 | F56: 0 | G56: =E56+F56 -> 117501.3467 | H56: ='Sch M 2.3'!Q30 -> 117501.3467 | I56: =H56-G56 -> 0 | J56: =IF(E56=0,0,ROUND(I56/E56,4)*100) -> 0
A57: =A56+1 -> 35 | B57: Acct. 493 Rent From Gas Property | E57: ='Sch M 2.2'!Q371 -> 41592 | F57: 0 | G57: =E57+F57 -> 41592 | H57: ='Sch M 2.3'!Q31 -> 41592 | I57: =H57-G57 -> 0 | J57: =IF(E57=0,0,ROUND(I57/E57,4)*100) -> 0
A58: =A57+1 -> 36 | B58: Acct. 495 Non-Traditional Sales | E58: ='Sch M 2.2'!Q372 -> 0 | F58: 0 | G58: =E58+F58 -> 0 | H58: ='Sch M 2.3'!Q32 -> 0 | I58: =H58-G58 -> 0 | J58: =IF(E58=0,0,ROUND(I58/E58,4)*100) -> 0
A59: =A58+1 -> 37 | B59: Acct. 495 Other Gas Revenues - Other | E59: ='Sch M 2.2'!Q373 -> 678382.4333 | F59: 0 | G59: =E59+F59 -> 678382.4333 | H59: ='Sch M 2.3'!Q33 -> 678382.4333 | I59: =H59-G59 -> 0 | J59: =IF(E59=0,0,ROUND(I59/E59,4)*100) -> 0
A61: =A59+1 -> 38 | B61: Total Other Gas Departnemt Revenue | E61: =SUM(E55:E59) -> 1227553.42 | F61: =SUM(F55:F59) -> 0 | G61: =SUM(G55:G59) -> 1227553.42 | H61: =SUM(H55:H59) -> 1276585.42 | I61: =SUM(I55:I59) -> 49032 | J61: =IF(E61=0,0,ROUND(I61/E61,4)*100) -> 3.99
A63: =A61+1 -> 39 | B63: Total Gross Revenue | E63: =E61+E51 -> 147521762.4 | F63: =F61+F51 -> -156900.94 | G63: =G61+G51 -> 147364861.4 | H63: =H61+H51 -> 165964861.2 | I63: =I61+I51 -> 18599999.76 | J63: =IF(E63=0,0,ROUND(I63/E63,4)*100) -> 12.61

Sheet Sch M 2.2
A1: =CONAME -> Columbia Gas of Kentucky, Inc.
A2: =case -> Case No. 2021-00183
A3: Annualized Test Year Revenues at Current Rates
A4: =TYDESC -> For the 12 Months Ended December 31, 2022
A5: (Gas Service)
A6: =$A$52 -> Data: __ Base Period _X_ Forecasted Period
A7: =$A$53 -> Type of Filing: _ Original _ Update X Revised | Q7: =$Q$53 -> Schedule M-2.2
A8: =$A$54 -> Work Paper Reference No(s): | Q8: Page 1 of 21
A9: =$A$55 -> 12 Months Forecasted | Q9: =Witness -> Witness: Judith L. Siegler
A10: Current Annualized
A12: Line | B12: FERC | C12: Class/ | D12: Current
A13: No. | B13: Acct | C13: Description | D13: Rates | E13: =B!$D$11 -> Jan-22 | F13: =B!$E$11 -> Feb-22 | G13: =B!$F$11 -> Mar-22 | H13: =B!$G$11 -> Apr-22 | I13: =B!$H$11 -> May-22 | J13: =B!$I$11 -> Jun-22 | K13: =B!$J$11 -> Jul-22 | L13: =B!$K$11 -> Aug-22 | M13: =B!$L$11 -> Sep-22 | N13: =B!$M$11 -> Oct-22 | O13: =B!$N$11 -> Nov-22 | P13: =B!$O$11 -> Dec-22 | Q13: Total
B14: (A) | C14: (B) | D14: (C) | E14: (D) | F14: (E) | G14: (F) | H14: (G) | I14: (H) | J14: (I) | K14: (J) | L14: (K) | M14: (L) | N14: (M) | O14: (N) | P14: (O) | Q14: (P)
A16: 1 | C16: Operating Revenue
A18: =A16+1 -> 2 | C18: Sales of Gas | T18: Ck to below
A19: =A18+1 -> 3 | B19: 480 | C19: Residential Sales Revenue | E19: =E70+E84+E91+E98+E105+E134+E148+E155 -> 14003405.96 | F19: =F70+F84+F91+F98+F105+F134+F148+F155 -> 14150754.74 | G19: 11564943.44 | H19: =H70+H84+H91+H98+H105+H134+H148+H155 -> 7681028.7 | I19: 4737325.11 | J19: 3667117.08 | K19: 3164177.9 | L19: 3194751.32 | M19: 3296831.08 | N19: 3881651.79 | O19: 6103552.16 | P19: =P70+P84+P91+P98+P105+P134+P148+P155 -> 11011604.37 | Q19: =SUM(E19:P19) -> 86457143.65 | T19: =Q70+Q84+Q91+Q98+Q105+Q134+Q148+Q155 -> 86457143.65 | U19: =Q420+Q471+Q488+Q539+Q556+Q612+Q629 -> 86457143.65 | V19: =U19-T19 -> 0
A20: =A19+1 -> 4 | B20: 481.1 | C20: Commercial Sales Revenue | E20: =E77+E141+E162 -> 5814405.24 | F20: =F77+F141+F162 -> 5611699.55 | G20: 4812188.84 | H20: 2846262.69 | I20: 2021938.09 | J20: 1643802.65 | K20: 1487627.94 | L20: 1418210.08 | M20: 1452060.19 | N20: =N77+N141+N162 -> 1612033.53 | O20: 2442356.9 | P20: 4365175.83 | Q20: =SUM(E20:P20) -> 35527761.53 | T20: =Q77+Q141+Q162 -> 35527761.53 | U20: =Q437+Q573+Q680 -> 35527761.53 | V20: =U20-T20 -> 0
A21: =A20+1 -> 5 | B21: 481.2 | C21: Industrial Sales Revenue | E21: =E190+E197 -> 315104.38 | F21: 300854.96 | G21: 201858.77 | H21: 69158.96 | I21: 68327.17 | J21: 49612.07 | K21: 43295.06 | L21: 55455.28 | M21: 62138.11 | N21: 89887.8 | O21: 181975.04 | P21: 266433.88 | Q21: =SUM(E21:P21) -> 1704101.48 | T21: =Q197+Q190 -> 1704101.48 | U21: =Q732 -> 1704101.48 | V21: =Q21-T21 -> 0
A22: =A25+1 -> 8 | B22: 483 | C22: Public Utilities | E22: =E204 -> 12147.65 | F22: =F204 -> 10696.54 | G22: 11666.13 | H22: 5455.57 | I22: 4701.32 | J22: 4227.99 | K22: 3418 | L22: 3608.74 | M22: 3224.51 | N22: 4624.8 | O22: 6667.29 | P22: 9660.8 | Q22: =SUM(E22:P22) -> 80099.34 | T22: =Q204 -> 80099.34 | U22: =Q806 -> 80099.34 | V22: =Q22-T22 -> 0
A23: =A21+1 -> 6 | C23: Total Sales of Gas | E23: =SUM(E19:E22) -> 20145063.23 | F23: 20074005.79 | G23: 16590657.18 | H23: 10601905.92 | I23: 6832291.69 | J23: 5364759.79 | K23: 4698518.9 | L23: 4672025.42 | M23: 4814253.89 | N23: 5588197.92 | O23: 8734551.39 | P23: =SUM(P19:P22) -> 15652874.88 | Q23: =SUM(E23:P23) -> 123769106
A25: =A23+1 -> 7 | C25: Other Operating Revenue
A26: =A22+1 -> 9 | B26: 489 | C26: Transportation Revenue - Residential | E26: =E232 -> 1036134.85 | F26: 1039338.46 | G26: 872574.9 | H26: 643477.23 | I26: 463042.95 | J26: 391189.07 | K26: 358433.84 | L26: 359601.39 | M26: 361569.96 | N26: 397404.92 | O26: 527595.65 | P26: 800190.07 | Q26: =SUM(E26:P26) -> 7250553.29 | T26: =Q232 -> 7250553.29 | U26: =Q849 -> 7250553.29 | V26: =Q26-T26 -> 0
A27: 10 | B27: 489 | C27: Transportation Revenue - Commercial | E27: =E239+E253+E267+E308+E356+E315 -> 1280947.92 | F27: 1247121.55 | G27: 1066647.19 | H27: 826123.17 | I27: 656244.98 | J27: 573606.12 | K27: 542669.63 | L27: 539621.13 | M27: 549118.02 | N27: 585770.6 | O27: 772197.15 | P27: 1071272.61 | Q27: =SUM(E27:P27) -> 9711340.07 | T27: =Q239+Q253+Q267+Q308+Q315 -> 9711340.07 | U27: =Q878+Q969+Q1043 -> 9711340.07 | V27: =Q27-T27 -> 0
A28: 11 | B28: 489 | C28: Transportation Revenue - Industrial | E28: =E246+E260+E294+E301+E322+E329+E363 -> 547595.04 | F28: 498443.44 | G28: 535325.77 | H28: 460195.42 | I28: 423880.94 | J28: 390132.53 | K28: 358030.52 | L28: 413385.93 | M28: 419948.72 | N28: 472759.08 | O28: 513392.94 | P28: 530119.26 | Q28: 5563209.59 | T28: =Q246+Q260+Q294+Q301+Q322+Q329+Q356+Q363 -> 5563209.59 | U28: =Q924+Q997+Q1072+Q1107+Q1177 -> 5563209.59 | V28: =Q28-T28 -> 0
A29: =A28+1 -> 12 | B29: 487 | C29: Forfeited Discounts | E29: =E369 -> 61698.21 | F29: 77601.47 | G29: 64730.76 | H29: 37699.11667 | I29: 23873.18667 | J29: 22930.89667 | K29: 15374.97 | L29: 12900.78667 | M29: 13944.78667 | N29: 14062.41 | O29: 13451.78667 | P29: 31809.26 | Q29: 390077.64 | T29: =SUM(T19:T28) -> 146294209 | U29: =SUM(U19:U28) -> 146294209 | V29: 0
A30: 13 | B30: 488 | C30: Miscellaneous Service Revenue | E30: =E370 -> 5942.606667 | F30: 11364.44 | G30: 8098.21 | H30: 7979.916667 | I30: 12876.96333 | J30: -6927.856667 | K30: 6255.206667 | L30: 20702.36333 | M30: -7827.233333 | N30: 31071.31333 | O30: 14409.32 | P30: 13556.09667 | Q30: 117501.3467
A31: 14 | B31: 493 | C31: Rent from Gas Property | E31: =E371 -> 4169.666667 | F31: 2762.333333 | G31: 3466 | H31: 3466 | I31: 3466 | J31: 3466 | K31: 3466 | L31: 3466 | M31: 3466 | N31: 3466 | O31: 3466 | P31: 3466 | Q31: 41592
A32: 15 | B32: 495 | C32: Non-Traditional Sales | E32: =E372 -> 0 | F32: 0 | G32: 0 | H32: 0 | I32: 0 | J32: 0 | K32: 0 | L32: 0 | M32: 0 | N32: 0 | O32: 0 | P32: 0 | Q32: 0
A33: 16 | B33: 495 | C33: Other Gas Revenues - Other | E33: =E373 -> 38507.72667 | F33: 102473.7 | G33: 48446.93 | H33: 31408.92333 | I33: 22219.25 | J33: 29995.97 | K33: 32668.95667 | L33: 11055.75333 | M33: 94743.72333 | N33: 136060.2067 | O33: 35411.03667 | P33: 95390.25667 | Q33: 678382.4333
A34: =A33+1 -> 17 | C34: Total Other Operating Revenue | E34: =SUM(E26:E33) -> 2974996.02 | F34: 2979105.393 | G34: 2599289.76 | H34: 2010349.777 | I34: 1605604.27 | J34: 1404392.73 | K34: 1316899.123 | L34: 1360733.353 | M34: 1434963.977 | N34: 1640594.53 | O34: 1879923.883 | P34: 2545803.553 | Q34: 23752656.37
T35: Ck to Sch M
A36: =A34+1 -> 18 | C36: Total Operating Revenue | E36: =E23+E34 -> 23120059.25 | F36: 23053111.18 | G36: 19189946.94 | H36: 12612255.7 | I36: 8437895.96 | J36: 6769152.52 | K36: 6015418.023 | L36: 6032758.773 | M36: 6249217.867 | N36: 7228792.45 | O36: 10614475.27 | P36: 18198678.43 | Q36: =SUM(E36:P36) -> 147521762.4 | T36: ='Sch M'!O27 -> 147521762.4 | U36: =Q36-T36 -> 0
A47: =CONAME -> Columbia Gas of Kentucky, Inc.
A48: =case -> Case No. 2021-00183
A49: Annualized Test Year Revenues at Current Rates
A50: =TYDESC -> For the 12 Months Ended December 31, 2022
A51: (Gas Service)
A52: Data: __ Base Period _X_ Forecasted Period
A53: Type of Filing: _ Original _ Update X Revised | Q53: Schedule M-2.2
A54: Work Paper Reference No(s): | Q54: Page 2 of 21
A55: 12 Months Forecasted | Q55: =Witness -> Witness: Judith L. Siegler
A56: Current Annualized
A59: Line | B59: Rate | C59: Class/ | D59: Current
A60: No. | B60: Code | C60: Description | D60: Rates | E60: =B!$D$11 -> Jan-22 | F60: =B!$E$11 -> Feb-22 | G60: =B!$F$11 -> Mar-22 | H60: =B!$G$11 -> Apr-22 | I60: =B!$H$11 -> May-22 | J60: =B!$I$11 -> Jun-22 | K60: =B!$J$11 -> Jul-22 | L60: =B!$K$11 -> Aug-22 | M60: =B!$L$11 -> Sep-22 | N60: =B!$M$11 -> Oct-22 | O60: =B!$N$11 -> Nov-22 | P60: =B!$O$11 -> Dec-22 | Q60: Total
B61: (A) | C61: (B) | D61: (C) | E61: (D) | F61: (E) | G61: (F) | H61: (G) | I61: (H) | J61: (I) | K61: (J) | L61: (K) | M61: (L) | N61: (M) | O61: (N) | P61: (O) | Q61: (P)
A63: 1 | C63: Sales Service
A65: =A63+1 -> 2 | B65: =Input!A19 -> GSR | C65: ='Sch M 2.1'!B19 -> General Service - Residential | S65: DO NOT FILE - CHECK Only
A66: =A65+1 -> 3 | C66: Bills | E66: =E400 -> 110183 | F66: =F400 -> 110452 | G66: 110749 | H66: 109941 | I66: 109375 | J66: 108720 | K66: 108575 | L66: 108485 | M66: 108035 | N66: 108160 | O66: 109559 | P66: 111027 | Q66: =SUM(E66:P66) -> 1313261 | S66: Bills | T66: =Q66+Q73+Q80+Q87+Q94+Q101+Q130+Q137+Q144+Q151+Q158+Q186++Q193+Q200+Q228+Q235+Q242+Q249+Q256+Q263+Q290+Q297+Q304+Q311+Q318+Q325+Q352+Q359 -> 1659636 | U66: =B!$P$302 -> 1659636 | V66: =T66-U66 -> 0 | W66: Tab B
A67: =A66+1 -> 4 | C67: Volumes [1] | E67: =E404 -> 1484059.2 | F67: 1502349.6 | G67: 1166162.7 | H67: 664959.6 | I67: 284958.4 | J67: 148158.1 | K67: 83378.5 | L67: 87613.7 | M67: 102204 | N67: 177653.4 | O67: 461545.8 | P67: 1093564.7 | Q67: =SUM(E67:P67) -> 7256607.7 | S67: Vols | T67: =Q67+Q74+Q81+Q88+Q95+Q102+Q131+Q138+Q145+Q152+Q159+Q187+Q194+Q201+Q229+Q236+Q243+Q250+Q257+Q264+Q291+Q298+Q305+Q312+Q319+Q326+Q353+Q360 -> 30288170.4 | U67: ='C'!$P$443 -> 30288170.4 | V67: =T67-U67 -> 0 | W67: Tab C
A68: =A67+1 -> 5 | C68: Revenue Less Gas Cost | E68: =E407+E418 -> 7491758.86 | F68: =F407+F418 -> 7558805.98 | G68: =G407+G418 -> 6448149.83 | H68: 4763288.72 | I68: 3486946.21 | J68: =J407+J418 -> 3016985.56 | K68: 2798278.31 | L68: 2810267.16 | M68: 2848319.24 | N68: 3102030.63 | O68: 4078230.53 | P68: =P407+P418 -> 6213274.71 | Q68: =SUM(E68:P68) -> 54616335.74 | S68: Base plus Rider | T68: =Q68+Q75+Q82+Q89+Q96+Q103+Q132+Q139+Q146+Q153+Q160+Q188+Q195+Q202+Q230+Q237+Q244+Q251+Q258+Q265+Q292+Q299+Q306+Q313+Q320+Q327+Q354+Q361 -> 96772481.58 | U68: =Q407+Q467+Q484+Q535+Q552+Q608+Q625+Q669+Q721+Q795+Q837+Q874+Q920+Q965+Q993+Q1039+Q1068+Q1103+Q1173+Q418+Q676++Q728+Q802+Q847 -> 96714431.88 | V68: 58049.7
A69: =A68+1 -> 6 | C69: Gas Cost | E69: =E409 -> 6510567.71 | F69: 6590807.7 | G69: 5115955.76 | H69: 2917177.77 | I69: 1250112.5 | J69: 649969.58 | K69: 365781.48 | L69: 384361.3 | M69: 448368.95 | N69: 779365.47 | O69: 2024801.42 | P69: 4797468.34 | Q69: =SUM(E69:P69) -> 31834737.98 | S69: GCR | T69: =Q69+Q76+Q83+Q90+Q97+Q104+Q133+Q140+Q147+Q154+Q161+Q189+Q196+Q203+Q231+Q238+Q245+Q252+Q259+Q266+Q293+Q300+Q307+Q314+Q321+Q328+Q355+Q362 -> 49521727.37 | U69: =Q409+Q469+Q486+Q537+Q554+Q571+Q610+Q627+Q671+Q723+Q797 -> 49521727.37 | V69: 0
A70: =A69+1 -> 7 | C70: Total Revenue [2] | E70: =E420 -> 14002326.57 | F70: 14149613.68 | G70: 11564105.59 | H70: 7680466.49 | I70: 4737058.71 | J70: 3666955.14 | K70: 3164059.79 | L70: 3194628.46 | M70: 3296688.19 | N70: 3881396.1 | O70: 6103031.95 | P70: =P420 -> 11010743.05 | Q70: =SUM(E70:P70) -> 86451073.72 | S70: Total | T70: =Q70+Q77+Q84+Q91+Q98+Q105+Q134+Q141+Q148+Q155+Q162+Q190+Q197+Q204+Q232+Q239+Q246+Q253+Q260+Q267+Q294+Q301+Q308+Q315+Q322+Q329+Q356+Q363 -> 146294208.9 | U70: =SUM(U68:U69) -> 146236159.2 | V70: 58049.7
A72: =A70+1 -> 8 | B72: =Input!A20 -> G1C | C72: ='Sch M 2.1'!B20 -> LG&E Commercial | S72: CC | T72: =Q401+Q428+Q462+Q479+Q496+Q530+Q547+Q564+Q597+Q620+Q653+Q705+Q758+Q789+Q831+Q857+Q903+Q949+Q950+Q977+Q978+Q1021+Q1022+Q1050+Q1051+Q1097+Q1098+Q1115+Q1116+Q1133+Q1134+Q1167+Q1168+Q1185+Q1186+Q1225+Q1226+Q1250+Q1251 -> 33347475.2
A73: =A72+1 -> 9 | C73: Bills | E73: =E427 -> 0 | F73: 0 | G73: 0 | H73: 0 | I73: 0 | J73: 0 | K73: 0 | L73: 0 | M73: 0 | N73: 0 | O73: 0 | P73: 0 | Q73: =SUM(E73:P73) -> 0 | S73: Base | T73: =Q405+Q431+Q465+Q482+Q499+Q533+Q550+Q567+Q606+Q623+Q667+Q719+Q768+Q793+Q835+Q871+Q917+Q962+Q990+Q1036+Q1065+Q1101+Q1119++Q1137+Q1171+Q1195+Q1236+Q1260 -> 50328195.49
A74: =A73+1 -> 10 | C74: Volumes [1] | E74: =E430 -> 0 | F74: 0 | G74: 0 | H74: 0 | I74: 0 | J74: 0 | K74: 0 | L74: 0 | M74: 0 | N74: 0 | O74: 0 | P74: 0 | Q74: =SUM(E74:P74) -> 0 | S74: Amrp | T74: =Q402+Q654+Q706+Q759+Q790+Q832+Q858+Q904+Q951+Q979+Q1023+Q1052 -> 15165106.48
A75: =A74+1 -> 11 | C75: Revenue Less Gas Cost | E75: =E433 -> 0 | F75: 0 | G75: 0 | H75: 0 | I75: 0 | J75: 0 | K75: 0 | L75: 0 | M75: 0 | N75: 0 | O75: 0 | P75: 0 | Q75: =SUM(E75:P75) -> 0 | S75: Tax Act Adj | T75: =Q406+Q668+Q720+Q794+Q836+Q873+Q919+Q964+Q992+Q1038+Q1067 -> -3572348.58
A76: =A75+1 -> 12 | C76: Gas Cost | E76: =E435 -> 0 | F76: 0 | G76: 0 | H76: 0 | I76: 0 | J76: 0 | K76: 0 | L76: 0 | M76: 0 | N76: 0 | O76: 0 | P76: 0 | Q76: =SUM(E76:P76) -> 0 | S76: Base Only | T76: =T72+T73+T74+T75 -> 95268428.59
A77: =A76+1 -> 13 | C77: Total Revenue [2] | E77: =E437 -> 0 | F77: 0 | G77: 0 | H77: 0 | I77: 0 | J77: 0 | K77: 0 | L77: 0 | M77: 0 | N77: 0 | O77: 0 | P77: 0 | Q77: =SUM(E77:P77) -> 0 | S77: Rider
S78: EECP | T78: =Q414+Q844 -> 429273.66
A79: =A77+1 -> 14 | B79: =Input!A21 -> G1R | C79: ='Sch M 2.1'!B21 -> LG&E Residential | S79: Uncoll | T79: =Q415+Q676+Q728+Q777+Q802 -> 291226.22
A80: =A79+1 -> 15 | C80: Bills | E80: =E461 -> 4 | F80: 4 | G80: 4 | H80: 4 | I80: 4 | J80: 4 | K80: 4 | L80: 4 | M80: 4 | N80: 4 | O80: 4 | P80: 4 | Q80: =SUM(E80:P80) -> 48 | S80: EAP | T80: =Q417+Q846 -> 444076.2
A81: =A80+1 -> 16 | C81: Volumes [1] | E81: =E464 -> 90.7 | F81: 99.9 | G81: 67.7 | H81: 41.7 | I81: 15.5 | J81: 6.8 | K81: 2 | L81: 2.2 | M81: 3.5 | N81: 14.4 | O81: 39.3 | P81: 68.7 | Q81: =SUM(E81:P81) -> 452.4 | S81: Base plus Rider | T81: =T76+T78+T79+T80 -> 96433004.67
A82: =A81+1 -> 17 | C82: Revenue Less Gas Cost | E82: =E467 -> 443.1 | F82: =F467 -> 478.99 | G82: 353.38 | H82: 251.95 | I82: 149.75 | J82: 115.81 | K82: 97.08 | L82: 97.86 | M82: 102.93 | N82: 145.45 | O82: 242.59 | P82: 357.28 | Q82: =SUM(E82:P82) -> 2836.17
A83: =A82+1 -> 18 | C83: Gas Cost | E83: =E469 -> 397.9 | F83: 438.26 | G83: 297 | H83: 182.94 | I83: 68 | J83: 29.83 | K83: 8.77 | L83: 9.65 | M83: 15.35 | N83: 63.17 | O83: 172.41 | P83: 301.39 | Q83: =SUM(E83:P83) -> 1984.67
A84: =A83+1 -> 19 | C84: Total Revenue [2] | E84: =E471 -> 841 | F84: 917.25 | G84: 650.38 | H84: 434.89 | I84: 217.75 | J84: 145.64 | K84: 105.85 | L84: 107.51 | M84: 118.28 | N84: 208.62 | O84: 415 | P84: 658.67 | Q84: =SUM(E84:P84) -> 4820.84
A86: =A84+1 -> 20 | B86: =Input!A22 -> IN3 | C86: ='Sch M 2.1'!B22 -> Inland Gas General Service - Residential
A87: =A86+1 -> 21 | C87: Bills | E87: =E478 -> 10 | F87: 10 | G87: 10 | H87: 10 | I87: 10 | J87: 10 | K87: 10 | L87: 10 | M87: 10 | N87: 10 | O87: 10 | P87: 10 | Q87: =SUM(E87:P87) -> 120
A88: =A87+1 -> 22 | C88: Volumes [1] | E88: =E481 -> 277.9 | F88: 245 | G88: 198.6 | H88: 145.4 | I88: 58.8 | J88: 19.4 | K88: 11.6 | L88: 12.1 | M88: 15.1 | N88: 45.2 | O88: 118.1 | P88: 235.4 | Q88: =SUM(E88:P88) -> 1382.6
A89: =A88+1 -> 23 | C89: Revenue Less Gas Cost | E89: =E484 -> 115.16 | F89: =F484 -> 101.53 | G89: 82.3 | H89: 60.25 | I89: 24.37 | J89: 8.04 | K89: 4.81 | L89: 5.01 | M89: 6.26 | N89: 18.73 | O89: 48.94 | P89: 97.55 | Q89: =SUM(E89:P89) -> 572.95
A90: =A89+1 -> 24 | C90: Gas Cost | E90: =E486 -> 0 | F90: 0 | G90: 0 | H90: 0 | I90: 0 | J90: 0 | K90: 0 | L90: 0 | M90: 0 | N90: 0 | O90: 0 | P90: 0 | Q90: =SUM(E90:P90) -> 0
A91: =A90+1 -> 25 | C91: Total Revenue [2] | E91: =E488 -> 115.16 | F91: 101.53 | G91: 82.3 | H91: 60.25 | I91: 24.37 | J91: 8.04 | K91: 4.81 | L91: 5.01 | M91: 6.26 | N91: 18.73 | O91: 48.94 | P91: 97.55 | Q91: =SUM(E91:P91) -> 572.95
A93: =A91+1 -> 26 | B93: =Input!A24 -> IN4 | C93: ='Sch M 2.1'!B23 -> Inland Gas General Service - Residential
A94: =A93+1 -> 27 | C94: Bills | E94: =E495 -> 0 | F94: 0 | G94: 0 | H94: 0 | I94: 0 | J94: 0 | K94: 0 | L94: 0 | M94: 0 | N94: 0 | O94: 0 | P94: 0 | Q94: =SUM(E94:P94) -> 0
A95: =A94+1 -> 28 | C95: Volumes [1] | E95: =E498 -> 0 | F95: 0 | G95: 0 | H95: 0 | I95: 0 | J95: 0 | K95: 0 | L95: 0 | M95: 0 | N95: 0 | O95: 0 | P95: 0 | Q95: =SUM(E95:P95) -> 0
A96: =A95+1 -> 29 | C96: Revenue Less Gas Cost | E96: =E501 -> 0 | F96: 0 | G96: 0 | H96: 0 | I96: 0 | J96: 0 | K96: 0 | L96: 0 | M96: 0 | N96: 0 | O96: 0 | P96: 0 | Q96: =SUM(E96:P96) -> 0
A97: =A96+1 -> 30 | C97: Gas Cost | E97: =E503 -> 0 | F97: 0 | G97: 0 | H97: 0 | I97: 0 | J97: 0 | K97: 0 | L97: 0 | M97: 0 | N97: 0 | O97: 0 | P97: 0 | Q97: =SUM(E97:P97) -> 0
A98: =A97+1 -> 31 | C98: Total Revenue [2] | E98: =E505 -> 0 | F98: 0 | G98: 0 | H98: 0 | I98: 0 | J98: 0 | K98: 0 | L98: 0 | M98: 0 | N98: 0 | O98: 0 | P98: 0 | Q98: =SUM(E98:P98) -> 0
A100: =A98+1 -> 32 | B100: =Input!A25 -> IN5 | C100: ='Sch M 2.1'!B24 -> Inland Gas General Service - Residential
A101: =A100+1 -> 33 | C101: Bills | E101: =E529 -> 3 | F101: 3 | G101: 3 | H101: 3 | I101: 3 | J101: 3 | K101: 3 | L101: 3 | M101: 3 | N101: 3 | O101: 3 | P101: 3 | Q101: =SUM(E101:P101) -> 36
A102: =A101+1 -> 34 | C102: Volumes [1] | E102: =E532 -> 52.6 | F102: 46.7 | G102: 43.2 | H102: 28 | I102: 11.2 | J102: 2.9 | K102: 2.4 | L102: 2.7 | M102: 2.9 | N102: 4.7 | O102: 21.8 | P102: 44.7 | Q102: =SUM(E102:P102) -> 263.8
A103: =A102+1 -> 35 | C103: Revenue Less Gas Cost | E103: =E535 -> 32.32 | F103: 28.69 | G103: 26.54 | H103: 17.2 | I103: 6.88 | J103: 1.78 | K103: 1.47 | L103: 1.66 | M103: 1.78 | N103: 2.89 | O103: 13.39 | P103: 27.46 | Q103: =SUM(E103:P103) -> 162.06
A104: =A103+1 -> 36 | C104: Gas Cost | E104: =E537 -> 0 | F104: 0 | G104: 0 | H104: 0 | I104: 0 | J104: 0 | K104: 0 | L104: 0 | M104: 0 | N104: 0 | O104: 0 | P104: 0 | Q104: =SUM(E104:P104) -> 0
A105: =A104+1 -> 37 | C105: Total Revenue [2] | E105: =E539 -> 32.32 | F105: 28.69 | G105: 26.54 | H105: 17.2 | I105: 6.88 | J105: 1.78 | K105: 1.47 | L105: 1.66 | M105: 1.78 | N105: 2.89 | O105: 13.39 | P105: 27.46 | Q105: =SUM(E105:P105) -> 162.06
A108: [1] Reflects Normalized Volumes.
A109: [2] See Schedule M-2.2 Pages 8 through 21 for detail.
A111: =CONAME -> Columbia Gas of Kentucky, Inc.
A112: =case -> Case No. 2021-00183
A113: Annualized Test Year Revenues at Current Rates
A114: =TYDESC -> For the 12 Months Ended December 31, 2022
A115: (Gas Service)
A116: =$A$52 -> Data: __ Base Period _X_ Forecasted Period
A117: =$A$53 -> Type of Filing: _ Original _ Update X Revised | Q117: =$Q$53 -> Schedule M-2.2
A118: =$A$54 -> Work Paper Reference No(s): | Q118: Page 3 of 21
A119: =$A$55 -> 12 Months Forecasted | Q119: =Witness -> Witness: Judith L. Siegler
A120: Current Annualized
A123: Line | B123: Rate | C123: Class/ | D123: Current
A124: No. | B124: Code | C124: Description | D124: Rates | E124: =B!$D$11 -> Jan-22 | F124: =B!$E$11 -> Feb-22 | G124: =B!$F$11 -> Mar-22 | H124: =B!$G$11 -> Apr-22 | I124: =B!$H$11 -> May-22 | J124: =B!$I$11 -> Jun-22 | K124: =B!$J$11 -> Jul-22 | L124: =B!$K$11 -> Aug-22 | M124: =B!$L$11 -> Sep-22 | N124: =B!$M$11 -> Oct-22 | O124: =B!$N$11 -> Nov-22 | P124: =B!$O$11 -> Dec-22 | Q124: Total
B125: (A) | C125: (B) | D125: (C) | E125: (D) | F125: (E) | G125: (F) | H125: (G) | I125: (H) | J125: (I) | K125: (J) | L125: (K) | M125: (L) | N125: (M) | O125: (N) | P125: (O) | Q125: (P)
A127: 1 | C127: Sales Service
A129: =A127+1 -> 2 | B129: =Input!A26 -> LG2 | C129: ='Sch M 2.1'!B25 -> LG&E Residential
A130: =A129+1 -> 3 | C130: Bills | E130: =E546 -> 1 | F130: 1 | G130: 1 | H130: 1 | I130: 1 | J130: 1 | K130: 1 | L130: 1 | M130: 1 | N130: 1 | O130: 1 | P130: 1 | Q130: =SUM(E130:P130) -> 12
A131: =A130+1 -> 4 | C131: Volumes [1] | E131: =E549 -> 138.2 | F131: 141.5 | G131: 113 | H131: 73.1 | I131: 18.1 | J131: 3.1 | K131: 2.9 | L131: 2.9 | M131: 3.9 | N131: 22.1 | O131: 57.2 | P131: 96.3 | Q131: =SUM(E131:P131) -> 672.3
A132: =A131+1 -> 5 | C132: Revenue Less Gas Cost | E132: =E552 -> 48.37 | F132: 49.53 | G132: 39.55 | H132: 25.59 | I132: 6.34 | J132: 1.09 | K132: 1.02 | L132: 1.02 | M132: 1.37 | N132: 7.74 | O132: 20.02 | P132: 33.71 | Q132: =SUM(E132:P132) -> 235.35
A133: =A132+1 -> 6 | C133: Gas Cost | E133: =E554 -> 0 | F133: 0 | G133: 0 | H133: 0 | I133: 0 | J133: 0 | K133: 0 | L133: 0 | M133: 0 | N133: 0 | O133: 0 | P133: 0 | Q133: =SUM(E133:P133) -> 0
A134: =A133+1 -> 7 | C134: Total Revenue [2] | E134: =E556 -> 48.37 | F134: 49.53 | G134: 39.55 | H134: 25.59 | I134: 6.34 | J134: 1.09 | K134: 1.02 | L134: 1.02 | M134: 1.37 | N134: 7.74 | O134: 20.02 | P134: 33.71 | Q134: =SUM(E134:P134) -> 235.35
A136: =A134+1 -> 8 | B136: =Input!A27 -> LG2 | C136: ='Sch M 2.1'!B26 -> LG&E Commercial
A137: =A136+1 -> 9 | C137: Bills | E137: =E563 -> 0 | F137: 0 | G137: 0 | H137: 0 | I137: 0 | J137: 0 | K137: 0 | L137: 0 | M137: 0 | N137: 0 | O137: 0 | P137: 0 | Q137: =SUM(E137:P137) -> 0
A138: =A137+1 -> 10 | C138: Volumes [1] | E138: =E566 -> 0 | F138: 0 | G138: 0 | H138: 0 | I138: 0 | J138: 0 | K138: 0 | L138: 0 | M138: 0 | N138: 0 | O138: 0 | P138: 0 | Q138: =SUM(E138:P138) -> 0
A139: =A138+1 -> 11 | C139: Revenue Less Gas Cost | E139: =E569 -> 0 | F139: 0 | G139: 0 | H139: 0 | I139: 0 | J139: 0 | K139: 0 | L139: 0 | M139: 0 | N139: 0 | O139: 0 | P139: 0 | Q139: =SUM(E139:P139) -> 0
A140: =A139+1 -> 12 | C140: Gas Cost | E140: =E571 -> 0 | F140: 0 | G140: 0 | H140: 0 | I140: 0 | J140: 0 | K140: 0 | L140: 0 | M140: 0 | N140: 0 | O140: 0 | P140: 0 | Q140: =SUM(E140:P140) -> 0
A141: =A140+1 -> 13 | C141: Total Revenue [2] | E141: =E573 -> 0 | F141: 0 | G141: 0 | H141: 0 | I141: 0 | J141: 0 | K141: 0 | L141: 0 | M141: 0 | N141: 0 | O141: 0 | P141: 0 | Q141: =SUM(E141:P141) -> 0
A143: =A141+1 -> 14 | B143: =Input!A28 -> LG3 | C143: ='Sch M 2.1'!B27 -> LG&E Residential
A144: =A143+1 -> 15 | C144: Bills | E144: =E596 -> 1 | F144: 1 | G144: 1 | H144: 1 | I144: 1 | J144: 1 | K144: 1 | L144: 1 | M144: 1 | N144: 1 | O144: 1 | P144: 1 | Q144: =SUM(E144:P144) -> 12
A145: =A144+1 -> 16 | C145: Volumes [1] | E145: =E602 -> 82.4 | F145: 88.1 | G145: 75.6 | H145: 50 | I145: 20.1 | J145: 11.5 | K145: 10 | L145: 17.7 | M145: 38.8 | N145: 44.7 | O145: 52.1 | P145: 97.9 | Q145: =SUM(E145:P145) -> 588.9
A146: =A145+1 -> 17 | C146: Revenue Less Gas Cost | E146: =E608 -> 29.34 | F146: 31.34 | G146: 26.96 | H146: 18 | I146: 7.54 | J146: 4.39 | K146: 4 | L146: 6.7 | M146: 14.08 | N146: 16.15 | O146: 18.74 | P146: 34.77 | Q146: =SUM(E146:P146) -> 212.01
A147: =A146+1 -> 18 | C147: Gas Cost | E147: =E610 -> 0 | F147: 0 | G147: 0 | H147: 0 | I147: 0 | J147: 0 | K147: 0 | L147: 0 | M147: 0 | N147: 0 | O147: 0 | P147: 0 | Q147: =SUM(E147:P147) -> 0
A148: =A147+1 -> 19 | C148: Total Revenue [2] | E148: =E612 -> 29.34 | F148: 31.34 | G148: 26.96 | H148: 18 | I148: 7.54 | J148: 4.39 | K148: 4 | L148: 6.7 | M148: 14.08 | N148: 16.15 | O148: 18.74 | P148: 34.77 | Q148: =SUM(E148:P148) -> 212.01
A150: =A148+1 -> 20 | B150: =Input!A29 -> LG4 | C150: ='Sch M 2.1'!B28 -> LG&E Residential
A151: =A150+1 -> 21 | C151: Bills | E151: =E619 -> 1 | F151: 1 | G151: 1 | H151: 1 | I151: 1 | J151: 1 | K151: 1 | L151: 1 | M151: 1 | N151: 1 | O151: 1 | P151: 1 | Q151: =SUM(E151:P151) -> 12
A152: =A151+1 -> 22 | C152: Volumes [1] | E152: =E622 -> 33 | F152: 31.8 | G152: 30.3 | H152: 15.7 | I152: 8.8 | J152: 2.5 | K152: 2.4 | L152: 2.4 | M152: 2.8 | N152: 3.9 | O152: 10.3 | P152: 22.9 | Q152: =SUM(E152:P152) -> 166.8
A153: =A152+1 -> 23 | C153: Revenue Less Gas Cost | E153: =E625 -> 13.2 | F153: 12.72 | G153: 12.12 | H153: 6.28 | I153: 3.52 | J153: 1 | K153: 0.96 | L153: 0.96 | M153: 1.12 | N153: 1.56 | O153: 4.12 | P153: 9.16 | Q153: =SUM(E153:P153) -> 66.72
A154: =A153+1 -> 24 | C154: Gas Cost | E154: =E627 -> 0 | F154: 0 | G154: 0 | H154: 0 | I154: 0 | J154: 0 | K154: 0 | L154: 0 | M154: 0 | N154: 0 | O154: 0 | P154: 0 | Q154: =SUM(E154:P154) -> 0
A155: =A154+1 -> 25 | C155: Total Revenue [2] | E155: =E629 -> 13.2 | F155: 12.72 | G155: 12.12 | H155: 6.28 | I155: 3.52 | J155: 1 | K155: 0.96 | L155: 0.96 | M155: 1.12 | N155: 1.56 | O155: 4.12 | P155: 9.16 | Q155: =SUM(E155:P155) -> 66.72
A157: =A155+1 -> 26 | B157: =Input!A30 -> GSO | C157: ='Sch M 2.1'!B29 -> General Service - Commercial
A158: =A157+1 -> 27 | C158: Bills | E158: =E652 -> 11642 | F158: 11663 | G158: 11728 | H158: 11667 | I158: 11584 | J158: 11516 | K158: 11467 | L158: 11414 | M158: 11412 | N158: 11433 | O158: 11622 | P158: 11778 | Q158: =SUM(E158:P158) -> 138926
A159: =A158+1 -> 28 | C159: Volumes [1] | E159: =E661 -> 733043 | F159: 700984 | G159: 582736.8 | H159: 294143 | I159: 174296.9 | J159: 121730.5 | K159: 100026.3 | L159: 90381.5 | M159: 95393.8 | N159: 118125.7 | O159: 236468.7 | P159: 516678.9 | Q159: =SUM(E159:P159) -> 3764009.1
A160: =A159+1 -> 29 | C160: Revenue Less Gas Cost | E160: =E669+E678 -> 2598545.6 | F160: =F669+F678 -> 2536482.74 | G160: =G669+G678 -> 2255722.5 | H160: 1555857.35 | I160: 1257297.59 | J160: 1109770.95 | K160: 1048812.56 | L160: 1021706.44 | M160: 1033567.59 | N160: 1093816.08 | O160: 1404968.71 | P160: 2098505.5 | Q160: =SUM(E160:P160) -> 19015053.61
A161: =A160+1 -> 30 | C161: Gas Cost | E161: =E671 -> 3215859.64 | F161: 3075216.81 | G161: 2556466.34 | H161: 1290405.34 | I161: 764640.5 | J161: 534031.7 | K161: 438815.38 | L161: 396503.64 | M161: 418492.6 | N161: 518217.45 | O161: 1037388.19 | P161: 2266670.33 | Q161: =SUM(E161:P161) -> 16512707.92
A162: =A161+1 -> 31 | C162: Total Revenue [2] | E162: =E680 -> 5814405.24 | F162: 5611699.55 | G162: 4812188.84 | H162: 2846262.69 | I162: 2021938.09 | J162: 1643802.65 | K162: 1487627.94 | L162: 1418210.08 | M162: 1452060.19 | N162: 1612033.53 | O162: 2442356.9 | P162: 4365175.83 | Q162: =SUM(E162:P162) -> 35527761.53
A165: =$A$108 -> [1] Reflects Normalized Volumes.
A166: =$A$109 -> [2] See Schedule M-2.2 Pages 8 through 21 for detail.
A167: =CONAME -> Columbia Gas of Kentucky, Inc.
A168: =case -> Case No. 2021-00183
A169: Annualized Test Year Revenues at Current Rates
A170: =TYDESC -> For the 12 Months Ended December 31, 2022
A171: (Gas Service)
A172: =$A$52 -> Data: __ Base Period _X_ Forecasted Period
A173: =$A$53 -> Type of Filing: _ Original _ Update X Revised | Q173: =$Q$53 -> Schedule M-2.2
A174: =$A$54 -> Work Paper Reference No(s): | Q174: Page 4 of 21
A175: =$A$55 -> 12 Months Forecasted | Q175: =Witness -> Witness: Judith L. Siegler
A176: Current Annualized
A179: Line | B179: Rate | C179: Class/ | D179: Current
A180: No. | B180: Code | C180: Description | D180: Rates | E180: =B!$D$11 -> Jan-22 | F180: =B!$E$11 -> Feb-22 | G180: =B!$F$11 -> Mar-22 | H180: =B!$G$11 -> Apr-22 | I180: =B!$H$11 -> May-22 | J180: =B!$I$11 -> Jun-22 | K180: =B!$J$11 -> Jul-22 | L180: =B!$K$11 -> Aug-22 | M180: =B!$L$11 -> Sep-22 | N180: =B!$M$11 -> Oct-22 | O180: =B!$N$11 -> Nov-22 | P180: =B!$O$11 -> Dec-22 | Q180: Total
B181: (A) | C181: (B) | D181: (C) | E181: (D) | F181: (E) | G181: (F) | H181: (G) | I181: (H) | J181: (I) | K181: (J) | L181: (K) | M181: (L) | N181: (M) | O181: (N) | P181: (O) | Q181: (P)
A183: 1 | C183: Sales Service
A185: =A183+1 -> 2 | B185: =Input!A31 -> GSO | C185: ='Sch M 2.1'!B30 -> General Service - Industrial
A186: =A185+1 -> 3 | C186: Bills | E186: =E704 -> 52 | F186: 52 | G186: 51 | H186: 51 | I186: 50 | J186: 51 | K186: 51 | L186: 51 | M186: 51 | N186: 52 | O186: 53 | P186: 53 | Q186: =SUM(E186:P186) -> 618
A187: =A186+1 -> 4 | C187: Volumes [1] | E187: =E713 -> 48458.8 | F187: 46186.4 | G187: 30488.2 | H187: 9871.6 | I187: 9771.9 | J187: 6949.4 | K187: 6025.1 | L187: 7880.1 | M187: 8890.3 | N187: 13143.4 | O187: 27525.7 | P187: 40778.5 | Q187: =SUM(E187:P187) -> 255969.4
A188: =A187+1 -> 5 | C188: Revenue Less Gas Cost | E188: =E721+E730 -> 102515.62 | F188: =F721+F730 -> 98235.22 | G188: 68107.04 | H188: 25852.25 | I188: 25457.84 | J188: 19125.05 | K188: 16862.95 | L188: 20885.28 | M188: 23136.36 | N188: 32227.7 | O188: 61219.79 | P188: 87538.6 | Q188: =SUM(E188:P188) -> 581163.7
A189: =A188+1 -> 6 | C189: Gas Cost | E189: =E723 -> 212588.76 | F189: 202619.74 | G189: 133751.73 | H189: 43306.71 | I189: 42869.33 | J189: 30487.02 | K189: 26432.11 | L189: 34570 | M189: 39001.75 | N189: 57660.1 | O189: 120755.25 | P189: 178895.28 | Q189: =SUM(E189:P189) -> 1122937.78
A190: =A189+1 -> 7 | C190: Total Revenue [2] | E190: =E732 -> 315104.38 | F190: 300854.96 | G190: 201858.77 | H190: 69158.96 | I190: 68327.17 | J190: 49612.07 | K190: 43295.06 | L190: 55455.28 | M190: 62138.11 | N190: 89887.8 | O190: 181975.04 | P190: 266433.88 | Q190: =SUM(E190:P190) -> 1704101.48
A192: =A190+1 -> 8 | B192: =Input!A36 -> IS | C192: ='Sch M 2.1'!B31 -> Interruptible Service - Industrial
A193: =A192+1 -> 9 | C193: Bills | E193: =E757 -> 0 | F193: 0 | G193: 0 | H193: 0 | I193: 0 | J193: 0 | K193: 0 | L193: 0 | M193: 0 | N193: 0 | O193: 0 | P193: 0 | Q193: =SUM(E193:P193) -> 0
A194: =A193+1 -> 10 | C194: Volumes [1] | E194: =E764 -> 0 | F194: 0 | G194: 0 | H194: 0 | I194: 0 | J194: 0 | K194: 0 | L194: 0 | M194: 0 | N194: 0 | O194: 0 | P194: 0 | Q194: =SUM(E194:P194) -> 0
A195: =A194+1 -> 11 | C195: Revenue Less Gas Cost | E195: =E770+E779 -> 0 | F195: =F770+F779 -> 0 | G195: 0 | H195: 0 | I195: 0 | J195: 0 | K195: 0 | L195: 0 | M195: 0 | N195: 0 | O195: 0 | P195: 0 | Q195: =SUM(E195:P195) -> 0
A196: =A195+1 -> 12 | C196: Gas Cost | E196: =E772 -> 0 | F196: 0 | G196: 0 | H196: 0 | I196: 0 | J196: 0 | K196: 0 | L196: 0 | M196: 0 | N196: 0 | O196: 0 | P196: 0 | Q196: =SUM(E196:P196) -> 0
A197: =A196+1 -> 13 | C197: Total Revenue [2] | E197: =E781 -> 0 | F197: 0 | G197: 0 | H197: 0 | I197: 0 | J197: 0 | K197: 0 | L197: 0 | M197: 0 | N197: 0 | O197: 0 | P197: 0 | Q197: =SUM(E197:P197) -> 0
A199: =A197+1 -> 14 | B199: =Input!A37 -> IUS | C199: ='Sch M 2.1'!B32 -> Intrastate Utility Service - Wholesale
A200: =A199+1 -> 15 | C200: Bills | E200: =E788 -> 2 | F200: 2 | G200: 2 | H200: 2 | I200: 2 | J200: 2 | K200: 2 | L200: 2 | M200: 2 | N200: 2 | O200: 2 | P200: 2 | Q200: =SUM(E200:P200) -> 24
A201: =A200+1 -> 16 | C201: Volumes [1] | E201: =E792 -> 1938.9 | F201: 1673.4 | G201: 1850.8 | H201: 714.5 | I201: 576.5 | J201: 489.9 | K201: 341.7 | L201: 376.6 | M201: 306.3 | N201: 562.5 | O201: 936.2 | P201: 1483.9 | Q201: =SUM(E201:P201) -> 11251.2
A202: =A201+1 -> 17 | C202: Revenue Less Gas Cost | E202: =E795+E804 -> 3641.7 | F202: =F795+F804 -> 3355.33 | G202: 3546.67 | H202: 2321.06 | I202: 2172.21 | J202: 2078.8 | K202: 1918.96 | L202: 1956.6 | M202: 1880.77 | N202: 2157.11 | O202: 2560.18 | P202: 3150.93 | Q202: =SUM(E202:P202) -> 30740.32
A203: =A202+1 -> 18 | C203: Gas Cost | E203: =E797 -> 8505.95 | F203: 7341.21 | G203: 8119.46 | H203: 3134.51 | I203: 2529.11 | J203: 2149.19 | K203: 1499.04 | L203: 1652.14 | M203: 1343.74 | N203: 2467.69 | O203: 4107.11 | P203: 6509.87 | Q203: =SUM(E203:P203) -> 49359.02
A204: =A203+1 -> 19 | C204: Total Revenue [2] | E204: =E806 -> 12147.65 | F204: 10696.54 | G204: 11666.13 | H204: 5455.57 | I204: 4701.32 | J204: 4227.99 | K204: 3418 | L204: 3608.74 | M204: 3224.51 | N204: 4624.8 | O204: 6667.29 | P204: 9660.8 | Q204: =SUM(E204:P204) -> 80099.34
A207: =$A$108 -> [1] Reflects Normalized Volumes.
A208: =$A$109 -> [2] See Schedule M-2.2 Pages 8 through 21 for detail.
A209: =CONAME -> Columbia Gas of Kentucky, Inc.
A210: =case -> Case No. 2021-00183
A211: Annualized Test Year Revenues at Current Rates
A212: =TYDESC -> For the 12 Months Ended December 31, 2022
A213: (Gas Service)
A214: =$A$52 -> Data: __ Base Period _X_ Forecasted Period
A215: =$A$53 -> Type of Filing: _ Original _ Update X Revised | Q215: =$Q$53 -> Schedule M-2.2
A216: =$A$54 -> Work Paper Reference No(s): | Q216: Page 5 of 21
A217: =$A$55 -> 12 Months Forecasted | Q217: =Witness -> Witness: Judith L. Siegler
A218: Current Annualized
A221: Line | B221: Rate | C221: Class/ | D221: Current
A222: No. | B222: Code | C222: Description | D222: Rates | E222: =B!$D$11 -> Jan-22 | F222: =B!$E$11 -> Feb-22 | G222: =B!$F$11 -> Mar-22 | H222: =B!$G$11 -> Apr-22 | I222: =B!$H$11 -> May-22 | J222: =B!$I$11 -> Jun-22 | K222: =B!$J$11 -> Jul-22 | L222: =B!$K$11 -> Aug-22 | M222: =B!$L$11 -> Sep-22 | N222: =B!$M$11 -> Oct-22 | O222: =B!$N$11 -> Nov-22 | P222: =B!$O$11 -> Dec-22 | Q222: Total
B223: (A) | C223: (B) | D223: (C) | E223: (D) | F223: (E) | G223: (F) | H223: (G) | I223: (H) | J223: (I) | K223: (J) | L223: (K) | M223: (L) | N223: (M) | O223: (N) | P223: (O) | Q223: (P)
A225: 1 | C225: Transportation Service
A227: =A225+1 -> 2 | B227: =Input!A41 -> GTR | C227: ='Sch M 2.1'!B36 -> GTS Choice - Residential
A228: =A227+1 -> 3 | C228: Bills | E228: =E830 -> 14412 | F228: 14308 | G228: 14237 | H228: 14116 | I228: 14041 | J228: 13964 | K228: 13875 | L228: 13809 | M228: 13699 | N228: 13597 | O228: 13511 | P228: 13424 | Q228: =SUM(E228:P228) -> 166993
A229: =A228+1 -> 4 | C229: Volumes [1] | E229: =E834 -> 212675.3 | F229: 214378.7 | G229: 164319.6 | H229: 95714.2 | I229: 41538.6 | J229: 20296.2 | K229: 10992.1 | L229: 11810.7 | M229: 13181.9 | N229: 24764.3 | O229: 64840.6 | P229: 148097.5 | Q229: =SUM(E229:P229) -> 1022609.7
A230: =A229+1 -> 5 | C230: Revenue Less Gas Cost | E230: =E837+E847 -> 1036134.85 | F230: =F837+F847 -> 1039338.46 | G230: 872574.9 | H230: 643477.23 | I230: 463042.95 | J230: 391189.07 | K230: 358433.84 | L230: 359601.39 | M230: 361569.96 | N230: 397404.92 | O230: 527595.65 | P230: 800190.07 | Q230: =SUM(E230:P230) -> 7250553.29
A231: =A230+1 -> 6 | C231: Gas Cost | E231: =E839 -> 0 | F231: 0 | G231: 0 | H231: 0 | I231: 0 | J231: 0 | K231: 0 | L231: 0 | M231: 0 | N231: 0 | O231: 0 | P231: 0 | Q231: =SUM(E231:P231) -> 0
A232: =A231+1 -> 7 | C232: Total Revenue [2] | E232: =E849 -> 1036134.85 | F232: 1039338.46 | G232: 872574.9 | H232: 643477.23 | I232: 463042.95 | J232: 391189.07 | K232: 358433.84 | L232: 359601.39 | M232: 361569.96 | N232: 397404.92 | O232: 527595.65 | P232: 800190.07 | Q232: =SUM(E232:P232) -> 7250553.29
A234: =A232+1 -> 8 | B234: =Input!A42 -> GTO | C234: ='Sch M 2.1'!B37 -> GTS Choice - Commercial
A235: =A234+1 -> 9 | C235: Bills | E235: =E856 -> 2990 | F235: 2989 | G235: 3221 | H235: 3224 | I235: 3231 | J235: 3234 | K235: 3237 | L235: 3238 | M235: 3227 | N235: 3233 | O235: 3232 | P235: 3230 | Q235: =SUM(E235:P235) -> 38286
A236: =A235+1 -> 10 | C236: Volumes [1] | E236: =E865 -> 275894.2 | F236: 264119.1 | G236: 222962.5 | H236: 117802.6 | I236: 79632.9 | J236: 54193.9 | K236: 40601.2 | L236: 38563.3 | M236: 42788.4 | N236: 52458 | O236: 99717.3 | P236: 187534.2 | Q236: =SUM(E236:P236) -> 1476267.6
A237: =A236+1 -> 11 | C237: Revenue Less Gas Cost | E237: =E874 -> 859532.16 | F237: =F874 -> 835009.62 | G237: 757527.5 | H237: 514989.35 | I237: 425013.03 | J237: 359198.5 | K237: 325372.78 | L237: 320288.62 | M237: 328877.35 | N237: 353592.26 | O237: 469275.71 | P237: 677111.49 | Q237: =SUM(E237:P237) -> 6225788.37
A238: =A237+1 -> 12 | C238: Gas Cost | E238: =E876 -> 0 | F238: 0 | G238: 0 | H238: 0 | I238: 0 | J238: 0 | K238: 0 | L238: 0 | M238: 0 | N238: 0 | O238: 0 | P238: 0 | Q238: =SUM(E238:P238) -> 0
A239: =A238+1 -> 13 | C239: Total Revenue [2] | E239: =E878 -> 859532.16 | F239: 835009.62 | G239: 757527.5 | H239: 514989.35 | I239: 425013.03 | J239: 359198.5 | K239: 325372.78 | L239: 320288.62 | M239: 328877.35 | N239: 353592.26 | O239: 469275.71 | P239: 677111.49 | Q239: =SUM(E239:P239) -> 6225788.37
A241: =A239+1 -> 14 | B241: =Input!A43 -> GTO | C241: ='Sch M 2.1'!B38 -> GTS Choice - Industrial
A242: =A241+1 -> 15 | C242: Bills | E242: =E902 -> 12 | F242: 12 | G242: 12 | H242: 12 | I242: 12 | J242: 12 | K242: 12 | L242: 12 | M242: 12 | N242: 12 | O242: 12 | P242: 12 | Q242: =SUM(E242:P242) -> 144
A243: =A242+1 -> 16 | C243: Volumes [1] | E243: =E911 -> 5140 | F243: 5041.8 | G243: 5690 | H243: 2420.1 | I243: 2488.4 | J243: 2355.8 | K243: 2379.8 | L243: 2916.3 | M243: 2849.5 | N243: 3294.7 | O243: 3973.5 | P243: 6536.9 | Q243: =SUM(E243:P243) -> 45086.8
A244: =A243+1 -> 17 | C244: Revenue Less Gas Cost | E244: =E920 -> 11980.7 | F244: =F920 -> 11782.28 | G244: 13050.36 | H244: 6298.31 | I244: 6374.76 | J244: 5985.64 | K244: 5983.02 | L244: 7108.83 | M244: 7070.92 | N244: 7879.71 | O244: 9400.49 | P244: 14541.04 | Q244: =SUM(E244:P244) -> 107456.06
A245: =A244+1 -> 18 | C245: Gas Cost | E245: =E922 -> 0 | F245: 0 | G245: 0 | H245: 0 | I245: 0 | J245: 0 | K245: 0 | L245: 0 | M245: 0 | N245: 0 | O245: 0 | P245: 0 | Q245: =SUM(E245:P245) -> 0
A246: =A245+1 -> 19 | C246: Total Revenue [2] | E246: =E924 -> 11980.7 | F246: 11782.28 | G246: 13050.36 | H246: 6298.31 | I246: 6374.76 | J246: 5985.64 | K246: 5983.02 | L246: 7108.83 | M246: 7070.92 | N246: 7879.71 | O246: 9400.49 | P246: 14541.04 | Q246: =SUM(E246:P246) -> 107456.06
A248: =A246+1 -> 20 | B248: =Input!A44 -> DS | C248: ='Sch M 2.1'!B39 -> GTS Delivery Service - Commercial
A249: =A248+1 -> 21 | C249: Bills | E249: =E948 -> 28 | F249: 28 | G249: 28 | H249: 28 | I249: 28 | J249: 28 | K249: 28 | L249: 28 | M249: 28 | N249: 28 | O249: 28 | P249: 28 | Q249: =SUM(E249:P249) -> 336
A250: =A249+1 -> 22 | C250: Volumes [1] | E250: =E957 -> 363010.2 | F250: 308161.8 | G250: 286122.1 | H250: 236391.1 | I250: 184735 | J250: 156750 | K250: 159440.6 | L250: 156637.2 | M250: 165216.2 | N250: 206061.4 | O250: 287543.6 | P250: 341387.8 | Q250: =SUM(E250:P250) -> 2851457
... 859 more rows

Sheet Sch M 2.3
A1: =CONAME -> Columbia Gas of Kentucky, Inc.
A2: =case -> Case No. 2021-00183
A3: Annualized Test Year Revenues at Proposed Rates
A4: =TYDESC -> For the 12 Months Ended December 31, 2022
A5: (Gas Service)
A6: =$A$52 -> Data: __ Base Period _X_ Forecasted Period
A7: =$A$53 -> Type of Filing: _ Original _ Update X Revised | Q7: =$Q$53 -> Schedule M-2.3
A8: =$A$54 -> Work Paper Reference No(s): | Q8: Page 1 of 21
A9: =$A$55 -> 12 Months Forecasted | Q9: =Witness -> Witness: Judith L. Siegler
A10: Proposed Annualized
A12: Line | B12: FERC | C12: Class/ | D12: Proposed
A13: No. | B13: Acct | C13: Description | D13: Rates | E13: =B!$D$11 -> Jan-22 | F13: =B!$E$11 -> Feb-22 | G13: =B!$F$11 -> Mar-22 | H13: =B!$G$11 -> Apr-22 | I13: =B!$H$11 -> May-22 | J13: =B!$I$11 -> Jun-22 | K13: =B!$J$11 -> Jul-22 | L13: =B!$K$11 -> Aug-22 | M13: =B!$L$11 -> Sep-22 | N13: =B!$M$11 -> Oct-22 | O13: =B!$N$11 -> Nov-22 | P13: =B!$O$11 -> Dec-22 | Q13: Total
B14: (A) | C14: (B) | D14: (C) | E14: (D) | F14: (E) | G14: (F) | H14: (G) | I14: (H) | J14: (I) | K14: (J) | L14: (K) | M14: (L) | N14: (M) | O14: (N) | P14: (O) | Q14: (P)
A16: 1 | C16: Operating Revenue
A18: =A16+1 -> 2 | C18: Sales of Gas | T18: Ck to below
A19: =A18+1 -> 3 | B19: 480 | C19: Residential Sales Revenue | E19: =E69+E83+E90+E97+E104+E131+E145+E152 -> 16618728.29 | F19: 16801446.02 | G19: 13550440.43 | H19: 8678425.29 | I19: 4985431.4 | J19: 3646778.7 | K19: 3016246.15 | L19: =L69+L83+L90+L97+L104+L131+L145+L152 -> 3055447.95 | M19: 3187655.61 | N19: 3921211.88 | O19: 6700082.9 | P19: 12852839.82 | Q19: =SUM(E19:P19) -> 97014734.44 | T19: =Q69+Q83+Q90+Q97+Q104+Q131+Q145+Q152 -> 97014734.44 | U19: =Q418+Q470+Q487+Q538+Q555+Q611+Q627 -> 97014734.44 | V19: =U19-T19 -> 0
A20: =A19+1 -> 4 | B20: 481.1 | C20: Commercial Sales Revenue | E20: =E76+E138+E159 -> 6253118.94 | F20: =F76+F138+F159 -> 6040252.22 | G20: 5198908.65 | H20: 3127695.55 | I20: 2258477.47 | J20: 1859010.08 | K20: 1693834.36 | L20: 1620131.78 | M20: 1655758.75 | N20: 1824590.78 | O20: 2701550.39 | P20: 4728618.78 | Q20: =SUM(E20:P20) -> 38961947.75 | T20: =Q76+Q138+Q159 -> 38961947.75 | U20: =Q435+Q572+Q678 -> 38961947.75 | V20: =U20-T20 -> 0
A21: =A20+1 -> 5 | B21: 481.2 | C21: Industrial Sales Revenue | E21: =E186+E193 -> 331933.87 | F21: 316960.56 | G21: 212908.6 | H21: 73360.44 | I21: 72470.89 | J21: 52782.39 | K21: 46128.25 | L21: 58922.74 | M21: 65955.92 | N21: 95158.13 | O21: 191992.03 | P21: 280783.9 | Q21: =SUM(E21:P21) -> 1799357.72 | T21: =Q193+Q186 -> 1799357.72 | U21: =Q731 -> 1799357.72 | V21: =Q21-T21 -> 0
A22: =A25+1 -> 8 | B22: 483 | C22: Public Utilities | E22: =E200 -> 12771.39 | F22: 11281.44 | G22: 12276.98 | H22: 5900.18 | I22: 5125.74 | J22: 4639.74 | K22: 3808.07 | L22: 4003.91 | M22: 3609.4 | N22: 5047.17 | O22: 7144.34 | P22: 10217.98 | Q22: =SUM(E22:P22) -> 85826.34 | T22: =Q200 -> 85826.34 | U22: =Q797 -> 85530.46 | V22: =Q22-T22 -> 0
A23: =A21+1 -> 6 | C23: Total Sales of Gas | E23: =SUM(E19:E22) -> 23216552.49 | F23: 23169940.24 | G23: 18974534.66 | H23: 11885381.46 | I23: 7321505.5 | J23: 5563210.91 | K23: 4760016.83 | L23: 4738506.38 | M23: 4912979.68 | N23: 5846007.96 | O23: 9600769.66 | P23: 17872460.48 | Q23: =SUM(E23:P23) -> 137861866.2
A25: =A23+1 -> 7 | C25: Other Operating Revenue
A26: =A22+1 -> 9 | B26: 489 | C26: Transportation Revenue - Residential | E26: =E227 -> 1417852.134 | F26: 1424745.033 | G26: 1158568.352 | H26: 793294.4145 | I26: 505266.6758 | J26: 391362.1853 | K26: 340348.1262 | L26: 343334.7641 | M26: 348348.8194 | N26: 407526.5059 | O26: 617716.7646 | P26: 1056242.984 | Q26: =SUM(E26:P26) -> 8804606.76 | T26: =Q227 -> 8804606.76 | U26: =Q849 -> 8804606.76 | V26: =Q26-T26 -> 0
A27: =A26+1 -> 10 | B27: 489 | C27: Transportation Revenue - Commercial | E27: =E234+E248+E262+E304+E352 -> 1510270.71 | F27: 1469906.38 | G27: 1259297.42 | H27: 979817.47 | I27: 781010.83 | J27: 685146.65 | K27: 649628.5 | L27: 646049.39 | M27: 657222 | N27: 700503.09 | O27: 918187.44 | P27: 1266897.74 | Q27: =SUM(E27:P27) -> 11523937.62 | T27: =Q234+Q248+Q262+Q304+Q311 -> 11523937.62 | U27: =Q878+Q967+Q1041 -> 11523937.62 | V27: =Q27-T27 -> 0
A28: 11 | B28: 489 | C28: Transportation Revenue - Industrial | E28: =E241+E255+E290+E297+E311+E318+E325+E359 -> 627225.28 | F28: 578141.43 | G28: 619131.05 | H28: 539713.15 | I28: 502264.36 | J28: 461207.6 | K28: 422114.22 | L28: 489071.53 | M28: 495827.4 | N28: 555082.35 | O28: 595360.86 | P28: 612725.91 | Q28: 6497865.14 | T28: =Q255+Q241+Q290+Q297+Q318 -> 6497865.14 | U28: =Q923+Q995+Q1070+Q1104+Q1174 -> 6497865.14 | V28: =Q28-T28 -> 0
A29: 12 | B29: 487 | C29: Forfeited Discounts | E29: =E365 -> 65784.21 | F29: 81687.47 | G29: 68816.76 | H29: 41785.11667 | I29: 27959.18667 | J29: 27016.89667 | K29: 19460.97 | L29: 16986.78667 | M29: 18030.78667 | N29: 18148.41 | O29: 17537.78667 | P29: 35895.26 | Q29: 439109.64 | T29: =SUM(T19:T28) -> 164688275.8 | U29: =SUM(U19:U28) -> 164687979.9 | V29: 0
A30: 13 | B30: 488 | C30: Miscellaneous Service Revenue | E30: =E366 -> 5942.606667 | F30: 11364.44 | G30: 8098.21 | H30: 7979.916667 | I30: 12876.96333 | J30: -6927.856667 | K30: 6255.206667 | L30: 20702.36333 | M30: -7827.233333 | N30: 31071.31333 | O30: 14409.32 | P30: 13556.09667 | Q30: 117501.3467
A31: 14 | B31: 493 | C31: Rent from Gas Property | E31: =E367 -> 4169.666667 | F31: 2762.333333 | G31: 3466 | H31: 3466 | I31: 3466 | J31: 3466 | K31: 3466 | L31: 3466 | M31: 3466 | N31: 3466 | O31: 3466 | P31: 3466 | Q31: 41592
A32: 15 | B32: 495 | C32: Non-Traditional Sales | E32: =E368 -> 0 | F32: 0 | G32: 0 | H32: 0 | I32: 0 | J32: 0 | K32: 0 | L32: 0 | M32: 0 | N32: 0 | O32: 0 | P32: 0 | Q32: 0
A33: 16 | B33: 495 | C33: Other Gas Revenues - Other | E33: =E369 -> 38507.72667 | F33: 102473.7 | G33: 48446.93 | H33: 31408.92333 | I33: 22219.25 | J33: 29995.97 | K33: 32668.95667 | L33: 11055.75333 | M33: 94743.72333 | N33: 136060.2067 | O33: 35411.03667 | P33: 95390.25667 | Q33: 678382.4333
A34: 17 | C34: Total Other Operating Revenue | E34: =SUM(E26:E33) -> 3669752.334 | F34: 3671080.787 | G34: 3165824.722 | H34: 2397464.991 | I34: 1855063.266 | J34: 1591267.445 | K34: 1473941.98 | L34: 1530666.587 | M34: 1609811.496 | N34: 1851857.876 | O34: 2202089.208 | P34: 3084174.247 | Q34: 28102994.94
T35: Ck to Sch M
A36: =A34+1 -> 18 | C36: Total Operating Revenue | E36: =E23+E34 -> 26886304.82 | F36: 26841021.03 | G36: 22140359.38 | H36: 14282846.45 | I36: 9176568.766 | J36: 7154478.355 | K36: 6233958.81 | L36: 6269172.967 | M36: 6522791.176 | N36: 7697865.836 | O36: 11802858.87 | P36: 20956634.73 | Q36: =SUM(E36:P36) -> 165964861.2 | T36: ='Sch M'!O75 -> 165964861.2 | U36: =Q36-T36 -> 0
A47: =CONAME -> Columbia Gas of Kentucky, Inc.
A48: =case -> Case No. 2021-00183
A49: Annualized Test Year Revenues at Proposed Rates
A50: =TYDESC -> For the 12 Months Ended December 31, 2022
A51: (Gas Service)
A52: Data: __ Base Period _X_ Forecasted Period
A53: Type of Filing: _ Original _ Update X Revised | Q53: Schedule M-2.3
A54: Work Paper Reference No(s): | Q54: Page 2 of 21
A55: 12 Months Forecasted | Q55: =Witness -> Witness: Judith L. Siegler
A56: Proposed Annualized
A58: Line | B58: Rate | C58: Class/ | D58: Proposed
A59: No. | B59: Code | C59: Description | D59: Rates | E59: =B!$D$11 -> Jan-22 | F59: =B!$E$11 -> Feb-22 | G59: =B!$F$11 -> Mar-22 | H59: =B!$G$11 -> Apr-22 | I59: =B!$H$11 -> May-22 | J59: =B!$I$11 -> Jun-22 | K59: =B!$J$11 -> Jul-22 | L59: =B!$K$11 -> Aug-22 | M59: =B!$L$11 -> Sep-22 | N59: =B!$M$11 -> Oct-22 | O59: =B!$N$11 -> Nov-22 | P59: =B!$O$11 -> Dec-22 | Q59: Total
B60: (A) | C60: (B) | D60: (C) | E60: (D) | F60: (E) | G60: (F) | H60: (G) | I60: (H) | J60: (I) | K60: (J) | L60: (K) | M60: (L) | N60: (M) | O60: (N) | P60: (O) | Q60: (P)
A62: 1 | C62: Sales Service
A64: =A62+1 -> 2 | B64: =Input!A19 -> GSR | C64: ='Sch M 2.1'!B19 -> General Service - Residential | S64: DO NOT FILE - CHECK ONLY | U64: Sch M 2.2 | V64: Tab B & C
A65: =A64+1 -> 3 | C65: Bills | E65: =E397 -> 110183 | F65: 110452 | G65: 110749 | H65: 109941 | I65: 109375 | J65: 108720 | K65: 108575 | L65: 108485 | M65: 108035 | N65: 108160 | O65: 109559 | P65: 111027 | Q65: =SUM(E65:P65) -> 1313261 | S65: Bills | T65: =Q65+Q72+Q79+Q86+Q93+Q100+Q127+Q134+Q141+Q148+Q155+Q182+Q189+Q196+Q223+Q230+Q237+Q244+Q251+Q258+Q286+Q293+Q300+Q307+Q314+Q321+Q348+Q355 -> 1659636 | U65: ='Sch M 2.2'!T66 -> 1659636 | V65: =B!$P$302 -> 1659636
A66: =A65+1 -> 4 | C66: Volumes [1] | E66: =E401 -> 1484059.2 | F66: 1502349.6 | G66: 1166162.7 | H66: 664959.6 | I66: 284958.4 | J66: 148158.1 | K66: 83378.5 | L66: 87613.7 | M66: 102204 | N66: 177653.4 | O66: 461545.8 | P66: 1093564.7 | Q66: =SUM(E66:P66) -> 7256607.7 | S66: Vols | T66: =Q66+Q73+Q80+Q87+Q94+Q101+Q128+Q135+Q142+Q149+Q156+Q183+Q190+Q197+Q224+Q231+Q238+Q245+Q252+Q259+Q287+Q294+Q301+Q308+Q315+Q322+Q349+Q356 -> 30288170.4 | U66: ='Sch M 2.2'!T67 -> 30288170.4 | V66: ='C'!$P$443 -> 30288170.4
A67: =A66+1 -> 5 | C67: Revenue Less Gas Cost | E67: =E405+E416 -> 10107081.19 | F67: =F405+F416 -> 10209497.26 | G67: 8433646.82 | H67: 5760685.31 | I67: 3735052.5 | J67: 2996647.18 | K67: 2650346.56 | L67: =L405+L416 -> 2670963.79 | M67: 2739143.77 | N67: 3141590.72 | O67: 4674761.27 | P67: 8054510.16 | Q67: =SUM(E67:P67) -> 65173926.53 | S67: Rev | T67: =Q67+Q74+Q81+Q88+Q95+Q102+Q129+Q136+Q143+Q150+Q157+Q184+Q191+Q198+Q225+Q232+Q239+Q246+Q253+Q260+Q288+Q295+Q302+Q309+Q316+Q323+Q350+Q357 -> 115166548.4
A68: =A67+1 -> 6 | C68: Gas Cost | E68: =E407 -> 6510567.71 | F68: 6590807.7 | G68: 5115955.76 | H68: 2917177.77 | I68: 1250112.5 | J68: 649969.58 | K68: 365781.48 | L68: 384361.3 | M68: 448368.95 | N68: 779365.47 | O68: 2024801.42 | P68: 4797468.34 | Q68: =SUM(E68:P68) -> 31834737.98 | S68: GCR | T68: =Q68+Q75+Q82+Q89+Q96+Q103+Q130+Q137+Q144+Q151+Q158+Q185+Q192+Q199+Q226+Q233+Q240+Q247+Q254+Q261+Q289+Q296+Q303+Q310+Q317+Q324+Q351+Q358 -> 49521727.37
A69: =A68+1 -> 7 | C69: Total Revenue [2] | E69: =E418 -> 16617648.9 | F69: 16800304.96 | G69: 13549602.58 | H69: 8677863.08 | I69: 4985165 | J69: 3646616.76 | K69: 3016128.04 | L69: 3055325.09 | M69: 3187512.72 | N69: 3920956.19 | O69: 6699562.69 | P69: 12851978.5 | Q69: =SUM(E69:P69) -> 97008664.51 | S69: Total | T69: =Q69+Q76+Q83+Q90+Q97+Q104+Q131+Q138+Q145+Q152+Q159+Q186+Q193+Q200+Q227+Q234+Q241+Q248+Q255+Q262+Q290+Q297+Q304+Q311+Q318+Q325+Q352+Q359 -> 164688275.8
A71: =A69+1 -> 8 | B71: =Input!A20 -> G1C | C71: ='Sch M 2.1'!B20 -> LG&E Commercial | S71: CC | T71: =Q398+Q426+Q461+Q478+Q495+Q529+Q546+Q563+Q596+Q618+Q651+Q704+Q756+Q787+Q831+Q857+Q902+Q947+Q948+Q975+Q976+Q1019+Q1020+Q1048+Q1049+Q1094+Q1095+Q1112+Q1113+Q1130+Q1131+Q1164+Q1165+Q1182+Q1183+Q1223+Q1224+Q1248+Q1249 -> 47501286.3
A72: =A71+1 -> 9 | C72: Bills | E72: =E425 -> 0 | F72: 0 | G72: 0 | H72: 0 | I72: 0 | J72: 0 | K72: 0 | L72: 0 | M72: 0 | N72: 0 | O72: 0 | P72: 0 | Q72: =SUM(E72:P72) -> 0 | S72: Base | T72: =Q402+Q429+Q464+Q481+Q498+Q532+Q549+Q566+Q605+Q621+Q665+Q718+Q766+Q791+Q835+Q871+Q916+Q960+Q988+Q1034+Q1063+Q1098+Q1116+Q1134+Q1168+Q1192+Q1234+Q1258 -> 66318110.07
A73: =A72+1 -> 10 | C73: Volumes [1] | E73: =E428 -> 0 | F73: 0 | G73: 0 | H73: 0 | I73: 0 | J73: 0 | K73: 0 | L73: 0 | M73: 0 | N73: 0 | O73: 0 | P73: 0 | Q73: =SUM(E73:P73) -> 0
A74: =A73+1 -> 11 | C74: Revenue Less Gas Cost | E74: =E431 -> 0 | F74: 0 | G74: 0 | H74: 0 | I74: 0 | J74: 0 | K74: 0 | L74: 0 | M74: 0 | N74: 0 | O74: 0 | P74: 0 | Q74: =SUM(E74:P74) -> 0 | S74: Amrp | T74: =Q399+Q652+Q705+Q757+Q788+Q832+Q858+Q903+Q949+Q977+Q1021+Q1050 -> 0
A75: =A74+1 -> 12 | C75: Gas Cost | E75: =E433 -> 0 | F75: 0 | G75: 0 | H75: 0 | I75: 0 | J75: 0 | K75: 0 | L75: 0 | M75: 0 | N75: 0 | O75: 0 | P75: 0 | Q75: =SUM(E75:P75) -> 0
A76: =A75+1 -> 13 | C76: Total Revenue [2] | E76: =E435 -> 0 | F76: 0 | G76: 0 | H76: 0 | I76: 0 | J76: 0 | K76: 0 | L76: 0 | M76: 0 | N76: 0 | O76: 0 | P76: 0 | Q76: =SUM(E76:P76) -> 0
A78: =A76+1 -> 14 | B78: =Input!A21 -> G1R | C78: ='Sch M 2.1'!B21 -> LG&E Residential | S78: Rider | T78: =T69-(T68+T67) -> 0
A79: =A78+1 -> 15 | C79: Bills | E79: =E460 -> 4 | F79: 4 | G79: 4 | H79: 4 | I79: 4 | J79: 4 | K79: 4 | L79: 4 | M79: 4 | N79: 4 | O79: 4 | P79: 4 | Q79: =SUM(E79:P79) -> 48 | S79: EECP | T79: =Q412+Q844 -> 429273.66
A80: =A79+1 -> 16 | C80: Volumes [1] | E80: =E463 -> 90.7 | F80: 99.9 | G80: 67.7 | H80: 41.7 | I80: 15.5 | J80: 6.8 | K80: 2 | L80: 2.2 | M80: 3.5 | N80: 14.4 | O80: 39.3 | P80: 68.7 | Q80: =SUM(E80:P80) -> 452.4 | S80: Uncoll | T80: =Q413+Q674+Q727+Q775+Q800 -> 134325.25
A81: =A80+1 -> 17 | C81: Revenue Less Gas Cost | E81: =E466 -> 443.1 | F81: 478.99 | G81: 353.38 | H81: 251.95 | I81: 149.75 | J81: 115.81 | K81: 97.08 | L81: =L466 -> 97.86 | M81: 102.93 | N81: 145.45 | O81: 242.59 | P81: 357.28 | Q81: =SUM(E81:P81) -> 2836.17 | S81: EAP | T81: =Q415+Q846 -> 444076.2
A82: =A81+1 -> 18 | C82: Gas Cost | E82: =E468 -> 397.9 | F82: 438.26 | G82: 297 | H82: 182.94 | I82: 68 | J82: 29.83 | K82: 8.77 | L82: 9.65 | M82: 15.35 | N82: 63.17 | O82: 172.41 | P82: 301.39 | Q82: =SUM(E82:P82) -> 1984.67
A83: =A82+1 -> 19 | C83: Total Revenue [2] | E83: =E470 -> 841 | F83: 917.25 | G83: 650.38 | H83: 434.89 | I83: 217.75 | J83: 145.64 | K83: 105.85 | L83: 107.51 | M83: 118.28 | N83: 208.62 | O83: 415 | P83: 658.67 | Q83: =SUM(E83:P83) -> 4820.84
A85: =A83+1 -> 20 | B85: =Input!A22 -> IN3 | C85: ='Sch M 2.1'!B22 -> Inland Gas General Service - Residential
A86: =A85+1 -> 21 | C86: Bills | E86: =E477 -> 10 | F86: 10 | G86: 10 | H86: 10 | I86: 10 | J86: 10 | K86: 10 | L86: 10 | M86: 10 | N86: 10 | O86: 10 | P86: 10 | Q86: =SUM(E86:P86) -> 120
A87: =A86+1 -> 22 | C87: Volumes [1] | E87: =E480 -> 277.9 | F87: 245 | G87: 198.6 | H87: 145.4 | I87: 58.8 | J87: 19.4 | K87: 11.6 | L87: 12.1 | M87: 15.1 | N87: 45.2 | O87: 118.1 | P87: 235.4 | Q87: =SUM(E87:P87) -> 1382.6
A88: =A87+1 -> 23 | C88: Revenue Less Gas Cost | E88: =E483 -> 115.16 | F88: 101.53 | G88: 82.3 | H88: 60.25 | I88: 24.37 | J88: 8.04 | K88: 4.81 | L88: 5.01 | M88: 6.26 | N88: 18.73 | O88: 48.94 | P88: 97.55 | Q88: =SUM(E88:P88) -> 572.95
A89: =A88+1 -> 24 | C89: Gas Cost | E89: =E485 -> 0 | F89: 0 | G89: 0 | H89: 0 | I89: 0 | J89: 0 | K89: 0 | L89: 0 | M89: 0 | N89: 0 | O89: 0 | P89: 0 | Q89: =SUM(E89:P89) -> 0
A90: =A89+1 -> 25 | C90: Total Revenue [2] | E90: =E487 -> 115.16 | F90: 101.53 | G90: 82.3 | H90: 60.25 | I90: 24.37 | J90: 8.04 | K90: 4.81 | L90: 5.01 | M90: 6.26 | N90: 18.73 | O90: 48.94 | P90: 97.55 | Q90: =SUM(E90:P90) -> 572.95
A92: =A90+1 -> 26 | B92: =Input!A24 -> IN4 | C92: ='Sch M 2.1'!B23 -> Inland Gas General Service - Residential
A93: =A92+1 -> 27 | C93: Bills | E93: =E494 -> 0 | F93: 0 | G93: 0 | H93: 0 | I93: 0 | J93: 0 | K93: 0 | L93: 0 | M93: 0 | N93: 0 | O93: 0 | P93: 0 | Q93: =SUM(E93:P93) -> 0
A94: =A93+1 -> 28 | C94: Volumes [1] | E94: =E497 -> 0 | F94: 0 | G94: 0 | H94: 0 | I94: 0 | J94: 0 | K94: 0 | L94: 0 | M94: 0 | N94: 0 | O94: 0 | P94: 0 | Q94: =SUM(E94:P94) -> 0
A95: =A94+1 -> 29 | C95: Revenue Less Gas Cost | E95: =E500 -> 0 | F95: 0 | G95: 0 | H95: 0 | I95: 0 | J95: 0 | K95: 0 | L95: 0 | M95: 0 | N95: 0 | O95: 0 | P95: 0 | Q95: =SUM(E95:P95) -> 0
A96: =A95+1 -> 30 | C96: Gas Cost | E96: =E502 -> 0 | F96: 0 | G96: 0 | H96: 0 | I96: 0 | J96: 0 | K96: 0 | L96: 0 | M96: 0 | N96: 0 | O96: 0 | P96: 0 | Q96: =SUM(E96:P96) -> 0
A97: =A96+1 -> 31 | C97: Total Revenue [2] | E97: =E504 -> 0 | F97: 0 | G97: 0 | H97: 0 | I97: 0 | J97: 0 | K97: 0 | L97: 0 | M97: 0 | N97: 0 | O97: 0 | P97: 0 | Q97: =SUM(E97:P97) -> 0
A99: =A97+1 -> 32 | B99: =Input!A25 -> IN5 | C99: ='Sch M 2.1'!B24 -> Inland Gas General Service - Residential
A100: =A99+1 -> 33 | C100: Bills | E100: =E528 -> 3 | F100: 3 | G100: 3 | H100: 3 | I100: 3 | J100: 3 | K100: 3 | L100: 3 | M100: 3 | N100: 3 | O100: 3 | P100: 3 | Q100: =SUM(E100:P100) -> 36
A101: =A100+1 -> 34 | C101: Volumes [1] | E101: =E531 -> 52.6 | F101: 46.7 | G101: 43.2 | H101: 28 | I101: 11.2 | J101: 2.9 | K101: 2.4 | L101: 2.7 | M101: 2.9 | N101: 4.7 | O101: 21.8 | P101: 44.7 | Q101: =SUM(E101:P101) -> 263.8
A102: =A101+1 -> 35 | C102: Revenue Less Gas Cost | E102: =E534 -> 32.32 | F102: 28.69 | G102: 26.54 | H102: 17.2 | I102: 6.88 | J102: 1.78 | K102: 1.47 | L102: 1.66 | M102: 1.78 | N102: 2.89 | O102: 13.39 | P102: 27.46 | Q102: =SUM(E102:P102) -> 162.06
A103: =A102+1 -> 36 | C103: Gas Cost | E103: =E536 -> 0 | F103: 0 | G103: 0 | H103: 0 | I103: 0 | J103: 0 | K103: 0 | L103: 0 | M103: 0 | N103: 0 | O103: 0 | P103: 0 | Q103: =SUM(E103:P103) -> 0
A104: =A103+1 -> 37 | C104: Total Revenue [2] | E104: =E538 -> 32.32 | F104: 28.69 | G104: 26.54 | H104: 17.2 | I104: 6.88 | J104: 1.78 | K104: 1.47 | L104: 1.66 | M104: 1.78 | N104: 2.89 | O104: 13.39 | P104: 27.46 | Q104: =SUM(E104:P104) -> 162.06
A107: [1] Reflects Normalized Volumes.
A108: [2] See Schedule M-2.2 Pages 8 through 21 for detail.
A109: =CONAME -> Columbia Gas of Kentucky, Inc.
A110: =case -> Case No. 2021-00183
A111: Annualized Test Year Revenues at Proposed Rates
A112: =TYDESC -> For the 12 Months Ended December 31, 2022
A113: (Gas Service)
A114: =$A$52 -> Data: __ Base Period _X_ Forecasted Period
A115: =$A$53 -> Type of Filing: _ Original _ Update X Revised | Q115: =$Q$53 -> Schedule M-2.3
A116: =$A$54 -> Work Paper Reference No(s): | Q116: Page 3 of 21
A117: =$A$55 -> 12 Months Forecasted | Q117: =Witness -> Witness: Judith L. Siegler
A118: Proposed Annualized
A120: Line | B120: Rate | C120: Class/ | D120: Proposed
A121: No. | B121: Code | C121: Description | D121: Rates | E121: =B!$D$11 -> Jan-22 | F121: =B!$E$11 -> Feb-22 | G121: =B!$F$11 -> Mar-22 | H121: =B!$G$11 -> Apr-22 | I121: =B!$H$11 -> May-22 | J121: =B!$I$11 -> Jun-22 | K121: =B!$J$11 -> Jul-22 | L121: =B!$K$11 -> Aug-22 | M121: =B!$L$11 -> Sep-22 | N121: =B!$M$11 -> Oct-22 | O121: =B!$N$11 -> Nov-22 | P121: =B!$O$11 -> Dec-22 | Q121: Total
B122: (A) | C122: (B) | D122: (C) | E122: (D) | F122: (E) | G122: (F) | H122: (G) | I122: (H) | J122: (I) | K122: (J) | L122: (K) | M122: (L) | N122: (M) | O122: (N) | P122: (O) | Q122: (P)
A124: 1 | C124: Sales Service
A126: =A124+1 -> 2 | B126: =Input!A26 -> LG2 | C126: ='Sch M 2.1'!B25 -> LG&E Residential
A127: =A126+1 -> 3 | C127: Bills | E127: =E545 -> 1 | F127: 1 | G127: 1 | H127: 1 | I127: 1 | J127: 1 | K127: 1 | L127: 1 | M127: 1 | N127: 1 | O127: 1 | P127: 1 | Q127: =SUM(E127:P127) -> 12
A128: =A127+1 -> 4 | C128: Volumes [1] | E128: =E548 -> 138.2 | F128: 141.5 | G128: 113 | H128: 73.1 | I128: 18.1 | J128: 3.1 | K128: 2.9 | L128: 2.9 | M128: 3.9 | N128: 22.1 | O128: 57.2 | P128: 96.3 | Q128: =SUM(E128:P128) -> 672.3
A129: =A128+1 -> 5 | C129: Revenue Less Gas Cost | E129: =E551 -> 48.37 | F129: 49.53 | G129: 39.55 | H129: 25.59 | I129: 6.34 | J129: 1.09 | K129: 1.02 | L129: 1.02 | M129: 1.37 | N129: =N551 -> 7.74 | O129: 20.02 | P129: 33.71 | Q129: =SUM(E129:P129) -> 235.35
A130: =A129+1 -> 6 | C130: Gas Cost | E130: =E553 -> 0 | F130: 0 | G130: 0 | H130: 0 | I130: 0 | J130: 0 | K130: 0 | L130: 0 | M130: 0 | N130: 0 | O130: 0 | P130: 0 | Q130: =SUM(E130:P130) -> 0
A131: =A130+1 -> 7 | C131: Total Revenue [2] | E131: =E555 -> 48.37 | F131: 49.53 | G131: 39.55 | H131: 25.59 | I131: 6.34 | J131: 1.09 | K131: 1.02 | L131: 1.02 | M131: 1.37 | N131: 7.74 | O131: 20.02 | P131: 33.71 | Q131: =SUM(E131:P131) -> 235.35
A133: =A131+1 -> 8 | B133: =Input!A27 -> LG2 | C133: ='Sch M 2.1'!B26 -> LG&E Commercial
A134: =A133+1 -> 9 | C134: Bills | E134: =E562 -> 0 | F134: 0 | G134: 0 | H134: 0 | I134: 0 | J134: 0 | K134: 0 | L134: 0 | M134: 0 | N134: 0 | O134: 0 | P134: 0 | Q134: =SUM(E134:P134) -> 0
A135: =A134+1 -> 10 | C135: Volumes [1] | E135: =E565 -> 0 | F135: 0 | G135: 0 | H135: 0 | I135: 0 | J135: 0 | K135: 0 | L135: 0 | M135: 0 | N135: 0 | O135: 0 | P135: 0 | Q135: =SUM(E135:P135) -> 0
A136: =A135+1 -> 11 | C136: Revenue Less Gas Cost | E136: =E568 -> 0 | F136: 0 | G136: 0 | H136: 0 | I136: 0 | J136: 0 | K136: 0 | L136: 0 | M136: 0 | N136: 0 | O136: 0 | P136: 0 | Q136: =SUM(E136:P136) -> 0
A137: =A136+1 -> 12 | C137: Gas Cost | E137: =E570 -> 0 | F137: 0 | G137: 0 | H137: 0 | I137: 0 | J137: 0 | K137: 0 | L137: 0 | M137: 0 | N137: 0 | O137: 0 | P137: 0 | Q137: =SUM(E137:P137) -> 0
A138: =A137+1 -> 13 | C138: Total Revenue [2] | E138: =E572 -> 0 | F138: 0 | G138: 0 | H138: 0 | I138: 0 | J138: 0 | K138: 0 | L138: 0 | M138: 0 | N138: 0 | O138: 0 | P138: 0 | Q138: =SUM(E138:P138) -> 0
A140: =A124+1 -> 2 | B140: =Input!A28 -> LG3 | C140: ='Sch M 2.1'!B27 -> LG&E Residential
A141: =A140+1 -> 3 | C141: Bills | E141: =E595 -> 1 | F141: 1 | G141: 1 | H141: 1 | I141: 1 | J141: 1 | K141: 1 | L141: 1 | M141: 1 | N141: 1 | O141: 1 | P141: 1 | Q141: =SUM(E141:P141) -> 12
A142: =A141+1 -> 4 | C142: Volumes [1] | E142: =E601 -> 82.4 | F142: 88.1 | G142: 75.6 | H142: 50 | I142: 20.1 | J142: 11.5 | K142: 10 | L142: 17.7 | M142: 38.8 | N142: 44.7 | O142: 52.1 | P142: 97.9 | Q142: =SUM(E142:P142) -> 588.9
A143: =A142+1 -> 5 | C143: Revenue Less Gas Cost | E143: =E607 -> 29.34 | F143: 31.34 | G143: 26.96 | H143: 18 | I143: 7.54 | J143: 4.39 | K143: 4 | L143: 6.7 | M143: 14.08 | N143: =N607 -> 16.15 | O143: 18.74 | P143: 34.77 | Q143: =SUM(E143:P143) -> 212.01
A144: =A143+1 -> 6 | C144: Gas Cost | E144: =E609 -> 0 | F144: 0 | G144: 0 | H144: 0 | I144: 0 | J144: 0 | K144: 0 | L144: 0 | M144: 0 | N144: 0 | O144: 0 | P144: 0 | Q144: =SUM(E144:P144) -> 0
A145: =A144+1 -> 7 | C145: Total Revenue [2] | E145: =E611 -> 29.34 | F145: 31.34 | G145: 26.96 | H145: 18 | I145: 7.54 | J145: 4.39 | K145: 4 | L145: 6.7 | M145: 14.08 | N145: 16.15 | O145: 18.74 | P145: 34.77 | Q145: =SUM(E145:P145) -> 212.01
A147: =A145+1 -> 8 | B147: =Input!A29 -> LG4 | C147: ='Sch M 2.1'!B28 -> LG&E Residential
A148: =A147+1 -> 9 | C148: Bills | E148: =E617 -> 1 | F148: 1 | G148: 1 | H148: 1 | I148: 1 | J148: 1 | K148: 1 | L148: 1 | M148: 1 | N148: 1 | O148: 1 | P148: 1 | Q148: =SUM(E148:P148) -> 12
A149: =A148+1 -> 10 | C149: Volumes [1] | E149: =E620 -> 33 | F149: 31.8 | G149: 30.3 | H149: 15.7 | I149: 8.8 | J149: 2.5 | K149: 2.4 | L149: 2.4 | M149: 2.8 | N149: 3.9 | O149: 10.3 | P149: 22.9 | Q149: =SUM(E149:P149) -> 166.8
A150: =A149+1 -> 11 | C150: Revenue Less Gas Cost | E150: =E623 -> 13.2 | F150: 12.72 | G150: 12.12 | H150: 6.28 | I150: 3.52 | J150: 1 | K150: 0.96 | L150: 0.96 | M150: 1.12 | N150: 1.56 | O150: 4.12 | P150: 9.16 | Q150: =SUM(E150:P150) -> 66.72
A151: =A150+1 -> 12 | C151: Gas Cost | E151: =E625 -> 0 | F151: 0 | G151: 0 | H151: 0 | I151: 0 | J151: 0 | K151: 0 | L151: 0 | M151: 0 | N151: 0 | O151: 0 | P151: 0 | Q151: =SUM(E151:P151) -> 0
A152: =A151+1 -> 13 | C152: Total Revenue [2] | E152: =E627 -> 13.2 | F152: 12.72 | G152: 12.12 | H152: 6.28 | I152: 3.52 | J152: 1 | K152: 0.96 | L152: 0.96 | M152: 1.12 | N152: 1.56 | O152: 4.12 | P152: 9.16 | Q152: =SUM(E152:P152) -> 66.72
A154: =A152+1 -> 14 | B154: =Input!A30 -> GSO | C154: ='Sch M 2.1'!B29 -> General Service - Commercial
A155: =A154+1 -> 15 | C155: Bills | E155: =E650 -> 11642 | F155: 11663 | G155: 11728 | H155: 11667 | I155: 11584 | J155: 11516 | K155: 11467 | L155: 11414 | M155: 11412 | N155: 11433 | O155: 11622 | P155: 11778 | Q155: =SUM(E155:P155) -> 138926
A156: =A155+1 -> 16 | C156: Volumes [1] | E156: =E659 -> 733043 | F156: 700984 | G156: 582736.8 | H156: 294143 | I156: 174296.9 | J156: 121730.5 | K156: 100026.3 | L156: 90381.5 | M156: 95393.8 | N156: 118125.7 | O156: 236468.7 | P156: 516678.9 | Q156: =SUM(E156:P156) -> 3764009.1
A157: =A156+1 -> 17 | C157: Revenue Less Gas Cost | E157: =E667+E676 -> 3037259.3 | F157: =F667+F676 -> 2965035.41 | G157: 2642442.31 | H157: 1837290.21 | I157: 1493836.97 | J157: 1324978.38 | K157: 1255018.98 | L157: 1223628.14 | M157: =M667+M676 -> 1237266.15 | N157: =N667+N676 -> 1306373.33 | O157: 1664162.2 | P157: 2461948.45 | Q157: =SUM(E157:P157) -> 22449239.83
A158: =A157+1 -> 18 | C158: Gas Cost | E158: =E669 -> 3215859.64 | F158: 3075216.81 | G158: 2556466.34 | H158: 1290405.34 | I158: 764640.5 | J158: 534031.7 | K158: 438815.38 | L158: 396503.64 | M158: 418492.6 | N158: 518217.45 | O158: 1037388.19 | P158: 2266670.33 | Q158: =SUM(E158:P158) -> 16512707.92
A159: =A158+1 -> 19 | C159: Total Revenue [2] | E159: =E678 -> 6253118.94 | F159: 6040252.22 | G159: 5198908.65 | H159: 3127695.55 | I159: 2258477.47 | J159: 1859010.08 | K159: 1693834.36 | L159: 1620131.78 | M159: 1655758.75 | N159: 1824590.78 | O159: 2701550.39 | P159: 4728618.78 | Q159: =SUM(E159:P159) -> 38961947.75
A162: =$A$107 -> [1] Reflects Normalized Volumes.
A163: =$A$108 -> [2] See Schedule M-2.2 Pages 8 through 21 for detail.
A164: =CONAME -> Columbia Gas of Kentucky, Inc.
A165: =case -> Case No. 2021-00183
A166: Annualized Test Year Revenues at Proposed Rates
A167: =TYDESC -> For the 12 Months Ended December 31, 2022
A168: (Gas Service)
A169: =$A$52 -> Data: __ Base Period _X_ Forecasted Period
A170: =$A$53 -> Type of Filing: _ Original _ Update X Revised | Q170: =$Q$53 -> Schedule M-2.3
A171: =$A$54 -> Work Paper Reference No(s): | Q171: Page 4 of 21
A172: =$A$55 -> 12 Months Forecasted | Q172: =Witness -> Witness: Judith L. Siegler
A173: Proposed Annualized
A175: Line | B175: Rate | C175: Class/ | D175: Proposed
A176: No. | B176: Code | C176: Description | D176: Rates | E176: =B!$D$11 -> Jan-22 | F176: =B!$E$11 -> Feb-22 | G176: =B!$F$11 -> Mar-22 | H176: =B!$G$11 -> Apr-22 | I176: =B!$H$11 -> May-22 | J176: =B!$I$11 -> Jun-22 | K176: =B!$J$11 -> Jul-22 | L176: =B!$K$11 -> Aug-22 | M176: =B!$L$11 -> Sep-22 | N176: =B!$M$11 -> Oct-22 | O176: =B!$N$11 -> Nov-22 | P176: =B!$O$11 -> Dec-22 | Q176: Total
B177: (A) | C177: (B) | D177: (C) | E177: (D) | F177: (E) | G177: (F) | H177: (G) | I177: (H) | J177: (I) | K177: (J) | L177: (K) | M177: (L) | N177: (M) | O177: (N) | P177: (O) | Q177: (P)
A179: 1 | C179: Sales Service
A181: =A179+1 -> 2 | B181: =Input!A31 -> GSO | C181: ='Sch M 2.1'!B30 -> General Service - Industrial
A182: =A181+1 -> 3 | C182: Bills | E182: =E703 -> 52 | F182: 52 | G182: 51 | H182: 51 | I182: 50 | J182: 51 | K182: 51 | L182: 51 | M182: 51 | N182: 52 | O182: 53 | P182: 53 | Q182: =SUM(E182:P182) -> 618
A183: =A182+1 -> 4 | C183: Volumes [1] | E183: =E712 -> 48458.8 | F183: 46186.4 | G183: 30488.2 | H183: 9871.6 | I183: 9771.9 | J183: 6949.4 | K183: 6025.1 | L183: 7880.1 | M183: 8890.3 | N183: 13143.4 | O183: 27525.7 | P183: 40778.5 | Q183: =SUM(E183:P183) -> 255969.4
A184: =A183+1 -> 5 | C184: Revenue Less Gas Cost | E184: =E720+E729 -> 119345.11 | F184: 114340.82 | G184: 79156.87 | H184: 30053.73 | I184: 29601.56 | J184: 22295.37 | K184: 19696.14 | L184: 24352.74 | M184: =M720+M729 -> 26954.17 | N184: =N720+N729 -> 37498.03 | O184: =O720+O729 -> 71236.78 | P184: 101888.62 | Q184: =SUM(E184:P184) -> 676419.94
A185: =A184+1 -> 6 | C185: Gas Cost | E185: =E722 -> 212588.76 | F185: 202619.74 | G185: 133751.73 | H185: 43306.71 | I185: 42869.33 | J185: 30487.02 | K185: 26432.11 | L185: 34570 | M185: 39001.75 | N185: 57660.1 | O185: 120755.25 | P185: 178895.28 | Q185: =SUM(E185:P185) -> 1122937.78
A186: =A185+1 -> 7 | C186: Total Revenue [2] | E186: =E731 -> 331933.87 | F186: 316960.56 | G186: 212908.6 | H186: 73360.44 | I186: 72470.89 | J186: 52782.39 | K186: 46128.25 | L186: 58922.74 | M186: 65955.92 | N186: 95158.13 | O186: 191992.03 | P186: 280783.9 | Q186: =SUM(E186:P186) -> 1799357.72
A188: =A186+1 -> 8 | B188: =Input!A36 -> IS | C188: ='Sch M 2.1'!B31 -> Interruptible Service - Industrial
A189: =A188+1 -> 9 | C189: Bills | E189: =E755 -> 0 | F189: 0 | G189: 0 | H189: 0 | I189: 0 | J189: 0 | K189: 0 | L189: 0 | M189: 0 | N189: 0 | O189: 0 | P189: 0 | Q189: =SUM(E189:P189) -> 0
A190: =A189+1 -> 10 | C190: Volumes [1] | E190: =E762 -> 0 | F190: 0 | G190: 0 | H190: 0 | I190: 0 | J190: 0 | K190: 0 | L190: 0 | M190: 0 | N190: 0 | O190: 0 | P190: 0 | Q190: =SUM(E190:P190) -> 0
A191: =A190+1 -> 11 | C191: Revenue Less Gas Cost | E191: =E768+E777 -> 0 | F191: 0 | G191: 0 | H191: 0 | I191: 0 | J191: 0 | K191: 0 | L191: 0 | M191: =M768+M777 -> 0 | N191: =N768+N777 -> 0 | O191: 0 | P191: 0 | Q191: =SUM(E191:P191) -> 0
A192: =A191+1 -> 12 | C192: Gas Cost | E192: =E770 -> 0 | F192: 0 | G192: 0 | H192: 0 | I192: 0 | J192: 0 | K192: 0 | L192: 0 | M192: 0 | N192: 0 | O192: 0 | P192: 0 | Q192: =SUM(E192:P192) -> 0
A193: =A192+1 -> 13 | C193: Total Revenue [2] | E193: =E779 -> 0 | F193: 0 | G193: 0 | H193: 0 | I193: 0 | J193: 0 | K193: 0 | L193: 0 | M193: 0 | N193: 0 | O193: 0 | P193: 0 | Q193: =SUM(E193:P193) -> 0
A195: =A193+1 -> 14 | B195: =Input!A37 -> IUS | C195: ='Sch M 2.1'!B32 -> Intrastate Utility Service - Wholesale
A196: =A195+1 -> 15 | C196: Bills | E196: =E786 -> 2 | F196: 2 | G196: 2 | H196: 2 | I196: 2 | J196: 2 | K196: 2 | L196: 2 | M196: 2 | N196: 2 | O196: 2 | P196: 2 | Q196: =SUM(E196:P196) -> 24
A197: =A196+1 -> 16 | C197: Volumes [1] | E197: =E790 -> 1938.9 | F197: 1673.4 | G197: 1850.8 | H197: 714.5 | I197: 576.5 | J197: 489.9 | K197: 341.7 | L197: 376.6 | M197: 306.3 | N197: 562.5 | O197: 936.2 | P197: 1483.9 | Q197: =SUM(E197:P197) -> 11251.2
A198: =A197+1 -> 17 | C198: Revenue Less Gas Cost | E198: =E793+E802 -> 4265.44 | F198: 3940.23 | G198: 4157.52 | H198: 2765.67 | I198: 2596.63 | J198: 2490.55 | K198: 2309.03 | L198: 2351.77 | M198: =M793+M802 -> 2265.66 | N198: =N793+N802 -> 2579.48 | O198: =O793+O802 -> 3037.23 | P198: 3708.11 | Q198: =SUM(E198:P198) -> 36467.32
A199: =A198+1 -> 18 | C199: Gas Cost | E199: =E795 -> 8505.95 | F199: 7341.21 | G199: 8119.46 | H199: 3134.51 | I199: 2529.11 | J199: 2149.19 | K199: 1499.04 | L199: 1652.14 | M199: 1343.74 | N199: 2467.69 | O199: 4107.11 | P199: 6509.87 | Q199: =SUM(E199:P199) -> 49359.02
A200: =A199+1 -> 19 | C200: Total Revenue [2] | E200: =E804 -> 12771.39 | F200: 11281.44 | G200: 12276.98 | H200: 5900.18 | I200: 5125.74 | J200: 4639.74 | K200: 3808.07 | L200: 4003.91 | M200: 3609.4 | N200: 5047.17 | O200: 7144.34 | P200: 10217.98 | Q200: =SUM(E200:P200) -> 85826.34
A203: =$A$107 -> [1] Reflects Normalized Volumes.
A204: =$A$108 -> [2] See Schedule M-2.2 Pages 8 through 21 for detail.
A205: =CONAME -> Columbia Gas of Kentucky, Inc.
A206: =case -> Case No. 2021-00183
A207: Annualized Test Year Revenues at Proposed Rates
A208: =TYDESC -> For the 12 Months Ended December 31, 2022
A209: (Gas Service)
A210: =$A$52 -> Data: __ Base Period _X_ Forecasted Period
A211: =$A$53 -> Type of Filing: _ Original _ Update X Revised | Q211: =$Q$53 -> Schedule M-2.3
A212: =$A$54 -> Work Paper Reference No(s): | Q212: Page 5 of 21
A213: =$A$55 -> 12 Months Forecasted | Q213: =Witness -> Witness: Judith L. Siegler
A214: Proposed Annualized
A216: Line | B216: Rate | C216: Class/ | D216: Proposed
A217: No. | B217: Code | C217: Description | D217: Rates | E217: =B!$D$11 -> Jan-22 | F217: =B!$E$11 -> Feb-22 | G217: =B!$F$11 -> Mar-22 | H217: =B!$G$11 -> Apr-22 | I217: =B!$H$11 -> May-22 | J217: =B!$I$11 -> Jun-22 | K217: =B!$J$11 -> Jul-22 | L217: =B!$K$11 -> Aug-22 | M217: =B!$L$11 -> Sep-22 | N217: =B!$M$11 -> Oct-22 | O217: =B!$N$11 -> Nov-22 | P217: =B!$O$11 -> Dec-22 | Q217: Total
B218: (A) | C218: (B) | D218: (C) | E218: (D) | F218: (E) | G218: (F) | H218: (G) | I218: (H) | J218: (I) | K218: (J) | L218: (K) | M218: (L) | N218: (M) | O218: (N) | P218: (O) | Q218: (P)
A220: 1 | C220: Transportation Service
A222: =A220+1 -> 2 | B222: =Input!A41 -> GTR | C222: ='Sch M 2.1'!B36 -> GTS Choice - Residential
A223: =A222+1 -> 3 | C223: Bills | E223: =E830 -> 14412 | F223: 14308 | G223: 14237 | H223: 14116 | I223: 14041 | J223: 13964 | K223: 13875 | L223: 13809 | M223: 13699 | N223: 13597 | O223: 13511 | P223: 13424 | Q223: =SUM(E223:P223) -> 166993
A224: =A223+1 -> 4 | C224: Volumes [1] | E224: =E834 -> 212675.3 | F224: 214378.7 | G224: 164319.6 | H224: 95714.2 | I224: 41538.6 | J224: 20296.2 | K224: 10992.1 | L224: 11810.7 | M224: 13181.9 | N224: 24764.3 | O224: 64840.6 | P224: 148097.5 | Q224: =SUM(E224:P224) -> 1022609.7
A225: =A224+1 -> 5 | C225: Revenue Less Gas Cost | E225: =E837+E847 -> 1417852.134 | F225: =F837+F847 -> 1424745.033 | G225: 1158568.352 | H225: 793294.4145 | I225: 505266.6758 | J225: 391362.1853 | K225: 340348.1262 | L225: 343334.7641 | M225: =M837+M847 -> 348348.8194 | N225: 407526.5059 | O225: 617716.7646 | P225: 1056242.984 | Q225: =SUM(E225:P225) -> 8804606.76
A226: =A225+1 -> 6 | C226: Gas Cost | E226: =E839 -> 0 | F226: 0 | G226: 0 | H226: 0 | I226: 0 | J226: 0 | K226: 0 | L226: 0 | M226: 0 | N226: 0 | O226: 0 | P226: 0 | Q226: =SUM(E226:P226) -> 0
A227: =A226+1 -> 7 | C227: Total Revenue [2] | E227: =E849 -> 1417852.134 | F227: 1424745.033 | G227: 1158568.352 | H227: 793294.4145 | I227: 505266.6758 | J227: 391362.1853 | K227: 340348.1262 | L227: 343334.7641 | M227: 348348.8194 | N227: 407526.5059 | O227: 617716.7646 | P227: 1056242.984 | Q227: =SUM(E227:P227) -> 8804606.76
A229: =A227+1 -> 8 | B229: =Input!A42 -> GTO | C229: ='Sch M 2.1'!B37 -> GTS Choice - Commercial
A230: =A229+1 -> 9 | C230: Bills | E230: =E856 -> 2990 | F230: 2989 | G230: 3221 | H230: 3224 | I230: 3231 | J230: 3234 | K230: 3237 | L230: 3238 | M230: 3227 | N230: 3233 | O230: 3232 | P230: 3230 | Q230: =SUM(E230:P230) -> 38286
A231: =A230+1 -> 10 | C231: Volumes [1] | E231: =E865 -> 275894.2 | F231: 264119.1 | G231: 222962.5 | H231: 117802.6 | I231: 79632.9 | J231: 54193.9 | K231: 40601.2 | L231: 38563.3 | M231: 42788.4 | N231: 52458 | O231: 99717.3 | P231: 187534.2 | Q231: =SUM(E231:P231) -> 1476267.6
A232: =A231+1 -> 11 | C232: Revenue Less Gas Cost | E232: =E874 -> 1006762.15 | F232: 978098.38 | G232: 888950.17 | H232: 607612.08 | I232: 503447.51 | J232: 427683.98 | K232: 388664.39 | L232: 382805.43 | M232: =M874 -> 392759.85 | N232: 421296.6 | O232: 554966.42 | P232: 795640.85 | Q232: =SUM(E232:P232) -> 7348687.81
A233: =A232+1 -> 12 | C233: Gas Cost | E233: =E876 -> 0 | F233: 0 | G233: 0 | H233: 0 | I233: 0 | J233: 0 | K233: 0 | L233: 0 | M233: 0 | N233: 0 | O233: 0 | P233: 0 | Q233: =SUM(E233:P233) -> 0
A234: =A233+1 -> 13 | C234: Total Revenue [2] | E234: =E878 -> 1006762.15 | F234: 978098.38 | G234: 888950.17 | H234: 607612.08 | I234: 503447.51 | J234: 427683.98 | K234: 388664.39 | L234: 382805.43 | M234: 392759.85 | N234: 421296.6 | O234: 554966.42 | P234: 795640.85 | Q234: =SUM(E234:P234) -> 7348687.81
A236: =A234+1 -> 14 | B236: =Input!A43 -> GTO | C236: ='Sch M 2.1'!B38 -> GTS Choice - Industrial
A237: =A236+1 -> 15 | C237: Bills | E237: =E901 -> 12 | F237: 12 | G237: 12 | H237: 12 | I237: 12 | J237: 12 | K237: 12 | L237: 12 | M237: 12 | N237: 12 | O237: 12 | P237: 12 | Q237: =SUM(E237:P237) -> 144
A238: =A237+1 -> 16 | C238: Volumes [1] | E238: =E910 -> 5140 | F238: 5041.8 | G238: 5690 | H238: 2420.1 | I238: 2488.4 | J238: 2355.8 | K238: 2379.8 | L238: 2916.3 | M238: 2849.5 | N238: 3294.7 | O238: 3973.5 | P238: 6536.9 | Q238: =SUM(E238:P238) -> 45086.8
A239: =A238+1 -> 17 | C239: Revenue Less Gas Cost | E239: =E919 -> 13997.59 | F239: 13765.22 | G239: 15254.02 | H239: 7359.31 | I239: 7454.29 | J239: 7009.4 | K239: 7010.89 | L239: 8325.69 | M239: =M919 -> 8272.64 | N239: 9227.92 | O239: 10995.68 | P239: 17019.49 | Q239: =SUM(E239:P239) -> 125692.14
A240: =A239+1 -> 18 | C240: Gas Cost | E240: =E921 -> 0 | F240: 0 | G240: 0 | H240: 0 | I240: 0 | J240: 0 | K240: 0 | L240: 0 | M240: 0 | N240: 0 | O240: 0 | P240: 0 | Q240: =SUM(E240:P240) -> 0
A241: =A240+1 -> 19 | C241: Total Revenue [2] | E241: =E923 -> 13997.59 | F241: 13765.22 | G241: 15254.02 | H241: 7359.31 | I241: 7454.29 | J241: 7009.4 | K241: 7010.89 | L241: 8325.69 | M241: 8272.64 | N241: 9227.92 | O241: 10995.68 | P241: 17019.49 | Q241: =SUM(E241:P241) -> 125692.14
A243: =A241+1 -> 20 | B243: =Input!A44 -> DS | C243: ='Sch M 2.1'!B39 -> GTS Delivery Service - Commercial
A244: =A243+1 -> 21 | C244: Bills | E244: =E946 -> 28 | F244: 28 | G244: 28 | H244: 28 | I244: 28 | J244: 28 | K244: 28 | L244: 28 | M244: 28 | N244: 28 | O244: 28 | P244: 28 | Q244: =SUM(E244:P244) -> 336
A245: =A244+1 -> 22 | C245: Volumes [1] | E245: =E955 -> 363010.2 | F245: 308161.8 | G245: 286122.1 | H245: 236391.1 | I245: 184735 | J245: 156750 | K245: 159440.6 | L245: 156637.2 | M245: 165216.2 | N245: 206061.4 | O245: 287543.6 | P245: 341387.8 | Q245: =SUM(E245:P245) -> 2851457
A246: =A245+1 -> 23 | C246: Revenue Less Gas Cost | E246: =E963 -> 351615.11 | F246: 319406.03 | G246: 304077.9 | H246: 273405.29 | I246: 240925.4 | J246: 223868.3 | K246: 224868.65 | L246: 223922.67 | M246: =M963 -> 228655.14 | N246: 251646.4 | O246: 303338.57 | P246: 337271.59 | Q246: =SUM(E246:P246) -> 3283001.05
... 835 more rows

Sheet Rate Design KLJ-RDES-1
A1: Columbia Gas of Kentucky, Inc. | J1: Attachment KLJ-RDES-1
A2: Allocation of Proposed Annual Revenues by Rate Schedule Based on Revenue Requirement | J2: Page 1 of 9
A3: =A!A3 -> For the 12 Months Ended December 31, 2022 | J3: Witness: Johnson
F5: Revenue @ | G5: Proposed | H5: Total | I5: Proposed | J5: Proposed
A6: Line | D6: Adjusted | E6: Adjusted | F6: Current | G6: Revenue | H6: Proposed | I6: Increase | J6: Increase by
A7: No. | C7: Description | D7: Bills | E7: Volumes | F7: Rates | G7: Increase | H7: Revenue | I7: By Rate Sched | J7: Rate Class
D8: (1) | E8: (2) | F8: (3) | G8: (4) | H8: (5=3+4) | I8: (6) | J8: (7)
E9: Mcf | F9: $ | G9: $ | H9: $ | I9: %
D10: WPM B.2 | E10: WPM C.2 | F10: Sch. M2.2 & D2.4 | H10: Sch. M 2.3
A11: 1 | C11: Total Revenues
A13: =A11+1 -> 2 | C13: GSR/GTR Residential | D13: =B!P17+B!P164 -> 1480254 | E13: ='C'!P187+'C'!P17 -> 8279217.4 | F13: ='Sch M 2.2'!$Q70+'Sch M 2.2'!$Q232+'Sch M 2.1'!F19 -> 93600760.16 | G13: =H13-F13 -> 12212511.11 | H13: ='Sch M 2.3'!$Q69+'Sch M 2.3'!$Q227 -> 105813271.3 | I13: =IF(F13=0,0,ROUND(G13/F13,4)) -> 0.1305 | J13: =ROUND((G13+G22+G25+G26+G18+G19+G20+G23)/(F13+F22+F25+F26+F18+F19+F20+F23),4) -> 0.1305
A14: =A13+1 -> 3 | C14: GSO/GTO/GDS | D14: =B!P81+B!P87+B!P170+B!P176+B!P194+B!P200 -> 178216 | E14: ='C'!P96+'C'!P129+'C'!P207+'C'!P240+'C'!P307+'C'!P327 -> 5989222.2 | F14: ='Sch M 2.2'!$Q162+'Sch M 2.2'!$Q190+'Sch M 2.2'!$Q239+'Sch M 2.2'!$Q246+'Sch M 2.2'!$Q267+'Sch M 2.2'!$Q294+'Sch M 2.1'!F29+'Sch M 2.1'!F30 -> 44413239.56 | G14: =H14-F14 -> 4883451.62 | H14: ='Sch M 2.3'!$Q159+'Sch M 2.3'!$Q186+'Sch M 2.3'!$Q234+'Sch M 2.3'!$Q241+'Sch M 2.3'!$Q262+'Sch M 2.3'!$Q290 -> 49296691.18 | I14: =IF(F14=0,0,ROUND(G14/F14,4)) -> 0.11 | J14: =ROUND((G14+G21+G24)/(F14+F21+F24),4) -> 0.11
A15: =A14+1 -> 4 | C15: DS/SAS | D15: =B!P182+B!P188+B!P252 -> 830 | E15: ='C'!P257+'C'!P274+'C'!P388 -> 8691352.8 | F15: ='Sch M 2.2'!$Q253+'Sch M 2.2'!$Q260+'Sch M 2.2'!$Q356 -> 7382693.49 | G15: 1445161.72 | H15: ='Sch M 2.3'!$Q248+'Sch M 2.3'!$Q255+'Sch M 2.3'!$Q352 -> 8827855.21 | I15: 0.1957 | J15: =ROUND((G15+G16+G28+G29+G31+G32)/(F15+F16+F28+F29+F31+F32),4) -> 0.1957
A16: =A15+1 -> 5 | C16: IS | D16: =B!P93 -> 0 | E16: ='C'!P136 -> 0 | F16: ='Sch M 2.2'!$Q197+'Sch M 2.1'!F31 -> 0 | G16: 0 | H16: ='Sch M 2.3'!$Q193 -> 0 | I16: 0 | J16: =J15 -> 0.1957
A17: =A16+1 -> 6 | C17: IUS | D17: =B!P99 -> 24 | E17: ='C'!P141 -> 11251.2 | F17: ='Sch M 2.2'!$Q204+'Sch M 2.1'!F32 -> 79942.95 | G17: 5883.39 | H17: ='Sch M 2.3'!$Q200 -> 85826.34 | I17: 0.0736 | J17: =ROUND(G17/F17,4) -> 0.0736
A18: =A17+1 -> 7 | C18: IN3 Residential | D18: =B!P32 -> 120 | E18: ='C'!P32 -> 1382.6 | F18: ='Sch M 2.2'!$Q91 -> 572.95 | G18: 0 | H18: ='Sch M 2.3'!$Q90 -> 572.95 | I18: 0 | J18: =J13 -> 0.1305
A19: =A18+1 -> 8 | C19: IN4 | D19: =B!P37 -> 0 | E19: ='C'!P37 -> 0 | F19: ='Sch M 2.2'!$Q98 -> 0 | G19: 0 | H19: ='Sch M 2.3'!$Q97 -> 0 | I19: 0 | J19: =J13 -> 0.1305
A20: 9 | C20: IN5 | D20: =B!P42 -> 36 | E20: ='C'!P42 -> 263.8 | F20: ='Sch M 2.2'!$Q105 -> 162.06 | G20: 0 | H20: ='Sch M 2.3'!$Q104 -> 162.06 | I20: 0 | J20: =J13 -> 0.1305
A21: 10 | C21: G1C | D21: =B!P22 -> 0 | E21: ='C'!P22 -> 0 | F21: ='Sch M 2.2'!$Q77 -> 0 | G21: 0 | H21: ='Sch M 2.3'!$Q76 -> 0 | I21: 0 | J21: =J14 -> 0.11
A22: 11 | C22: G1R | D22: =B!P27 -> 48 | E22: ='C'!P27 -> 452.4 | F22: ='Sch M 2.2'!$Q84 -> 4820.84 | G22: 0 | H22: ='Sch M 2.3'!$Q83 -> 4820.84 | I22: 0 | J22: =J13 -> 0.1305
A23: 12 | C23: LG2 Residential | D23: =B!P47 -> 12 | E23: ='C'!P47 -> 672.3 | F23: ='Sch M 2.2'!$Q134 -> 235.35 | G23: 0 | H23: ='Sch M 2.3'!$Q131 -> 235.35 | I23: 0 | J23: =J13 -> 0.1305
A24: 13 | C24: LG2 Commercial | D24: =B!P52 -> 0 | E24: ='C'!P52 -> 0 | F24: ='Sch M 2.2'!$Q141 -> 0 | G24: 0 | H24: ='Sch M 2.3'!$Q138 -> 0 | I24: 0 | J24: =J14 -> 0.11
A25: 14 | C25: LG3 Residential | D25: =B!P70 -> 12 | E25: ='C'!P71 -> 588.9 | F25: ='Sch M 2.2'!$Q148 -> 212.01 | G25: 0 | H25: ='Sch M 2.3'!$Q145 -> 212.01 | I25: 0 | J25: =J13 -> 0.1305
A26: 15 | C26: LG4 Residential | D26: =B!P75 -> 12 | E26: ='C'!P76 -> 166.8 | F26: ='Sch M 2.2'!$Q155 -> 66.72 | G26: 0 | H26: ='Sch M 2.3'!$Q152 -> 66.72 | I26: 0 | J26: =J13 -> 0.1305
A27: 16 | C27: DS3 | D27: =B!P222 -> 36 | E27: ='C'!P332 -> 602100 | F27: ='Sch M 2.2'!$Q301 -> 69542.82 | G27: 452.61 | H27: ='Sch M 2.3'!$Q297 -> 69995.43 | I27: 0.0065 | J27: =ROUND((G27+G30)/(F27+F30),4) -> 0.006
A28: 17 | C28: FX1 | D28: =B!P228 -> 0 | E28: ='C'!P337 -> 0 | F28: ='Sch M 2.2'!$Q308 -> 0 | G28: 0 | H28: ='Sch M 2.3'!$Q304 -> 0 | I28: 0 | J28: =J15 -> 0.1957
A29: 18 | C29: FX2 | D29: =B!P234 -> 0 | E29: ='C'!P355 -> 0 | F29: ='Sch M 2.2'!$Q315 -> 0 | G29: 0 | H29: ='Sch M 2.3'!$Q311 -> 0 | I29: 0 | J29: =J15 -> 0.1957
A30: 19 | C30: FX5 | D30: =B!P240 -> 36 | E30: ='C'!P360 -> 6711500 | F30: ='Sch M 2.2'!$Q322 -> 585059.1 | G30: 3507.31 | H30: ='Sch M 2.3'!$Q318 -> 588566.41 | I30: 0.006 | J30: =J27 -> 0.006
A31: 20 | C31: FX7 | D31: =B!P246 -> 0 | E31: ='C'!P366 -> 0 | F31: ='Sch M 2.2'!$Q329 -> 0 | G31: 0 | H31: ='Sch M 2.3'!$Q325 -> 0 | I31: 0 | J31: =J27 -> 0.006
A32: =A31+1 -> 21 | C32: SC3 | D32: =B!P271 -> 0 | E32: ='C'!P402 -> 0 | F32: ='Sch M 2.2'!Q363 -> 0 | G32: 0 | H32: ='Sch M 2.3'!$Q359 -> 0 | I32: 0 | J32: =J15 -> 0.1957
A34: =A32+1 -> 22 | C34: Other Gas Department Revenue
A36: =A34+1 -> 23 | C36: Acct. 487 Forfeited Discounts | F36: ='Sch M 2.2'!Q369 -> 390077.64 | G36: =H36-F36 -> 49032 | H36: ='Sch M 2.3'!Q365 -> 439109.64 | I36: =IF(F36=0,0,ROUND(G36/F36,4)) -> 0.1257
A37: =A36+1 -> 24 | C37: Acct. 488 Miscellaneous Service Revenue | F37: ='Sch M 2.2'!Q370 -> 117501.3467 | G37: =H37-F37 -> 0 | H37: ='Sch M 2.3'!Q366 -> 117501.3467 | I37: 0
A38: =A37+1 -> 25 | C38: Acct. 495 Non-Traditional Sales | F38: ='Sch M 2.2'!Q371 -> 41592 | G38: 0 | H38: ='Sch M 2.3'!Q367 -> 41592 | I38: 0
A39: 26 | C39: Acct. 495 Prior Yr. Rate Refund - Net. | F39: ='Sch M 2.2'!Q372 -> 0 | G39: 0 | H39: ='Sch M 2.3'!Q368 -> 0 | I39: 0
A40: 27 | C40: Acct. 495 Other Gas Revenues - Other | F40: ='Sch M 2.2'!Q373 -> 678382.4333 | G40: 0 | H40: ='Sch M 2.3'!Q369 -> 678382.4333 | I40: 0
A42: =A40+1 -> 28 | C42: Total Revenues | D42: =SUM(D13:D40) -> 1659636 | E42: =SUM(E13:E40) -> 30288170.4 | F42: =SUM(F13:F40) -> 147364861.4 | G42: =SUM(G13:G40) -> 18599999.76 | H42: 165964861.2 | I42: =ROUND(G42/F42,4) -> 0.1262
A44: =A1 -> Columbia Gas of Kentucky, Inc. | J44: =+$J$1 -> Attachment KLJ-RDES-1
A45: Allocation of Proposed Annual Revenues by Rate Schedule Based on Revenue Requirement | J45: Page 2 of 9
A46: =A!$A$3 -> For the 12 Months Ended December 31, 2022 | J46: =+$J$3 -> Witness: Johnson
F48: Revenue @ | G48: Proposed | H48: Total | I48: Proposed | J48: Proposed
A49: Line | D49: Adjusted | E49: Adjusted | F49: Current | G49: Revenue | H49: Proposed | I49: Increase | J49: Increase by
A50: No. | C50: Description | D50: Bills | E50: Volumes | F50: Rates | G50: Increase | H50: Revenue | I50: By Rate Sched | J50: Rate Class
D51: (1) | E51: (2) | F51: (3) | G51: (4) | H51: (5=3+4) | I51: (6) | J51: (7)
E52: Mcf | F52: $ | G52: $ | H52: $ | I52: %
D53: WPM B.2 | E53: WPM C.2 | F53: Sch. M 2.2 | H53: Sch. M 2.3
A55: 1 | C55: Delivery Charge Revenue Only (Base Rates, Admin. Charge, SMRP Charge & Tax Act Adj)
A57: =A55+1 -> 2 | C57: =C13 -> GSR/GTR Residential | D57: 1480254 | E57: 8279217.4 | F57: ='Sch M 2.2'!Q401+'Sch M 2.2'!Q405+'Sch M 2.2'!Q406+'Sch M 2.2'!Q831+'Sch M 2.2'!Q835+'Sch M 2.2'!Q836+'Sch M 2.2'!Q402+'Sch M 2.2'!Q832 -> 60687097.96 | G57: =H57-F57 -> 12212511.11 | H57: ='Sch M 2.3'!Q398+'Sch M 2.3'!Q402+'Sch M 2.3'!Q403+'Sch M 2.3'!Q831+'Sch M 2.3'!Q835+'Sch M 2.3'!Q836+'Sch M 2.3'!Q399+'Sch M 2.3'!Q832 -> 72899609.07 | I57: =IF(F57=0,0,ROUND(G57/F57,4)) -> 0.2012 | J57: =ROUND((G57+G66+G69+G70+G62+G63+G64+G67)/(F57+F66+F69+F70+F62+F63+F64+F67),4) -> 0.2012
A58: =A57+1 -> 3 | C58: GSO/GTO/GDS | D58: 178216 | E58: 5989222.2 | F58: ='Sch M 2.2'!Q653+'Sch M 2.2'!Q667+'Sch M 2.2'!Q668+'Sch M 2.2'!Q705+'Sch M 2.2'!Q719+'Sch M 2.2'!Q720+'Sch M 2.2'!Q857+'Sch M 2.2'!Q871+'Sch M 2.2'!Q873+'Sch M 2.2'!Q903+'Sch M 2.2'!Q917+'Sch M 2.2'!Q919+'Sch M 2.2'!Q1021+'Sch M 2.2'!Q1036+'Sch M 2.2'!Q1038+'Sch M 2.2'!Q1050+'Sch M 2.2'!Q1065+'Sch M 2.2'!Q1067+'Sch M 2.2'!Q1022+'Sch M 2.2'!Q1051+'Sch M 2.2'!Q858+'Sch M 2.2'!Q904+'Sch M 2.2'!Q654+'Sch M 2.2'!Q706+'Sch M 2.2'!Q1023+'Sch M 2.2'!Q1052 -> 26643511.3 | G58: =H58-F58 -> 4883451.64 | H58: ='Sch M 2.3'!Q651+'Sch M 2.3'!Q665+'Sch M 2.3'!Q666+'Sch M 2.3'!Q704+'Sch M 2.3'!Q718+'Sch M 2.3'!Q719+'Sch M 2.3'!Q857+'Sch M 2.3'!Q871+'Sch M 2.3'!Q873+'Sch M 2.3'!Q1019+'Sch M 2.3'!Q1034+'Sch M 2.3'!Q1036+'Sch M 2.3'!Q902+'Sch M 2.3'!Q916+'Sch M 2.3'!Q918+'Sch M 2.3'!Q1048+'Sch M 2.3'!Q1063+'Sch M 2.3'!Q1065+'Sch M 2.3'!Q1020+'Sch M 2.3'!Q1049+'Sch M 2.3'!Q652+'Sch M 2.3'!Q705+'Sch M 2.3'!Q858+'Sch M 2.3'!Q903+'Sch M 2.3'!Q1021+'Sch M 2.3'!Q1050 -> 31526962.94 | I58: =IF(F58=0,0,ROUND(G58/F58,4)) -> 0.1833 | J58: =ROUND((G58+G65+G68)/(F58+F65+F68),4) -> 0.1833
A59: =A58+1 -> 4 | C59: DS/SAS | D59: 830 | E59: 8691352.8 | F59: ='Sch M 2.2'!Q1225+'Sch M 2.2'!Q1236+'Sch M 2.2'!Q1238+'Sch M 2.2'!Q990+'Sch M 2.2'!Q992+'Sch M 2.2'!Q977+'Sch M 2.2'!Q949+'Sch M 2.2'!Q962+'Sch M 2.2'!Q964+'Sch M 2.2'!Q950+'Sch M 2.2'!Q978+'Sch M 2.2'!Q1226+'Sch M 2.2'!Q979+'Sch M 2.2'!Q951+'Sch M 2.2'!Q1227 -> 7257538.03 | G59: 1445161.72 | H59: ='Sch M 2.3'!Q947+'Sch M 2.3'!Q960+'Sch M 2.3'!Q962+'Sch M 2.3'!Q975+'Sch M 2.3'!Q988+'Sch M 2.3'!Q990+'Sch M 2.3'!Q1223+'Sch M 2.3'!Q1234+'Sch M 2.3'!Q948+'Sch M 2.3'!Q976+'Sch M 2.3'!Q1223+'Sch M 2.3'!Q949+'Sch M 2.3'!Q977+'Sch M 2.3'!Q1225 -> 8702699.75 | I59: =IF(F59=0,0,ROUND(G59/F59,4)) -> 0.1991 | J59: =ROUND((G59+G60+G72+G73+G75+G76)/(F59+F60+F72+F73+F75+F76),4) -> 0.1991
A60: 5 | C60: IS | D60: 0 | E60: 0 | F60: ='Sch M 2.2'!Q758+'Sch M 2.2'!Q768+'Sch M 2.2'!Q769+'Sch M 2.2'!Q759 -> 0 | G60: 0 | H60: ='Sch M 2.3'!Q756+'Sch M 2.3'!Q766+'Sch M 2.3'!Q767+'Sch M 2.3'!Q757 -> 0 | I60: 0 | J60: =J59 -> 0.1991
A61: 6 | C61: IUS | D61: 24 | E61: 11251.2 | F61: ='Sch M 2.2'!Q789+'Sch M 2.2'!Q793+'Sch M 2.2'!Q790+'Sch M 2.2'!Q794 -> 30288.05 | G61: =H61-F61 -> 5883.39 | H61: ='Sch M 2.3'!Q787+'Sch M 2.3'!Q791+'Sch M 2.3'!Q792+'Sch M 2.3'!Q788 -> 36171.44 | I61: 0.1942 | J61: =ROUND(G61/F61,4) -> 0.1942
A62: 7 | C62: IN3 Residential | D62: 120 | E62: 1382.6 | F62: ='Sch M 2.2'!Q479+'Sch M 2.2'!Q482 -> 553.04 | G62: 0 | H62: ='Sch M 2.3'!Q478+'Sch M 2.3'!Q481 -> 553.04 | I62: 0 | J62: =J57 -> 0.2012
A63: 8 | C63: IN4 | D63: 0 | E63: 0 | F63: ='Sch M 2.2'!Q496+'Sch M 2.2'!Q499 -> 0 | G63: 0 | H63: ='Sch M 2.3'!Q495+'Sch M 2.3'!Q498 -> 0 | I63: 0 | J63: =J57 -> 0.2012
A64: 9 | C64: IN5 | D64: 36 | E64: 263.8 | F64: ='Sch M 2.2'!Q530+'Sch M 2.2'!Q533 -> 158.28 | G64: 0 | H64: ='Sch M 2.3'!Q529+'Sch M 2.3'!Q532 -> 158.28 | I64: 0 | J64: =J57 -> 0.2012
A65: 10 | C65: G1C | D65: 0 | E65: 0 | F65: ='Sch M 2.2'!Q428+'Sch M 2.2'!Q431 -> 0 | G65: 0 | H65: ='Sch M 2.3'!Q426+'Sch M 2.3'!Q429 -> 0 | I65: 0 | J65: =J58 -> 0.1833
A66: 11 | C66: G1R | D66: 48 | E66: 452.4 | F66: ='Sch M 2.2'!Q462+'Sch M 2.2'!Q465 -> 2836.17 | G66: 0 | H66: ='Sch M 2.3'!Q461+'Sch M 2.3'!Q464 -> 2836.17 | I66: 0 | J66: =J57 -> 0.2012
A67: 12 | C67: LG2 Residential | D67: 12 | E67: 672.3 | F67: ='Sch M 2.2'!Q547+'Sch M 2.2'!Q550 -> 235.35 | G67: 0 | H67: ='Sch M 2.3'!Q546+'Sch M 2.3'!Q549 -> 235.35 | I67: 0 | J67: =J57 -> 0.2012
A68: 13 | C68: LG2 Commercial | D68: 0 | E68: 0 | F68: ='Sch M 2.2'!Q564+'Sch M 2.2'!Q567 -> 0 | G68: 0 | H68: ='Sch M 2.3'!Q563+'Sch M 2.3'!Q566 -> 0 | I68: 0 | J68: =J58 -> 0.1833
A69: 14 | C69: LG3 Residential | D69: 12 | E69: 588.9 | F69: ='Sch M 2.2'!Q597+'Sch M 2.2'!Q606 -> 212.01 | G69: 0 | H69: ='Sch M 2.3'!Q596+'Sch M 2.3'!Q605 -> 212.01 | I69: 0 | J69: =J57 -> 0.2012
A70: 15 | C70: LG4 Residential | D70: 12 | E70: 166.8 | F70: ='Sch M 2.2'!Q620+'Sch M 2.2'!Q623 -> 66.72 | G70: 0 | H70: ='Sch M 2.3'!Q618+'Sch M 2.3'!Q621 -> 66.72 | I70: 0 | J70: =J57 -> 0.2012
A71: 16 | C71: DS3 | D71: 36 | E71: 602100 | F71: ='Sch M 2.2'!Q1097+'Sch M 2.2'!Q1101+'Sch M 2.2'!Q1098 -> 60872.58 | G71: 452.61 | H71: ='Sch M 2.3'!Q1094+'Sch M 2.3'!Q1098+'Sch M 2.3'!Q1095 -> 61325.19 | I71: 0.0074 | J71: =ROUND((G71+G74)/(F71+F74),4) -> 0.0061
A72: 17 | C72: FX1 | D72: 0 | E72: 0 | F72: ='Sch M 2.2'!Q1115+'Sch M 2.2'!Q1119+'Sch M 2.2'!Q1116 -> 0 | G72: 0 | H72: ='Sch M 2.3'!Q1112+'Sch M 2.3'!Q1116+'Sch M 2.3'!Q1113 -> 0 | I72: 0 | J72: =J59 -> 0.1991
A73: 18 | C73: FX2 | D73: 0 | E73: 0 | F73: ='Sch M 2.2'!Q1133+'Sch M 2.2'!Q1137+'Sch M 2.2'!Q1134 -> 0 | G73: 0 | H73: ='Sch M 2.3'!Q1130+'Sch M 2.3'!Q1134+'Sch M 2.3'!Q1131 -> 0 | I73: 0 | J73: =J59 -> 0.1991
A74: 19 | C74: FX5 | D74: 36 | E74: 6711500 | F74: ='Sch M 2.2'!Q1167+'Sch M 2.2'!Q1171+'Sch M 2.2'!Q1168 -> 585059.1 | G74: 3507.31 | H74: ='Sch M 2.3'!Q1164+'Sch M 2.3'!Q1168+'Sch M 2.3'!Q1165 -> 588566.41 | I74: 0.006 | J74: =J71 -> 0.0061
A75: 20 | C75: FX7 | D75: 0 | E75: 0 | F75: ='Sch M 2.2'!Q1185+'Sch M 2.2'!Q1195+'Sch M 2.2'!Q1186 -> 0 | G75: 0 | H75: ='Sch M 2.3'!Q1182+'Sch M 2.3'!Q1192+'Sch M 2.3'!Q1183 -> 0 | I75: 0 | J75: =J71 -> 0.0061
A76: 21 | C76: SC3 | D76: 0 | E76: 0 | F76: ='Sch M 2.2'!Q1250+'Sch M 2.2'!Q1260+'Sch M 2.2'!Q1251 -> 0 | G76: 0 | H76: ='Sch M 2.3'!Q1248+'Sch M 2.3'!Q1258+'Sch M 2.3'!Q1249 -> 0 | I76: 0 | J76: =J59 -> 0.1991
A78: =A76+1 -> 22 | C78: Total Base Revenues | D78: =SUM(D57:D76) -> 1659636 | E78: =SUM(E57:E76) -> 30288170.4 | F78: =SUM(F57:F76) -> 95268428.59 | G78: =SUM(G57:G76) -> 18550967.78 | H78: =SUM(H57:H76) -> 113819396.4 | I78: =ROUND(G78/F78,4) -> 0.1947
A82: =A1 -> Columbia Gas of Kentucky, Inc. | J82: =+$J$1 -> Attachment KLJ-RDES-1
A83: Allocation of Proposed Annual Revenues by Rate Schedule Based on Revenue Requirement | J83: Page 3 of 9
A84: =A!$A$3 -> For the 12 Months Ended December 31, 2022 | J84: =+$J$3 -> Witness: Johnson
F86: Revenue @ | G86: Proposed | H86: Total | I86: Proposed | J86: Proposed
A87: Line | D87: Adjusted | E87: Adjusted | F87: Current | G87: Revenue | H87: Proposed | I87: Increase | J87: Increase by
A88: No. | C88: Description | D88: Bills | E88: Volumes | F88: Rates | G88: Increase | H88: Revenue | I88: By Rate Sched | J88: Rate Class
D89: (1) | E89: (2) | F89: (3) | G89: (4) | H89: (5=3+4) | I89: (6) | J89: (7)
E90: Mcf | F90: $ | G90: $ | H90: $ | I90: %
D91: WPM B.2 | E91: WPM C.2 | F91: Sch. M 2.2 | H91: Sch. M 2.3
A93: 1 | C93: Gas Cost Revenue Only
A94: =A93+1 -> 2 | C94: =C13 -> GSR/GTR Residential | F94: ='Sch M 2.2'!Q409+'Sch M 2.2'!Q839 -> 31834737.98 | G94: =H94-F94 -> 0 | H94: ='Sch M 2.3'!Q407 -> 31834737.98 | I94: =IF(F94=0,0,ROUND(G94/F94,4)) -> 0
A95: =A94+1 -> 3 | C95: =C14 -> GSO/GTO/GDS | F95: ='Sch M 2.2'!Q671+'Sch M 2.2'!Q723+'Sch M 2.2'!Q876+'Sch M 2.2'!Q922+'Sch M 2.2'!Q1041+'Sch M 2.2'!Q1070 -> 17635645.7 | G95: =H95-F95 -> 0 | H95: ='Sch M 2.3'!Q669+'Sch M 2.3'!Q722 -> 17635645.7 | I95: =IF(F95=0,0,ROUND(G95/F95,4)) -> 0
A96: =A95+1 -> 4 | C96: =C21 -> G1C | F96: ='Sch M 2.2'!Q435 -> 0 | G96: 0 | H96: ='Sch M 2.3'!Q433 -> 0 | I96: 0
A97: 5 | C97: =C22 -> G1R | F97: ='Sch M 2.2'!Q469 -> 1984.67 | G97: 0 | H97: ='Sch M 2.3'!Q468 -> 1984.67 | I97: 0
A98: 6 | C98: IUS | F98: ='Sch M 2.2'!Q797 -> 49359.02 | G98: =H98-F98 -> 0 | H98: ='Sch M 2.3'!Q795 -> 49359.02 | I98: =IF(F98=0,0,ROUND(G98/F98,4)) -> 0
A99: =A98+1 -> 7 | C99: Total Gas Cost Revenues | F99: =SUM(F94:F98) -> 49521727.37 | G99: =SUM(G94:G98) -> 0 | H99: =SUM(H94:H98) -> 49521727.37 | I99: =ROUND(G99/F99,4) -> 0
A101: =A99+1 -> 8 | C101: EAP Rider Revenue
A102: =A101+1 -> 9 | C102: =C13 -> GSR/GTR Residential | F102: ='Sch M 2.2'!Q417+'Sch M 2.2'!Q846 -> 444076.2 | G102: =H102-F102 -> 0 | H102: ='Sch M 2.3'!Q415+'Sch M 2.3'!Q846 -> 444076.2 | I102: =IF(F102=0,0,ROUND(G102/F102,4)) -> 0
A103: =A102+1 -> 10 | C103: Total EAP Rider Revenues | F103: =SUM(F102:F102) -> 444076.2 | G103: =SUM(G102:G102) -> 0 | H103: =SUM(H102:H102) -> 444076.2 | I103: =IF(F103=0,0,ROUND(G103/F103,4)) -> 0
A105: =A103+1 -> 11 | C105: NGR&D Rider Revenue
A106: =A105+1 -> 12 | C106: =+C13 -> GSR/GTR Residential | F106: ='Sch M 2.2'!Q416+'Sch M 2.2'!Q845 -> 119220.72 | G106: =H106-F106 -> 0.009679999988 | H106: ='Sch M 2.3'!Q414+'Sch M 2.3'!Q845 -> 119220.7297 | I106: =IF(F106=0,0,ROUND(G106/F106,4)) -> 0
A107: =A106+1 -> 13 | C107: =+C58 -> GSO/GTO/GDS | F107: ='Sch M 2.2'!Q677+'Sch M 2.2'!Q729+'Sch M 2.2'!Q872+'Sch M 2.2'!Q918+'Sch M 2.2'!Q1037+'Sch M 2.2'!Q1066 -> 86244.79 | G107: =H107-F107 -> 0 | H107: ='Sch M 2.3'!Q675+'Sch M 2.3'!Q728+'Sch M 2.3'!Q872+'Sch M 2.3'!Q917+'Sch M 2.3'!Q1035+'Sch M 2.3'!Q1064 -> 86244.79 | I107: 0
A108: 14 | C108: =+C59 -> DS/SAS | F108: ='Sch M 2.2'!Q963+'Sch M 2.2'!Q991+'Sch M 2.2'!Q1237 -> 125155.46 | G108: 0 | H108: ='Sch M 2.3'!Q961+'Sch M 2.3'!Q989+'Sch M 2.3'!Q1235 -> 125155.46 | I108: 0
A109: 15 | C109: =+C71 -> DS3 | F109: ='Sch M 2.2'!Q1102 -> 8670.24 | G109: 0 | H109: =+'Sch M 2.3'!Q1099 -> 8670.24 | I109: 0
A110: 16 | C110: =+C61 -> IUS | F110: ='Sch M 2.2'!Q803 -> 162.01 | G110: 0 | H110: ='Sch M 2.3'!Q801 -> 162.01 | I110: 0
A111: 17 | C111: =+C62 -> IN3 Residential | F111: ='Sch M 2.2'!Q483 -> 19.91 | G111: 0 | H111: =+'Sch M 2.3'!Q482 -> 19.91 | I111: 0
A112: 18 | C112: =+C64 -> IN5 | F112: ='Sch M 2.2'!Q534 -> 3.78 | G112: 0 | H112: =+'Sch M 2.3'!Q533 -> 3.78 | I112: 0
A113: 19 | C113: Total NGR&D Rider Revenues | F113: =SUM(F106:F112) -> 339476.91 | G113: =SUM(G106:G112) -> 0.009679999988 | H113: 339476.9197 | I113: =IF(F113=0,0,ROUND(G113/F113,4)) -> 0
A115: =+A113+1 -> 20 | C115: Energy Efficiency Conservation Program
A116: =A115+1 -> 21 | C116: =C13 -> GSR/GTR Residential | F116: ='Sch M 2.2'!Q414+'Sch M 2.2'!Q844 -> 429273.66 | G116: =H116-F116 -> 0 | H116: ='Sch M 2.3'!Q412+'Sch M 2.3'!Q844 -> 429273.66 | I116: =IF(F116=0,0,ROUND(G116/F116,4)) -> 0
A117: =A116+1 -> 22 | C117: Total Energy Efficiency Conservation Revenues | F117: =SUM(F116:F116) -> 429273.66 | G117: =SUM(G116:G116) -> 0 | H117: =SUM(H116:H116) -> 429273.66 | I117: =ROUND(G117/F117,4) -> 0 | L117: Check --> s/b zero | M117: =F117+F103+F99+F78+F123+F113-F42+SUM(F36:F40) -> 4.284083843e-08 | N117: =G117+G103+G99+G78+G123+G113-G42+SUM(G36:G40) -> 1.123407856e-08 | O117: =H117+H103+H99+H78+H123+H113-H42+SUM(H36:H40) -> 4.284083843e-08
A119: =A117+1 -> 23 | C119: Gas Cost Uncollectible Charge
A120: =A119+1 -> 24 | C120: =C57 -> GSR/GTR Residential | F120: ='Sch M 2.2'!Q415+'Sch M 2.1'!F19 -> 86353.64 | G120: =H120-F120 -> -0.009999999995 | H120: ='Sch M 2.3'!Q413 -> 86353.63 | I120: =IF(F120=0,0,ROUND(G120/F120,4)) -> 0
A121: =A120+1 -> 25 | C121: =C58 -> GSO/GTO/GDS | F121: ='Sch M 2.2'!Q676+'Sch M 2.2'!Q728+'Sch M 2.1'!F29+'Sch M 2.1'!F30 -> 47837.77 | G121: -0.01999999996 | H121: ='Sch M 2.3'!Q674+'Sch M 2.3'!Q727 -> 47837.75 | I121: 0
A122: =A121+1 -> 26 | C122: =C61 -> IUS | F122: ='Sch M 2.2'!Q802+'Sch M 2.1'!F32 -> 133.87 | G122: 0 | H122: ='Sch M 2.3'!Q800 -> 133.87 | I122: 0
A123: =A122+1 -> 27 | C123: Total Gas Cost Uncollectible Charge | F123: =SUM(F120:F122) -> 134325.28 | G123: =SUM(G120:G122) -> -0.02999999996 | H123: =SUM(H120:H122) -> 134325.25 | I123: =ROUND(G123/F123,4) -> 0
A125: =A1 -> Columbia Gas of Kentucky, Inc. | J125: =J1 -> Attachment KLJ-RDES-1
A126: Allocation of Proposed Annual Revenues by Rate Schedule Based on Revenue Requirement | J126: Page 4 of 9
A127: =A!$A$3 -> For the 12 Months Ended December 31, 2022 | J127: =J3 -> Witness: Johnson
A129: Line
A130: No. | C130: Description | D130: Total | E130: GSR/GTR | F130: GSO/GTO/GDS | G130: IS/DS | H130: IUS | I130: DS-ML
D131: (1) | E131: (2) | F131: (3) | G131: (4) | H131: (5) | I131: (6)
A133: 1 | C133: Determination of Revenue Distribution
C135: As Filed
A137: =A133+1 -> 2 | C137: Rate Base (Attachment KLJ-ACOS-3 Page 4, Line 12) | D137: =SUM(E137:I137) -> 446223294.3 | E137: 302248642 | F137: 92297197 | G137: 50893363 | H137: 155791 | I137: 628301.27
A139: =A137+1 -> 3 | C139: Unitized Return @ Current Rates | D139: 1 | E139: 0.34437 | F139: 3.29801 | G139: 0.46689 | H139: 2.11258 | I139: 21.30795
A140: =A139+1 -> 4 | C140: Proposed Unitized Return | D140: 1 | E140: 0.7191 | F140: 2.0901 | G140: 0.595 | H140: 1.39305 | I140: 8.7018
A141: =A140+1 -> 5 | C141: Change in Unitized Return | D141: =D140-D139 -> 0 | E141: =E140-E139 -> 0.37473 | F141: -1.20791 | G141: 0.12811 | H141: =H140-H139 -> -0.71953 | I141: =I140-I139 -> -12.60615
A143: =A141+1 -> 6 | C143: Rate of Return Requested | D143: 0.0748 | E143: =ROUND(E140*$D143,9) -> 0.05378868 | F143: =ROUND(F140*$D143,9) -> 0.15633948 | G143: =ROUND(G140*$D143,9) -> 0.044506 | H143: =ROUND(H140*$D143,9) -> 0.10420014 | I143: =ROUND(I140*$D143,9) -> 0.65089464
A144: =A143+1 -> 7 | C144: ="Net Operating Income @ Requested Return (Line "&A137&" x Line "&A143&")" -> Net Operating Income @ Requested Return (Line 2 x Line 6) | D144: =ROUND(D137*D143,0) -> 33377502 | E144: =ROUND(E137*E143,0) -> 16257555 | F144: =ROUND(F137*F143,0) -> 14429696 | G144: 2265060 | H144: =ROUND(H137*H143,0) -> 16233 | I144: =ROUND(I137*I143,0) -> 408958
A145: 8 | C145: Net Operating Income @ Current Rates | D145: =SUM(E145:I145) -> 13468742.29 | E145: 3139206.889 | F145: 9197315.115 | G145: 717980.805 | H145: 9938.533543 | I145: 404300.952
A146: 9 | C146: ="Income Deficiency (Line "&A144&" - Line "&A145&")" -> Income Deficiency (Line 7 - Line 8) | D146: =D144-D145 -> 19908759.71 | E146: =E144-E145 -> 13118348.11 | F146: 5232380.885 | G146: 1547079.195 | H146: =H144-H145 -> 6294.466457 | I146: =I144-I145 -> 4657.047978
A147: 10 | C147: Gross Conversion Factor | D147: 1.340866 | E147: =$D147 -> 1.340866 | F147: =$D147 -> 1.340866 | G147: =$D147 -> 1.340866 | H147: =$D147 -> 1.340866 | I147: =$D147 -> 1.340866
A148: 11 | C148: Revenue Required Increase as filed | D148: =SUM(E148:I148) -> 26694979 | E148: =ROUND(E146*E147,0) -> 17589947 | F148: =ROUND(F146*F147,0) -> 7015922 | G148: 2074426 | H148: 8440 | I148: 6244
A149: 12 | C149: Percent Distribution to Rate Classes | D149: =SUM(E149:K149) -> 1 | E149: =1-SUM(F149:I149) -> 0.6588 | F149: =ROUND(F148/D148,5) -> 0.26282 | G149: =ROUND(G148/D148,5) -> 0.07771 | H149: =ROUND(H148/D148,5) -> 0.00032 | I149: =ROUND(I148/E148,5) -> 0.00035
A151: =A149+1 -> 13 | B151: Plus: | C151: Gas Cost Uncollectible Charge @ Current Rates | D151: =SUM(E151:I151) -> 134325.28 | E151: =F120 -> 86353.64 | F151: =F121 -> 47837.77 | G151: 0 | H151: =F122 -> 133.87 | I151: 0
A152: =A151+1 -> 14 | B152: Less: | C152: Gas Cost Uncollectible Charge @ Proposed Rates | D152: =SUM(E152:I152) -> 134325.25 | E152: =H120 -> 86353.63 | F152: =H121 -> 47837.75 | G152: 0 | H152: =H122 -> 133.87 | I152: 0
A153: 15 | B153: Less: | C153: Proposed Change Other Gas Department Revenue (Attachment KLJ-RDES-2) | D153: 70560 | E153: =D153-SUM(F153:I153) -> 62944 | F153: =ROUND((D14+D21+D24)/D42*D153,0) -> 7577 | G153: =ROUND((D15+D16+D28+D29+D31+D32)/D42*D153,0) -> 35 | H153: =ROUND(D17/D42*D153,0) -> 1 | I153: =ROUND((D27+D30)/D42*D153,0) -> 3
A154: 16 | C154: Proposed Increase to Base Revenue | D154: =D148-D153+D151-D152 -> 26624419.03 | E154: =E148-E153+E151-E152 -> 17527003.01 | F154: =F148-F153+F151-F152 -> 7008345.02 | G154: =G148-G153+G151-G152 -> 2074391 | H154: 8439 | I154: 6241
A155: =A154+1 -> 17 | C155: Percent Distribution to Rate Classes | D155: =SUM(E155:I155) -> 1 | E155: =1-SUM(F155:I155) -> 0.6581800301 | F155: =ROUND(F154/D154,54) -> 0.2632299699 | G155: =ROUND(G154/D154,5) -> 0.07791 | H155: =ROUND(H154/D154,5) -> 0.00032 | I155: =ROUND(I154/E154,5) -> 0.00036
A157: =A155+1 -> 18 | C157: Current Base Revenue | D157: =SUM(E157:I157) -> 95268428.59 | E157: =F57+F66+F62+F63+F64+F67+F69+F70 -> 60691159.53 | F157: =F58+F65+F68 -> 26643511.3 | G157: =F60+F59+F72+F73+F76+F75 -> 7257538.03 | H157: =F61 -> 30288.05 | I157: =F71+F74 -> 645931.68
A158: =A157+1 -> 19 | C158: Current Percent Distribution of Rate Classes | D158: =SUM(E158:I158) -> 1 | E158: =1-SUM(F158:I158) -> 0.63705 | F158: =ROUND(F157/$D$157,5) -> 0.27967 | G158: =ROUND(G157/$D$157,5) -> 0.07618 | H158: =ROUND(H157/$D$157,5) -> 0.00032 | I158: =ROUND(I157/$D$157,5) -> 0.00678
A160: =A158+1 -> 20 | C160: Proposed Base Revenue | D160: =SUM(E160:I160) -> 121892847.6 | E160: =E157+E154 -> 78218162.54 | F160: =F157+F154 -> 33651856.32 | G160: =G157+G154 -> 9331929.03 | H160: 38727.05 | I160: 652172.68
A161: =A160+1 -> 21 | C161: Proposed Percent Distribution of Rate Classes | D161: =SUM(E161:I161) -> 1 | E161: =1-SUM(F161:I161) -> 0.64169 | F161: =ROUND(F160/$D$160,5) -> 0.27608 | G161: =ROUND(G160/$D$160,5) -> 0.07656 | H161: =ROUND(H160/$D$160,5) -> 0.00032 | I161: =ROUND(I160/$D$160,5) -> 0.00535
A163: =A1 -> Columbia Gas of Kentucky, Inc. | J163: =J1 -> Attachment KLJ-RDES-1
A164: Allocation of Proposed Annual Revenues by Rate Schedule Based on Revenue Requirement | J164: Page 5 of 9
A165: =A!$A$3 -> For the 12 Months Ended December 31, 2022 | J165: =J3 -> Witness: Johnson
A167: Line
A168: No. | C168: Description | D168: Total | E168: GSR/GTR | F168: GSO/GTO/GDS | G168: IS/DS | H168: IUS | I168: DS-ML
D169: (1) | E169: (2) | F169: (3) | G169: (4) | H169: (5) | I169: (6)
A171: 1 | C171: Determination of Revenue Distribution
C173: Stipulation | L173: Check --> s/b zero | M173: =D144-SUM(E144:I144) -> 0
A175: =A171+1 -> 2 | C175: Rate Base (Attachment KLJ-ACOS-3-Stipulation Page 4, Line 12) | D175: =SUM(E175:I175) -> 431140065 | E175: 291852804 | F175: 88982402 | G175: 49543893 | H175: 149415 | I175: 611551
L176: COS Rev Req --> s/b zero | M176: =18600000-D186 -> 0
A177: =A175+1 -> 3 | C177: Unitized Return @ Current Rates | D177: 1 | E177: 0.49319 | F177: 2.90191 | G177: 0.36512 | H177: 1.80109 | I177: 18.11717
A178: =A177+1 -> 4 | C178: Proposed Unitized Return | D178: 1 | E178: 0.71683525 | F178: 2.140407 | G178: 0.510977 | H178: 1.3854 | I178: 9.72676
A179: =A178+1 -> 5 | C179: Change in Unitized Return | D179: =D178-D177 -> 0 | E179: =E178-E177 -> 0.22364525 | F179: -0.761503 | G179: 0.145857 | H179: =H178-H177 -> -0.41569 | I179: =I178-I177 -> -8.39041
L180: OGDR Increase | M180: =G36-D191 -> 5.820766091e-11
A181: =A179+1 -> 6 | C181: Rate of Return Requested | D181: 0.0689 | E181: =ROUND(E178*$D181,9) -> 0.049389949 | F181: =ROUND(F178*$D181,9) -> 0.147474042 | G181: =ROUND(G178*$D181,9) -> 0.035206315 | H181: =ROUND(H178*$D181,9) -> 0.09545406 | I181: =ROUND(I178*$D181,9) -> 0.670173764
A182: =A181+1 -> 7 | C182: ="Net Operating Income @ Requested Return (Line "&A175&" x Line "&A181&")" -> Net Operating Income @ Requested Return (Line 2 x Line 6) | D182: =ROUND(D175*D181,0) -> 29705550 | E182: =ROUND(E175*E181,0) -> 14414595 | F182: =ROUND(F175*F181,0) -> 13122594 | G182: 1744258 | H182: =ROUND(H175*H181,0) -> 14262 | I182: =ROUND(I175*I181,0) -> 409845
A183: 8 | C183: Net Operating Income @ Current Rates | D183: =SUM(E183:I183) -> 15833921 | E183: 5274251 | F183: 9476879 | G183: 666314 | H183: 9876 | I183: 406601
A184: 9 | C184: ="Income Deficiency (Line "&A182&" - Line "&A183&")" -> Income Deficiency (Line 7 - Line 8) | D184: =D182-D183 -> 13871629 | E184: =E182-E183 -> 9140344 | F184: 3645715 | G184: 1077944 | H184: =H182-H183 -> 4386 | I184: =I182-I183 -> 3244
A185: 10 | C185: Gross Conversion Factor | D185: 1.340866 | E185: =$D185 -> 1.340866 | F185: =$D185 -> 1.340866 | G185: =$D185 -> 1.340866 | H185: =$D185 -> 1.340866 | I185: =$D185 -> 1.340866
A186: 11 | C186: Revenue Required Increase per Stipulation | D186: =SUM(E186:I186) -> 18600000 | E186: =ROUND(E184*E185,0) -> 12255976 | F186: =ROUND(F184*F185,0) -> 4888415 | G186: 1445378 | H186: 5881 | I186: 4350
A187: 12 | C187: Percent Distribution to Rate Classes | D187: =SUM(E187:K187) -> 1 | E187: =1-SUM(F187:I187) -> 0.6588 | F187: =ROUND(F186/D186,5) -> 0.26282 | G187: =ROUND(G186/D186,5) -> 0.07771 | H187: =ROUND(H186/D186,5) -> 0.00032 | I187: =ROUND(I186/E186,5) -> 0.00035
A189: =A187+1 -> 13 | B189: Plus: | C189: Gas Cost Uncollectible Charge @ Current Rates | D189: =SUM(E189:I189) -> 134325.28 | E189: =F120 -> 86353.64 | F189: =F121 -> 47837.77 | G189: 0 | H189: =F122 -> 133.87 | I189: 0
A190: =A189+1 -> 14 | B190: Less: | C190: Gas Cost Uncollectible Charge @ Proposed Rates | D190: =SUM(E190:I190) -> 134325.25 | E190: =H120 -> 86353.63 | F190: =H121 -> 47837.75 | G190: 0 | H190: =H122 -> 133.87 | I190: 0
A191: =A190+1 -> 15 | B191: Less: | C191: Proposed Change Other Gas Department Revenue (Attachment KLJ-RDES-2) | D191: 49032 | E191: =D191-SUM(F191:I191) -> 43739 | F191: =ROUND((D14+D21+D24)/D42*D191,0) -> 5265 | G191: =ROUND((D15+D16+D28+D29+D31+D32)/D42*D191,0) -> 25 | H191: =ROUND(D17/D42*D191,0) -> 1 | I191: =ROUND((D27+D30)/D42*D191,0) -> 2
A192: 16 | C192: Proposed Increase to Base Revenue | D192: =D186-D191+D189-D190 -> 18550968.03 | E192: 12212237.01 | F192: 4883150.02 | G192: 1445353 | H192: 5880 | I192: 4348
A193: =A192+1 -> 17 | C193: Percent Distribution to Rate Classes | D193: =SUM(E193:I193) -> 1 | E193: =1-SUM(F193:I193) -> 0.6581811479 | F193: =ROUND(F192/D192,54) -> 0.2632288521 | G193: =ROUND(G192/D192,5) -> 0.07791 | H193: =ROUND(H192/D192,5) -> 0.00032 | I193: =ROUND(I192/E192,5) -> 0.00036
A195: =A193+1 -> 18 | C195: Current Base Revenue | D195: =SUM(E195:I195) -> 95268428.59 | E195: =F57+F66+F62+F63+F64+F67+F69+F70 -> 60691159.53 | F195: =F58+F65+F68 -> 26643511.3 | G195: =F60+F59+F72+F73+F76+F75 -> 7257538.03 | H195: =F61 -> 30288.05 | I195: =F71+F74 -> 645931.68
A196: =A195+1 -> 19 | C196: Current Percent Distribution of Rate Classes | D196: =SUM(E196:I196) -> 1 | E196: =1-SUM(F196:I196) -> 0.63705 | F196: =ROUND(F195/$D$195,5) -> 0.27967 | G196: =ROUND(G195/$D$195,5) -> 0.07618 | H196: =ROUND(H195/$D$195,5) -> 0.00032 | I196: =ROUND(I195/$D$195,5) -> 0.00678
A198: =A196+1 -> 20 | C198: Proposed Base Revenue | D198: =SUM(E198:I198) -> 113819396.6 | E198: =E195+E192 -> 72903396.54 | F198: =F195+F192 -> 31526661.32 | G198: =G195+G192 -> 8702891.03 | H198: 36168.05 | I198: =I195+I192 -> 650279.68
A199: =A198+1 -> 21 | C199: Proposed Percent Distribution of Rate Classes | D199: =SUM(E199:I199) -> 1 | E199: =1-SUM(F199:I199) -> 0.64052 | F199: =ROUND(F198/$D$198,5) -> 0.27699 | G199: =ROUND(G198/$D$198,5) -> 0.07646 | H199: =ROUND(H198/$D$198,5) -> 0.00032 | I199: =ROUND(I198/$D$198,5) -> 0.00571
A201: =A1 -> Columbia Gas of Kentucky, Inc. | J201: =J1 -> Attachment KLJ-RDES-1
A202: Allocation of Proposed Annual Revenues by Rate Schedule Based on Revenue Requirement | J202: Page 6 of 9
A203: =A!$A$3 -> For the 12 Months Ended December 31, 2022 | J203: =J3 -> Witness: Johnson
F205: Proposed | G205: Proposed | H205: Current Rev | I205: Current | J205: Proposed
D206: Bills | E206: Dth | F206: Rate | G206: Revenue | H206: Revenue | I206: Rate | J206: Inc. (Dec.)
F207: ($) | G207: ($) | H207: ($) | I207: ($) | J207: ($)
A208: 1 | C208: GSR/GTR Rate Design
A210: =A208+1 -> 2 | C210: Total Revenue @ Current Rates | G210: =F13+F22+F18+F19+F20+F23+F25+F26 -> 93606830.09
A211: =A210+1 -> 3 | B211: Less: | C211: Gas Cost Revenue | G211: =F94+F97 -> 31836722.65
A212: =A211+1 -> 4 | B212: Less: | C212: Gas Cost Uncollectible Charge | G212: =F120 -> 86353.64
A213: =A212+1 -> 5 | B213: Less: | C213: EAP Rider Revenue | G213: =F102 -> 444076.2
A214: 6 | B214: Less: | C214: EECPRC Revenue | G214: =F116 -> 429273.66
A215: 7 | B215: Less: | C215: NGR&D Rider Revenue | G215: =+F106+F111+F112 -> 119244.41
A216: 8 | B216: Less: | C216: G1R Base Revenue | G216: =F66 -> 2836.17
A217: 9 | B217: Less: | C217: IN3 Base Revenue | G217: =F62 -> 553.04
A218: 10 | B218: Less: | C218: IN4 Base Revenue | G218: =F19 -> 0
A219: 11 | B219: Less: | C219: IN5 Base Revenue | G219: =F20 -> 162.06
A220: =A219+1 -> 12 | B220: Less: | C220: LG2 - Residential Base Revenue | G220: =F67 -> 235.35
A221: 13 | B221: Less: | C221: LG3 - Residential Base Revenue | G221: =F69 -> 212.01
A222: 14 | B222: Less: | C222: LG4 - Residential Base Revenue | G222: =F70 -> 66.72
A223: 15 | B223: Plus: | C223: Proposed Increase to Base Rates | G223: =E192 -> 12212237.01
A224: 16 | C224: Proposed Base Revenue | G224: =G210-SUM(G211:G222)+G223 -> 72899331.19
A225: 17 | B225: Less: | C225: Customer Charge Revenue | D225: =D13 -> 1480254 | F225: =(ROUND(G223/(H225+H226+H230)*I225,2)+I225+8.75)*0+19.75 -> 19.75 | G225: =ROUND(D225*F225,0) -> 29235017 | H225: ='Sch M 2.2'!Q401+'Sch M 2.2'!Q831 -> 23684064 | I225: ='Sch M 2.2'!D401 -> 16 | J225: =G225-H225 -> 5550953
A226: =A225+1 -> 18 | B226: Less: | C226: SMRP Rider | D226: =D225 -> 1480254 | F226: 0 | G226: =ROUND(D226*F226,0) -> 0 | H226: ='Sch M 2.2'!Q402+'Sch M 2.2'!Q832 -> 9814084.02 | I226: =Input!K19 -> 6.63 | J226: =G226-H226 -> -9814084.02
A227: =A226+1 -> 19 | B227: Less: | C227: Tax Act Adjustment Factor | E227: =+E230 -> 8279217.4 | F227: 0 | G227: =ROUND(E227*F227,0) -> 0 | H227: ='Sch M 2.2'!Q406+'Sch M 2.2'!Q836 -> -2338878.91 | I227: =+'Sch M 2.2'!D406 -> -0.2825 | J227: =G227-H227 -> 2338878.91
A228: 20 | C228: Net Volumetric Base Revenue | G228: =G224-G225-G226-G227 -> 43664314.19
A230: =A228+1 -> 21 | C230: All Gas Consumed | E230: =E13 -> 8279217.4 | F230: =ROUND((G228/E230),4) -> 5.274 | G230: =ROUND(E230*F230,0) -> 43664593 | H230: ='Sch M 2.2'!Q405+'Sch M 2.2'!Q835 -> 29527828.85 | I230: ='Sch M 2.2'!D405 -> 3.5665 | J230: =G230-H230 -> 14136764.15
A231: =A230+1 -> 22 | C231: Total Base Revenue Change | J231: =J225+J230+J226+J227 -> 12212512.04
A233: =A1 -> Columbia Gas of Kentucky, Inc. | K233: =J1 -> Attachment KLJ-RDES-1
A234: Allocation of Proposed Annual Revenues by Rate Schedule Based on Revenue Requirement | K234: Page 7 of 9
A235: =A!$A$3 -> For the 12 Months Ended December 31, 2022 | K235: =J3 -> Witness: Johnson
F237: Proposed | G237: Proposed | H237: Current | I237: Pct. Of | J237: Current | K237: Proposed
D238: Bills | E238: Dth | F238: Rate | G238: Revenue | H238: Revenue | I238: Current Rev | J238: Rate | K238: Inc. (Dec.)
F239: ($) | G239: ($) | H239: ($) | J239: ($) | K239: ($)
A240: 1 | C240: GSO/GTO/GDS Rate Design
A242: =A240+1 -> 2 | C242: Total Revenue @ Current Rates | G242: =F14+F21+F24 -> 44413239.56
A243: =A242+1 -> 3 | B243: Less: | C243: Gas Cost Revenue | G243: =F95+F96 -> 17635645.7
A244: =A243+1 -> 4 | B244: Less: | C244: Gas Cost Uncollectible Charge | G244: =F121 -> 47837.77
... 71 more rows

Sheet Late Payment KLJ-RDES-2
G1: Attachment KLJ-RDES-2
G2: Page 1 of 1
G3: =+'Rate Design KLJ-RDES-1'!$J$3 -> Witness: Johnson
A4: =CONAME -> Columbia Gas of Kentucky, Inc.
A5: Schedule of Additional Revenues by Rate Schedule Based on Revenue Requirement - Late Payment Charge
A6: =TYDESC -> For the 12 Months Ended December 31, 2022
A7: Line
A8: No. | D8: Reference | E8: Detail | F8: Amount
E9: ($) | F9: ($)
A11: 1 | C11: Change in Forfeited Discounts Revenue
A13: =A11+1 -> 2 | C13: Test Year Forfeited Discounts (Account 487) | F13: ='Sch M 2.2'!Q369 -> 390077.64
A15: =A13+1 -> 3 | C15: Test Year Revenue Subject to Late Payment Penalties:
A17: =A15+1 -> 4 | B17: GSR | C17: ='Sch M 2.1'!B19 -> General Service - Residential | D17: Schedule M-2.1 | E17: ='Sch M 2.1'!E19 -> 86451073.72
A18: =A17+1 -> 5 | B18: G1C | C18: ='Sch M 2.1'!B20 -> LG&E Commercial | D18: Schedule M-2.1 | E18: ='Sch M 2.1'!E20 -> 0
A19: =A18+1 -> 6 | B19: G1R | C19: ='Sch M 2.1'!B21 -> LG&E Residential | D19: Schedule M-2.1 | E19: ='Sch M 2.1'!E21 -> 4820.84
A20: =A19+1 -> 7 | B20: GSO | C20: ='Sch M 2.1'!B29 -> General Service - Commercial | D20: Schedule M-2.1 | E20: ='Sch M 2.1'!E29 -> 35527761.53
A21: =A20+1 -> 8 | B21: GSO | C21: ='Sch M 2.1'!B30 -> General Service - Industrial | D21: Schedule M-2.1 | E21: ='Sch M 2.1'!E30 -> 1704101.48
A22: =A21+1 -> 9 | B22: IS | C22: ='Sch M 2.1'!B31 -> Interruptible Service - Industrial | D22: Schedule M-2.1 | E22: ='Sch M 2.1'!E31 -> 0
A23: =A22+1 -> 10 | B23: IUS | C23: ='Sch M 2.1'!B32 -> Intrastate Utility Service - Wholesale | D23: Schedule M-2.1 | E23: ='Sch M 2.1'!E32 -> 80099.34
A24: =A23+1 -> 11 | B24: GTR | C24: ='Sch M 2.1'!B36 -> GTS Choice - Residential | D24: Schedule M-2.1 | E24: ='Sch M 2.1'!E36 -> 7250553.29
A25: =A24+1 -> 12 | B25: GTO | C25: ='Sch M 2.1'!B37 -> GTS Choice - Commercial | D25: Schedule M-2.1 | E25: ='Sch M 2.1'!E37 -> 6225788.37
A26: 13 | B26: GTO | C26: ='Sch M 2.1'!B38 -> GTS Choice - Industrial | D26: Schedule M-2.1 | E26: ='Sch M 2.1'!E38 -> 107456.06
A27: 14 | B27: DS | C27: ='Sch M 2.1'!B39 -> GTS Delivery Service - Commercial | D27: Schedule M-2.1 | E27: ='Sch M 2.1'!E39 -> 2725642.57
A28: 15 | B28: DS | C28: ='Sch M 2.1'!B40 -> GTS Delivery Service - Industrial | D28: Schedule M-2.1 | E28: ='Sch M 2.1'!E40 -> 4657050.92
A29: 16 | B29: GDS | C29: ='Sch M 2.1'!B41 -> GTS Grandfathered Delivery Service - Commercial | D29: Schedule M-2.1 | E29: ='Sch M 2.1'!E41 -> 759909.13
A30: 17 | B30: GDS | C30: ='Sch M 2.1'!B42 -> GTS Grandfathered Delivery Service - Industrial | D30: Schedule M-2.1 | E30: ='Sch M 2.1'!E42 -> 144100.69
A31: 18 | B31: DS3 | C31: ='Sch M 2.1'!B43 -> GTS Main Line Service - Industrial | D31: Schedule M-2.1 | E31: ='Sch M 2.1'!E43 -> 69542.82
A32: 19 | B32: FX1 | C32: ='Sch M 2.1'!B44 -> GTS Flex Rate - Commercial | D32: Schedule M-2.1 | E32: ='Sch M 2.1'!E44 -> 0
A33: 20 | B33: FX2 | C33: ='Sch M 2.1'!B45 -> GTS Flex Rate - Commercial | D33: Schedule M-2.1 | E33: ='Sch M 2.1'!E45 -> 0
A34: =A33+1 -> 21 | B34: FX5 | C34: ='Sch M 2.1'!B46 -> GTS Flex Rate - Industrial | D34: Schedule M-2.1 | E34: ='Sch M 2.1'!E46 -> 585059.1
A35: =A34+1 -> 22 | B35: FX7 | C35: ='Sch M 2.1'!B47 -> GTS Flex Rate - Industrial | D35: Schedule M-2.1 | E35: ='Sch M 2.1'!E47 -> 0
A36: =A35+1 -> 23 | B36: SAS | C36: ='Sch M 2.1'!B48 -> GTS Special Agency Service | D36: Schedule M-2.1 | E36: ='Sch M 2.1'!E48 -> 0
A37: 24 | B37: SC3 | C37: ='Sch M 2.1'!B49 -> GTS Special Rate - Industrial | D37: Schedule M-2.1 | E37: ='Sch M 2.1'!E49 -> 0
A38: 25 | C38: Total | F38: =SUM(E17:E37) -> 146292959.9
A40: =A38+1 -> 26 | C40: Ratio of Late Payment Penalties to Total Revenue | D40: Line 2 / Line 25 | F40: =ROUND(F13/F38,9) -> 0.002666414
A42: =A40+1 -> 27 | C42: Proposed Revenue Subject to Late Payment Penalties:
A44: =A42+1 -> 28 | C44: GSR/GTR Residential | D44: Attachment KLJ-RDES-1, Page 1 | E44: ='Rate Design KLJ-RDES-1'!H13 -> 105813271.3
A45: =A44+1 -> 29 | C45: GSO/GTO/GDS | D45: Attachment KLJ-RDES-1, Page 1 | E45: ='Rate Design KLJ-RDES-1'!H14 -> 49296691.18
A46: =A45+1 -> 30 | C46: DS/SAS | D46: Attachment KLJ-RDES-1, Page 1 | E46: ='Rate Design KLJ-RDES-1'!H15 -> 8827855.21
A47: 31 | C47: IS | D47: Attachment KLJ-RDES-1, Page 1 | E47: ='Rate Design KLJ-RDES-1'!H16 -> 0
A48: 32 | C48: IUS | D48: Attachment KLJ-RDES-1, Page 1 | E48: ='Rate Design KLJ-RDES-1'!H17 -> 85826.34
A49: 33 | C49: DS3 | D49: Attachment KLJ-RDES-1, Page 1 | E49: ='Rate Design KLJ-RDES-1'!H27 -> 69995.43
A50: 34 | C50: FX1 | D50: Attachment KLJ-RDES-1, Page 1 | E50: ='Rate Design KLJ-RDES-1'!H28 -> 0
A51: 35 | C51: FX2 | D51: Attachment KLJ-RDES-1, Page 1 | E51: ='Rate Design KLJ-RDES-1'!H29 -> 0
A52: 36 | C52: FX5 | D52: Attachment KLJ-RDES-1, Page 1 | E52: ='Rate Design KLJ-RDES-1'!H30 -> 588566.41
A53: 37 | C53: FX7 | D53: Attachment KLJ-RDES-1, Page 1 | E53: ='Rate Design KLJ-RDES-1'!H31 -> 0
A54: 38 | C54: SC3 | D54: Attachment KLJ-RDES-1, Page 1 | E54: ='Rate Design KLJ-RDES-1'!H32 -> 0
A55: 39 | C55: Total | F55: =SUM(E44:E54) -> 164682205.8
A57: =A55+1 -> 40 | C57: Proposed Forfeited Discounts (Account 487) | D57: Line 26 x Line 39 | F57: =ROUND(F55*F40,0) -> 439111
A59: =A57+1 -> 41 | C59: Proposed Adjustment to Account 487 Revenue | D59: Line 40 - Line 2 | F59: =F57-F13 -> 49033.36

Sheet KLJ-RDES-3
G1: =+'Late Payment KLJ-RDES-2'!$G$3 -> Witness: Johnson
G2: Attachment KLJ-RDES-3
G3: Page 1 of 1
B4: Columbia Gas of Kentucky, Inc.
B5: Case No. 2021-00183
B6: Non-Gas Base Rates
D8: Current | F8: Proposed
A9: Line | B9: Description | D9: Rates | F9: Rates
A10: 1 | B10: General Service - Residential (GSR & GRT)
A11: =+A10+1 -> 2 | C11: Customer Charge per billing period | D11: ='Rate Design KLJ-RDES-1'!I225 -> 16 | F11: ='Rate Design KLJ-RDES-1'!F225 -> 19.75
A12: =+A11+1 -> 3 | C12: SMRP Rider per billing period | D12: ='Rate Design KLJ-RDES-1'!I226 -> 6.63 | F12: ='Rate Design KLJ-RDES-1'!F226 -> 0
A13: 4 | C13: Delivery Charge per Mcf | D13: ='Rate Design KLJ-RDES-1'!I230 -> 3.5665 | F13: ='Rate Design KLJ-RDES-1'!F230 -> 5.274
A15: =+A13+1 -> 5 | B15: General Service - Other (GSO/GTR/GDS)
A16: =+A15+1 -> 6 | C16: =+C11 -> Customer Charge per billing period | D16: ='Rate Design KLJ-RDES-1'!J250 -> 44.69 | F16: ='Rate Design KLJ-RDES-1'!F250 -> 83.71
A17: =+A16+1 -> 7 | C17: =+C12 -> SMRP Rider per billing period | D17: ='Rate Design KLJ-RDES-1'!J252 -> 24.31 | F17: ='Rate Design KLJ-RDES-1'!F252 -> 0
A18: 8 | C18: First 50 Mcf or less per billing period | D18: ='Rate Design KLJ-RDES-1'!J256 -> 3.0181 | F18: ='Rate Design KLJ-RDES-1'!F256 -> 3.2649
A19: 9 | C19: Next 350 Mcf per billing period | D19: ='Rate Design KLJ-RDES-1'!J257 -> 2.3295 | F19: ='Rate Design KLJ-RDES-1'!F257 -> 2.5201
A20: 10 | C20: Next 600 Mcf per billing period | D20: ='Rate Design KLJ-RDES-1'!J258 -> 2.2143 | F20: ='Rate Design KLJ-RDES-1'!F258 -> 2.3954
A21: 11 | C21: Over 1,000 Mcf per billing period | D21: ='Rate Design KLJ-RDES-1'!J259 -> 2.0143 | F21: ='Rate Design KLJ-RDES-1'!F259 -> 2.179
A23: =+A21+1 -> 12 | B23: Interruptible / Delivery Service (IS/DS)
A24: =+A23+1 -> 13 | C24: =+C16 -> Customer Charge per billing period | D24: ='Rate Design KLJ-RDES-1'!J281 -> 2007 | F24: ='Rate Design KLJ-RDES-1'!F281 -> 3982.3
A25: =+A24+1 -> 14 | C25: =+C17 -> SMRP Rider per billing period | D25: ='Rate Design KLJ-RDES-1'!J283 -> 1221.21 | F25: ='Rate Design KLJ-RDES-1'!F283 -> 0
A26: 15 | C26: First 30,000 Mcf per billing period | D26: ='Rate Design KLJ-RDES-1'!J287 -> 0.6285 | F26: ='Rate Design KLJ-RDES-1'!F287 -> 0.712
A27: 16 | C27: Next 70,000 Mcf per billing period | D27: ='Rate Design KLJ-RDES-1'!J288 -> 0.3737 | F27: ='Rate Design KLJ-RDES-1'!F288 -> 0.4394
A28: 17 | C28: Over 100,000 Mcf per billing period | D28: ='Rate Design KLJ-RDES-1'!J289 -> 0.3247 | F28: ='Rate Design KLJ-RDES-1'!F289 -> 0.2432
A30: =+A28+1 -> 18 | B30: Intrastate Utility Sales Service (IUS)
A31: =+A30+1 -> 19 | C31: =+C24 -> Customer Charge per billing period | D31: ='Rate Design KLJ-RDES-1'!J311 -> 567.4 | F31: ='Rate Design KLJ-RDES-1'!F311 -> 945.24
A32: =+A31+1 -> 20 | C32: SMRP Rider - Intrastate Utility only - per billing period | D32: ='Rate Design KLJ-RDES-1'!J312 -> 207.8 | F32: ='Rate Design KLJ-RDES-1'!F312 -> 0
A33: 21 | C33: Delivery Charge per Mcf for all volumes delivered | D33: ='Rate Design KLJ-RDES-1'!J316 -> 1.1544 | F33: ='Rate Design KLJ-RDES-1'!F316 -> 1.1986
A35: =+A33+1 -> 22 | B35: Delivery Service - Mainline (DS-ML)
A36: =+A35+1 -> 23 | C36: =+C31 -> Customer Charge per billing period | D36: ='Rate Design KLJ-RDES-1'!J327 -> 255.9 | F36: ='Rate Design KLJ-RDES-1'!F327 -> 260.11
A37: =+A36+1 -> 24 | C37: Delivery Charge per Mcf | D37: ='Rate Design KLJ-RDES-1'!J331 -> 0.0858 | F37: ='Rate Design KLJ-RDES-1'!F331 -> 0.0863

Sheet KLJ-RDES-4
F1: Witness: Johnson
F2: Attachment KLJ-RDES-4
F3: Page 1 of 5
A4: Columbia Gas of Kentucky, Inc.
A5: Calculation of Average GSR/GTR Bill
A6: March 2021
A8: Line | D8: Rate
A9: No. | B9: Component | C9: Sales | D9: Per Mcf | E9: Amount
C10: Mcf 2/ | D10: $ | E10: $
A12: 1 | B12: Prior Approved Rates 1/
A14: =A12+1 -> 2 | B14: Customer Charge per billing period | E14: =Input!H19 -> 16
A15: =A14+1 -> 3 | B15: SMRP Rider per billing period | E15: =Input!K19 -> 6.63
A16: =A15+1 -> 4 | B16: EECPRC per billing period | E16: =Input!L19 -> 0.29
A17: =A16+1 -> 5 | B17: Tax Act Adjustment Factor per Mcf | C17: =+C19 -> 5.6 | D17: =+Input!J19 -> -0.2825 | E17: =+C17*D17 -> -1.582
A19: =+A17+1 -> 6 | B19: Delivery Charge per Mcf | C19: 5.6 | D19: =Input!C19 -> 3.5665 | E19: =ROUND(C19*D19,2) -> 19.97
A20: =A19+1 -> 7 | B20: NGR&D Rider per Mcf | C20: =$C$19 -> 5.6 | D20: =Input!N19 -> 0.0144 | E20: =ROUND(C20*D20,2) -> 0.08
A21: =A20+1 -> 8 | B21: EAP per billing period | E21: 0.3
A22: 9 | B22: Gas Cost Adjustment (GCA) | C22: =$C$19 -> 5.6 | D22: 4.4128 | E22: =ROUND(C22*D22,2) -> 24.71
A24: =+A22+1 -> 10 | B24: Total Bill | C24: =+C22 -> 5.6 | E24: =SUM(E14:E22) -> 66.398
A26: =A24+1 -> 11 | B26: Proposed Rates
A28: =A26+1 -> 12 | B28: =+B14 -> Customer Charge per billing period | E28: =Input!V19 -> 19.75
A29: =A28+1 -> 13 | B29: =+B15 -> SMRP Rider per billing period | E29: =Input!X19 -> 0
A30: =A29+1 -> 14 | B30: =+B16 -> EECPRC per billing period | E30: =Input!Y19 -> 0.29
A31: =A30+1 -> 15 | B31: =+B17 -> Tax Act Adjustment Factor per Mcf | C31: =+C33 -> 5.6 | D31: 0 | E31: 0
A33: =A31+1 -> 16 | B33: =+B19 -> Delivery Charge per Mcf | C33: =$C$19 -> 5.6 | D33: =Input!Q19 -> 5.274 | E33: =ROUND(C33*D33,2) -> 29.53
A34: =A33+1 -> 17 | B34: =+B20 -> NGR&D Rider per Mcf | C34: 5.6 | D34: =Input!AA19 -> 0.0144 | E34: 0.08
A35: =A34+1 -> 18 | B35: =+B21 -> EAP per billing period | E35: 0.3
A36: 19 | B36: =+B22 -> Gas Cost Adjustment (GCA) | C36: 5.6 | D36: 4.3989 | E36: 24.63
A38: =+A36+1 -> 20 | B38: Total Bill | C38: =+C36 -> 5.6 | E38: =SUM(E28:E36) -> 74.58
A40: =A38+1 -> 21 | B40: Percent Increase - Total | E40: =ROUND((E38-E24)/E24,4) -> 0.1232
A42: =A40+1 -> 22 | B42: Percent Increase - Delivery Charges only | E42: =ROUND((E28+E29+E33-E14-E15-E19-E17)/(E14+E15+E19+E17),4) -> 0.2014
A44: 1/ Prior Approved Rates as of 3-1-2021. Commodity cost imputed for illustrative purposes.
A45: 2/ Monthly Usage based on GSR class (Per Schedule N)
F47: =+F1 -> Witness: Johnson
F48: =+F2 -> Attachment KLJ-RDES-4
F49: Page 2 of 5
A50: Columbia Gas of Kentucky, Inc.
A51: Calculation of Average GSO/GTO Bill
A52: =+A6 -> March 2021
A54: Line | D54: Rate | E54: GSO/GTO
A55: No. | B55: Component | C55: Sales | D55: Per Mcf | E55: Amount
C56: =+C10 -> Mcf 2/ | D56: $ | E56: $
A58: 1 | B58: =+B12 -> Prior Approved Rates 1/
A60: =A58+1 -> 2 | B60: =+B14 -> Customer Charge per billing period | E60: =Input!H30 -> 44.69
A61: =A60+1 -> 3 | B61: =+B15 -> SMRP Rider per billing period | E61: =Input!K30 -> 24.31
A62: =A61+1 -> 4 | B62: =+B17 -> Tax Act Adjustment Factor per Mcf | C62: =+C64 -> 27.3 | D62: =+Input!J30 -> -0.168 | E62: =+C62*D62 -> -4.5864
A64: =+A62+1 -> 5 | B64: First 50 Mcf or less per billing period | C64: 27.3 | D64: =Input!C30 -> 3.0181 | E64: =ROUND(C64*D64,2) -> 82.39
A65: =A64+1 -> 6 | B65: Next 350 Mcf per billing period | C65: 0 | D65: =Input!D30 -> 2.3295 | E65: =ROUND(C65*D65,2) -> 0
A66: =A65+1 -> 7 | B66: Next 600 Mcf per billing period | C66: 0 | D66: =Input!E30 -> 2.2143 | E66: 0
A67: =A66+1 -> 8 | B67: Over 1,000 Mcf per billing period | C67: 0 | D67: =Input!F30 -> 2.0143 | E67: 0
A68: =A67+1 -> 9 | B68: =+B20 -> NGR&D Rider per Mcf | C68: =SUM(C64:C67) -> 27.3 | D68: =Input!N30 -> 0.0144 | E68: =ROUND(C68*D68,2) -> 0.39
A69: =+A68+1 -> 10 | B69: =+B22 -> Gas Cost Adjustment (GCA) | C69: =C68 -> 27.3 | D69: =+D22 -> 4.4128 | E69: 120.47
A71: =+A69+1 -> 11 | B71: Total Bill | C71: =+C69 -> 27.3 | E71: =SUM(E60:E69) -> 267.6636
A73: =A71+1 -> 12 | B73: Proposed Rates
A75: =A73+1 -> 13 | B75: =+B60 -> Customer Charge per billing period | E75: =Input!V30 -> 83.71
A76: =A75+1 -> 14 | B76: =+B61 -> SMRP Rider per billing period | E76: =Input!X30 -> 0
A77: =A76+1 -> 15 | B77: =+B62 -> Tax Act Adjustment Factor per Mcf | C77: =+C79 -> 27.3 | D77: 0 | E77: 0
A79: =+A77+1 -> 16 | B79: =+B64 -> First 50 Mcf or less per billing period | C79: =C71 -> 27.3 | D79: =Input!Q30 -> 3.2649 | E79: =ROUND(C79*D79,2) -> 89.13
A80: =A79+1 -> 17 | B80: Next 350 Mcf per billing period | C80: 0 | D80: =Input!R30 -> 2.5201 | E80: 0
A81: =A80+1 -> 18 | B81: Next 600 Mcf per billing period | C81: 0 | D81: =Input!S30 -> 2.3954 | E81: 0
A82: 19 | B82: Over 1,000 Mcf per billing period | C82: 0 | D82: =Input!T30 -> 2.179 | E82: 0
A83: 20 | B83: NGR&D Rider per Mcf | C83: =C79 -> 27.3 | D83: =Input!AA30 -> 0.0144 | E83: 0.39
A84: =+A83+1 -> 21 | B84: Gas Cost Adjustment (GCA) | C84: =+C83 -> 27.3 | D84: =+D36 -> 4.3989 | E84: 120.09
A86: =+A84+1 -> 22 | B86: Total Bill | C86: =+C84 -> 27.3 | E86: =SUM(E75:E84) -> 293.32
A88: =A86+1 -> 23 | B88: Percent Increase - Total | E88: =ROUND((E86-E71)/E71,4) -> 0.0959
A90: =A88+1 -> 24 | B90: Percent Increase - Delivery Charges only | E90: =ROUND((E75+E76+E79+E80+E81+E82-E60-E61-E64-E65-E66-E67-E62)/(E60+E61+E64+E65+E66+E67+E62),4) -> 0.1774
A92: 1/ Prior Approved Rates as of 3-1-2021. Commodity cost imputed for illustrative purposes.
A93: 2/ Monthly Usage based on GSO class (Per Schedule N)
F94: =+F47 -> Witness: Johnson
F95: =+F48 -> Attachment KLJ-RDES-4
F96: Page 3 of 5
A97: Columbia Gas of Kentucky, Inc.
A98: Calculation of Average IUS Bill
A99: =+A52 -> March 2021
A101: Line | D101: Rate | E101: IUS
A102: No. | B102: Component | C102: Sales | D102: Per Mcf | E102: Amount
C103: =+C56 -> Mcf 2/ | D103: $ | E103: $
A105: 1 | B105: =+B58 -> Prior Approved Rates 1/
A107: =A105+1 -> 2 | B107: Customer Charge per billing period | E107: =+Input!H37 -> 567.4
A108: =A107+1 -> 3 | B108: SMRP Rider per billing period | E108: =+Input!K37 -> 207.8
A109: =A108+1 -> 4 | B109: Tax Act Adjustment Factor per Mcf | C109: =+C111 -> 468.8 | D109: =+Input!J37 -> -0.116 | E109: =+C109*D109 -> -54.3808
A111: =+A109+1 -> 5 | B111: Delivery Charge per Mcf | C111: =ROUND(('C'!P139+'C'!P140)/(B!P96+B!P97),1) -> 468.8 | D111: =+Input!C37 -> 1.1544 | E111: =ROUND(C111*D111,2) -> 541.18
A112: =+A111+1 -> 6 | B112: NGR&D Rider per Mcf | C112: =C111 -> 468.8 | D112: =+Input!N37 -> 0.0144 | E112: =ROUND(C112*D112,2) -> 6.75
A113: =+A112+1 -> 7 | B113: Gas Cost Adjustment (GCA) | C113: =+C112 -> 468.8 | D113: =+D69 -> 4.4128 | E113: 2068.72
A115: =+A113+1 -> 8 | B115: Total Bill | C115: =+C113 -> 468.8 | E115: =SUM(E107:E113) -> 3337.4692
A117: =A115+1 -> 9 | B117: Proposed Rates
A119: =A117+1 -> 10 | B119: Customer Charge per billing period | E119: =+Input!V37 -> 945.24
A120: =A119+1 -> 11 | B120: SMRP Rider per billing period | E120: 0
A121: =A120+1 -> 12 | B121: Tax Act Adjustment Factor per Mcf | C121: =+C123 -> 468.8 | D121: 0 | E121: 0
A123: =+A121+1 -> 13 | B123: Delivery Charge per Mcf | C123: =C115 -> 468.8 | D123: =+Input!Q37 -> 1.1986 | E123: =ROUND(C123*D123,2) -> 561.9
A124: =+A123+1 -> 14 | B124: NGR&D Rider per Mcf | C124: =C123 -> 468.8 | D124: =+Input!AA37 -> 0.0144 | E124: 6.75
A125: =+A124+1 -> 15 | B125: Gas Cost Adjustment (GCA) | C125: =+C124 -> 468.8 | D125: =+D84 -> 4.3989 | E125: 2062.2
A127: =+A125+1 -> 16 | B127: Total Bill | C127: =+C125 -> 468.8 | E127: =SUM(E119:E125) -> 3576.09
A129: =A127+1 -> 17 | B129: Percent Increase - Total | E129: =ROUND((E127-E115)/E115,4) -> 0.0715
A131: =A129+1 -> 18 | B131: Percent Increase - Delivery Charges only | E131: =ROUND((E119+E120+E121+E123-E107-E108-E109-E111)/(E107+E108+E109+E111),4) -> 0.1942
A134: 1/ Prior Approved Rates as of 3-1-2021. Commodity cost imputed for illustrative purposes.
A135: 2/ Monthly Usage based on IUS class (Per Schedule N)
F136: =+F94 -> Witness: Johnson
F137: =+F95 -> Attachment KLJ-RDES-4
F138: Page 4 of 5
A139: Columbia Gas of Kentucky, Inc.
A140: Calculation of Average IS/DS Bill
A141: =+A99 -> March 2021
A143: Line | D143: Rate | E143: IS/DS
A144: No. | B144: Component | C144: Sales | D144: Per Mcf | E144: Amount
C145: =+C103 -> Mcf 2/ | D145: $ | E145: $
A147: 1 | B147: =+B105 -> Prior Approved Rates 1/
A149: =A147+1 -> 2 | B149: =+B119 -> Customer Charge per billing period | E149: =Input!H44 -> 2007
A150: =A149+1 -> 3 | B150: =+B120 -> SMRP Rider per billing period | E150: =Input!K44 -> 1221.21
A151: =A150+1 -> 4 | B151: =+B121 -> Tax Act Adjustment Factor per Mcf | C151: =+C153+C154+C155 -> 11870 | D151: =+Input!J36 -> -0.026 | E151: =+C151*D151 -> -308.62
A153: =+A151+1 -> 5 | B153: First 30,000 Mcf per billing period | C153: 11870 | D153: =Input!C44 -> 0.6285 | E153: =ROUND(C153*D153,2) -> 7460.3
A154: =A153+1 -> 6 | B154: Next 70,000 Mcf per billing period | D154: =Input!D44 -> 0.3737 | E154: =ROUND(C154*D154,2) -> 0
A155: =+A154+1 -> 7 | B155: Over 100,000 Mcf per billing period | D155: =Input!E44 -> 0.3247 | E155: =ROUND(C155*D155,2) -> 0
A156: =A155+1 -> 8 | B156: =+B124 -> NGR&D Rider per Mcf | C156: =+C153+C154+C155 -> 11870 | D156: =Input!N44 -> 0.0144 | E156: =ROUND(C156*D156,2) -> 170.93
A158: =+A156+1 -> 9 | B158: Total Bill | C158: =+C156 -> 11870 | E158: =SUM(E149:E156) -> 10550.82
A160: =A158+1 -> 10 | B160: Proposed Rates
A162: =A160+1 -> 11 | B162: =+B149 -> Customer Charge per billing period | E162: =Input!V44 -> 3982.3
A163: =A162+1 -> 12 | B163: =+B150 -> SMRP Rider per billing period | E163: =Input!X44 -> 0
A164: =A163+1 -> 13 | B164: =+B151 -> Tax Act Adjustment Factor per Mcf | C164: =+C151 -> 11870 | D164: 0 | E164: =Input!W44 -> 0
A165: 14
A166: 15 | B166: =+B153 -> First 30,000 Mcf per billing period | C166: =+C153 -> 11870 | D166: =Input!Q44 -> 0.712 | E166: =ROUND(C166*D166,2) -> 8451.44
A167: 16 | B167: =+B154 -> Next 70,000 Mcf per billing period | C167: =C154 -> 0 | D167: =Input!R44 -> 0.4394 | E167: 0
A168: 17 | B168: =+B155 -> Over 100,000 Mcf per billing period | C168: =C155 -> 0 | D168: =Input!S44 -> 0.2432 | E168: 0
A169: 18 | B169: =+B156 -> NGR&D Rider per Mcf | C169: =+C166+C167+C168 -> 11870 | D169: =Input!AA44 -> 0.0144 | E169: =ROUND(C169*D169,2) -> 170.93
A171: =+A169+1 -> 19 | B171: Total Bill | C171: =+C169 -> 11870 | E171: =SUM(E162:E169) -> 12604.67
A173: =A171+1 -> 20 | B173: Percent Increase - Total | E173: =ROUND((E171-E158)/E158,4) -> 0.1947
A175: =A173+1 -> 21 | B175: Percent Increase - Delivery Charges only | E175: =ROUND((E162+E163+E164+E166+E167-E149-E150-E151-E153-E154)/(E149+E150+E151+E153+E154),4) -> 0.1979
A178: 1/ Prior Approved Rates as of 3-1-2021.
A179: 2/ Monthly Usage based on DS Industrial class (Per Schedule N)
F180: =+F136 -> Witness: Johnson
F181: =+F137 -> Attachment KLJ-RDES-4
F182: Page 5 of 5
A183: Columbia Gas of Kentucky, Inc.
A184: Calculation of Average DS-ML Bill
A185: =+A141 -> March 2021
A187: Line | D187: Rate | E187: DS-ML
A188: No. | B188: Component | C188: Sales | D188: Per Mcf | E188: Amount
C189: =+C145 -> Mcf 2/ | D189: $ | E189: $
A191: 1 | B191: =+B147 -> Prior Approved Rates 1/
A193: =A191+1 -> 2 | B193: Monthly Customer Charge | E193: =Input!H48 -> 255.9
A194: =A193+1 -> 3 | B194: Accelerated Mains Replacement Program (AMRP) | E194: =Input!K48 -> 0
A196: =+A194+1 -> 4 | B196: All Gas Consumed | C196: =ROUND(('C'!P332)/(B!P219+B!P220),1) -> 16725 | D196: =Input!C48 -> 0.0858 | E196: =ROUND(C196*D196,2) -> 1435.01
A197: =A196+1 -> 5 | B197: Research & Development | C197: =C196 -> 16725 | D197: =Input!N48 -> 0.0144 | E197: =ROUND(C197*D197,2) -> 240.84
A199: =+A197+1 -> 6 | B199: Total Bill | C199: =+C197 -> 16725 | E199: =SUM(E193:E197) -> 1931.75
A201: =A199+1 -> 7 | B201: Proposed Rates
A203: =A201+1 -> 8 | B203: Monthly Customer Charge | E203: =Input!V48 -> 260.11
A204: =A203+1 -> 9 | B204: Accelerated Mains Replacement Program (AMRP) | E204: =Input!X48 -> 0
A206: =+A204+1 -> 10 | B206: All Gas Consumed | C206: =C199 -> 16725 | D206: =Input!Q48 -> 0.0863 | E206: =ROUND(C206*D206,2) -> 1443.37
A207: =A206+1 -> 11 | B207: Research & Development | C207: =C206 -> 16725 | D207: =Input!AA48 -> 0.0144 | E207: 240.84
A209: =+A207+1 -> 12 | B209: Total Bill | C209: =+C207 -> 16725 | E209: =SUM(E203:E207) -> 1944.32
A211: =A209+1 -> 13 | B211: Percent Increase - Total | E211: =ROUND((E209-E199)/E199,4) -> 0.0065
A213: =A211+1 -> 14 | B213: Percent Increase - Delivery Charges only | E213: =ROUND((E203+E204+E206-E193-E194-E196)/(E193+E194+E196),4) -> 0.0074
A216: 1/ Prior Approved Rates as of 3-1-2021.
A217: 2/ Monthly Usage based on DS3 class (Per Schedule N)
